Workbook

Sheet Summary (EUE)
B2: Year | C2: BASELINE
C3: Total EUE (MWh) | D3: Total Fuel Consumed (L)1 | E3: Fuel Price Forecast2 | F3: Power Outage Costs ($)
B4: 20193 | C4: ='EUE Calculations - Baseline'!D5 -> 386.3149216 | D4: =C4*1000/3.25 -> 118866.1297 | E4: 1.347 | F4: =D4*E4 -> 160112.6767
B5: 2020 | C5: ='EUE Calculations - Baseline'!H5+'EUE Calculations - Baseline'!J5 -> 71.06913568 | D5: =C5*1000/3.25 -> 21867.42636 | E5: 1.495 | F5: =D5*E5 -> 32691.80241
B6: 2021 | C6: ='EUE Calculations - Baseline'!N5+'EUE Calculations - Baseline'!P5 -> 71.42956669 | D6: 21978.32821 | E6: 1.405 | F6: 30879.55114
B7: 2022 | C7: ='EUE Calculations - Baseline'!T5+'EUE Calculations - Baseline'!V5 -> 71.97111775 | D7: 22144.95931 | E7: 1.355 | F7: 30006.41986
B8: 2023 | C8: ='EUE Calculations - Baseline'!Z5+'EUE Calculations - Baseline'!AB5 -> 72.33256307 | D8: 22256.17325 | E8: 1.345 | F8: 29934.55302
B9: 2024 | C9: ='EUE Calculations - Baseline'!AF5+'EUE Calculations - Baseline'!AH5 -> 72.87522436 | D9: 22423.14596 | E9: 1.365 | F9: 30607.59423 | H9: CPV: | I9: =NPV(0.065,F4:F29) -> 571454.4363
B10: 2025 | C10: ='EUE Calculations - Baseline'!AL5+'EUE Calculations - Baseline'!AN5 -> 73.96310965 | D10: 22757.87989 | E10: 1.38 | F10: 31405.87425
B11: 2026 | C11: ='EUE Calculations - Baseline'!AR5+'EUE Calculations - Baseline'!AT5 -> 74.87260756 | D11: 23037.7254 | E11: 1.405 | F11: 32368.00419
B12: 2027 | C12: ='EUE Calculations - Baseline'!AX5+'EUE Calculations - Baseline'!AZ5 -> 75.78536572 | D12: 23318.57407 | E12: 1.435 | F12: 33462.15378
B13: 2028 | C13: ='EUE Calculations - Baseline'!BD5+'EUE Calculations - Baseline'!BF5 -> 76.70073463 | D13: 23600.22604 | E13: 1.455 | F13: 34338.32889
B14: 2029 | C14: ='EUE Calculations - Baseline'!BJ5+'EUE Calculations - Baseline'!BL5 -> 77.61829777 | D14: 23882.55316 | E14: 1.48 | F14: 35346.17868
B15: 2030 | C15: ='EUE Calculations - Baseline'!BP5+'EUE Calculations - Baseline'!BR5 -> 78.72323635 | D15: 24222.53426 | E15: 1.51 | F15: 36576.02673
B16: 2031 | C16: ='EUE Calculations - Baseline'!BV5+'EUE Calculations - Baseline'!BX5 -> 79.64709228 | D16: 24506.79763 | E16: 1.535 | F16: 37617.93436
B17: 2032 | C17: ='EUE Calculations - Baseline'!CB5+'EUE Calculations - Baseline'!CD5 -> 80.57296406 | D17: 24791.68125 | E17: 1.565 | F17: 38798.98115
B18: 2033 | C18: ='EUE Calculations - Baseline'!CH5+'EUE Calculations - Baseline'!CJ5 -> 81.50163453 | D18: 25077.42601 | E18: 1.59 | F18: 39873.10735
B19: 2034 | C19: ='EUE Calculations - Baseline'!CN5+'EUE Calculations - Baseline'!CP5 -> 82.61977917 | D19: 25421.47051 | E19: 1.62 | F19: 41182.78223
B20: 2035 | C20: ='EUE Calculations - Baseline'!CT5+'EUE Calculations - Baseline'!CV5 -> 83.55436243 | D20: 25709.03459 | E20: 1.65 | F20: 42419.90708
B21: 2036 | C21: ='EUE Calculations - Baseline'!CZ5+'EUE Calculations - Baseline'!DB5 -> 84.49183051 | D21: 25997.48631 | E21: 1.68 | F21: 43675.777
B22: 2037 | C22: ='EUE Calculations - Baseline'!DF5+'EUE Calculations - Baseline'!DH5 -> 85.43265455 | D22: 26286.97063 | E22: 1.705 | F22: 44819.28492
B23: 2038 | C23: ='EUE Calculations - Baseline'!DL5+'EUE Calculations - Baseline'!DN5 -> 86.56576417 | D23: 26635.61975 | E23: 1.735 | F23: 46212.80026
B24: 2039 | C24: ='EUE Calculations - Baseline'!DR5+'EUE Calculations - Baseline'!DT5 -> 87.51346681 | D24: 26927.22056 | E24: 1.765 | F24: 47526.54428
B25: 2040 | C25: ='EUE Calculations - Baseline'!DX5+'EUE Calculations - Baseline'!DZ5 -> 88.46385205 | D25: 27219.64678 | E25: 1.8 | F25: 48995.36421
B26: 2041 | C26: ='EUE Calculations - Baseline'!ED5+'EUE Calculations - Baseline'!EF5 -> 89.60834964 | D26: 27571.79989 | E26: 1.835 | F26: 50594.25279
B27: 2042 | C27: ='EUE Calculations - Baseline'!EJ5+'EUE Calculations - Baseline'!EL5 -> 90.56610545 | D27: 27866.49399 | E27: 1.87 | F27: 52110.34375
B28: 2043 | C28: ='EUE Calculations - Baseline'!EP5+'EUE Calculations - Baseline'!ER5 -> 91.52684684 | D28: 28162.10672 | E28: 1.91 | F28: 53789.62383
B29: 2044 | C29: ='EUE Calculations - Baseline'!EV5+'EUE Calculations - Baseline'!EX5 -> 92.49100917 | D29: 28458.77205 | E29: 1.945 | F29: 55352.31164
B30: NOTES: 1 - Assumed Generator Efficiency of 3.25 kWh/L 2 - As per Table 3.2 (Page 13) in the Labrador Expansion Study 3 - Existing System. This would be prior to MF-HVY Interconnection

Sheet Load Data - Hourly
A1: Hourly Load Profile
E2: Peak: | F2: =MAX(F4:F8765) -> 67.3490963 | H2: Baseline Hourly Load Profiles (2019-2044)
A3: Date/Time | B3: T1(MW) | C3: T2(MW) | D3: T4 (MW) | E3: CT (MW) | F3: Total Load(MW) @ 138kV Bus | H3: 2019 | I3: =H3+1 -> 2020 | J3: 2021 | K3: 2022 | L3: 2023 | M3: 2024 | N3: 2025 | O3: 2026 | P3: 2027 | Q3: 2028 | R3: 2029 | S3: 2030 | T3: 2031 | U3: 2032 | V3: 2033 | W3: 2034 | X3: 2035 | Y3: 2036 | Z3: 2037 | AA3: 2038 | AB3: 2039 | AC3: 2040 | AD3: 2041 | AE3: 2042 | AF3: 2043 | AG3: 2044
A4: 2017-01-01 | B4: 21.50930977 | C4: 11.90556717 | D4: 11.90255928 | E4: 0 | F4: =SUM(B4:E4) -> 45.31743622 | H4: =F4*(Forecast!$C$8/$F$2) -> 54.97378202 | I4: =F4*(Forecast!$D$8/$F$2) -> 56.05037995 | J4: =F4*(Forecast!$E$8/$F$2) -> 56.18495469 | K4: =F4*(Forecast!$F$8/$F$2) -> 56.38681681 | L4: =F4*(Forecast!$G$8/$F$2) -> 56.52139155 | M4: =F4*(Forecast!$H$8/$F$2) -> 56.72325366 | N4: =F4*(Forecast!$I$8/$F$2) -> 57.12697789 | O4: =F4*(Forecast!$J$8/$F$2) -> 57.46341474 | P4: =F4*(Forecast!$K$8/$F$2) -> 57.7998516 | Q4: =F4*(Forecast!$L$8/$F$2) -> 58.13628845 | R4: =F4*(Forecast!$M$8/$F$2) -> 58.4727253 | S4: =F4*(Forecast!$N$8/$F$2) -> 58.87644953 | T4: =F4*(Forecast!$O$8/$F$2) -> 59.21288638 | U4: =F4*(Forecast!$P$8/$F$2) -> 59.54932324 | V4: =F4*(Forecast!$Q$8/$F$2) -> 59.88576009 | W4: =F4*(Forecast!$R$8/$F$2) -> 60.28948432 | X4: =F4*(Forecast!$S$8/$F$2) -> 60.62592117 | Y4: =F4*(Forecast!$T$8/$F$2) -> 60.96235803 | Z4: =F4*(Forecast!$U$8/$F$2) -> 61.29879488 | AA4: =F4*(Forecast!$V$8/$F$2) -> 61.70251911 | AB4: =F4*(Forecast!$W$8/$F$2) -> 62.03895596 | AC4: =F4*(Forecast!$X$8/$F$2) -> 62.37539282 | AD4: =F4*(Forecast!$Y$8/$F$2) -> 62.77911704 | AE4: =F4*(Forecast!$Z$8/$F$2) -> 63.1155539 | AF4: =F4*(Forecast!$AA$8/$F$2) -> 63.45199075 | AG4: =F4*(Forecast!$AB$8/$F$2) -> 63.78842761
A5: 2017-01-01T01:00:00 | B5: 21.72950745 | C5: 11.89333439 | D5: 11.89130878 | E5: 0 | F5: =SUM(B5:E5) -> 45.51415062 | H5: =F5*(Forecast!$C$8/$F$2) -> 55.21241279 | I5: =F5*(Forecast!$D$8/$F$2) -> 56.29368403 | J5: =F5*(Forecast!$E$8/$F$2) -> 56.42884293 | K5: =F5*(Forecast!$F$8/$F$2) -> 56.63158129 | L5: =F5*(Forecast!$G$8/$F$2) -> 56.7667402 | M5: =F5*(Forecast!$H$8/$F$2) -> 56.96947855 | N5: =F5*(Forecast!$I$8/$F$2) -> 57.37495527 | O5: =F5*(Forecast!$J$8/$F$2) -> 57.71285253 | P5: =F5*(Forecast!$K$8/$F$2) -> 58.0507498 | Q5: =F5*(Forecast!$L$8/$F$2) -> 58.38864706 | R5: =F5*(Forecast!$M$8/$F$2) -> 58.72654432 | S5: =F5*(Forecast!$N$8/$F$2) -> 59.13202104 | T5: =F5*(Forecast!$O$8/$F$2) -> 59.4699183 | U5: =F5*(Forecast!$P$8/$F$2) -> 59.80781556 | V5: =F5*(Forecast!$Q$8/$F$2) -> 60.14571283 | W5: =F5*(Forecast!$R$8/$F$2) -> 60.55118954 | X5: =F5*(Forecast!$S$8/$F$2) -> 60.88908681 | Y5: =F5*(Forecast!$T$8/$F$2) -> 61.22698407 | Z5: =F5*(Forecast!$U$8/$F$2) -> 61.56488133 | AA5: =F5*(Forecast!$V$8/$F$2) -> 61.97035805 | AB5: =F5*(Forecast!$W$8/$F$2) -> 62.30825531 | AC5: =F5*(Forecast!$X$8/$F$2) -> 62.64615257 | AD5: =F5*(Forecast!$Y$8/$F$2) -> 63.05162929 | AE5: =F5*(Forecast!$Z$8/$F$2) -> 63.38952655 | AF5: =F5*(Forecast!$AA$8/$F$2) -> 63.72742382 | AG5: =F5*(Forecast!$AB$8/$F$2) -> 64.06532108
A6: 2017-01-01T02:00:00 | B6: 21.35857201 | C6: 11.8955946 | D6: 11.89983654 | E6: 0 | F6: =SUM(B6:E6) -> 45.15400314 | H6: =F6*(Forecast!$C$8/$F$2) -> 54.77552424 | I6: =F6*(Forecast!$D$8/$F$2) -> 55.84823952 | J6: =F6*(Forecast!$E$8/$F$2) -> 55.98232894 | K6: =F6*(Forecast!$F$8/$F$2) -> 56.18346305 | L6: =F6*(Forecast!$G$8/$F$2) -> 56.31755246 | M6: =F6*(Forecast!$H$8/$F$2) -> 56.51868658 | N6: =F6*(Forecast!$I$8/$F$2) -> 56.92095481 | O6: =F6*(Forecast!$J$8/$F$2) -> 57.25617834 | P6: =F6*(Forecast!$K$8/$F$2) -> 57.59140186 | Q6: =F6*(Forecast!$L$8/$F$2) -> 57.92662539 | R6: =F6*(Forecast!$M$8/$F$2) -> 58.26184892 | S6: =F6*(Forecast!$N$8/$F$2) -> 58.66411715 | T6: =F6*(Forecast!$O$8/$F$2) -> 58.99934067 | U6: =F6*(Forecast!$P$8/$F$2) -> 59.3345642 | V6: =F6*(Forecast!$Q$8/$F$2) -> 59.66978773 | W6: =F6*(Forecast!$R$8/$F$2) -> 60.07205596 | X6: =F6*(Forecast!$S$8/$F$2) -> 60.40727949 | Y6: =F6*(Forecast!$T$8/$F$2) -> 60.74250301 | Z6: =F6*(Forecast!$U$8/$F$2) -> 61.07772654 | AA6: =F6*(Forecast!$V$8/$F$2) -> 61.47999477 | AB6: =F6*(Forecast!$W$8/$F$2) -> 61.8152183 | AC6: =F6*(Forecast!$X$8/$F$2) -> 62.15044182 | AD6: =F6*(Forecast!$Y$8/$F$2) -> 62.55271006 | AE6: =F6*(Forecast!$Z$8/$F$2) -> 62.88793358 | AF6: =F6*(Forecast!$AA$8/$F$2) -> 63.22315711 | AG6: =F6*(Forecast!$AB$8/$F$2) -> 63.55838064
A7: 2017-01-01T03:00:00 | B7: 21.24563026 | C7: 11.98687172 | D7: 11.96931267 | E7: 0 | F7: 45.20181465 | H7: =F7*(Forecast!$C$8/$F$2) -> 54.83352354 | I7: =F7*(Forecast!$D$8/$F$2) -> 55.90737467 | J7: =F7*(Forecast!$E$8/$F$2) -> 56.04160606 | K7: =F7*(Forecast!$F$8/$F$2) -> 56.24295315 | L7: =F7*(Forecast!$G$8/$F$2) -> 56.37718454 | M7: =F7*(Forecast!$H$8/$F$2) -> 56.57853163 | N7: =F7*(Forecast!$I$8/$F$2) -> 56.9812258 | O7: =F7*(Forecast!$J$8/$F$2) -> 57.31680428 | P7: =F7*(Forecast!$K$8/$F$2) -> 57.65238276 | Q7: =F7*(Forecast!$L$8/$F$2) -> 57.98796124 | R7: =F7*(Forecast!$M$8/$F$2) -> 58.32353972 | S7: =F7*(Forecast!$N$8/$F$2) -> 58.7262339 | T7: =F7*(Forecast!$O$8/$F$2) -> 59.06181238 | U7: =F7*(Forecast!$P$8/$F$2) -> 59.39739086 | V7: =F7*(Forecast!$Q$8/$F$2) -> 59.73296934 | W7: =F7*(Forecast!$R$8/$F$2) -> 60.13566351 | X7: =F7*(Forecast!$S$8/$F$2) -> 60.47124199 | Y7: =F7*(Forecast!$T$8/$F$2) -> 60.80682047 | Z7: =F7*(Forecast!$U$8/$F$2) -> 61.14239895 | AA7: =F7*(Forecast!$V$8/$F$2) -> 61.54509312 | AB7: =F7*(Forecast!$W$8/$F$2) -> 61.8806716 | AC7: =F7*(Forecast!$X$8/$F$2) -> 62.21625008 | AD7: =F7*(Forecast!$Y$8/$F$2) -> 62.61894426 | AE7: =F7*(Forecast!$Z$8/$F$2) -> 62.95452274 | AF7: =F7*(Forecast!$AA$8/$F$2) -> 63.29010122 | AG7: =F7*(Forecast!$AB$8/$F$2) -> 63.6256797
A8: 2017-01-01T04:00:00 | B8: 21.42563057 | C8: 12.0781498 | D8: 12.03878784 | E8: 0 | F8: 45.54256821 | H8: =F8*(Forecast!$C$8/$F$2) -> 55.24688566 | I8: =F8*(Forecast!$D$8/$F$2) -> 56.32883201 | J8: =F8*(Forecast!$E$8/$F$2) -> 56.46407531 | K8: =F8*(Forecast!$F$8/$F$2) -> 56.66694025 | L8: =F8*(Forecast!$G$8/$F$2) -> 56.80218354 | M8: =F8*(Forecast!$H$8/$F$2) -> 57.00504848 | N8: =F8*(Forecast!$I$8/$F$2) -> 57.41077837 | O8: =F8*(Forecast!$J$8/$F$2) -> 57.7488866 | P8: =F8*(Forecast!$K$8/$F$2) -> 58.08699484 | Q8: =F8*(Forecast!$L$8/$F$2) -> 58.42510307 | R8: =F8*(Forecast!$M$8/$F$2) -> 58.76321131 | S8: =F8*(Forecast!$N$8/$F$2) -> 59.16894119 | T8: =F8*(Forecast!$O$8/$F$2) -> 59.50704943 | U8: =F8*(Forecast!$P$8/$F$2) -> 59.84515766 | V8: =F8*(Forecast!$Q$8/$F$2) -> 60.1832659 | W8: =F8*(Forecast!$R$8/$F$2) -> 60.58899578 | X8: =F8*(Forecast!$S$8/$F$2) -> 60.92710401 | Y8: =F8*(Forecast!$T$8/$F$2) -> 61.26521225 | Z8: =F8*(Forecast!$U$8/$F$2) -> 61.60332049 | AA8: =F8*(Forecast!$V$8/$F$2) -> 62.00905037 | AB8: =F8*(Forecast!$W$8/$F$2) -> 62.3471586 | AC8: =F8*(Forecast!$X$8/$F$2) -> 62.68526684 | AD8: =F8*(Forecast!$Y$8/$F$2) -> 63.09099672 | AE8: =F8*(Forecast!$Z$8/$F$2) -> 63.42910496 | AF8: =F8*(Forecast!$AA$8/$F$2) -> 63.76721319 | AG8: =F8*(Forecast!$AB$8/$F$2) -> 64.10532143
A9: 2017-01-01T05:00:00 | B9: 21.34294319 | C9: 12.16942787 | D9: 12.10826397 | E9: 0 | F9: 45.62063503 | H9: =F9*(Forecast!$C$8/$F$2) -> 55.34158715 | I9: =F9*(Forecast!$D$8/$F$2) -> 56.42538812 | J9: =F9*(Forecast!$E$8/$F$2) -> 56.56086324 | K9: =F9*(Forecast!$F$8/$F$2) -> 56.76407592 | L9: =F9*(Forecast!$G$8/$F$2) -> 56.89955105 | M9: =F9*(Forecast!$H$8/$F$2) -> 57.10276373 | N9: =F9*(Forecast!$I$8/$F$2) -> 57.50918909 | O9: =F9*(Forecast!$J$8/$F$2) -> 57.8478769 | P9: =F9*(Forecast!$K$8/$F$2) -> 58.1865647 | Q9: =F9*(Forecast!$L$8/$F$2) -> 58.5252525 | R9: =F9*(Forecast!$M$8/$F$2) -> 58.86394031 | S9: =F9*(Forecast!$N$8/$F$2) -> 59.27036567 | T9: =F9*(Forecast!$O$8/$F$2) -> 59.60905348 | U9: =F9*(Forecast!$P$8/$F$2) -> 59.94774128 | V9: =F9*(Forecast!$Q$8/$F$2) -> 60.28642908 | W9: =F9*(Forecast!$R$8/$F$2) -> 60.69285445 | X9: =F9*(Forecast!$S$8/$F$2) -> 61.03154225 | Y9: =F9*(Forecast!$T$8/$F$2) -> 61.37023006 | Z9: =F9*(Forecast!$U$8/$F$2) -> 61.70891786 | AA9: =F9*(Forecast!$V$8/$F$2) -> 62.11534323 | AB9: =F9*(Forecast!$W$8/$F$2) -> 62.45403103 | AC9: =F9*(Forecast!$X$8/$F$2) -> 62.79271883 | AD9: =F9*(Forecast!$Y$8/$F$2) -> 63.1991442 | AE9: =F9*(Forecast!$Z$8/$F$2) -> 63.537832 | AF9: =F9*(Forecast!$AA$8/$F$2) -> 63.87651981 | AG9: =F9*(Forecast!$AB$8/$F$2) -> 64.21520761
A10: 2017-01-01T06:00:00 | B10: 21.52479744 | C10: 12.26070595 | D10: 12.17773914 | E10: 0 | F10: 45.96324253 | H10: =F10*(Forecast!$C$8/$F$2) -> 55.75719826 | I10: =F10*(Forecast!$D$8/$F$2) -> 56.84913849 | J10: =F10*(Forecast!$E$8/$F$2) -> 56.98563102 | K10: =F10*(Forecast!$F$8/$F$2) -> 57.19036982 | L10: =F10*(Forecast!$G$8/$F$2) -> 57.32686235 | M10: =F10*(Forecast!$H$8/$F$2) -> 57.53160114 | N10: =F10*(Forecast!$I$8/$F$2) -> 57.94107873 | O10: =F10*(Forecast!$J$8/$F$2) -> 58.28231005 | P10: =F10*(Forecast!$K$8/$F$2) -> 58.62354137 | Q10: =F10*(Forecast!$L$8/$F$2) -> 58.9647727 | R10: =F10*(Forecast!$M$8/$F$2) -> 59.30600402 | S10: =F10*(Forecast!$N$8/$F$2) -> 59.71548161 | T10: =F10*(Forecast!$O$8/$F$2) -> 60.05671293 | U10: =F10*(Forecast!$P$8/$F$2) -> 60.39794426 | V10: =F10*(Forecast!$Q$8/$F$2) -> 60.73917558 | W10: =F10*(Forecast!$R$8/$F$2) -> 61.14865317 | X10: =F10*(Forecast!$S$8/$F$2) -> 61.48988449 | Y10: =F10*(Forecast!$T$8/$F$2) -> 61.83111582 | Z10: =F10*(Forecast!$U$8/$F$2) -> 62.17234714 | AA10: =F10*(Forecast!$V$8/$F$2) -> 62.58182473 | AB10: =F10*(Forecast!$W$8/$F$2) -> 62.92305605 | AC10: =F10*(Forecast!$X$8/$F$2) -> 63.26428737 | AD10: =F10*(Forecast!$Y$8/$F$2) -> 63.67376496 | AE10: =F10*(Forecast!$Z$8/$F$2) -> 64.01499629 | AF10: =F10*(Forecast!$AA$8/$F$2) -> 64.35622761 | AG10: =F10*(Forecast!$AB$8/$F$2) -> 64.69745893
A11: 2017-01-01T07:00:00 | B11: 21.95833206 | C11: 12.38655949 | D11: 12.25815678 | E11: 0 | F11: 46.60304832 | H11: =F11*(Forecast!$C$8/$F$2) -> 56.53333537 | I11: =F11*(Forecast!$D$8/$F$2) -> 57.64047536 | J11: =F11*(Forecast!$E$8/$F$2) -> 57.77886785 | K11: =F11*(Forecast!$F$8/$F$2) -> 57.9864566 | L11: =F11*(Forecast!$G$8/$F$2) -> 58.1248491 | M11: =F11*(Forecast!$H$8/$F$2) -> 58.33243785 | N11: =F11*(Forecast!$I$8/$F$2) -> 58.74761534 | O11: =F11*(Forecast!$J$8/$F$2) -> 59.09359658 | P11: =F11*(Forecast!$K$8/$F$2) -> 59.43957783 | Q11: =F11*(Forecast!$L$8/$F$2) -> 59.78555907 | R11: =F11*(Forecast!$M$8/$F$2) -> 60.13154032 | S11: =F11*(Forecast!$N$8/$F$2) -> 60.54671781 | T11: =F11*(Forecast!$O$8/$F$2) -> 60.89269906 | U11: =F11*(Forecast!$P$8/$F$2) -> 61.2386803 | V11: =F11*(Forecast!$Q$8/$F$2) -> 61.58466155 | W11: =F11*(Forecast!$R$8/$F$2) -> 61.99983904 | X11: =F11*(Forecast!$S$8/$F$2) -> 62.34582028 | Y11: =F11*(Forecast!$T$8/$F$2) -> 62.69180153 | Z11: =F11*(Forecast!$U$8/$F$2) -> 63.03778277 | AA11: =F11*(Forecast!$V$8/$F$2) -> 63.45296027 | AB11: =F11*(Forecast!$W$8/$F$2) -> 63.79894151 | AC11: =F11*(Forecast!$X$8/$F$2) -> 64.14492276 | AD11: =F11*(Forecast!$Y$8/$F$2) -> 64.56010025 | AE11: =F11*(Forecast!$Z$8/$F$2) -> 64.90608149 | AF11: =F11*(Forecast!$AA$8/$F$2) -> 65.25206274 | AG11: =F11*(Forecast!$AB$8/$F$2) -> 65.59804398
A12: 2017-01-01T08:00:00 | B12: 22.43002892 | C12: 12.64248371 | D12: 12.5003891 | E12: 0 | F12: 47.57290173 | H12: =F12*(Forecast!$C$8/$F$2) -> 57.70984742 | I12: =F12*(Forecast!$D$8/$F$2) -> 58.84002803 | J12: =F12*(Forecast!$E$8/$F$2) -> 58.9813006 | K12: =F12*(Forecast!$F$8/$F$2) -> 59.19320947 | L12: =F12*(Forecast!$G$8/$F$2) -> 59.33448204 | M12: =F12*(Forecast!$H$8/$F$2) -> 59.54639091 | N12: =F12*(Forecast!$I$8/$F$2) -> 59.97020864 | O12: =F12*(Forecast!$J$8/$F$2) -> 60.32339008 | P12: =F12*(Forecast!$K$8/$F$2) -> 60.67657152 | Q12: =F12*(Forecast!$L$8/$F$2) -> 61.02975296 | R12: =F12*(Forecast!$M$8/$F$2) -> 61.3829344 | S12: =F12*(Forecast!$N$8/$F$2) -> 61.80675213 | T12: =F12*(Forecast!$O$8/$F$2) -> 62.15993357 | U12: =F12*(Forecast!$P$8/$F$2) -> 62.51311501 | V12: =F12*(Forecast!$Q$8/$F$2) -> 62.86629645 | W12: =F12*(Forecast!$R$8/$F$2) -> 63.29011418 | X12: =F12*(Forecast!$S$8/$F$2) -> 63.64329562 | Y12: =F12*(Forecast!$T$8/$F$2) -> 63.99647706 | Z12: =F12*(Forecast!$U$8/$F$2) -> 64.3496585 | AA12: =F12*(Forecast!$V$8/$F$2) -> 64.77347623 | AB12: =F12*(Forecast!$W$8/$F$2) -> 65.12665767 | AC12: =F12*(Forecast!$X$8/$F$2) -> 65.47983911 | AD12: =F12*(Forecast!$Y$8/$F$2) -> 65.90365684 | AE12: =F12*(Forecast!$Z$8/$F$2) -> 66.25683828 | AF12: =F12*(Forecast!$AA$8/$F$2) -> 66.61001972 | AG12: =F12*(Forecast!$AB$8/$F$2) -> 66.96320116
A13: 2017-01-01T09:00:00 | B13: 22.50563049 | C13: 12.89840698 | D13: 12.74262238 | E13: 0 | F13: 48.14665985 | H13: =F13*(Forecast!$C$8/$F$2) -> 58.40586327 | I13: =F13*(Forecast!$D$8/$F$2) -> 59.54967455 | J13: =F13*(Forecast!$E$8/$F$2) -> 59.69265096 | K13: =F13*(Forecast!$F$8/$F$2) -> 59.90711557 | L13: =F13*(Forecast!$G$8/$F$2) -> 60.05009198 | M13: =F13*(Forecast!$H$8/$F$2) -> 60.26455659 | N13: =F13*(Forecast!$I$8/$F$2) -> 60.69348582 | O13: =F13*(Forecast!$J$8/$F$2) -> 61.05092685 | P13: =F13*(Forecast!$K$8/$F$2) -> 61.40836787 | Q13: =F13*(Forecast!$L$8/$F$2) -> 61.76580889 | R13: =F13*(Forecast!$M$8/$F$2) -> 62.12324992 | S13: =F13*(Forecast!$N$8/$F$2) -> 62.55217915 | T13: =F13*(Forecast!$O$8/$F$2) -> 62.90962017 | U13: =F13*(Forecast!$P$8/$F$2) -> 63.26706119 | V13: =F13*(Forecast!$Q$8/$F$2) -> 63.62450222 | W13: =F13*(Forecast!$R$8/$F$2) -> 64.05343145 | X13: =F13*(Forecast!$S$8/$F$2) -> 64.41087247 | Y13: =F13*(Forecast!$T$8/$F$2) -> 64.76831349 | Z13: =F13*(Forecast!$U$8/$F$2) -> 65.12575452 | AA13: =F13*(Forecast!$V$8/$F$2) -> 65.55468375 | AB13: =F13*(Forecast!$W$8/$F$2) -> 65.91212477 | AC13: =F13*(Forecast!$X$8/$F$2) -> 66.26956579 | AD13: =F13*(Forecast!$Y$8/$F$2) -> 66.69849502 | AE13: =F13*(Forecast!$Z$8/$F$2) -> 67.05593604 | AF13: =F13*(Forecast!$AA$8/$F$2) -> 67.41337707 | AG13: =F13*(Forecast!$AB$8/$F$2) -> 67.77081809
A14: 2017-01-01T10:00:00 | B14: 23.2655201 | C14: 13.15433121 | D14: 12.98485565 | E14: 0 | F14: 49.40470695 | H14: =F14*(Forecast!$C$8/$F$2) -> 59.93197801 | I14: =F14*(Forecast!$D$8/$F$2) -> 61.10567648 | J14: =F14*(Forecast!$E$8/$F$2) -> 61.25238878 | K14: =F14*(Forecast!$F$8/$F$2) -> 61.47245725 | L14: =F14*(Forecast!$G$8/$F$2) -> 61.61916956 | M14: =F14*(Forecast!$H$8/$F$2) -> 61.83923802 | N14: =F14*(Forecast!$I$8/$F$2) -> 62.27937494 | O14: =F14*(Forecast!$J$8/$F$2) -> 62.64615571 | P14: =F14*(Forecast!$K$8/$F$2) -> 63.01293649 | Q14: =F14*(Forecast!$L$8/$F$2) -> 63.37971726 | R14: =F14*(Forecast!$M$8/$F$2) -> 63.74649803 | S14: =F14*(Forecast!$N$8/$F$2) -> 64.18663495 | T14: =F14*(Forecast!$O$8/$F$2) -> 64.55341572 | U14: =F14*(Forecast!$P$8/$F$2) -> 64.9201965 | V14: =F14*(Forecast!$Q$8/$F$2) -> 65.28697727 | W14: =F14*(Forecast!$R$8/$F$2) -> 65.72711419 | X14: =F14*(Forecast!$S$8/$F$2) -> 66.09389496 | Y14: =F14*(Forecast!$T$8/$F$2) -> 66.46067573 | Z14: =F14*(Forecast!$U$8/$F$2) -> 66.82745651 | AA14: =F14*(Forecast!$V$8/$F$2) -> 67.26759343 | AB14: =F14*(Forecast!$W$8/$F$2) -> 67.6343742 | AC14: =F14*(Forecast!$X$8/$F$2) -> 68.00115497 | AD14: =F14*(Forecast!$Y$8/$F$2) -> 68.4412919 | AE14: =F14*(Forecast!$Z$8/$F$2) -> 68.80807267 | AF14: =F14*(Forecast!$AA$8/$F$2) -> 69.17485344 | AG14: =F14*(Forecast!$AB$8/$F$2) -> 69.54163421
A15: 2017-01-01T11:00:00 | B15: 23.409338 | C15: 13.14089966 | D15: 12.97297764 | E15: 0 | F15: 49.52321529 | H15: =F15*(Forecast!$C$8/$F$2) -> 60.07573838 | I15: =F15*(Forecast!$D$8/$F$2) -> 61.25225223 | J15: =F15*(Forecast!$E$8/$F$2) -> 61.39931646 | K15: =F15*(Forecast!$F$8/$F$2) -> 61.61991281 | L15: =F15*(Forecast!$G$8/$F$2) -> 61.76697704 | M15: =F15*(Forecast!$H$8/$F$2) -> 61.98757339 | N15: =F15*(Forecast!$I$8/$F$2) -> 62.42876608 | O15: =F15*(Forecast!$J$8/$F$2) -> 62.79642666 | P15: =F15*(Forecast!$K$8/$F$2) -> 63.16408723 | Q15: =F15*(Forecast!$L$8/$F$2) -> 63.53174781 | R15: =F15*(Forecast!$M$8/$F$2) -> 63.89940839 | S15: =F15*(Forecast!$N$8/$F$2) -> 64.34060108 | T15: =F15*(Forecast!$O$8/$F$2) -> 64.70826166 | U15: =F15*(Forecast!$P$8/$F$2) -> 65.07592224 | V15: =F15*(Forecast!$Q$8/$F$2) -> 65.44358282 | W15: =F15*(Forecast!$R$8/$F$2) -> 65.88477551 | X15: =F15*(Forecast!$S$8/$F$2) -> 66.25243609 | Y15: =F15*(Forecast!$T$8/$F$2) -> 66.62009666 | Z15: =F15*(Forecast!$U$8/$F$2) -> 66.98775724 | AA15: =F15*(Forecast!$V$8/$F$2) -> 67.42894993 | AB15: =F15*(Forecast!$W$8/$F$2) -> 67.79661051 | AC15: =F15*(Forecast!$X$8/$F$2) -> 68.16427109 | AD15: =F15*(Forecast!$Y$8/$F$2) -> 68.60546378 | AE15: =F15*(Forecast!$Z$8/$F$2) -> 68.97312436 | AF15: =F15*(Forecast!$AA$8/$F$2) -> 69.34078494 | AG15: =F15*(Forecast!$AB$8/$F$2) -> 69.70844552
A16: 2017-01-01T12:00:00 | B16: 22.8656311 | C16: 13.00833035 | D16: 12.86200619 | E16: 0 | F16: 48.73596764 | H16: =F16*(Forecast!$C$8/$F$2) -> 59.12074214 | I16: =F16*(Forecast!$D$8/$F$2) -> 60.2785535 | J16: =F16*(Forecast!$E$8/$F$2) -> 60.42327991 | K16: =F16*(Forecast!$F$8/$F$2) -> 60.64036954 | L16: =F16*(Forecast!$G$8/$F$2) -> 60.78509596 | M16: =F16*(Forecast!$H$8/$F$2) -> 61.00218559 | N16: =F16*(Forecast!$I$8/$F$2) -> 61.43636485 | O16: =F16*(Forecast!$J$8/$F$2) -> 61.79818089 | P16: =F16*(Forecast!$K$8/$F$2) -> 62.15999694 | Q16: =F16*(Forecast!$L$8/$F$2) -> 62.52181299 | R16: =F16*(Forecast!$M$8/$F$2) -> 62.88362904 | S16: =F16*(Forecast!$N$8/$F$2) -> 63.31780829 | T16: =F16*(Forecast!$O$8/$F$2) -> 63.67962434 | U16: =F16*(Forecast!$P$8/$F$2) -> 64.04144039 | V16: =F16*(Forecast!$Q$8/$F$2) -> 64.40325644 | W16: =F16*(Forecast!$R$8/$F$2) -> 64.83743569 | X16: =F16*(Forecast!$S$8/$F$2) -> 65.19925174 | Y16: =F16*(Forecast!$T$8/$F$2) -> 65.56106779 | Z16: =F16*(Forecast!$U$8/$F$2) -> 65.92288383 | AA16: =F16*(Forecast!$V$8/$F$2) -> 66.35706309 | AB16: =F16*(Forecast!$W$8/$F$2) -> 66.71887914 | AC16: =F16*(Forecast!$X$8/$F$2) -> 67.08069519 | AD16: =F16*(Forecast!$Y$8/$F$2) -> 67.51487444 | AE16: =F16*(Forecast!$Z$8/$F$2) -> 67.87669049 | AF16: =F16*(Forecast!$AA$8/$F$2) -> 68.23850654 | AG16: =F16*(Forecast!$AB$8/$F$2) -> 68.60032259
A17: 2017-01-01T13:00:00 | B17: 22.46775246 | C17: 12.87576103 | D17: 12.75103474 | E17: 0 | F17: 48.09454823 | H17: =F17*(Forecast!$C$8/$F$2) -> 58.34264758 | I17: =F17*(Forecast!$D$8/$F$2) -> 59.48522085 | J17: =F17*(Forecast!$E$8/$F$2) -> 59.62804251 | K17: =F17*(Forecast!$F$8/$F$2) -> 59.84227499 | L17: =F17*(Forecast!$G$8/$F$2) -> 59.98509665 | M17: =F17*(Forecast!$H$8/$F$2) -> 60.19932914 | N17: =F17*(Forecast!$I$8/$F$2) -> 60.62779412 | O17: =F17*(Forecast!$J$8/$F$2) -> 60.98484826 | P17: =F17*(Forecast!$K$8/$F$2) -> 61.34190241 | Q17: =F17*(Forecast!$L$8/$F$2) -> 61.69895656 | R17: =F17*(Forecast!$M$8/$F$2) -> 62.0560107 | S17: =F17*(Forecast!$N$8/$F$2) -> 62.48447568 | T17: =F17*(Forecast!$O$8/$F$2) -> 62.84152983 | U17: =F17*(Forecast!$P$8/$F$2) -> 63.19858397 | V17: =F17*(Forecast!$Q$8/$F$2) -> 63.55563812 | W17: =F17*(Forecast!$R$8/$F$2) -> 63.9841031 | X17: =F17*(Forecast!$S$8/$F$2) -> 64.34115724 | Y17: =F17*(Forecast!$T$8/$F$2) -> 64.69821139 | Z17: =F17*(Forecast!$U$8/$F$2) -> 65.05526554 | AA17: =F17*(Forecast!$V$8/$F$2) -> 65.48373051 | AB17: =F17*(Forecast!$W$8/$F$2) -> 65.84078466 | AC17: =F17*(Forecast!$X$8/$F$2) -> 66.19783881 | AD17: =F17*(Forecast!$Y$8/$F$2) -> 66.62630378 | AE17: =F17*(Forecast!$Z$8/$F$2) -> 66.98335793 | AF17: =F17*(Forecast!$AA$8/$F$2) -> 67.34041208 | AG17: =F17*(Forecast!$AB$8/$F$2) -> 67.69746622
A18: 2017-01-01T14:00:00 | B18: 22.14562988 | C18: 12.74319077 | D18: 12.64006329 | E18: 0 | F18: 47.52888393 | H18: =F18*(Forecast!$C$8/$F$2) -> 57.65645021 | I18: =F18*(Forecast!$D$8/$F$2) -> 58.7855851 | J18: =F18*(Forecast!$E$8/$F$2) -> 58.92672696 | K18: =F18*(Forecast!$F$8/$F$2) -> 59.13843975 | L18: =F18*(Forecast!$G$8/$F$2) -> 59.27958161 | M18: =F18*(Forecast!$H$8/$F$2) -> 59.4912944 | N18: =F18*(Forecast!$I$8/$F$2) -> 59.91471999 | O18: =F18*(Forecast!$J$8/$F$2) -> 60.26757464 | P18: =F18*(Forecast!$K$8/$F$2) -> 60.62042929 | Q18: =F18*(Forecast!$L$8/$F$2) -> 60.97328394 | R18: =F18*(Forecast!$M$8/$F$2) -> 61.3261386 | S18: =F18*(Forecast!$N$8/$F$2) -> 61.74956418 | T18: =F18*(Forecast!$O$8/$F$2) -> 62.10241883 | U18: =F18*(Forecast!$P$8/$F$2) -> 62.45527348 | V18: =F18*(Forecast!$Q$8/$F$2) -> 62.80812814 | W18: =F18*(Forecast!$R$8/$F$2) -> 63.23155372 | X18: =F18*(Forecast!$S$8/$F$2) -> 63.58440837 | Y18: =F18*(Forecast!$T$8/$F$2) -> 63.93726302 | Z18: =F18*(Forecast!$U$8/$F$2) -> 64.29011768 | AA18: =F18*(Forecast!$V$8/$F$2) -> 64.71354326 | AB18: =F18*(Forecast!$W$8/$F$2) -> 65.06639791 | AC18: =F18*(Forecast!$X$8/$F$2) -> 65.41925256 | AD18: =F18*(Forecast!$Y$8/$F$2) -> 65.84267815 | AE18: =F18*(Forecast!$Z$8/$F$2) -> 66.1955328 | AF18: =F18*(Forecast!$AA$8/$F$2) -> 66.54838745 | AG18: =F18*(Forecast!$AB$8/$F$2) -> 66.9012421
A19: 2017-01-01T15:00:00 | B19: 22.19150543 | C19: 12.61062145 | D19: 12.52909088 | E19: 0 | F19: 47.33121777 | H19: =F19*(Forecast!$C$8/$F$2) -> 57.41666487 | I19: =F19*(Forecast!$D$8/$F$2) -> 58.54110384 | J19: =F19*(Forecast!$E$8/$F$2) -> 58.68165871 | K19: =F19*(Forecast!$F$8/$F$2) -> 58.89249102 | L19: =F19*(Forecast!$G$8/$F$2) -> 59.03304589 | M19: =F19*(Forecast!$H$8/$F$2) -> 59.2438782 | N19: =F19*(Forecast!$I$8/$F$2) -> 59.66554281 | O19: =F19*(Forecast!$J$8/$F$2) -> 60.01692999 | P19: =F19*(Forecast!$K$8/$F$2) -> 60.36831716 | Q19: =F19*(Forecast!$L$8/$F$2) -> 60.71970434 | R19: =F19*(Forecast!$M$8/$F$2) -> 61.07109152 | S19: =F19*(Forecast!$N$8/$F$2) -> 61.49275613 | T19: =F19*(Forecast!$O$8/$F$2) -> 61.84414331 | U19: =F19*(Forecast!$P$8/$F$2) -> 62.19553049 | V19: =F19*(Forecast!$Q$8/$F$2) -> 62.54691767 | W19: =F19*(Forecast!$R$8/$F$2) -> 62.96858228 | X19: =F19*(Forecast!$S$8/$F$2) -> 63.31996946 | Y19: =F19*(Forecast!$T$8/$F$2) -> 63.67135664 | Z19: =F19*(Forecast!$U$8/$F$2) -> 64.02274381 | AA19: =F19*(Forecast!$V$8/$F$2) -> 64.44440843 | AB19: =F19*(Forecast!$W$8/$F$2) -> 64.79579561 | AC19: =F19*(Forecast!$X$8/$F$2) -> 65.14718278 | AD19: =F19*(Forecast!$Y$8/$F$2) -> 65.5688474 | AE19: =F19*(Forecast!$Z$8/$F$2) -> 65.92023458 | AF19: =F19*(Forecast!$AA$8/$F$2) -> 66.27162175 | AG19: =F19*(Forecast!$AB$8/$F$2) -> 66.62300893
A20: 2017-01-01T16:00:00 | B20: 23.18883514 | C20: 13.08124638 | D20: 13.06451416 | E20: 0 | F20: 49.33459568 | H20: =F20*(Forecast!$C$8/$F$2) -> 59.84692726 | I20: =F20*(Forecast!$D$8/$F$2) -> 61.01896011 | J20: =F20*(Forecast!$E$8/$F$2) -> 61.16546421 | K20: =F20*(Forecast!$F$8/$F$2) -> 61.38522037 | L20: =F20*(Forecast!$G$8/$F$2) -> 61.53172448 | M20: =F20*(Forecast!$H$8/$F$2) -> 61.75148063 | N20: =F20*(Forecast!$I$8/$F$2) -> 62.19099295 | O20: =F20*(Forecast!$J$8/$F$2) -> 62.55725322 | P20: =F20*(Forecast!$K$8/$F$2) -> 62.92351348 | Q20: =F20*(Forecast!$L$8/$F$2) -> 63.28977375 | R20: =F20*(Forecast!$M$8/$F$2) -> 63.65603401 | S20: =F20*(Forecast!$N$8/$F$2) -> 64.09554633 | T20: =F20*(Forecast!$O$8/$F$2) -> 64.46180659 | U20: =F20*(Forecast!$P$8/$F$2) -> 64.82806686 | V20: =F20*(Forecast!$Q$8/$F$2) -> 65.19432712 | W20: =F20*(Forecast!$R$8/$F$2) -> 65.63383944 | X20: =F20*(Forecast!$S$8/$F$2) -> 66.00009971 | Y20: =F20*(Forecast!$T$8/$F$2) -> 66.36635997 | Z20: =F20*(Forecast!$U$8/$F$2) -> 66.73262024 | AA20: =F20*(Forecast!$V$8/$F$2) -> 67.17213255 | AB20: =F20*(Forecast!$W$8/$F$2) -> 67.53839282 | AC20: =F20*(Forecast!$X$8/$F$2) -> 67.90465308 | AD20: =F20*(Forecast!$Y$8/$F$2) -> 68.3441654 | AE20: =F20*(Forecast!$Z$8/$F$2) -> 68.71042567 | AF20: =F20*(Forecast!$AA$8/$F$2) -> 69.07668593 | AG20: =F20*(Forecast!$AB$8/$F$2) -> 69.44294619
A21: 2017-01-01T17:00:00 | B21: 24.58265305 | C21: 13.58619404 | D21: 13.46062851 | E21: 0 | F21: 51.62947559 | H21: =F21*(Forecast!$C$8/$F$2) -> 62.63080558 | I21: =F21*(Forecast!$D$8/$F$2) -> 63.85735746 | J21: =F21*(Forecast!$E$8/$F$2) -> 64.01067645 | K21: =F21*(Forecast!$F$8/$F$2) -> 64.24065492 | L21: =F21*(Forecast!$G$8/$F$2) -> 64.39397391 | M21: =F21*(Forecast!$H$8/$F$2) -> 64.62395239 | N21: =F21*(Forecast!$I$8/$F$2) -> 65.08390934 | O21: =F21*(Forecast!$J$8/$F$2) -> 65.46720681 | P21: =F21*(Forecast!$K$8/$F$2) -> 65.85050427 | Q21: =F21*(Forecast!$L$8/$F$2) -> 66.23380174 | R21: =F21*(Forecast!$M$8/$F$2) -> 66.6170992 | S21: =F21*(Forecast!$N$8/$F$2) -> 67.07705616 | T21: =F21*(Forecast!$O$8/$F$2) -> 67.46035362 | U21: =F21*(Forecast!$P$8/$F$2) -> 67.84365108 | V21: =F21*(Forecast!$Q$8/$F$2) -> 68.22694855 | W21: =F21*(Forecast!$R$8/$F$2) -> 68.6869055 | X21: =F21*(Forecast!$S$8/$F$2) -> 69.07020297 | Y21: =F21*(Forecast!$T$8/$F$2) -> 69.45350043 | Z21: =F21*(Forecast!$U$8/$F$2) -> 69.83679789 | AA21: =F21*(Forecast!$V$8/$F$2) -> 70.29675485 | AB21: =F21*(Forecast!$W$8/$F$2) -> 70.68005232 | AC21: =F21*(Forecast!$X$8/$F$2) -> 71.06334978 | AD21: =F21*(Forecast!$Y$8/$F$2) -> 71.52330674 | AE21: =F21*(Forecast!$Z$8/$F$2) -> 71.9066042 | AF21: =F21*(Forecast!$AA$8/$F$2) -> 72.28990166 | AG21: =F21*(Forecast!$AB$8/$F$2) -> 72.67319913
A22: 2017-01-01T18:00:00 | B22: 24.39533234 | C22: 13.82706165 | D22: 13.63517284 | E22: 0 | F22: 51.85756683 | H22: =F22*(Forecast!$C$8/$F$2) -> 62.90749903 | I22: =F22*(Forecast!$D$8/$F$2) -> 64.13946964 | J22: =F22*(Forecast!$E$8/$F$2) -> 64.29346596 | K22: =F22*(Forecast!$F$8/$F$2) -> 64.52446045 | L22: =F22*(Forecast!$G$8/$F$2) -> 64.67845678 | M22: =F22*(Forecast!$H$8/$F$2) -> 64.90945127 | N22: =F22*(Forecast!$I$8/$F$2) -> 65.37144024 | O22: =F22*(Forecast!$J$8/$F$2) -> 65.75643106 | P22: =F22*(Forecast!$K$8/$F$2) -> 66.14142187 | Q22: =F22*(Forecast!$L$8/$F$2) -> 66.52641269 | R22: =F22*(Forecast!$M$8/$F$2) -> 66.9114035 | S22: =F22*(Forecast!$N$8/$F$2) -> 67.37339248 | T22: =F22*(Forecast!$O$8/$F$2) -> 67.75838329 | U22: =F22*(Forecast!$P$8/$F$2) -> 68.14337411 | V22: =F22*(Forecast!$Q$8/$F$2) -> 68.52836492 | W22: =F22*(Forecast!$R$8/$F$2) -> 68.9903539 | X22: =F22*(Forecast!$S$8/$F$2) -> 69.37534471 | Y22: =F22*(Forecast!$T$8/$F$2) -> 69.76033553 | Z22: =F22*(Forecast!$U$8/$F$2) -> 70.14532634 | AA22: =F22*(Forecast!$V$8/$F$2) -> 70.60731532 | AB22: =F22*(Forecast!$W$8/$F$2) -> 70.99230613 | AC22: =F22*(Forecast!$X$8/$F$2) -> 71.37729695 | AD22: =F22*(Forecast!$Y$8/$F$2) -> 71.83928592 | AE22: =F22*(Forecast!$Z$8/$F$2) -> 72.22427674 | AF22: =F22*(Forecast!$AA$8/$F$2) -> 72.60926755 | AG22: =F22*(Forecast!$AB$8/$F$2) -> 72.99425836
A23: 2017-01-01T19:00:00 | B23: 24.24751854 | C23: 13.74790192 | D23: 13.5116024 | E23: 0 | F23: 51.50702286 | H23: =F23*(Forecast!$C$8/$F$2) -> 62.48226032 | I23: =F23*(Forecast!$D$8/$F$2) -> 63.70590312 | J23: =F23*(Forecast!$E$8/$F$2) -> 63.85885847 | K23: =F23*(Forecast!$F$8/$F$2) -> 64.08829149 | L23: =F23*(Forecast!$G$8/$F$2) -> 64.24124684 | M23: =F23*(Forecast!$H$8/$F$2) -> 64.47067987 | N23: =F23*(Forecast!$I$8/$F$2) -> 64.92954592 | O23: =F23*(Forecast!$J$8/$F$2) -> 65.31193429 | P23: =F23*(Forecast!$K$8/$F$2) -> 65.69432267 | Q23: =F23*(Forecast!$L$8/$F$2) -> 66.07671104 | R23: =F23*(Forecast!$M$8/$F$2) -> 66.45909941 | S23: =F23*(Forecast!$N$8/$F$2) -> 66.91796546 | T23: =F23*(Forecast!$O$8/$F$2) -> 67.30035384 | U23: =F23*(Forecast!$P$8/$F$2) -> 67.68274221 | V23: =F23*(Forecast!$Q$8/$F$2) -> 68.06513059 | W23: =F23*(Forecast!$R$8/$F$2) -> 68.52399663 | X23: =F23*(Forecast!$S$8/$F$2) -> 68.90638501 | Y23: =F23*(Forecast!$T$8/$F$2) -> 69.28877338 | Z23: =F23*(Forecast!$U$8/$F$2) -> 69.67116176 | AA23: =F23*(Forecast!$V$8/$F$2) -> 70.13002781 | AB23: =F23*(Forecast!$W$8/$F$2) -> 70.51241618 | AC23: =F23*(Forecast!$X$8/$F$2) -> 70.89480455 | AD23: =F23*(Forecast!$Y$8/$F$2) -> 71.3536706 | AE23: =F23*(Forecast!$Z$8/$F$2) -> 71.73605898 | AF23: =F23*(Forecast!$AA$8/$F$2) -> 72.11844735 | AG23: =F23*(Forecast!$AB$8/$F$2) -> 72.50083572
A24: 2017-01-01T20:00:00 | B24: 23.92915726 | C24: 13.66874218 | D24: 13.37387848 | E24: 0 | F24: 50.97177792 | H24: =F24*(Forecast!$C$8/$F$2) -> 61.83296413 | I24: =F24*(Forecast!$D$8/$F$2) -> 63.04389121 | J24: =F24*(Forecast!$E$8/$F$2) -> 63.1952571 | K24: =F24*(Forecast!$F$8/$F$2) -> 63.42230593 | L24: =F24*(Forecast!$G$8/$F$2) -> 63.57367181 | M24: =F24*(Forecast!$H$8/$F$2) -> 63.80072064 | N24: =F24*(Forecast!$I$8/$F$2) -> 64.2548183 | O24: =F24*(Forecast!$J$8/$F$2) -> 64.63323301 | P24: =F24*(Forecast!$K$8/$F$2) -> 65.01164772 | Q24: =F24*(Forecast!$L$8/$F$2) -> 65.39006244 | R24: =F24*(Forecast!$M$8/$F$2) -> 65.76847715 | S24: =F24*(Forecast!$N$8/$F$2) -> 66.2225748 | T24: =F24*(Forecast!$O$8/$F$2) -> 66.60098952 | U24: =F24*(Forecast!$P$8/$F$2) -> 66.97940423 | V24: =F24*(Forecast!$Q$8/$F$2) -> 67.35781894 | W24: =F24*(Forecast!$R$8/$F$2) -> 67.8119166 | X24: =F24*(Forecast!$S$8/$F$2) -> 68.19033131 | Y24: =F24*(Forecast!$T$8/$F$2) -> 68.56874603 | Z24: =F24*(Forecast!$U$8/$F$2) -> 68.94716074 | AA24: =F24*(Forecast!$V$8/$F$2) -> 69.4012584 | AB24: =F24*(Forecast!$W$8/$F$2) -> 69.77967311 | AC24: =F24*(Forecast!$X$8/$F$2) -> 70.15808782 | AD24: =F24*(Forecast!$Y$8/$F$2) -> 70.61218548 | AE24: =F24*(Forecast!$Z$8/$F$2) -> 70.99060019 | AF24: =F24*(Forecast!$AA$8/$F$2) -> 71.3690149 | AG24: =F24*(Forecast!$AB$8/$F$2) -> 71.74742962
A25: 2017-01-01T21:00:00 | B25: 23.96710205 | C25: 13.58958244 | D25: 13.17973328 | E25: 0 | F25: 50.73641777 | H25: =F25*(Forecast!$C$8/$F$2) -> 61.54745289 | I25: =F25*(Forecast!$D$8/$F$2) -> 62.75278857 | J25: =F25*(Forecast!$E$8/$F$2) -> 62.90345553 | K25: =F25*(Forecast!$F$8/$F$2) -> 63.12945597 | L25: =F25*(Forecast!$G$8/$F$2) -> 63.28012293 | M25: =F25*(Forecast!$H$8/$F$2) -> 63.50612337 | N25: =F25*(Forecast!$I$8/$F$2) -> 63.95812424 | O25: =F25*(Forecast!$J$8/$F$2) -> 64.33479164 | P25: =F25*(Forecast!$K$8/$F$2) -> 64.71145904 | Q25: =F25*(Forecast!$L$8/$F$2) -> 65.08812644 | R25: =F25*(Forecast!$M$8/$F$2) -> 65.46479384 | S25: =F25*(Forecast!$N$8/$F$2) -> 65.91679471 | T25: =F25*(Forecast!$O$8/$F$2) -> 66.29346211 | U25: =F25*(Forecast!$P$8/$F$2) -> 66.67012951 | V25: =F25*(Forecast!$Q$8/$F$2) -> 67.04679691 | W25: =F25*(Forecast!$R$8/$F$2) -> 67.49879779 | X25: =F25*(Forecast!$S$8/$F$2) -> 67.87546519 | Y25: =F25*(Forecast!$T$8/$F$2) -> 68.25213258 | Z25: =F25*(Forecast!$U$8/$F$2) -> 68.62879998 | AA25: =F25*(Forecast!$V$8/$F$2) -> 69.08080086 | AB25: =F25*(Forecast!$W$8/$F$2) -> 69.45746826 | AC25: =F25*(Forecast!$X$8/$F$2) -> 69.83413566 | AD25: =F25*(Forecast!$Y$8/$F$2) -> 70.28613654 | AE25: =F25*(Forecast!$Z$8/$F$2) -> 70.66280393 | AF25: =F25*(Forecast!$AA$8/$F$2) -> 71.03947133 | AG25: =F25*(Forecast!$AB$8/$F$2) -> 71.41613873
A26: 2017-01-01T22:00:00 | B26: 23.58563042 | C26: 13.51042366 | D26: 12.98558807 | E26: 0 | F26: 50.08164215 | H26: =F26*(Forecast!$C$8/$F$2) -> 60.75315615 | I26: =F26*(Forecast!$D$8/$F$2) -> 61.94293644 | J26: =F26*(Forecast!$E$8/$F$2) -> 62.09165897 | K26: =F26*(Forecast!$F$8/$F$2) -> 62.31474278 | L26: =F26*(Forecast!$G$8/$F$2) -> 62.46346532 | M26: =F26*(Forecast!$H$8/$F$2) -> 62.68654912 | N26: =F26*(Forecast!$I$8/$F$2) -> 63.13271673 | O26: =F26*(Forecast!$J$8/$F$2) -> 63.50452307 | P26: =F26*(Forecast!$K$8/$F$2) -> 63.87632941 | Q26: =F26*(Forecast!$L$8/$F$2) -> 64.24813575 | R26: =F26*(Forecast!$M$8/$F$2) -> 64.61994209 | S26: =F26*(Forecast!$N$8/$F$2) -> 65.0661097 | T26: =F26*(Forecast!$O$8/$F$2) -> 65.43791605 | U26: =F26*(Forecast!$P$8/$F$2) -> 65.80972239 | V26: =F26*(Forecast!$Q$8/$F$2) -> 66.18152873 | W26: =F26*(Forecast!$R$8/$F$2) -> 66.62769634 | X26: =F26*(Forecast!$S$8/$F$2) -> 66.99950268 | Y26: =F26*(Forecast!$T$8/$F$2) -> 67.37130902 | Z26: =F26*(Forecast!$U$8/$F$2) -> 67.74311536 | AA26: =F26*(Forecast!$V$8/$F$2) -> 68.18928297 | AB26: =F26*(Forecast!$W$8/$F$2) -> 68.56108931 | AC26: =F26*(Forecast!$X$8/$F$2) -> 68.93289565 | AD26: =F26*(Forecast!$Y$8/$F$2) -> 69.37906326 | AE26: =F26*(Forecast!$Z$8/$F$2) -> 69.7508696 | AF26: =F26*(Forecast!$AA$8/$F$2) -> 70.12267594 | AG26: =F26*(Forecast!$AB$8/$F$2) -> 70.49448228
A27: 2017-01-01T23:00:00 | B27: 23.3570385 | C27: 13.18545532 | D27: 12.79144382 | E27: 0 | F27: 49.33393764 | H27: =F27*(Forecast!$C$8/$F$2) -> 59.84612901 | I27: =F27*(Forecast!$D$8/$F$2) -> 61.01814622 | J27: =F27*(Forecast!$E$8/$F$2) -> 61.16464837 | K27: =F27*(Forecast!$F$8/$F$2) -> 61.3844016 | L27: =F27*(Forecast!$G$8/$F$2) -> 61.53090375 | M27: =F27*(Forecast!$H$8/$F$2) -> 61.75065698 | N27: =F27*(Forecast!$I$8/$F$2) -> 62.19016344 | O27: =F27*(Forecast!$J$8/$F$2) -> 62.55641882 | P27: =F27*(Forecast!$K$8/$F$2) -> 62.9226742 | Q27: =F27*(Forecast!$L$8/$F$2) -> 63.28892957 | R27: =F27*(Forecast!$M$8/$F$2) -> 63.65518495 | S27: =F27*(Forecast!$N$8/$F$2) -> 64.09469141 | T27: =F27*(Forecast!$O$8/$F$2) -> 64.46094679 | U27: =F27*(Forecast!$P$8/$F$2) -> 64.82720217 | V27: =F27*(Forecast!$Q$8/$F$2) -> 65.19345755 | W27: =F27*(Forecast!$R$8/$F$2) -> 65.632964 | X27: =F27*(Forecast!$S$8/$F$2) -> 65.99921938 | Y27: =F27*(Forecast!$T$8/$F$2) -> 66.36547476 | Z27: =F27*(Forecast!$U$8/$F$2) -> 66.73173014 | AA27: =F27*(Forecast!$V$8/$F$2) -> 67.1712366 | AB27: =F27*(Forecast!$W$8/$F$2) -> 67.53749198 | AC27: =F27*(Forecast!$X$8/$F$2) -> 67.90374736 | AD27: =F27*(Forecast!$Y$8/$F$2) -> 68.34325381 | AE27: =F27*(Forecast!$Z$8/$F$2) -> 68.70950919 | AF27: =F27*(Forecast!$AA$8/$F$2) -> 69.07576457 | AG27: =F27*(Forecast!$AB$8/$F$2) -> 69.44201995
A28: 2017-01-02 | B28: 22.50563049 | C28: 12.58505535 | D28: 12.49870682 | E28: 0 | F28: 47.58939266 | H28: =F28*(Forecast!$C$8/$F$2) -> 57.72985228 | I28: =F28*(Forecast!$D$8/$F$2) -> 58.86042466 | J28: =F28*(Forecast!$E$8/$F$2) -> 59.00174621 | K28: =F28*(Forecast!$F$8/$F$2) -> 59.21372853 | L28: =F28*(Forecast!$G$8/$F$2) -> 59.35505008 | M28: =F28*(Forecast!$H$8/$F$2) -> 59.5670324 | N28: =F28*(Forecast!$I$8/$F$2) -> 59.99099704 | O28: =F28*(Forecast!$J$8/$F$2) -> 60.34430091 | P28: =F28*(Forecast!$K$8/$F$2) -> 60.69760478 | Q28: =F28*(Forecast!$L$8/$F$2) -> 61.05090865 | R28: =F28*(Forecast!$M$8/$F$2) -> 61.40421252 | S28: =F28*(Forecast!$N$8/$F$2) -> 61.82817717 | T28: =F28*(Forecast!$O$8/$F$2) -> 62.18148104 | U28: =F28*(Forecast!$P$8/$F$2) -> 62.53478491 | V28: =F28*(Forecast!$Q$8/$F$2) -> 62.88808878 | W28: =F28*(Forecast!$R$8/$F$2) -> 63.31205342 | X28: =F28*(Forecast!$S$8/$F$2) -> 63.66535729 | Y28: =F28*(Forecast!$T$8/$F$2) -> 64.01866116 | Z28: =F28*(Forecast!$U$8/$F$2) -> 64.37196503 | AA28: =F28*(Forecast!$V$8/$F$2) -> 64.79592967 | AB28: =F28*(Forecast!$W$8/$F$2) -> 65.14923354 | AC28: =F28*(Forecast!$X$8/$F$2) -> 65.50253741 | AD28: =F28*(Forecast!$Y$8/$F$2) -> 65.92650205 | AE28: =F28*(Forecast!$Z$8/$F$2) -> 66.27980592 | AF28: =F28*(Forecast!$AA$8/$F$2) -> 66.63310979 | AG28: =F28*(Forecast!$AB$8/$F$2) -> 66.98641366
A29: 2017-01-02T01:00:00 | B29: 22.14832306 | C29: 12.52428246 | D29: 12.45042515 | E29: 0 | F29: 47.12303066 | H29: =F29*(Forecast!$C$8/$F$2) -> 57.16411677 | I29: =F29*(Forecast!$D$8/$F$2) -> 58.28360988 | J29: =F29*(Forecast!$E$8/$F$2) -> 58.42354651 | K29: =F29*(Forecast!$F$8/$F$2) -> 58.63345147 | L29: =F29*(Forecast!$G$8/$F$2) -> 58.77338811 | M29: =F29*(Forecast!$H$8/$F$2) -> 58.98329307 | N29: =F29*(Forecast!$I$8/$F$2) -> 59.40310298 | O29: =F29*(Forecast!$J$8/$F$2) -> 59.75294458 | P29: =F29*(Forecast!$K$8/$F$2) -> 60.10278618 | Q29: =F29*(Forecast!$L$8/$F$2) -> 60.45262777 | R29: =F29*(Forecast!$M$8/$F$2) -> 60.80246937 | S29: =F29*(Forecast!$N$8/$F$2) -> 61.22227928 | T29: =F29*(Forecast!$O$8/$F$2) -> 61.57212088 | U29: =F29*(Forecast!$P$8/$F$2) -> 61.92196247 | V29: =F29*(Forecast!$Q$8/$F$2) -> 62.27180407 | W29: =F29*(Forecast!$R$8/$F$2) -> 62.69161398 | X29: =F29*(Forecast!$S$8/$F$2) -> 63.04145558 | Y29: =F29*(Forecast!$T$8/$F$2) -> 63.39129718 | Z29: =F29*(Forecast!$U$8/$F$2) -> 63.74113877 | AA29: =F29*(Forecast!$V$8/$F$2) -> 64.16094869 | AB29: =F29*(Forecast!$W$8/$F$2) -> 64.51079028 | AC29: =F29*(Forecast!$X$8/$F$2) -> 64.86063188 | AD29: =F29*(Forecast!$Y$8/$F$2) -> 65.28044179 | AE29: =F29*(Forecast!$Z$8/$F$2) -> 65.63028339 | AF29: =F29*(Forecast!$AA$8/$F$2) -> 65.98012499 | AG29: =F29*(Forecast!$AB$8/$F$2) -> 66.32996658
A30: 2017-01-02T02:00:00 | B30: 22.02285576 | C30: 12.46351051 | D30: 12.40214348 | E30: 0 | F30: 46.88850975 | H30: =F30*(Forecast!$C$8/$F$2) -> 56.87962359 | I30: =F30*(Forecast!$D$8/$F$2) -> 57.99354523 | J30: =F30*(Forecast!$E$8/$F$2) -> 58.13278543 | K30: =F30*(Forecast!$F$8/$F$2) -> 58.34164574 | L30: =F30*(Forecast!$G$8/$F$2) -> 58.48088594 | M30: =F30*(Forecast!$H$8/$F$2) -> 58.68974625 | N30: =F30*(Forecast!$I$8/$F$2) -> 59.10746686 | O30: =F30*(Forecast!$J$8/$F$2) -> 59.45556738 | P30: =F30*(Forecast!$K$8/$F$2) -> 59.80366789 | Q30: =F30*(Forecast!$L$8/$F$2) -> 60.1517684 | R30: =F30*(Forecast!$M$8/$F$2) -> 60.49986891 | S30: =F30*(Forecast!$N$8/$F$2) -> 60.91758952 | T30: =F30*(Forecast!$O$8/$F$2) -> 61.26569004 | U30: =F30*(Forecast!$P$8/$F$2) -> 61.61379055 | V30: =F30*(Forecast!$Q$8/$F$2) -> 61.96189106 | W30: =F30*(Forecast!$R$8/$F$2) -> 62.37961167 | X30: =F30*(Forecast!$S$8/$F$2) -> 62.72771218 | Y30: =F30*(Forecast!$T$8/$F$2) -> 63.0758127 | Z30: =F30*(Forecast!$U$8/$F$2) -> 63.42391321 | AA30: =F30*(Forecast!$V$8/$F$2) -> 63.84163382 | AB30: =F30*(Forecast!$W$8/$F$2) -> 64.18973433 | AC30: =F30*(Forecast!$X$8/$F$2) -> 64.53783485 | AD30: =F30*(Forecast!$Y$8/$F$2) -> 64.95555546 | AE30: =F30*(Forecast!$Z$8/$F$2) -> 65.30365597 | AF30: =F30*(Forecast!$AA$8/$F$2) -> 65.65175648 | AG30: =F30*(Forecast!$AB$8/$F$2) -> 65.99985699
A31: 2017-01-02T03:00:00 | B31: 21.79093933 | C31: 12.40273762 | D31: 12.35386276 | E31: 0 | F31: 46.54753971 | H31: =F31*(Forecast!$C$8/$F$2) -> 56.46599885 | I31: =F31*(Forecast!$D$8/$F$2) -> 57.57182013 | J31: =F31*(Forecast!$E$8/$F$2) -> 57.71004779 | K31: =F31*(Forecast!$F$8/$F$2) -> 57.91738928 | L31: =F31*(Forecast!$G$8/$F$2) -> 58.05561694 | M31: =F31*(Forecast!$H$8/$F$2) -> 58.26295843 | N31: =F31*(Forecast!$I$8/$F$2) -> 58.6776414 | O31: =F31*(Forecast!$J$8/$F$2) -> 59.02321055 | P31: =F31*(Forecast!$K$8/$F$2) -> 59.3687797 | Q31: =F31*(Forecast!$L$8/$F$2) -> 59.71434885 | R31: =F31*(Forecast!$M$8/$F$2) -> 60.059918 | S31: =F31*(Forecast!$N$8/$F$2) -> 60.47460098 | T31: =F31*(Forecast!$O$8/$F$2) -> 60.82017012 | U31: =F31*(Forecast!$P$8/$F$2) -> 61.16573927 | V31: =F31*(Forecast!$Q$8/$F$2) -> 61.51130842 | W31: =F31*(Forecast!$R$8/$F$2) -> 61.9259914 | X31: =F31*(Forecast!$S$8/$F$2) -> 62.27156055 | Y31: =F31*(Forecast!$T$8/$F$2) -> 62.6171297 | Z31: =F31*(Forecast!$U$8/$F$2) -> 62.96269884 | AA31: =F31*(Forecast!$V$8/$F$2) -> 63.37738182 | AB31: =F31*(Forecast!$W$8/$F$2) -> 63.72295097 | AC31: =F31*(Forecast!$X$8/$F$2) -> 64.06852012 | AD31: =F31*(Forecast!$Y$8/$F$2) -> 64.4832031 | AE31: =F31*(Forecast!$Z$8/$F$2) -> 64.82877225 | AF31: =F31*(Forecast!$AA$8/$F$2) -> 65.17434139 | AG31: =F31*(Forecast!$AB$8/$F$2) -> 65.51991054
A32: 2017-01-02T04:00:00 | B32: 21.7320118 | C32: 12.34196472 | D32: 12.30558109 | E32: 0 | F32: 46.37955761 | H32: =F32*(Forecast!$C$8/$F$2) -> 56.26222273 | I32: =F32*(Forecast!$D$8/$F$2) -> 57.36405329 | J32: =F32*(Forecast!$E$8/$F$2) -> 57.50178211 | K32: =F32*(Forecast!$F$8/$F$2) -> 57.70837534 | L32: =F32*(Forecast!$G$8/$F$2) -> 57.84610415 | M32: =F32*(Forecast!$H$8/$F$2) -> 58.05269738 | N32: =F32*(Forecast!$I$8/$F$2) -> 58.46588384 | O32: =F32*(Forecast!$J$8/$F$2) -> 58.81020589 | P32: =F32*(Forecast!$K$8/$F$2) -> 59.15452794 | Q32: =F32*(Forecast!$L$8/$F$2) -> 59.49884999 | R32: =F32*(Forecast!$M$8/$F$2) -> 59.84317204 | S32: =F32*(Forecast!$N$8/$F$2) -> 60.25635849 | T32: =F32*(Forecast!$O$8/$F$2) -> 60.60068054 | U32: =F32*(Forecast!$P$8/$F$2) -> 60.94500259 | V32: =F32*(Forecast!$Q$8/$F$2) -> 61.28932464 | W32: =F32*(Forecast!$R$8/$F$2) -> 61.7025111 | X32: =F32*(Forecast!$S$8/$F$2) -> 62.04683315 | Y32: =F32*(Forecast!$T$8/$F$2) -> 62.3911552 | Z32: =F32*(Forecast!$U$8/$F$2) -> 62.73547724 | AA32: =F32*(Forecast!$V$8/$F$2) -> 63.1486637 | AB32: =F32*(Forecast!$W$8/$F$2) -> 63.49298575 | AC32: =F32*(Forecast!$X$8/$F$2) -> 63.8373078 | AD32: =F32*(Forecast!$Y$8/$F$2) -> 64.25049426 | AE32: =F32*(Forecast!$Z$8/$F$2) -> 64.59481631 | AF32: =F32*(Forecast!$AA$8/$F$2) -> 64.93913835 | AG32: =F32*(Forecast!$AB$8/$F$2) -> 65.2834604
A33: 2017-01-02T05:00:00 | B33: 21.78562927 | C33: 12.46980858 | D33: 12.25729942 | E33: 0 | F33: 46.51273727 | H33: =F33*(Forecast!$C$8/$F$2) -> 56.42378063 | I33: =F33*(Forecast!$D$8/$F$2) -> 57.52877511 | J33: =F33*(Forecast!$E$8/$F$2) -> 57.66689942 | K33: =F33*(Forecast!$F$8/$F$2) -> 57.87408589 | L33: =F33*(Forecast!$G$8/$F$2) -> 58.0122102 | M33: =F33*(Forecast!$H$8/$F$2) -> 58.21939666 | N33: =F33*(Forecast!$I$8/$F$2) -> 58.63376959 | O33: =F33*(Forecast!$J$8/$F$2) -> 58.97908037 | P33: =F33*(Forecast!$K$8/$F$2) -> 59.32439114 | Q33: =F33*(Forecast!$L$8/$F$2) -> 59.66970192 | R33: =F33*(Forecast!$M$8/$F$2) -> 60.01501269 | S33: =F33*(Forecast!$N$8/$F$2) -> 60.42938562 | T33: =F33*(Forecast!$O$8/$F$2) -> 60.7746964 | U33: =F33*(Forecast!$P$8/$F$2) -> 61.12000717 | V33: =F33*(Forecast!$Q$8/$F$2) -> 61.46531795 | W33: =F33*(Forecast!$R$8/$F$2) -> 61.87969088 | X33: =F33*(Forecast!$S$8/$F$2) -> 62.22500165 | Y33: =F33*(Forecast!$T$8/$F$2) -> 62.57031243 | Z33: =F33*(Forecast!$U$8/$F$2) -> 62.9156232 | AA33: =F33*(Forecast!$V$8/$F$2) -> 63.32999613 | AB33: =F33*(Forecast!$W$8/$F$2) -> 63.67530691 | AC33: =F33*(Forecast!$X$8/$F$2) -> 64.02061768 | AD33: =F33*(Forecast!$Y$8/$F$2) -> 64.43499061 | AE33: =F33*(Forecast!$Z$8/$F$2) -> 64.78030139 | AF33: =F33*(Forecast!$AA$8/$F$2) -> 65.12561216 | AG33: =F33*(Forecast!$AB$8/$F$2) -> 65.47092294
A34: 2017-01-02T06:00:00 | B34: 21.96562958 | C34: 12.63108253 | D34: 12.42690563 | E34: 0 | F34: 47.02361774 | H34: =F34*(Forecast!$C$8/$F$2) -> 57.04352071 | I34: =F34*(Forecast!$D$8/$F$2) -> 58.16065209 | J34: =F34*(Forecast!$E$8/$F$2) -> 58.30029351 | K34: =F34*(Forecast!$F$8/$F$2) -> 58.50975564 | L34: =F34*(Forecast!$G$8/$F$2) -> 58.64939706 | M34: =F34*(Forecast!$H$8/$F$2) -> 58.85885919 | N34: =F34*(Forecast!$I$8/$F$2) -> 59.27778346 | O34: =F34*(Forecast!$J$8/$F$2) -> 59.62688701 | P34: =F34*(Forecast!$K$8/$F$2) -> 59.97599057 | Q34: =F34*(Forecast!$L$8/$F$2) -> 60.32509412 | R34: =F34*(Forecast!$M$8/$F$2) -> 60.67419767 | S34: =F34*(Forecast!$N$8/$F$2) -> 61.09312194 | T34: =F34*(Forecast!$O$8/$F$2) -> 61.44222549 | U34: =F34*(Forecast!$P$8/$F$2) -> 61.79132905 | V34: =F34*(Forecast!$Q$8/$F$2) -> 62.1404326 | W34: =F34*(Forecast!$R$8/$F$2) -> 62.55935687 | X34: =F34*(Forecast!$S$8/$F$2) -> 62.90846042 | Y34: =F34*(Forecast!$T$8/$F$2) -> 63.25756397 | Z34: =F34*(Forecast!$U$8/$F$2) -> 63.60666753 | AA34: =F34*(Forecast!$V$8/$F$2) -> 64.02559179 | AB34: =F34*(Forecast!$W$8/$F$2) -> 64.37469535 | AC34: =F34*(Forecast!$X$8/$F$2) -> 64.7237989 | AD34: =F34*(Forecast!$Y$8/$F$2) -> 65.14272316 | AE34: =F34*(Forecast!$Z$8/$F$2) -> 65.49182672 | AF34: =F34*(Forecast!$AA$8/$F$2) -> 65.84093027 | AG34: =F34*(Forecast!$AB$8/$F$2) -> 66.19003383
A35: 2017-01-02T07:00:00 | B35: 22.50563049 | C35: 12.79235744 | D35: 12.68989277 | E35: 0 | F35: 47.98788071 | H35: =F35*(Forecast!$C$8/$F$2) -> 58.21325109 | I35: =F35*(Forecast!$D$8/$F$2) -> 59.35329028 | J35: =F35*(Forecast!$E$8/$F$2) -> 59.49579518 | K35: =F35*(Forecast!$F$8/$F$2) -> 59.70955253 | L35: =F35*(Forecast!$G$8/$F$2) -> 59.85205743 | M35: =F35*(Forecast!$H$8/$F$2) -> 60.06581478 | N35: =F35*(Forecast!$I$8/$F$2) -> 60.49332947 | O35: =F35*(Forecast!$J$8/$F$2) -> 60.84959172 | P35: =F35*(Forecast!$K$8/$F$2) -> 61.20585397 | Q35: =F35*(Forecast!$L$8/$F$2) -> 61.56211621 | R35: =F35*(Forecast!$M$8/$F$2) -> 61.91837846 | S35: =F35*(Forecast!$N$8/$F$2) -> 62.34589315 | T35: =F35*(Forecast!$O$8/$F$2) -> 62.7021554 | U35: =F35*(Forecast!$P$8/$F$2) -> 63.05841765 | V35: =F35*(Forecast!$Q$8/$F$2) -> 63.41467989 | W35: =F35*(Forecast!$R$8/$F$2) -> 63.84219459 | X35: =F35*(Forecast!$S$8/$F$2) -> 64.19845684 | Y35: =F35*(Forecast!$T$8/$F$2) -> 64.55471908 | Z35: =F35*(Forecast!$U$8/$F$2) -> 64.91098133 | AA35: =F35*(Forecast!$V$8/$F$2) -> 65.33849603 | AB35: =F35*(Forecast!$W$8/$F$2) -> 65.69475827 | AC35: =F35*(Forecast!$X$8/$F$2) -> 66.05102052 | AD35: =F35*(Forecast!$Y$8/$F$2) -> 66.47853521 | AE35: =F35*(Forecast!$Z$8/$F$2) -> 66.83479746 | AF35: =F35*(Forecast!$AA$8/$F$2) -> 67.19105971 | AG35: =F35*(Forecast!$AB$8/$F$2) -> 67.54732195
A36: 2017-01-02T08:00:00 | B36: 23.38747215 | C36: 12.98738384 | D36: 12.92156219 | E36: 0 | F36: 49.29641819 | H36: =F36*(Forecast!$C$8/$F$2) -> 59.80061482 | I36: =F36*(Forecast!$D$8/$F$2) -> 60.97174069 | J36: =F36*(Forecast!$E$8/$F$2) -> 61.11813142 | K36: =F36*(Forecast!$F$8/$F$2) -> 61.33771753 | L36: =F36*(Forecast!$G$8/$F$2) -> 61.48410826 | M36: =F36*(Forecast!$H$8/$F$2) -> 61.70369436 | N36: =F36*(Forecast!$I$8/$F$2) -> 62.14286656 | O36: =F36*(Forecast!$J$8/$F$2) -> 62.5088434 | P36: =F36*(Forecast!$K$8/$F$2) -> 62.87482023 | Q36: =F36*(Forecast!$L$8/$F$2) -> 63.24079707 | R36: =F36*(Forecast!$M$8/$F$2) -> 63.6067739 | S36: =F36*(Forecast!$N$8/$F$2) -> 64.0459461 | T36: =F36*(Forecast!$O$8/$F$2) -> 64.41192294 | U36: =F36*(Forecast!$P$8/$F$2) -> 64.77789977 | V36: =F36*(Forecast!$Q$8/$F$2) -> 65.14387661 | W36: =F36*(Forecast!$R$8/$F$2) -> 65.58304881 | X36: =F36*(Forecast!$S$8/$F$2) -> 65.94902564 | Y36: =F36*(Forecast!$T$8/$F$2) -> 66.31500248 | Z36: =F36*(Forecast!$U$8/$F$2) -> 66.68097931 | AA36: =F36*(Forecast!$V$8/$F$2) -> 67.12015152 | AB36: =F36*(Forecast!$W$8/$F$2) -> 67.48612835 | AC36: =F36*(Forecast!$X$8/$F$2) -> 67.85210519 | AD36: =F36*(Forecast!$Y$8/$F$2) -> 68.29127739 | AE36: =F36*(Forecast!$Z$8/$F$2) -> 68.65725422 | AF36: =F36*(Forecast!$AA$8/$F$2) -> 69.02323106 | AG36: =F36*(Forecast!$AB$8/$F$2) -> 69.38920789
A37: 2017-01-02T09:00:00 | B37: 23.40563011 | C37: 13.21601295 | D37: 13.0816803 | E37: 0 | F37: 49.70332336 | H37: =F37*(Forecast!$C$8/$F$2) -> 60.2942243 | I37: =F37*(Forecast!$D$8/$F$2) -> 61.47501695 | J37: =F37*(Forecast!$E$8/$F$2) -> 61.62261603 | K37: =F37*(Forecast!$F$8/$F$2) -> 61.84401465 | L37: =F37*(Forecast!$G$8/$F$2) -> 61.99161373 | M37: =F37*(Forecast!$H$8/$F$2) -> 62.21301235 | N37: =F37*(Forecast!$I$8/$F$2) -> 62.65580959 | O37: =F37*(Forecast!$J$8/$F$2) -> 63.02480729 | P37: =F37*(Forecast!$K$8/$F$2) -> 63.39380499 | Q37: =F37*(Forecast!$L$8/$F$2) -> 63.76280269 | R37: =F37*(Forecast!$M$8/$F$2) -> 64.13180039 | S37: =F37*(Forecast!$N$8/$F$2) -> 64.57459763 | T37: =F37*(Forecast!$O$8/$F$2) -> 64.94359533 | U37: =F37*(Forecast!$P$8/$F$2) -> 65.31259303 | V37: =F37*(Forecast!$Q$8/$F$2) -> 65.68159073 | W37: =F37*(Forecast!$R$8/$F$2) -> 66.12438798 | X37: =F37*(Forecast!$S$8/$F$2) -> 66.49338568 | Y37: =F37*(Forecast!$T$8/$F$2) -> 66.86238338 | Z37: =F37*(Forecast!$U$8/$F$2) -> 67.23138108 | AA37: =F37*(Forecast!$V$8/$F$2) -> 67.67417832 | AB37: =F37*(Forecast!$W$8/$F$2) -> 68.04317602 | AC37: =F37*(Forecast!$X$8/$F$2) -> 68.41217372 | AD37: =F37*(Forecast!$Y$8/$F$2) -> 68.85497096 | AE37: =F37*(Forecast!$Z$8/$F$2) -> 69.22396866 | AF37: =F37*(Forecast!$AA$8/$F$2) -> 69.59296636 | AG37: =F37*(Forecast!$AB$8/$F$2) -> 69.96196406
A38: 2017-01-02T10:00:00 | B38: 23.72570801 | C38: 13.44464207 | D38: 13.23281479 | E38: 0 | F38: 50.40316486 | H38: =F38*(Forecast!$C$8/$F$2) -> 61.14318967 | I38: =F38*(Forecast!$D$8/$F$2) -> 62.34060832 | J38: =F38*(Forecast!$E$8/$F$2) -> 62.49028565 | K38: =F38*(Forecast!$F$8/$F$2) -> 62.71480165 | L38: =F38*(Forecast!$G$8/$F$2) -> 62.86447898 | M38: =F38*(Forecast!$H$8/$F$2) -> 63.08899498 | N38: =F38*(Forecast!$I$8/$F$2) -> 63.53802697 | O38: =F38*(Forecast!$J$8/$F$2) -> 63.9122203 | P38: =F38*(Forecast!$K$8/$F$2) -> 64.28641362 | Q38: =F38*(Forecast!$L$8/$F$2) -> 64.66060695 | R38: =F38*(Forecast!$M$8/$F$2) -> 65.03480028 | S38: =F38*(Forecast!$N$8/$F$2) -> 65.48383227 | T38: =F38*(Forecast!$O$8/$F$2) -> 65.8580256 | U38: =F38*(Forecast!$P$8/$F$2) -> 66.23221893 | V38: =F38*(Forecast!$Q$8/$F$2) -> 66.60641225 | W38: =F38*(Forecast!$R$8/$F$2) -> 67.05544425 | X38: =F38*(Forecast!$S$8/$F$2) -> 67.42963757 | Y38: =F38*(Forecast!$T$8/$F$2) -> 67.8038309 | Z38: =F38*(Forecast!$U$8/$F$2) -> 68.17802423 | AA38: =F38*(Forecast!$V$8/$F$2) -> 68.62705622 | AB38: =F38*(Forecast!$W$8/$F$2) -> 69.00124955 | AC38: =F38*(Forecast!$X$8/$F$2) -> 69.37544287 | AD38: =F38*(Forecast!$Y$8/$F$2) -> 69.82447487 | AE38: =F38*(Forecast!$Z$8/$F$2) -> 70.19866819 | AF38: =F38*(Forecast!$AA$8/$F$2) -> 70.57286152 | AG38: =F38*(Forecast!$AB$8/$F$2) -> 70.94705485
A39: 2017-01-02T11:00:00 | B39: 24.05591011 | C39: 13.44295311 | D39: 13.23281479 | E39: 0 | F39: 50.73167801 | H39: =F39*(Forecast!$C$8/$F$2) -> 61.54170317 | I39: =F39*(Forecast!$D$8/$F$2) -> 62.74692625 | J39: =F39*(Forecast!$E$8/$F$2) -> 62.89757913 | K39: =F39*(Forecast!$F$8/$F$2) -> 63.12355846 | L39: =F39*(Forecast!$G$8/$F$2) -> 63.27421134 | M39: =F39*(Forecast!$H$8/$F$2) -> 63.50019067 | N39: =F39*(Forecast!$I$8/$F$2) -> 63.95214932 | O39: =F39*(Forecast!$J$8/$F$2) -> 64.32878153 | P39: =F39*(Forecast!$K$8/$F$2) -> 64.70541374 | Q39: =F39*(Forecast!$L$8/$F$2) -> 65.08204595 | R39: =F39*(Forecast!$M$8/$F$2) -> 65.45867816 | S39: =F39*(Forecast!$N$8/$F$2) -> 65.91063681 | T39: =F39*(Forecast!$O$8/$F$2) -> 66.28726902 | U39: =F39*(Forecast!$P$8/$F$2) -> 66.66390123 | V39: =F39*(Forecast!$Q$8/$F$2) -> 67.04053344 | W39: =F39*(Forecast!$R$8/$F$2) -> 67.4924921 | X39: =F39*(Forecast!$S$8/$F$2) -> 67.86912431 | Y39: =F39*(Forecast!$T$8/$F$2) -> 68.24575652 | Z39: =F39*(Forecast!$U$8/$F$2) -> 68.62238873 | AA39: =F39*(Forecast!$V$8/$F$2) -> 69.07434738 | AB39: =F39*(Forecast!$W$8/$F$2) -> 69.45097959 | AC39: =F39*(Forecast!$X$8/$F$2) -> 69.8276118 | AD39: =F39*(Forecast!$Y$8/$F$2) -> 70.27957045 | AE39: =F39*(Forecast!$Z$8/$F$2) -> 70.65620266 | AF39: =F39*(Forecast!$AA$8/$F$2) -> 71.03283487 | AG39: =F39*(Forecast!$AB$8/$F$2) -> 71.40946708
A40: 2017-01-02T12:00:00 | B40: 24.12562943 | C40: 13.61462402 | D40: 13.23281479 | E40: 0 | F40: 50.97306824 | H40: =F40*(Forecast!$C$8/$F$2) -> 61.8345294 | I40: =F40*(Forecast!$D$8/$F$2) -> 63.04548713 | J40: =F40*(Forecast!$E$8/$F$2) -> 63.19685685 | K40: =F40*(Forecast!$F$8/$F$2) -> 63.42391143 | L40: =F40*(Forecast!$G$8/$F$2) -> 63.57528114 | M40: =F40*(Forecast!$H$8/$F$2) -> 63.80233572 | N40: =F40*(Forecast!$I$8/$F$2) -> 64.25644487 | O40: =F40*(Forecast!$J$8/$F$2) -> 64.63486916 | P40: =F40*(Forecast!$K$8/$F$2) -> 65.01329346 | Q40: =F40*(Forecast!$L$8/$F$2) -> 65.39171775 | R40: =F40*(Forecast!$M$8/$F$2) -> 65.77014204 | S40: =F40*(Forecast!$N$8/$F$2) -> 66.22425119 | T40: =F40*(Forecast!$O$8/$F$2) -> 66.60267548 | U40: =F40*(Forecast!$P$8/$F$2) -> 66.98109978 | V40: =F40*(Forecast!$Q$8/$F$2) -> 67.35952407 | W40: =F40*(Forecast!$R$8/$F$2) -> 67.81363322 | X40: =F40*(Forecast!$S$8/$F$2) -> 68.19205751 | Y40: =F40*(Forecast!$T$8/$F$2) -> 68.5704818 | Z40: =F40*(Forecast!$U$8/$F$2) -> 68.9489061 | AA40: =F40*(Forecast!$V$8/$F$2) -> 69.40301525 | AB40: =F40*(Forecast!$W$8/$F$2) -> 69.78143954 | AC40: =F40*(Forecast!$X$8/$F$2) -> 70.15986383 | AD40: =F40*(Forecast!$Y$8/$F$2) -> 70.61397298 | AE40: =F40*(Forecast!$Z$8/$F$2) -> 70.99239728 | AF40: =F40*(Forecast!$AA$8/$F$2) -> 71.37082157 | AG40: =F40*(Forecast!$AB$8/$F$2) -> 71.74924586
A41: 2017-01-02T13:00:00 | B41: 24.26888657 | C41: 13.56608868 | D41: 13.23281479 | E41: 0 | F41: 51.06779003 | H41: =F41*(Forecast!$C$8/$F$2) -> 61.94943473 | I41: =F41*(Forecast!$D$8/$F$2) -> 63.16264276 | J41: =F41*(Forecast!$E$8/$F$2) -> 63.31429376 | K41: =F41*(Forecast!$F$8/$F$2) -> 63.54177027 | L41: =F41*(Forecast!$G$8/$F$2) -> 63.69342127 | M41: =F41*(Forecast!$H$8/$F$2) -> 63.92089777 | N41: =F41*(Forecast!$I$8/$F$2) -> 64.37585078 | O41: =F41*(Forecast!$J$8/$F$2) -> 64.75497829 | P41: =F41*(Forecast!$K$8/$F$2) -> 65.1341058 | Q41: =F41*(Forecast!$L$8/$F$2) -> 65.51323331 | R41: =F41*(Forecast!$M$8/$F$2) -> 65.89236081 | S41: =F41*(Forecast!$N$8/$F$2) -> 66.34731382 | T41: =F41*(Forecast!$O$8/$F$2) -> 66.72644133 | U41: =F41*(Forecast!$P$8/$F$2) -> 67.10556884 | V41: =F41*(Forecast!$Q$8/$F$2) -> 67.48469635 | W41: =F41*(Forecast!$R$8/$F$2) -> 67.93964935 | X41: =F41*(Forecast!$S$8/$F$2) -> 68.31877686 | Y41: =F41*(Forecast!$T$8/$F$2) -> 68.69790437 | Z41: =F41*(Forecast!$U$8/$F$2) -> 69.07703188 | AA41: =F41*(Forecast!$V$8/$F$2) -> 69.53198489 | AB41: =F41*(Forecast!$W$8/$F$2) -> 69.91111239 | AC41: =F41*(Forecast!$X$8/$F$2) -> 70.2902399 | AD41: =F41*(Forecast!$Y$8/$F$2) -> 70.74519291 | AE41: =F41*(Forecast!$Z$8/$F$2) -> 71.12432042 | AF41: =F41*(Forecast!$AA$8/$F$2) -> 71.50344793 | AG41: =F41*(Forecast!$AB$8/$F$2) -> 71.88257543
A42: 2017-01-02T14:00:00 | B42: 23.47564697 | C42: 13.37244129 | D42: 13.1535387 | E42: 0 | F42: 50.00162697 | H42: =F42*(Forecast!$C$8/$F$2) -> 60.65609114 | I42: =F42*(Forecast!$D$8/$F$2) -> 61.84397053 | J42: =F42*(Forecast!$E$8/$F$2) -> 61.99245545 | K42: =F42*(Forecast!$F$8/$F$2) -> 62.21518283 | L42: =F42*(Forecast!$G$8/$F$2) -> 62.36366776 | M42: =F42*(Forecast!$H$8/$F$2) -> 62.58639514 | N42: =F42*(Forecast!$I$8/$F$2) -> 63.03184991 | O42: =F42*(Forecast!$J$8/$F$2) -> 63.40306222 | P42: =F42*(Forecast!$K$8/$F$2) -> 63.77427453 | Q42: =F42*(Forecast!$L$8/$F$2) -> 64.14548684 | R42: =F42*(Forecast!$M$8/$F$2) -> 64.51669914 | S42: =F42*(Forecast!$N$8/$F$2) -> 64.96215391 | T42: =F42*(Forecast!$O$8/$F$2) -> 65.33336622 | U42: =F42*(Forecast!$P$8/$F$2) -> 65.70457853 | V42: =F42*(Forecast!$Q$8/$F$2) -> 66.07579084 | W42: =F42*(Forecast!$R$8/$F$2) -> 66.52124561 | X42: =F42*(Forecast!$S$8/$F$2) -> 66.89245792 | Y42: =F42*(Forecast!$T$8/$F$2) -> 67.26367022 | Z42: =F42*(Forecast!$U$8/$F$2) -> 67.63488253 | AA42: =F42*(Forecast!$V$8/$F$2) -> 68.0803373 | AB42: =F42*(Forecast!$W$8/$F$2) -> 68.45154961 | AC42: =F42*(Forecast!$X$8/$F$2) -> 68.82276192 | AD42: =F42*(Forecast!$Y$8/$F$2) -> 69.26821669 | AE42: =F42*(Forecast!$Z$8/$F$2) -> 69.639429 | AF42: =F42*(Forecast!$AA$8/$F$2) -> 70.0106413 | AG42: =F42*(Forecast!$AB$8/$F$2) -> 70.38185361
A43: 2017-01-02T15:00:00 | B43: 22.9798336 | C43: 13.17879391 | D43: 13.03818226 | E43: 0 | F43: 49.19680977 | H43: =F43*(Forecast!$C$8/$F$2) -> 59.6797816 | I43: =F43*(Forecast!$D$8/$F$2) -> 60.84854109 | J43: =F43*(Forecast!$E$8/$F$2) -> 60.99463603 | K43: =F43*(Forecast!$F$8/$F$2) -> 61.21377844 | L43: =F43*(Forecast!$G$8/$F$2) -> 61.35987337 | M43: =F43*(Forecast!$H$8/$F$2) -> 61.57901578 | N43: =F43*(Forecast!$I$8/$F$2) -> 62.01730059 | O43: =F43*(Forecast!$J$8/$F$2) -> 62.38253793 | P43: =F43*(Forecast!$K$8/$F$2) -> 62.74777527 | Q43: =F43*(Forecast!$L$8/$F$2) -> 63.11301261 | R43: =F43*(Forecast!$M$8/$F$2) -> 63.47824995 | S43: =F43*(Forecast!$N$8/$F$2) -> 63.91653476 | T43: =F43*(Forecast!$O$8/$F$2) -> 64.2817721 | U43: =F43*(Forecast!$P$8/$F$2) -> 64.64700945 | V43: =F43*(Forecast!$Q$8/$F$2) -> 65.01224679 | W43: =F43*(Forecast!$R$8/$F$2) -> 65.4505316 | X43: =F43*(Forecast!$S$8/$F$2) -> 65.81576894 | Y43: =F43*(Forecast!$T$8/$F$2) -> 66.18100628 | Z43: =F43*(Forecast!$U$8/$F$2) -> 66.54624362 | AA43: =F43*(Forecast!$V$8/$F$2) -> 66.98452843 | AB43: =F43*(Forecast!$W$8/$F$2) -> 67.34976577 | AC43: =F43*(Forecast!$X$8/$F$2) -> 67.71500311 | AD43: =F43*(Forecast!$Y$8/$F$2) -> 68.15328792 | AE43: =F43*(Forecast!$Z$8/$F$2) -> 68.51852527 | AF43: =F43*(Forecast!$AA$8/$F$2) -> 68.88376261 | AG43: =F43*(Forecast!$AB$8/$F$2) -> 69.24899995
A44: 2017-01-02T16:00:00 | B44: 23.76563072 | C44: 13.25530434 | D44: 13.17662239 | E44: 0 | F44: 50.19755745 | H44: =F44*(Forecast!$C$8/$F$2) -> 60.89377095 | I44: =F44*(Forecast!$D$8/$F$2) -> 62.08630502 | J44: =F44*(Forecast!$E$8/$F$2) -> 62.23537178 | K44: =F44*(Forecast!$F$8/$F$2) -> 62.45897192 | L44: =F44*(Forecast!$G$8/$F$2) -> 62.60803867 | M44: =F44*(Forecast!$H$8/$F$2) -> 62.83163881 | N44: =F44*(Forecast!$I$8/$F$2) -> 63.27883909 | O44: =F44*(Forecast!$J$8/$F$2) -> 63.65150599 | P44: =F44*(Forecast!$K$8/$F$2) -> 64.02417288 | Q44: =F44*(Forecast!$L$8/$F$2) -> 64.39683978 | R44: =F44*(Forecast!$M$8/$F$2) -> 64.76950668 | S44: =F44*(Forecast!$N$8/$F$2) -> 65.21670695 | T44: =F44*(Forecast!$O$8/$F$2) -> 65.58937385 | U44: =F44*(Forecast!$P$8/$F$2) -> 65.96204075 | V44: =F44*(Forecast!$Q$8/$F$2) -> 66.33470764 | W44: =F44*(Forecast!$R$8/$F$2) -> 66.78190792 | X44: =F44*(Forecast!$S$8/$F$2) -> 67.15457482 | Y44: =F44*(Forecast!$T$8/$F$2) -> 67.52724171 | Z44: =F44*(Forecast!$U$8/$F$2) -> 67.89990861 | AA44: =F44*(Forecast!$V$8/$F$2) -> 68.34710889 | AB44: =F44*(Forecast!$W$8/$F$2) -> 68.71977578 | AC44: =F44*(Forecast!$X$8/$F$2) -> 69.09244268 | AD44: =F44*(Forecast!$Y$8/$F$2) -> 69.53964296 | AE44: =F44*(Forecast!$Z$8/$F$2) -> 69.91230985 | AF44: =F44*(Forecast!$AA$8/$F$2) -> 70.28497675 | AG44: =F44*(Forecast!$AB$8/$F$2) -> 70.65764365
A45: 2017-01-02T17:00:00 | B45: 25.06502914 | C45: 13.82038021 | D45: 13.79337406 | E45: 0 | F45: 52.67878342 | H45: =F45*(Forecast!$C$8/$F$2) -> 63.90370238 | I45: =F45*(Forecast!$D$8/$F$2) -> 65.15518247 | J45: =F45*(Forecast!$E$8/$F$2) -> 65.31161748 | K45: =F45*(Forecast!$F$8/$F$2) -> 65.54627 | L45: =F45*(Forecast!$G$8/$F$2) -> 65.70270501 | M45: =F45*(Forecast!$H$8/$F$2) -> 65.93735753 | N45: =F45*(Forecast!$I$8/$F$2) -> 66.40666257 | O45: =F45*(Forecast!$J$8/$F$2) -> 66.7977501 | P45: =F45*(Forecast!$K$8/$F$2) -> 67.18883763 | Q45: =F45*(Forecast!$L$8/$F$2) -> 67.57992516 | R45: =F45*(Forecast!$M$8/$F$2) -> 67.97101269 | S45: =F45*(Forecast!$N$8/$F$2) -> 68.44031772 | T45: =F45*(Forecast!$O$8/$F$2) -> 68.83140525 | U45: =F45*(Forecast!$P$8/$F$2) -> 69.22249278 | V45: =F45*(Forecast!$Q$8/$F$2) -> 69.61358031 | W45: =F45*(Forecast!$R$8/$F$2) -> 70.08288535 | X45: =F45*(Forecast!$S$8/$F$2) -> 70.47397288 | Y45: =F45*(Forecast!$T$8/$F$2) -> 70.86506041 | Z45: =F45*(Forecast!$U$8/$F$2) -> 71.25614794 | AA45: =F45*(Forecast!$V$8/$F$2) -> 71.72545297 | AB45: =F45*(Forecast!$W$8/$F$2) -> 72.1165405 | AC45: =F45*(Forecast!$X$8/$F$2) -> 72.50762803 | AD45: =F45*(Forecast!$Y$8/$F$2) -> 72.97693307 | AE45: =F45*(Forecast!$Z$8/$F$2) -> 73.3680206 | AF45: =F45*(Forecast!$AA$8/$F$2) -> 73.75910813 | AG45: =F45*(Forecast!$AB$8/$F$2) -> 74.15019566
A46: 2017-01-02T18:00:00 | B46: 25.22674561 | C46: 14.05952835 | D46: 13.9226532 | E46: 0 | F46: 53.20892715 | H46: =F46*(Forecast!$C$8/$F$2) -> 64.54681039 | I46: =F46*(Forecast!$D$8/$F$2) -> 65.81088501 | J46: =F46*(Forecast!$E$8/$F$2) -> 65.96889434 | K46: =F46*(Forecast!$F$8/$F$2) -> 66.20590833 | L46: =F46*(Forecast!$G$8/$F$2) -> 66.36391766 | M46: =F46*(Forecast!$H$8/$F$2) -> 66.60093165 | N46: =F46*(Forecast!$I$8/$F$2) -> 67.07495963 | O46: =F46*(Forecast!$J$8/$F$2) -> 67.46998295 | P46: =F46*(Forecast!$K$8/$F$2) -> 67.86500627 | Q46: =F46*(Forecast!$L$8/$F$2) -> 68.26002959 | R46: =F46*(Forecast!$M$8/$F$2) -> 68.65505291 | S46: =F46*(Forecast!$N$8/$F$2) -> 69.12908089 | T46: =F46*(Forecast!$O$8/$F$2) -> 69.52410421 | U46: =F46*(Forecast!$P$8/$F$2) -> 69.91912753 | V46: =F46*(Forecast!$Q$8/$F$2) -> 70.31415085 | W46: =F46*(Forecast!$R$8/$F$2) -> 70.78817883 | X46: =F46*(Forecast!$S$8/$F$2) -> 71.18320215 | Y46: =F46*(Forecast!$T$8/$F$2) -> 71.57822547 | Z46: =F46*(Forecast!$U$8/$F$2) -> 71.97324879 | AA46: =F46*(Forecast!$V$8/$F$2) -> 72.44727678 | AB46: =F46*(Forecast!$W$8/$F$2) -> 72.84230009 | AC46: =F46*(Forecast!$X$8/$F$2) -> 73.23732341 | AD46: =F46*(Forecast!$Y$8/$F$2) -> 73.7113514 | AE46: =F46*(Forecast!$Z$8/$F$2) -> 74.10637472 | AF46: =F46*(Forecast!$AA$8/$F$2) -> 74.50139804 | AG46: =F46*(Forecast!$AB$8/$F$2) -> 74.89642136
A47: 2017-01-02T19:00:00 | B47: 24.72007942 | C47: 13.77281475 | D47: 13.5900116 | E47: 0 | F47: 52.08290577 | H47: =F47*(Forecast!$C$8/$F$2) -> 63.18085372 | I47: =F47*(Forecast!$D$8/$F$2) -> 64.41817766 | J47: =F47*(Forecast!$E$8/$F$2) -> 64.57284315 | K47: =F47*(Forecast!$F$8/$F$2) -> 64.80484139 | L47: =F47*(Forecast!$G$8/$F$2) -> 64.95950688 | M47: =F47*(Forecast!$H$8/$F$2) -> 65.19150512 | N47: =F47*(Forecast!$I$8/$F$2) -> 65.6555016 | O47: =F47*(Forecast!$J$8/$F$2) -> 66.04216533 | P47: =F47*(Forecast!$K$8/$F$2) -> 66.42882906 | Q47: =F47*(Forecast!$L$8/$F$2) -> 66.8154928 | R47: =F47*(Forecast!$M$8/$F$2) -> 67.20215653 | S47: =F47*(Forecast!$N$8/$F$2) -> 67.666153 | T47: =F47*(Forecast!$O$8/$F$2) -> 68.05281674 | U47: =F47*(Forecast!$P$8/$F$2) -> 68.43948047 | V47: =F47*(Forecast!$Q$8/$F$2) -> 68.8261442 | W47: =F47*(Forecast!$R$8/$F$2) -> 69.29014068 | X47: =F47*(Forecast!$S$8/$F$2) -> 69.67680441 | Y47: =F47*(Forecast!$T$8/$F$2) -> 70.06346814 | Z47: =F47*(Forecast!$U$8/$F$2) -> 70.45013187 | AA47: =F47*(Forecast!$V$8/$F$2) -> 70.91412835 | AB47: =F47*(Forecast!$W$8/$F$2) -> 71.30079208 | AC47: =F47*(Forecast!$X$8/$F$2) -> 71.68745581 | AD47: =F47*(Forecast!$Y$8/$F$2) -> 72.15145229 | AE47: =F47*(Forecast!$Z$8/$F$2) -> 72.53811602 | AF47: =F47*(Forecast!$AA$8/$F$2) -> 72.92477975 | AG47: =F47*(Forecast!$AB$8/$F$2) -> 73.31144348
A48: 2017-01-02T20:00:00 | B48: 25.02563095 | C48: 13.77281475 | D48: 13.56243706 | E48: 0 | F48: 52.36088276 | H48: =F48*(Forecast!$C$8/$F$2) -> 63.5180627 | I48: =F48*(Forecast!$D$8/$F$2) -> 64.76199049 | J48: =F48*(Forecast!$E$8/$F$2) -> 64.91748146 | K48: =F48*(Forecast!$F$8/$F$2) -> 65.15071792 | L48: =F48*(Forecast!$G$8/$F$2) -> 65.3062089 | M48: =F48*(Forecast!$H$8/$F$2) -> 65.53944536 | N48: =F48*(Forecast!$I$8/$F$2) -> 66.00591828 | O48: =F48*(Forecast!$J$8/$F$2) -> 66.39464571 | P48: =F48*(Forecast!$K$8/$F$2) -> 66.78337314 | Q48: =F48*(Forecast!$L$8/$F$2) -> 67.17210058 | R48: =F48*(Forecast!$M$8/$F$2) -> 67.56082801 | S48: =F48*(Forecast!$N$8/$F$2) -> 68.02730093 | T48: =F48*(Forecast!$O$8/$F$2) -> 68.41602837 | U48: =F48*(Forecast!$P$8/$F$2) -> 68.8047558 | V48: =F48*(Forecast!$Q$8/$F$2) -> 69.19348323 | W48: =F48*(Forecast!$R$8/$F$2) -> 69.65995616 | X48: =F48*(Forecast!$S$8/$F$2) -> 70.04868359 | Y48: =F48*(Forecast!$T$8/$F$2) -> 70.43741102 | Z48: =F48*(Forecast!$U$8/$F$2) -> 70.82613846 | AA48: =F48*(Forecast!$V$8/$F$2) -> 71.29261138 | AB48: =F48*(Forecast!$W$8/$F$2) -> 71.68133881 | AC48: =F48*(Forecast!$X$8/$F$2) -> 72.07006625 | AD48: =F48*(Forecast!$Y$8/$F$2) -> 72.53653917 | AE48: =F48*(Forecast!$Z$8/$F$2) -> 72.9252666 | AF48: =F48*(Forecast!$AA$8/$F$2) -> 73.31399403 | AG48: =F48*(Forecast!$AB$8/$F$2) -> 73.70272147
A49: 2017-01-02T21:00:00 | B49: 24.79276657 | C49: 13.77281475 | D49: 13.53486252 | E49: 0 | F49: 52.10044384 | H49: =F49*(Forecast!$C$8/$F$2) -> 63.20212884 | I49: =F49*(Forecast!$D$8/$F$2) -> 64.43986943 | J49: =F49*(Forecast!$E$8/$F$2) -> 64.59458701 | K49: =F49*(Forecast!$F$8/$F$2) -> 64.82666337 | L49: =F49*(Forecast!$G$8/$F$2) -> 64.98138094 | M49: =F49*(Forecast!$H$8/$F$2) -> 65.2134573 | N49: =F49*(Forecast!$I$8/$F$2) -> 65.67761002 | O49: =F49*(Forecast!$J$8/$F$2) -> 66.06440396 | P49: =F49*(Forecast!$K$8/$F$2) -> 66.45119789 | Q49: =F49*(Forecast!$L$8/$F$2) -> 66.83799182 | R49: =F49*(Forecast!$M$8/$F$2) -> 67.22478576 | S49: =F49*(Forecast!$N$8/$F$2) -> 67.68893848 | T49: =F49*(Forecast!$O$8/$F$2) -> 68.07573241 | U49: =F49*(Forecast!$P$8/$F$2) -> 68.46252635 | V49: =F49*(Forecast!$Q$8/$F$2) -> 68.84932028 | W49: =F49*(Forecast!$R$8/$F$2) -> 69.313473 | X49: =F49*(Forecast!$S$8/$F$2) -> 69.70026694 | Y49: =F49*(Forecast!$T$8/$F$2) -> 70.08706087 | Z49: =F49*(Forecast!$U$8/$F$2) -> 70.47385481 | AA49: =F49*(Forecast!$V$8/$F$2) -> 70.93800753 | AB49: =F49*(Forecast!$W$8/$F$2) -> 71.32480146 | AC49: =F49*(Forecast!$X$8/$F$2) -> 71.7115954 | AD49: =F49*(Forecast!$Y$8/$F$2) -> 72.17574812 | AE49: =F49*(Forecast!$Z$8/$F$2) -> 72.56254205 | AF49: =F49*(Forecast!$AA$8/$F$2) -> 72.94933598 | AG49: =F49*(Forecast!$AB$8/$F$2) -> 73.33612992
A50: 2017-01-02T22:00:00 | B50: 24.66563034 | C50: 13.71368122 | D50: 13.50728798 | E50: 0 | F50: 51.88659954 | H50: =F50*(Forecast!$C$8/$F$2) -> 62.9427181 | I50: =F50*(Forecast!$D$8/$F$2) -> 64.17537843 | J50: =F50*(Forecast!$E$8/$F$2) -> 64.32946097 | K50: =F50*(Forecast!$F$8/$F$2) -> 64.56058478 | L50: =F50*(Forecast!$G$8/$F$2) -> 64.71466732 | M50: =F50*(Forecast!$H$8/$F$2) -> 64.94579113 | N50: =F50*(Forecast!$I$8/$F$2) -> 65.40803876 | O50: =F50*(Forecast!$J$8/$F$2) -> 65.79324511 | P50: =F50*(Forecast!$K$8/$F$2) -> 66.17845146 | Q50: =F50*(Forecast!$L$8/$F$2) -> 66.56365782 | R50: =F50*(Forecast!$M$8/$F$2) -> 66.94886417 | S50: =F50*(Forecast!$N$8/$F$2) -> 67.41111179 | T50: =F50*(Forecast!$O$8/$F$2) -> 67.79631815 | U50: =F50*(Forecast!$P$8/$F$2) -> 68.1815245 | V50: =F50*(Forecast!$Q$8/$F$2) -> 68.56673085 | W50: =F50*(Forecast!$R$8/$F$2) -> 69.02897848 | X50: =F50*(Forecast!$S$8/$F$2) -> 69.41418483 | Y50: =F50*(Forecast!$T$8/$F$2) -> 69.79939118 | Z50: =F50*(Forecast!$U$8/$F$2) -> 70.18459754 | AA50: =F50*(Forecast!$V$8/$F$2) -> 70.64684516 | AB50: =F50*(Forecast!$W$8/$F$2) -> 71.03205151 | AC50: =F50*(Forecast!$X$8/$F$2) -> 71.41725787 | AD50: =F50*(Forecast!$Y$8/$F$2) -> 71.87950549 | AE50: =F50*(Forecast!$Z$8/$F$2) -> 72.26471184 | AF50: =F50*(Forecast!$AA$8/$F$2) -> 72.6499182 | AG50: =F50*(Forecast!$AB$8/$F$2) -> 73.03512455
A51: 2017-01-02T23:00:00 | B51: 24.46164513 | C51: 13.56118679 | D51: 13.38448906 | E51: 0 | F51: 51.40732098 | H51: =F51*(Forecast!$C$8/$F$2) -> 62.36131373 | I51: =F51*(Forecast!$D$8/$F$2) -> 63.58258793 | J51: =F51*(Forecast!$E$8/$F$2) -> 63.7352472 | K51: =F51*(Forecast!$F$8/$F$2) -> 63.96423612 | L51: =F51*(Forecast!$G$8/$F$2) -> 64.11689539 | M51: =F51*(Forecast!$H$8/$F$2) -> 64.3458843 | N51: =F51*(Forecast!$I$8/$F$2) -> 64.80386213 | O51: =F51*(Forecast!$J$8/$F$2) -> 65.18551031 | P51: =F51*(Forecast!$K$8/$F$2) -> 65.5671585 | Q51: =F51*(Forecast!$L$8/$F$2) -> 65.94880669 | R51: =F51*(Forecast!$M$8/$F$2) -> 66.33045487 | S51: =F51*(Forecast!$N$8/$F$2) -> 66.7884327 | T51: =F51*(Forecast!$O$8/$F$2) -> 67.17008089 | U51: =F51*(Forecast!$P$8/$F$2) -> 67.55172907 | V51: =F51*(Forecast!$Q$8/$F$2) -> 67.93337726 | W51: =F51*(Forecast!$R$8/$F$2) -> 68.39135508 | X51: =F51*(Forecast!$S$8/$F$2) -> 68.77300327 | Y51: =F51*(Forecast!$T$8/$F$2) -> 69.15465146 | Z51: =F51*(Forecast!$U$8/$F$2) -> 69.53629964 | AA51: =F51*(Forecast!$V$8/$F$2) -> 69.99427747 | AB51: =F51*(Forecast!$W$8/$F$2) -> 70.37592565 | AC51: =F51*(Forecast!$X$8/$F$2) -> 70.75757384 | AD51: =F51*(Forecast!$Y$8/$F$2) -> 71.21555167 | AE51: =F51*(Forecast!$Z$8/$F$2) -> 71.59719985 | AF51: =F51*(Forecast!$AA$8/$F$2) -> 71.97884804 | AG51: =F51*(Forecast!$AB$8/$F$2) -> 72.36049623
A52: 2017-01-03 | B52: 23.50285721 | C52: 13.42015266 | D52: 12.8799572 | E52: 0 | F52: 49.80296707 | H52: =F52*(Forecast!$C$8/$F$2) -> 60.41510033 | I52: =F52*(Forecast!$D$8/$F$2) -> 61.59826019 | J52: =F52*(Forecast!$E$8/$F$2) -> 61.74615517 | K52: =F52*(Forecast!$F$8/$F$2) -> 61.96799764 | L52: =F52*(Forecast!$G$8/$F$2) -> 62.11589262 | M52: =F52*(Forecast!$H$8/$F$2) -> 62.3377351 | N52: =F52*(Forecast!$I$8/$F$2) -> 62.78142005 | O52: =F52*(Forecast!$J$8/$F$2) -> 63.1511575 | P52: =F52*(Forecast!$K$8/$F$2) -> 63.52089496 | Q52: =F52*(Forecast!$L$8/$F$2) -> 63.89063241 | R52: =F52*(Forecast!$M$8/$F$2) -> 64.26036987 | S52: =F52*(Forecast!$N$8/$F$2) -> 64.70405482 | T52: =F52*(Forecast!$O$8/$F$2) -> 65.07379227 | U52: =F52*(Forecast!$P$8/$F$2) -> 65.44352973 | V52: =F52*(Forecast!$Q$8/$F$2) -> 65.81326719 | W52: =F52*(Forecast!$R$8/$F$2) -> 66.25695213 | X52: =F52*(Forecast!$S$8/$F$2) -> 66.62668959 | Y52: =F52*(Forecast!$T$8/$F$2) -> 66.99642704 | Z52: =F52*(Forecast!$U$8/$F$2) -> 67.3661645 | AA52: =F52*(Forecast!$V$8/$F$2) -> 67.80984945 | AB52: =F52*(Forecast!$W$8/$F$2) -> 68.1795869 | AC52: =F52*(Forecast!$X$8/$F$2) -> 68.54932436 | AD52: =F52*(Forecast!$Y$8/$F$2) -> 68.99300931 | AE52: =F52*(Forecast!$Z$8/$F$2) -> 69.36274676 | AF52: =F52*(Forecast!$AA$8/$F$2) -> 69.73248422 | AG52: =F52*(Forecast!$AB$8/$F$2) -> 70.10222168
A53: 2017-01-03T01:00:00 | B53: 23.18184662 | C53: 13.2853775 | D53: 12.90496922 | E53: 0 | F53: 49.37219334 | H53: =F53*(Forecast!$C$8/$F$2) -> 59.89253631 | I53: =F53*(Forecast!$D$8/$F$2) -> 61.06546236 | J53: =F53*(Forecast!$E$8/$F$2) -> 61.21207812 | K53: =F53*(Forecast!$F$8/$F$2) -> 61.43200175 | L53: =F53*(Forecast!$G$8/$F$2) -> 61.57861751 | M53: =F53*(Forecast!$H$8/$F$2) -> 61.79854114 | N53: =F53*(Forecast!$I$8/$F$2) -> 62.23838841 | O53: =F53*(Forecast!$J$8/$F$2) -> 62.6049278 | P53: =F53*(Forecast!$K$8/$F$2) -> 62.97146719 | Q53: =F53*(Forecast!$L$8/$F$2) -> 63.33800658 | R53: =F53*(Forecast!$M$8/$F$2) -> 63.70454597 | S53: =F53*(Forecast!$N$8/$F$2) -> 64.14439323 | T53: =F53*(Forecast!$O$8/$F$2) -> 64.51093262 | U53: =F53*(Forecast!$P$8/$F$2) -> 64.87747201 | V53: =F53*(Forecast!$Q$8/$F$2) -> 65.2440114 | W53: =F53*(Forecast!$R$8/$F$2) -> 65.68385867 | X53: =F53*(Forecast!$S$8/$F$2) -> 66.05039806 | Y53: =F53*(Forecast!$T$8/$F$2) -> 66.41693745 | Z53: =F53*(Forecast!$U$8/$F$2) -> 66.78347684 | AA53: =F53*(Forecast!$V$8/$F$2) -> 67.22332411 | AB53: =F53*(Forecast!$W$8/$F$2) -> 67.5898635 | AC53: =F53*(Forecast!$X$8/$F$2) -> 67.95640289 | AD53: =F53*(Forecast!$Y$8/$F$2) -> 68.39625016 | AE53: =F53*(Forecast!$Z$8/$F$2) -> 68.76278955 | AF53: =F53*(Forecast!$AA$8/$F$2) -> 69.12932894 | AG53: =F53*(Forecast!$AB$8/$F$2) -> 69.49586833
A54: 2017-01-03T02:00:00 | B54: 23.14931297 | C54: 13.15060234 | D54: 12.92998028 | E54: 0 | F54: 49.22989559 | H54: =F54*(Forecast!$C$8/$F$2) -> 59.71991743 | I54: =F54*(Forecast!$D$8/$F$2) -> 60.88946294 | J54: =F54*(Forecast!$E$8/$F$2) -> 61.03565612 | K54: =F54*(Forecast!$F$8/$F$2) -> 61.25494591 | L54: =F54*(Forecast!$G$8/$F$2) -> 61.40113909 | M54: =F54*(Forecast!$H$8/$F$2) -> 61.62042888 | N54: =F54*(Forecast!$I$8/$F$2) -> 62.05900844 | O54: =F54*(Forecast!$J$8/$F$2) -> 62.42449141 | P54: =F54*(Forecast!$K$8/$F$2) -> 62.78997438 | Q54: =F54*(Forecast!$L$8/$F$2) -> 63.15545735 | R54: =F54*(Forecast!$M$8/$F$2) -> 63.52094033 | S54: =F54*(Forecast!$N$8/$F$2) -> 63.95951989 | T54: =F54*(Forecast!$O$8/$F$2) -> 64.32500286 | U54: =F54*(Forecast!$P$8/$F$2) -> 64.69048583 | V54: =F54*(Forecast!$Q$8/$F$2) -> 65.0559688 | W54: =F54*(Forecast!$R$8/$F$2) -> 65.49454837 | X54: =F54*(Forecast!$S$8/$F$2) -> 65.86003134 | Y54: =F54*(Forecast!$T$8/$F$2) -> 66.22551431 | Z54: =F54*(Forecast!$U$8/$F$2) -> 66.59099728 | AA54: =F54*(Forecast!$V$8/$F$2) -> 67.02957684 | AB54: =F54*(Forecast!$W$8/$F$2) -> 67.39505982 | AC54: =F54*(Forecast!$X$8/$F$2) -> 67.76054279 | AD54: =F54*(Forecast!$Y$8/$F$2) -> 68.19912235 | AE54: =F54*(Forecast!$Z$8/$F$2) -> 68.56460532 | AF54: =F54*(Forecast!$AA$8/$F$2) -> 68.93008829 | AG54: =F54*(Forecast!$AB$8/$F$2) -> 69.29557126
A55: 2017-01-03T03:00:00 | B55: 23.13803673 | C55: 13.14281559 | D55: 12.95499229 | E55: 0 | F55: 49.23584461 | H55: =F55*(Forecast!$C$8/$F$2) -> 59.72713408 | I55: =F55*(Forecast!$D$8/$F$2) -> 60.89682092 | J55: =F55*(Forecast!$E$8/$F$2) -> 61.04303177 | K55: =F55*(Forecast!$F$8/$F$2) -> 61.26234805 | L55: =F55*(Forecast!$G$8/$F$2) -> 61.40855891 | M55: =F55*(Forecast!$H$8/$F$2) -> 61.62787519 | N55: =F55*(Forecast!$I$8/$F$2) -> 62.06650775 | O55: =F55*(Forecast!$J$8/$F$2) -> 62.43203489 | P55: =F55*(Forecast!$K$8/$F$2) -> 62.79756203 | Q55: =F55*(Forecast!$L$8/$F$2) -> 63.16308916 | R55: =F55*(Forecast!$M$8/$F$2) -> 63.5286163 | S55: =F55*(Forecast!$N$8/$F$2) -> 63.96724886 | T55: =F55*(Forecast!$O$8/$F$2) -> 64.332776 | U55: =F55*(Forecast!$P$8/$F$2) -> 64.69830314 | V55: =F55*(Forecast!$Q$8/$F$2) -> 65.06383027 | W55: =F55*(Forecast!$R$8/$F$2) -> 65.50246284 | X55: =F55*(Forecast!$S$8/$F$2) -> 65.86798997 | Y55: =F55*(Forecast!$T$8/$F$2) -> 66.23351711 | Z55: =F55*(Forecast!$U$8/$F$2) -> 66.59904424 | AA55: =F55*(Forecast!$V$8/$F$2) -> 67.03767681 | AB55: =F55*(Forecast!$W$8/$F$2) -> 67.40320394 | AC55: =F55*(Forecast!$X$8/$F$2) -> 67.76873108 | AD55: =F55*(Forecast!$Y$8/$F$2) -> 68.20736364 | AE55: =F55*(Forecast!$Z$8/$F$2) -> 68.57289078 | AF55: =F55*(Forecast!$AA$8/$F$2) -> 68.93841792 | AG55: =F55*(Forecast!$AB$8/$F$2) -> 69.30394505
A56: 2017-01-03T04:00:00 | B56: 23.22562981 | C56: 13.20981503 | D56: 13.08456707 | E56: 0 | F56: 49.5200119 | H56: =F56*(Forecast!$C$8/$F$2) -> 60.0718524 | I56: =F56*(Forecast!$D$8/$F$2) -> 61.24829015 | J56: =F56*(Forecast!$E$8/$F$2) -> 61.39534487 | K56: =F56*(Forecast!$F$8/$F$2) -> 61.61592695 | L56: =F56*(Forecast!$G$8/$F$2) -> 61.76298166 | M56: =F56*(Forecast!$H$8/$F$2) -> 61.98356374 | N56: =F56*(Forecast!$I$8/$F$2) -> 62.4247279 | O56: =F56*(Forecast!$J$8/$F$2) -> 62.79236469 | P56: =F56*(Forecast!$K$8/$F$2) -> 63.16000149 | Q56: =F56*(Forecast!$L$8/$F$2) -> 63.52763828 | R56: =F56*(Forecast!$M$8/$F$2) -> 63.89527508 | S56: =F56*(Forecast!$N$8/$F$2) -> 64.33643923 | T56: =F56*(Forecast!$O$8/$F$2) -> 64.70407603 | U56: =F56*(Forecast!$P$8/$F$2) -> 65.07171282 | V56: =F56*(Forecast!$Q$8/$F$2) -> 65.43934962 | W56: =F56*(Forecast!$R$8/$F$2) -> 65.88051377 | X56: =F56*(Forecast!$S$8/$F$2) -> 66.24815057 | Y56: =F56*(Forecast!$T$8/$F$2) -> 66.61578737 | Z56: =F56*(Forecast!$U$8/$F$2) -> 66.98342416 | AA56: =F56*(Forecast!$V$8/$F$2) -> 67.42458832 | AB56: =F56*(Forecast!$W$8/$F$2) -> 67.79222511 | AC56: =F56*(Forecast!$X$8/$F$2) -> 68.15986191 | AD56: =F56*(Forecast!$Y$8/$F$2) -> 68.60102606 | AE56: =F56*(Forecast!$Z$8/$F$2) -> 68.96866286 | AF56: =F56*(Forecast!$AA$8/$F$2) -> 69.33629965 | AG56: =F56*(Forecast!$AB$8/$F$2) -> 69.70393645
A57: 2017-01-03T05:00:00 | B57: 23.48687935 | C57: 13.36828899 | D57: 13.2617321 | E57: 0 | F57: 50.11690044 | H57: =F57*(Forecast!$C$8/$F$2) -> 60.79592736 | I57: =F57*(Forecast!$D$8/$F$2) -> 61.98654528 | J57: =F57*(Forecast!$E$8/$F$2) -> 62.13537252 | K57: =F57*(Forecast!$F$8/$F$2) -> 62.35861337 | L57: =F57*(Forecast!$G$8/$F$2) -> 62.50744061 | M57: =F57*(Forecast!$H$8/$F$2) -> 62.73068147 | N57: =F57*(Forecast!$I$8/$F$2) -> 63.17716319 | O57: =F57*(Forecast!$J$8/$F$2) -> 63.54923129 | P57: =F57*(Forecast!$K$8/$F$2) -> 63.92129939 | Q57: =F57*(Forecast!$L$8/$F$2) -> 64.29336749 | R57: =F57*(Forecast!$M$8/$F$2) -> 64.66543559 | S57: =F57*(Forecast!$N$8/$F$2) -> 65.11191731 | T57: =F57*(Forecast!$O$8/$F$2) -> 65.48398541 | U57: =F57*(Forecast!$P$8/$F$2) -> 65.8560535 | V57: =F57*(Forecast!$Q$8/$F$2) -> 66.2281216 | W57: =F57*(Forecast!$R$8/$F$2) -> 66.67460332 | X57: =F57*(Forecast!$S$8/$F$2) -> 67.04667142 | Y57: =F57*(Forecast!$T$8/$F$2) -> 67.41873952 | Z57: =F57*(Forecast!$U$8/$F$2) -> 67.79080762 | AA57: =F57*(Forecast!$V$8/$F$2) -> 68.23728934 | AB57: =F57*(Forecast!$W$8/$F$2) -> 68.60935744 | AC57: =F57*(Forecast!$X$8/$F$2) -> 68.98142554 | AD57: =F57*(Forecast!$Y$8/$F$2) -> 69.42790725 | AE57: =F57*(Forecast!$Z$8/$F$2) -> 69.79997535 | AF57: =F57*(Forecast!$AA$8/$F$2) -> 70.17204345 | AG57: =F57*(Forecast!$AB$8/$F$2) -> 70.54411155
A58: 2017-01-03T06:00:00 | B58: 23.96103859 | C58: 13.52931309 | D58: 13.48090935 | E58: 0 | F58: 50.97126102 | H58: =F58*(Forecast!$C$8/$F$2) -> 61.8323371 | I58: =F58*(Forecast!$D$8/$F$2) -> 63.0432519 | J58: =F58*(Forecast!$E$8/$F$2) -> 63.19461625 | K58: =F58*(Forecast!$F$8/$F$2) -> 63.42166278 | L58: =F58*(Forecast!$G$8/$F$2) -> 63.57302713 | M58: =F58*(Forecast!$H$8/$F$2) -> 63.80007365 | N58: =F58*(Forecast!$I$8/$F$2) -> 64.25416671 | O58: =F58*(Forecast!$J$8/$F$2) -> 64.63257758 | P58: =F58*(Forecast!$K$8/$F$2) -> 65.01098846 | Q58: =F58*(Forecast!$L$8/$F$2) -> 65.38939933 | R58: =F58*(Forecast!$M$8/$F$2) -> 65.76781021 | S58: =F58*(Forecast!$N$8/$F$2) -> 66.22190326 | T58: =F58*(Forecast!$O$8/$F$2) -> 66.60031413 | U58: =F58*(Forecast!$P$8/$F$2) -> 66.97872501 | V58: =F58*(Forecast!$Q$8/$F$2) -> 67.35713589 | W58: =F58*(Forecast!$R$8/$F$2) -> 67.81122894 | X58: =F58*(Forecast!$S$8/$F$2) -> 68.18963981 | Y58: =F58*(Forecast!$T$8/$F$2) -> 68.56805069 | Z58: =F58*(Forecast!$U$8/$F$2) -> 68.94646156 | AA58: =F58*(Forecast!$V$8/$F$2) -> 69.40055462 | AB58: =F58*(Forecast!$W$8/$F$2) -> 69.77896549 | AC58: =F58*(Forecast!$X$8/$F$2) -> 70.15737637 | AD58: =F58*(Forecast!$Y$8/$F$2) -> 70.61146942 | AE58: =F58*(Forecast!$Z$8/$F$2) -> 70.98988029 | AF58: =F58*(Forecast!$AA$8/$F$2) -> 71.36829117 | AG58: =F58*(Forecast!$AB$8/$F$2) -> 71.74670205
A59: 2017-01-03T07:00:00 | B59: 25.28768921 | C59: 13.97546673 | D59: 14.10260963 | E59: 0 | F59: 53.36576557 | H59: =F59*(Forecast!$C$8/$F$2) -> 64.7370683 | I59: =F59*(Forecast!$D$8/$F$2) -> 66.00486891 | J59: =F59*(Forecast!$E$8/$F$2) -> 66.16334398 | K59: =F59*(Forecast!$F$8/$F$2) -> 66.40105659 | L59: =F59*(Forecast!$G$8/$F$2) -> 66.55953167 | M59: =F59*(Forecast!$H$8/$F$2) -> 66.79724428 | N59: =F59*(Forecast!$I$8/$F$2) -> 67.27266951 | O59: =F59*(Forecast!$J$8/$F$2) -> 67.6688572 | P59: =F59*(Forecast!$K$8/$F$2) -> 68.06504489 | Q59: =F59*(Forecast!$L$8/$F$2) -> 68.46123257 | R59: =F59*(Forecast!$M$8/$F$2) -> 68.85742026 | S59: =F59*(Forecast!$N$8/$F$2) -> 69.33284549 | T59: =F59*(Forecast!$O$8/$F$2) -> 69.72903318 | U59: =F59*(Forecast!$P$8/$F$2) -> 70.12522087 | V59: =F59*(Forecast!$Q$8/$F$2) -> 70.52140856 | W59: =F59*(Forecast!$R$8/$F$2) -> 70.99683378 | X59: =F59*(Forecast!$S$8/$F$2) -> 71.39302147 | Y59: =F59*(Forecast!$T$8/$F$2) -> 71.78920916 | Z59: =F59*(Forecast!$U$8/$F$2) -> 72.18539685 | AA59: =F59*(Forecast!$V$8/$F$2) -> 72.66082207 | AB59: =F59*(Forecast!$W$8/$F$2) -> 73.05700976 | AC59: =F59*(Forecast!$X$8/$F$2) -> 73.45319745 | AD59: =F59*(Forecast!$Y$8/$F$2) -> 73.92862268 | AE59: =F59*(Forecast!$Z$8/$F$2) -> 74.32481036 | AF59: =F59*(Forecast!$AA$8/$F$2) -> 74.72099805 | AG59: =F59*(Forecast!$AB$8/$F$2) -> 75.11718574
A60: 2017-01-03T08:00:00 | B60: 27.30619621 | C60: 14.99068069 | D60: 14.81017017 | E60: 0 | F60: 57.10704708 | H60: =F60*(Forecast!$C$8/$F$2) -> 69.27555087 | I60: =F60*(Forecast!$D$8/$F$2) -> 70.6322324 | J60: =F60*(Forecast!$E$8/$F$2) -> 70.80181759 | K60: =F60*(Forecast!$F$8/$F$2) -> 71.05619538 | L60: =F60*(Forecast!$G$8/$F$2) -> 71.22578057 | M60: =F60*(Forecast!$H$8/$F$2) -> 71.48015836 | N60: =F60*(Forecast!$I$8/$F$2) -> 71.98891394 | O60: =F60*(Forecast!$J$8/$F$2) -> 72.41287692 | P60: =F60*(Forecast!$K$8/$F$2) -> 72.8368399 | Q60: =F60*(Forecast!$L$8/$F$2) -> 73.26080288 | R60: =F60*(Forecast!$M$8/$F$2) -> 73.68476586 | S60: =F60*(Forecast!$N$8/$F$2) -> 74.19352143 | T60: =F60*(Forecast!$O$8/$F$2) -> 74.61748441 | U60: =F60*(Forecast!$P$8/$F$2) -> 75.04144739 | V60: =F60*(Forecast!$Q$8/$F$2) -> 75.46541037 | W60: =F60*(Forecast!$R$8/$F$2) -> 75.97416595 | X60: =F60*(Forecast!$S$8/$F$2) -> 76.39812893 | Y60: =F60*(Forecast!$T$8/$F$2) -> 76.8220919 | Z60: =F60*(Forecast!$U$8/$F$2) -> 77.24605488 | AA60: =F60*(Forecast!$V$8/$F$2) -> 77.75481046 | AB60: =F60*(Forecast!$W$8/$F$2) -> 78.17877344 | AC60: =F60*(Forecast!$X$8/$F$2) -> 78.60273642 | AD60: =F60*(Forecast!$Y$8/$F$2) -> 79.11149199 | AE60: =F60*(Forecast!$Z$8/$F$2) -> 79.53545497 | AF60: =F60*(Forecast!$AA$8/$F$2) -> 79.95941795 | AG60: =F60*(Forecast!$AB$8/$F$2) -> 80.38338093
A61: 2017-01-03T09:00:00 | B61: 27.37561035 | C61: 15.28126431 | D61: 15.09272766 | E61: 0 | F61: 57.74960232 | H61: =F61*(Forecast!$C$8/$F$2) -> 70.05502328 | I61: =F61*(Forecast!$D$8/$F$2) -> 71.42696988 | J61: =F61*(Forecast!$E$8/$F$2) -> 71.59846321 | K61: =F61*(Forecast!$F$8/$F$2) -> 71.8557032 | L61: =F61*(Forecast!$G$8/$F$2) -> 72.02719652 | M61: =F61*(Forecast!$H$8/$F$2) -> 72.28443651 | N61: =F61*(Forecast!$I$8/$F$2) -> 72.79891649 | O61: =F61*(Forecast!$J$8/$F$2) -> 73.2276498 | P61: =F61*(Forecast!$K$8/$F$2) -> 73.65638311 | Q61: =F61*(Forecast!$L$8/$F$2) -> 74.08511642 | R61: =F61*(Forecast!$M$8/$F$2) -> 74.51384974 | S61: =F61*(Forecast!$N$8/$F$2) -> 75.02832971 | T61: =F61*(Forecast!$O$8/$F$2) -> 75.45706302 | U61: =F61*(Forecast!$P$8/$F$2) -> 75.88579634 | V61: =F61*(Forecast!$Q$8/$F$2) -> 76.31452965 | W61: =F61*(Forecast!$R$8/$F$2) -> 76.82900962 | X61: =F61*(Forecast!$S$8/$F$2) -> 77.25774294 | Y61: =F61*(Forecast!$T$8/$F$2) -> 77.68647625 | Z61: =F61*(Forecast!$U$8/$F$2) -> 78.11520956 | AA61: =F61*(Forecast!$V$8/$F$2) -> 78.62968954 | AB61: =F61*(Forecast!$W$8/$F$2) -> 79.05842285 | AC61: =F61*(Forecast!$X$8/$F$2) -> 79.48715616 | AD61: =F61*(Forecast!$Y$8/$F$2) -> 80.00163614 | AE61: =F61*(Forecast!$Z$8/$F$2) -> 80.43036945 | AF61: =F61*(Forecast!$AA$8/$F$2) -> 80.85910276 | AG61: =F61*(Forecast!$AB$8/$F$2) -> 81.28783608
A62: 2017-01-03T10:00:00 | B62: 26.92703629 | C62: 15.05168247 | D62: 14.97326756 | E62: 0 | F62: 56.95198631 | H62: =F62*(Forecast!$C$8/$F$2) -> 69.08744939 | I62: =F62*(Forecast!$D$8/$F$2) -> 70.44044717 | J62: =F62*(Forecast!$E$8/$F$2) -> 70.60957189 | K62: =F62*(Forecast!$F$8/$F$2) -> 70.86325898 | L62: =F62*(Forecast!$G$8/$F$2) -> 71.0323837 | M62: =F62*(Forecast!$H$8/$F$2) -> 71.28607079 | N62: =F62*(Forecast!$I$8/$F$2) -> 71.79344496 | O62: =F62*(Forecast!$J$8/$F$2) -> 72.21625676 | P62: =F62*(Forecast!$K$8/$F$2) -> 72.63906857 | Q62: =F62*(Forecast!$L$8/$F$2) -> 73.06188038 | R62: =F62*(Forecast!$M$8/$F$2) -> 73.48469219 | S62: =F62*(Forecast!$N$8/$F$2) -> 73.99206636 | T62: =F62*(Forecast!$O$8/$F$2) -> 74.41487816 | U62: =F62*(Forecast!$P$8/$F$2) -> 74.83768997 | V62: =F62*(Forecast!$Q$8/$F$2) -> 75.26050178 | W62: =F62*(Forecast!$R$8/$F$2) -> 75.76787595 | X62: =F62*(Forecast!$S$8/$F$2) -> 76.19068776 | Y62: =F62*(Forecast!$T$8/$F$2) -> 76.61349956 | Z62: =F62*(Forecast!$U$8/$F$2) -> 77.03631137 | AA62: =F62*(Forecast!$V$8/$F$2) -> 77.54368554 | AB62: =F62*(Forecast!$W$8/$F$2) -> 77.96649735 | AC62: =F62*(Forecast!$X$8/$F$2) -> 78.38930916 | AD62: =F62*(Forecast!$Y$8/$F$2) -> 78.89668333 | AE62: =F62*(Forecast!$Z$8/$F$2) -> 79.31949513 | AF62: =F62*(Forecast!$AA$8/$F$2) -> 79.74230694 | AG62: =F62*(Forecast!$AB$8/$F$2) -> 80.16511875
A63: 2017-01-03T11:00:00 | B63: 26.21761322 | C63: 14.49799347 | D63: 14.51048279 | E63: 0 | F63: 55.22608948 | H63: =F63*(Forecast!$C$8/$F$2) -> 66.9937944 | I63: =F63*(Forecast!$D$8/$F$2) -> 68.30579037 | J63: =F63*(Forecast!$E$8/$F$2) -> 68.46978987 | K63: =F63*(Forecast!$F$8/$F$2) -> 68.71578911 | L63: =F63*(Forecast!$G$8/$F$2) -> 68.87978861 | M63: =F63*(Forecast!$H$8/$F$2) -> 69.12578786 | N63: =F63*(Forecast!$I$8/$F$2) -> 69.61778635 | O63: =F63*(Forecast!$J$8/$F$2) -> 70.02778509 | P63: =F63*(Forecast!$K$8/$F$2) -> 70.43778383 | Q63: =F63*(Forecast!$L$8/$F$2) -> 70.84778257 | R63: =F63*(Forecast!$M$8/$F$2) -> 71.25778131 | S63: =F63*(Forecast!$N$8/$F$2) -> 71.7497798 | T63: =F63*(Forecast!$O$8/$F$2) -> 72.15977854 | U63: =F63*(Forecast!$P$8/$F$2) -> 72.56977729 | V63: =F63*(Forecast!$Q$8/$F$2) -> 72.97977603 | W63: =F63*(Forecast!$R$8/$F$2) -> 73.47177452 | X63: =F63*(Forecast!$S$8/$F$2) -> 73.88177326 | Y63: =F63*(Forecast!$T$8/$F$2) -> 74.291772 | Z63: =F63*(Forecast!$U$8/$F$2) -> 74.70177074 | AA63: =F63*(Forecast!$V$8/$F$2) -> 75.19376923 | AB63: =F63*(Forecast!$W$8/$F$2) -> 75.60376797 | AC63: =F63*(Forecast!$X$8/$F$2) -> 76.01376672 | AD63: =F63*(Forecast!$Y$8/$F$2) -> 76.50576521 | AE63: =F63*(Forecast!$Z$8/$F$2) -> 76.91576395 | AF63: =F63*(Forecast!$AA$8/$F$2) -> 77.32576269 | AG63: =F63*(Forecast!$AB$8/$F$2) -> 77.73576143
A64: 2017-01-03T12:00:00 | B64: 25.21515465 | C64: 14.04225063 | D64: 13.93152142 | E64: 0 | F64: 53.1889267 | H64: =F64*(Forecast!$C$8/$F$2) -> 64.52254819 | I64: =F64*(Forecast!$D$8/$F$2) -> 65.78614766 | J64: =F64*(Forecast!$E$8/$F$2) -> 65.94409759 | K64: =F64*(Forecast!$F$8/$F$2) -> 66.1810225 | L64: =F64*(Forecast!$G$8/$F$2) -> 66.33897243 | M64: =F64*(Forecast!$H$8/$F$2) -> 66.57589733 | N64: =F64*(Forecast!$I$8/$F$2) -> 67.04974713 | O64: =F64*(Forecast!$J$8/$F$2) -> 67.44462197 | P64: =F64*(Forecast!$K$8/$F$2) -> 67.83949681 | Q64: =F64*(Forecast!$L$8/$F$2) -> 68.23437164 | R64: =F64*(Forecast!$M$8/$F$2) -> 68.62924648 | S64: =F64*(Forecast!$N$8/$F$2) -> 69.10309628 | T64: =F64*(Forecast!$O$8/$F$2) -> 69.49797112 | U64: =F64*(Forecast!$P$8/$F$2) -> 69.89284595 | V64: =F64*(Forecast!$Q$8/$F$2) -> 70.28772079 | W64: =F64*(Forecast!$R$8/$F$2) -> 70.76157059 | X64: =F64*(Forecast!$S$8/$F$2) -> 71.15644543 | Y64: =F64*(Forecast!$T$8/$F$2) -> 71.55132026 | Z64: =F64*(Forecast!$U$8/$F$2) -> 71.9461951 | AA64: =F64*(Forecast!$V$8/$F$2) -> 72.4200449 | AB64: =F64*(Forecast!$W$8/$F$2) -> 72.81491974 | AC64: =F64*(Forecast!$X$8/$F$2) -> 73.20979457 | AD64: =F64*(Forecast!$Y$8/$F$2) -> 73.68364438 | AE64: =F64*(Forecast!$Z$8/$F$2) -> 74.07851921 | AF64: =F64*(Forecast!$AA$8/$F$2) -> 74.47339405 | AG64: =F64*(Forecast!$AB$8/$F$2) -> 74.86826889
A65: 2017-01-03T13:00:00 | B65: 24.63158035 | C65: 13.76830292 | D65: 13.76265049 | E65: 0 | F65: 52.16253376 | H65: =F65*(Forecast!$C$8/$F$2) -> 63.27744903 | I65: =F65*(Forecast!$D$8/$F$2) -> 64.51666468 | J65: =F65*(Forecast!$E$8/$F$2) -> 64.67156663 | K65: =F65*(Forecast!$F$8/$F$2) -> 64.90391957 | L65: =F65*(Forecast!$G$8/$F$2) -> 65.05882152 | M65: =F65*(Forecast!$H$8/$F$2) -> 65.29117446 | N65: =F65*(Forecast!$I$8/$F$2) -> 65.75588033 | O65: =F65*(Forecast!$J$8/$F$2) -> 66.14313522 | P65: =F65*(Forecast!$K$8/$F$2) -> 66.53039011 | Q65: =F65*(Forecast!$L$8/$F$2) -> 66.917645 | R65: =F65*(Forecast!$M$8/$F$2) -> 67.30489989 | S65: =F65*(Forecast!$N$8/$F$2) -> 67.76960575 | T65: =F65*(Forecast!$O$8/$F$2) -> 68.15686064 | U65: =F65*(Forecast!$P$8/$F$2) -> 68.54411553 | V65: =F65*(Forecast!$Q$8/$F$2) -> 68.93137042 | W65: =F65*(Forecast!$R$8/$F$2) -> 69.39607629 | X65: =F65*(Forecast!$S$8/$F$2) -> 69.78333118 | Y65: =F65*(Forecast!$T$8/$F$2) -> 70.17058607 | Z65: =F65*(Forecast!$U$8/$F$2) -> 70.55784096 | AA65: =F65*(Forecast!$V$8/$F$2) -> 71.02254683 | AB65: =F65*(Forecast!$W$8/$F$2) -> 71.40980172 | AC65: =F65*(Forecast!$X$8/$F$2) -> 71.79705661 | AD65: =F65*(Forecast!$Y$8/$F$2) -> 72.26176248 | AE65: =F65*(Forecast!$Z$8/$F$2) -> 72.64901737 | AF65: =F65*(Forecast!$AA$8/$F$2) -> 73.03627226 | AG65: =F65*(Forecast!$AB$8/$F$2) -> 73.42352715
A66: 2017-01-03T14:00:00 | B66: 24.48563004 | C66: 13.53174877 | D66: 13.63266087 | E66: 0 | F66: 51.65003967 | H66: =F66*(Forecast!$C$8/$F$2) -> 62.6557515 | I66: =F66*(Forecast!$D$8/$F$2) -> 63.88279192 | J66: =F66*(Forecast!$E$8/$F$2) -> 64.03617197 | K66: =F66*(Forecast!$F$8/$F$2) -> 64.26624205 | L66: =F66*(Forecast!$G$8/$F$2) -> 64.4196221 | M66: =F66*(Forecast!$H$8/$F$2) -> 64.64969218 | N66: =F66*(Forecast!$I$8/$F$2) -> 65.10983234 | O66: =F66*(Forecast!$J$8/$F$2) -> 65.49328247 | P66: =F66*(Forecast!$K$8/$F$2) -> 65.8767326 | Q66: =F66*(Forecast!$L$8/$F$2) -> 66.26018273 | R66: =F66*(Forecast!$M$8/$F$2) -> 66.64363287 | S66: =F66*(Forecast!$N$8/$F$2) -> 67.10377302 | T66: =F66*(Forecast!$O$8/$F$2) -> 67.48722316 | U66: =F66*(Forecast!$P$8/$F$2) -> 67.87067329 | V66: =F66*(Forecast!$Q$8/$F$2) -> 68.25412342 | W66: =F66*(Forecast!$R$8/$F$2) -> 68.71426358 | X66: =F66*(Forecast!$S$8/$F$2) -> 69.09771371 | Y66: =F66*(Forecast!$T$8/$F$2) -> 69.48116384 | Z66: =F66*(Forecast!$U$8/$F$2) -> 69.86461397 | AA66: =F66*(Forecast!$V$8/$F$2) -> 70.32475413 | AB66: =F66*(Forecast!$W$8/$F$2) -> 70.70820426 | AC66: =F66*(Forecast!$X$8/$F$2) -> 71.09165439 | AD66: =F66*(Forecast!$Y$8/$F$2) -> 71.55179455 | AE66: =F66*(Forecast!$Z$8/$F$2) -> 71.93524468 | AF66: =F66*(Forecast!$AA$8/$F$2) -> 72.31869481 | AG66: =F66*(Forecast!$AB$8/$F$2) -> 72.70214494
A67: 2017-01-03T15:00:00 | B67: 24.1830349 | C67: 13.71440601 | D67: 13.50346184 | E67: 0 | F67: 51.40090275 | H67: =F67*(Forecast!$C$8/$F$2) -> 62.35352789 | I67: =F67*(Forecast!$D$8/$F$2) -> 63.57464961 | J67: =F67*(Forecast!$E$8/$F$2) -> 63.72728983 | K67: =F67*(Forecast!$F$8/$F$2) -> 63.95625015 | L67: =F67*(Forecast!$G$8/$F$2) -> 64.10889037 | M67: =F67*(Forecast!$H$8/$F$2) -> 64.33785069 | N67: =F67*(Forecast!$I$8/$F$2) -> 64.79577133 | O67: =F67*(Forecast!$J$8/$F$2) -> 65.17737187 | P67: =F67*(Forecast!$K$8/$F$2) -> 65.55897241 | Q67: =F67*(Forecast!$L$8/$F$2) -> 65.94057295 | R67: =F67*(Forecast!$M$8/$F$2) -> 66.32217349 | S67: =F67*(Forecast!$N$8/$F$2) -> 66.78009413 | T67: =F67*(Forecast!$O$8/$F$2) -> 67.16169467 | U67: =F67*(Forecast!$P$8/$F$2) -> 67.54329521 | V67: =F67*(Forecast!$Q$8/$F$2) -> 67.92489575 | W67: =F67*(Forecast!$R$8/$F$2) -> 68.38281639 | X67: =F67*(Forecast!$S$8/$F$2) -> 68.76441693 | Y67: =F67*(Forecast!$T$8/$F$2) -> 69.14601747 | Z67: =F67*(Forecast!$U$8/$F$2) -> 69.527618 | AA67: =F67*(Forecast!$V$8/$F$2) -> 69.98553865 | AB67: =F67*(Forecast!$W$8/$F$2) -> 70.36713919 | AC67: =F67*(Forecast!$X$8/$F$2) -> 70.74873973 | AD67: =F67*(Forecast!$Y$8/$F$2) -> 71.20666037 | AE67: =F67*(Forecast!$Z$8/$F$2) -> 71.58826091 | AF67: =F67*(Forecast!$AA$8/$F$2) -> 71.96986145 | AG67: =F67*(Forecast!$AB$8/$F$2) -> 72.35146198
A68: 2017-01-03T16:00:00 | B68: 25.45364189 | C68: 14.32095814 | D68: 14.10490036 | E68: 0 | F68: 53.87950039 | H68: =F68*(Forecast!$C$8/$F$2) -> 65.36027094 | I68: =F68*(Forecast!$D$8/$F$2) -> 66.64027625 | J68: =F68*(Forecast!$E$8/$F$2) -> 66.80027691 | K68: =F68*(Forecast!$F$8/$F$2) -> 67.04027791 | L68: =F68*(Forecast!$G$8/$F$2) -> 67.20027857 | M68: =F68*(Forecast!$H$8/$F$2) -> 67.44027956 | N68: =F68*(Forecast!$I$8/$F$2) -> 67.92028155 | O68: =F68*(Forecast!$J$8/$F$2) -> 68.32028321 | P68: =F68*(Forecast!$K$8/$F$2) -> 68.72028487 | Q68: =F68*(Forecast!$L$8/$F$2) -> 69.12028653 | R68: =F68*(Forecast!$M$8/$F$2) -> 69.52028819 | S68: =F68*(Forecast!$N$8/$F$2) -> 70.00029018 | T68: =F68*(Forecast!$O$8/$F$2) -> 70.40029184 | U68: =F68*(Forecast!$P$8/$F$2) -> 70.80029349 | V68: =F68*(Forecast!$Q$8/$F$2) -> 71.20029515 | W68: =F68*(Forecast!$R$8/$F$2) -> 71.68029714 | X68: =F68*(Forecast!$S$8/$F$2) -> 72.0802988 | Y68: =F68*(Forecast!$T$8/$F$2) -> 72.48030046 | Z68: =F68*(Forecast!$U$8/$F$2) -> 72.88030212 | AA68: =F68*(Forecast!$V$8/$F$2) -> 73.36030411 | AB68: =F68*(Forecast!$W$8/$F$2) -> 73.76030576 | AC68: =F68*(Forecast!$X$8/$F$2) -> 74.16030742 | AD68: =F68*(Forecast!$Y$8/$F$2) -> 74.64030941 | AE68: =F68*(Forecast!$Z$8/$F$2) -> 75.04031107 | AF68: =F68*(Forecast!$AA$8/$F$2) -> 75.44031273 | AG68: =F68*(Forecast!$AB$8/$F$2) -> 75.84031439
A69: 2017-01-03T17:00:00 | B69: 27.02175903 | C69: 15.03207016 | D69: 14.94221878 | E69: 0 | F69: 56.99604797 | H69: =F69*(Forecast!$C$8/$F$2) -> 69.14089981 | I69: =F69*(Forecast!$D$8/$F$2) -> 70.49494436 | J69: =F69*(Forecast!$E$8/$F$2) -> 70.66419993 | K69: =F69*(Forecast!$F$8/$F$2) -> 70.91808328 | L69: =F69*(Forecast!$G$8/$F$2) -> 71.08733885 | M69: =F69*(Forecast!$H$8/$F$2) -> 71.3412222 | N69: =F69*(Forecast!$I$8/$F$2) -> 71.84898891 | O69: =F69*(Forecast!$J$8/$F$2) -> 72.27212783 | P69: =F69*(Forecast!$K$8/$F$2) -> 72.69526675 | Q69: =F69*(Forecast!$L$8/$F$2) -> 73.11840567 | R69: =F69*(Forecast!$M$8/$F$2) -> 73.5415446 | S69: =F69*(Forecast!$N$8/$F$2) -> 74.0493113 | T69: =F69*(Forecast!$O$8/$F$2) -> 74.47245022 | U69: =F69*(Forecast!$P$8/$F$2) -> 74.89558915 | V69: =F69*(Forecast!$Q$8/$F$2) -> 75.31872807 | W69: =F69*(Forecast!$R$8/$F$2) -> 75.82649477 | X69: =F69*(Forecast!$S$8/$F$2) -> 76.24963369 | Y69: =F69*(Forecast!$T$8/$F$2) -> 76.67277262 | Z69: =F69*(Forecast!$U$8/$F$2) -> 77.09591154 | AA69: =F69*(Forecast!$V$8/$F$2) -> 77.60367824 | AB69: =F69*(Forecast!$W$8/$F$2) -> 78.02681717 | AC69: =F69*(Forecast!$X$8/$F$2) -> 78.44995609 | AD69: =F69*(Forecast!$Y$8/$F$2) -> 78.95772279 | AE69: =F69*(Forecast!$Z$8/$F$2) -> 79.38086172 | AF69: =F69*(Forecast!$AA$8/$F$2) -> 79.80400064 | AG69: =F69*(Forecast!$AB$8/$F$2) -> 80.22713956
A70: 2017-01-03T18:00:00 | B70: 26.97820663 | C70: 14.99857235 | D70: 14.90869808 | E70: 0 | F70: =SUM(B70:E70) -> 56.88547707 | H70: =F70*(Forecast!$C$8/$F$2) -> 69.00676819 | I70: =F70*(Forecast!$D$8/$F$2) -> 70.35818593 | J70: =F70*(Forecast!$E$8/$F$2) -> 70.52711315 | K70: =F70*(Forecast!$F$8/$F$2) -> 70.78050397 | L70: =F70*(Forecast!$G$8/$F$2) -> 70.94943119 | M70: =F70*(Forecast!$H$8/$F$2) -> 71.20282202 | N70: =F70*(Forecast!$I$8/$F$2) -> 71.70960367 | O70: =F70*(Forecast!$J$8/$F$2) -> 72.13192171 | P70: =F70*(Forecast!$K$8/$F$2) -> 72.55423975 | Q70: =F70*(Forecast!$L$8/$F$2) -> 72.9765578 | R70: =F70*(Forecast!$M$8/$F$2) -> 73.39887584 | S70: =F70*(Forecast!$N$8/$F$2) -> 73.90565749 | T70: =F70*(Forecast!$O$8/$F$2) -> 74.32797553 | U70: =F70*(Forecast!$P$8/$F$2) -> 74.75029358 | V70: =F70*(Forecast!$Q$8/$F$2) -> 75.17261162 | W70: =F70*(Forecast!$R$8/$F$2) -> 75.67939327 | X70: =F70*(Forecast!$S$8/$F$2) -> 76.10171131 | Y70: =F70*(Forecast!$T$8/$F$2) -> 76.52402936 | Z70: =F70*(Forecast!$U$8/$F$2) -> 76.9463474 | AA70: =F70*(Forecast!$V$8/$F$2) -> 77.45312905 | AB70: =F70*(Forecast!$W$8/$F$2) -> 77.87544709 | AC70: =F70*(Forecast!$X$8/$F$2) -> 78.29776514 | AD70: =F70*(Forecast!$Y$8/$F$2) -> 78.80454679 | AE70: =F70*(Forecast!$Z$8/$F$2) -> 79.22686483 | AF70: =F70*(Forecast!$AA$8/$F$2) -> 79.64918287 | AG70: =F70*(Forecast!$AB$8/$F$2) -> 80.07150091
A71: 2017-01-03T19:00:00 | B71: 26.79801369 | C71: 14.96507359 | D71: 14.87517643 | E71: 0 | F71: 56.6382637 | H71: =F71*(Forecast!$C$8/$F$2) -> 68.70687803 | I71: =F71*(Forecast!$D$8/$F$2) -> 70.05242276 | J71: =F71*(Forecast!$E$8/$F$2) -> 70.22061585 | K71: =F71*(Forecast!$F$8/$F$2) -> 70.47290549 | L71: =F71*(Forecast!$G$8/$F$2) -> 70.64109858 | M71: =F71*(Forecast!$H$8/$F$2) -> 70.89338822 | N71: =F71*(Forecast!$I$8/$F$2) -> 71.3979675 | O71: =F71*(Forecast!$J$8/$F$2) -> 71.81845022 | P71: =F71*(Forecast!$K$8/$F$2) -> 72.23893295 | Q71: =F71*(Forecast!$L$8/$F$2) -> 72.65941568 | R71: =F71*(Forecast!$M$8/$F$2) -> 73.07989841 | S71: =F71*(Forecast!$N$8/$F$2) -> 73.58447769 | T71: =F71*(Forecast!$O$8/$F$2) -> 74.00496042 | U71: =F71*(Forecast!$P$8/$F$2) -> 74.42544315 | V71: =F71*(Forecast!$Q$8/$F$2) -> 74.84592588 | W71: =F71*(Forecast!$R$8/$F$2) -> 75.35050515 | X71: =F71*(Forecast!$S$8/$F$2) -> 75.77098788 | Y71: =F71*(Forecast!$T$8/$F$2) -> 76.19147061 | Z71: =F71*(Forecast!$U$8/$F$2) -> 76.61195334 | AA71: =F71*(Forecast!$V$8/$F$2) -> 77.11653262 | AB71: =F71*(Forecast!$W$8/$F$2) -> 77.53701535 | AC71: =F71*(Forecast!$X$8/$F$2) -> 77.95749808 | AD71: =F71*(Forecast!$Y$8/$F$2) -> 78.46207735 | AE71: =F71*(Forecast!$Z$8/$F$2) -> 78.88256008 | AF71: =F71*(Forecast!$AA$8/$F$2) -> 79.30304281 | AG71: =F71*(Forecast!$AB$8/$F$2) -> 79.72352554
A72: 2017-01-03T20:00:00 | B72: 27.00563049 | C72: 14.93157482 | D72: 14.84165573 | E72: 0 | F72: 56.77886105 | H72: =F72*(Forecast!$C$8/$F$2) -> 68.87743418 | I72: =F72*(Forecast!$D$8/$F$2) -> 70.22631906 | J72: =F72*(Forecast!$E$8/$F$2) -> 70.39492967 | K72: =F72*(Forecast!$F$8/$F$2) -> 70.64784559 | L72: =F72*(Forecast!$G$8/$F$2) -> 70.8164562 | M72: =F72*(Forecast!$H$8/$F$2) -> 71.06937211 | N72: =F72*(Forecast!$I$8/$F$2) -> 71.57520394 | O72: =F72*(Forecast!$J$8/$F$2) -> 71.99673047 | P72: =F72*(Forecast!$K$8/$F$2) -> 72.41825699 | Q72: =F72*(Forecast!$L$8/$F$2) -> 72.83978352 | R72: =F72*(Forecast!$M$8/$F$2) -> 73.26131004 | S72: =F72*(Forecast!$N$8/$F$2) -> 73.76714187 | T72: =F72*(Forecast!$O$8/$F$2) -> 74.1886684 | U72: =F72*(Forecast!$P$8/$F$2) -> 74.61019492 | V72: =F72*(Forecast!$Q$8/$F$2) -> 75.03172145 | W72: =F72*(Forecast!$R$8/$F$2) -> 75.53755328 | X72: =F72*(Forecast!$S$8/$F$2) -> 75.9590798 | Y72: =F72*(Forecast!$T$8/$F$2) -> 76.38060633 | Z72: =F72*(Forecast!$U$8/$F$2) -> 76.80213285 | AA72: =F72*(Forecast!$V$8/$F$2) -> 77.30796468 | AB72: =F72*(Forecast!$W$8/$F$2) -> 77.72949121 | AC72: =F72*(Forecast!$X$8/$F$2) -> 78.15101773 | AD72: =F72*(Forecast!$Y$8/$F$2) -> 78.65684956 | AE72: =F72*(Forecast!$Z$8/$F$2) -> 79.07837609 | AF72: =F72*(Forecast!$AA$8/$F$2) -> 79.49990261 | AG72: =F72*(Forecast!$AB$8/$F$2) -> 79.92142914
A73: 2017-01-03T21:00:00 | B73: 26.72915268 | C73: 14.89807606 | D73: 14.80813408 | E73: 0 | F73: 56.43536282 | H73: =F73*(Forecast!$C$8/$F$2) -> 68.46074254 | I73: =F73*(Forecast!$D$8/$F$2) -> 69.801467 | J73: =F73*(Forecast!$E$8/$F$2) -> 69.96905755 | K73: =F73*(Forecast!$F$8/$F$2) -> 70.22044339 | L73: =F73*(Forecast!$G$8/$F$2) -> 70.38803395 | M73: =F73*(Forecast!$H$8/$F$2) -> 70.63941978 | N73: =F73*(Forecast!$I$8/$F$2) -> 71.14219145 | O73: =F73*(Forecast!$J$8/$F$2) -> 71.56116785 | P73: =F73*(Forecast!$K$8/$F$2) -> 71.98014424 | Q73: =F73*(Forecast!$L$8/$F$2) -> 72.39912063 | R73: =F73*(Forecast!$M$8/$F$2) -> 72.81809702 | S73: =F73*(Forecast!$N$8/$F$2) -> 73.32086869 | T73: =F73*(Forecast!$O$8/$F$2) -> 73.73984509 | U73: =F73*(Forecast!$P$8/$F$2) -> 74.15882148 | V73: =F73*(Forecast!$Q$8/$F$2) -> 74.57779787 | W73: =F73*(Forecast!$R$8/$F$2) -> 75.08056954 | X73: =F73*(Forecast!$S$8/$F$2) -> 75.49954594 | Y73: =F73*(Forecast!$T$8/$F$2) -> 75.91852233 | Z73: =F73*(Forecast!$U$8/$F$2) -> 76.33749872 | AA73: =F73*(Forecast!$V$8/$F$2) -> 76.84027039 | AB73: =F73*(Forecast!$W$8/$F$2) -> 77.25924678 | AC73: =F73*(Forecast!$X$8/$F$2) -> 77.67822318 | AD73: =F73*(Forecast!$Y$8/$F$2) -> 78.18099485 | AE73: =F73*(Forecast!$Z$8/$F$2) -> 78.59997124 | AF73: =F73*(Forecast!$AA$8/$F$2) -> 79.01894763 | AG73: =F73*(Forecast!$AB$8/$F$2) -> 79.43792403
A74: 2017-01-03T22:00:00 | B74: 26.69569206 | C74: 14.86457729 | D74: 14.77461338 | E74: 0 | F74: 56.33488274 | H74: =F74*(Forecast!$C$8/$F$2) -> 68.33885193 | I74: =F74*(Forecast!$D$8/$F$2) -> 69.6771893 | J74: =F74*(Forecast!$E$8/$F$2) -> 69.84448147 | K74: =F74*(Forecast!$F$8/$F$2) -> 70.09541973 | L74: =F74*(Forecast!$G$8/$F$2) -> 70.2627119 | M74: =F74*(Forecast!$H$8/$F$2) -> 70.51365016 | N74: =F74*(Forecast!$I$8/$F$2) -> 71.01552667 | O74: =F74*(Forecast!$J$8/$F$2) -> 71.4337571 | P74: =F74*(Forecast!$K$8/$F$2) -> 71.85198753 | Q74: =F74*(Forecast!$L$8/$F$2) -> 72.27021795 | R74: =F74*(Forecast!$M$8/$F$2) -> 72.68844838 | S74: =F74*(Forecast!$N$8/$F$2) -> 73.19032489 | T74: =F74*(Forecast!$O$8/$F$2) -> 73.60855532 | U74: =F74*(Forecast!$P$8/$F$2) -> 74.02678575 | V74: =F74*(Forecast!$Q$8/$F$2) -> 74.44501618 | W74: =F74*(Forecast!$R$8/$F$2) -> 74.94689269 | X74: =F74*(Forecast!$S$8/$F$2) -> 75.36512312 | Y74: =F74*(Forecast!$T$8/$F$2) -> 75.78335355 | Z74: =F74*(Forecast!$U$8/$F$2) -> 76.20158398 | AA74: =F74*(Forecast!$V$8/$F$2) -> 76.70346049 | AB74: =F74*(Forecast!$W$8/$F$2) -> 77.12169092 | AC74: =F74*(Forecast!$X$8/$F$2) -> 77.53992135 | AD74: =F74*(Forecast!$Y$8/$F$2) -> 78.04179786 | AE74: =F74*(Forecast!$Z$8/$F$2) -> 78.46002829 | AF74: =F74*(Forecast!$AA$8/$F$2) -> 78.87825871 | AG74: =F74*(Forecast!$AB$8/$F$2) -> 79.29648914
A75: 2017-01-03T23:00:00 | B75: 26.28563118 | C75: 14.84206676 | D75: 14.70751286 | E75: 0 | F75: 55.8352108 | H75: =F75*(Forecast!$C$8/$F$2) -> 67.73270872 | I75: =F75*(Forecast!$D$8/$F$2) -> 69.05917548 | J75: =F75*(Forecast!$E$8/$F$2) -> 69.22498382 | K75: =F75*(Forecast!$F$8/$F$2) -> 69.47369634 | L75: =F75*(Forecast!$G$8/$F$2) -> 69.63950469 | M75: =F75*(Forecast!$H$8/$F$2) -> 69.8882172 | N75: =F75*(Forecast!$I$8/$F$2) -> 70.38564224 | O75: =F75*(Forecast!$J$8/$F$2) -> 70.8001631 | P75: =F75*(Forecast!$K$8/$F$2) -> 71.21468396 | Q75: =F75*(Forecast!$L$8/$F$2) -> 71.62920482 | R75: =F75*(Forecast!$M$8/$F$2) -> 72.04372568 | S75: =F75*(Forecast!$N$8/$F$2) -> 72.54115071 | T75: =F75*(Forecast!$O$8/$F$2) -> 72.95567158 | U75: =F75*(Forecast!$P$8/$F$2) -> 73.37019244 | V75: =F75*(Forecast!$Q$8/$F$2) -> 73.7847133 | W75: =F75*(Forecast!$R$8/$F$2) -> 74.28213833 | X75: =F75*(Forecast!$S$8/$F$2) -> 74.69665919 | Y75: =F75*(Forecast!$T$8/$F$2) -> 75.11118005 | Z75: =F75*(Forecast!$U$8/$F$2) -> 75.52570091 | AA75: =F75*(Forecast!$V$8/$F$2) -> 76.02312595 | AB75: =F75*(Forecast!$W$8/$F$2) -> 76.43764681 | AC75: =F75*(Forecast!$X$8/$F$2) -> 76.85216767 | AD75: =F75*(Forecast!$Y$8/$F$2) -> 77.3495927 | AE75: =F75*(Forecast!$Z$8/$F$2) -> 77.76411357 | AF75: =F75*(Forecast!$AA$8/$F$2) -> 78.17863443 | AG75: =F75*(Forecast!$AB$8/$F$2) -> 78.59315529
A76: 2017-01-04 | B76: 25.92563057 | C76: 14.8255024 | D76: 14.62217617 | E76: 0 | F76: 55.37330914 | H76: =F76*(Forecast!$C$8/$F$2) -> 67.17238397 | I76: =F76*(Forecast!$D$8/$F$2) -> 68.48787741 | J76: =F76*(Forecast!$E$8/$F$2) -> 68.65231409 | K76: =F76*(Forecast!$F$8/$F$2) -> 68.89896911 | L76: =F76*(Forecast!$G$8/$F$2) -> 69.06340579 | M76: =F76*(Forecast!$H$8/$F$2) -> 69.31006081 | N76: =F76*(Forecast!$I$8/$F$2) -> 69.80337085 | O76: =F76*(Forecast!$J$8/$F$2) -> 70.21446256 | P76: =F76*(Forecast!$K$8/$F$2) -> 70.62555426 | Q76: =F76*(Forecast!$L$8/$F$2) -> 71.03664596 | R76: =F76*(Forecast!$M$8/$F$2) -> 71.44773766 | S76: =F76*(Forecast!$N$8/$F$2) -> 71.9410477 | T76: =F76*(Forecast!$O$8/$F$2) -> 72.3521394 | U76: =F76*(Forecast!$P$8/$F$2) -> 72.7632311 | V76: =F76*(Forecast!$Q$8/$F$2) -> 73.1743228 | W76: =F76*(Forecast!$R$8/$F$2) -> 73.66763284 | X76: =F76*(Forecast!$S$8/$F$2) -> 74.07872455 | Y76: =F76*(Forecast!$T$8/$F$2) -> 74.48981625 | Z76: =F76*(Forecast!$U$8/$F$2) -> 74.90090795 | AA76: =F76*(Forecast!$V$8/$F$2) -> 75.39421799 | AB76: =F76*(Forecast!$W$8/$F$2) -> 75.80530969 | AC76: =F76*(Forecast!$X$8/$F$2) -> 76.21640139 | AD76: =F76*(Forecast!$Y$8/$F$2) -> 76.70971143 | AE76: =F76*(Forecast!$Z$8/$F$2) -> 77.12080313 | AF76: =F76*(Forecast!$AA$8/$F$2) -> 77.53189484 | AG76: =F76*(Forecast!$AB$8/$F$2) -> 77.94298654
A77: 2017-01-04T01:00:00 | B77: 25.93134689 | C77: 14.80893803 | D77: 14.53684044 | E77: 0 | F77: 55.27712536 | H77: =F77*(Forecast!$C$8/$F$2) -> 67.05570512 | I77: =F77*(Forecast!$D$8/$F$2) -> 68.36891355 | J77: =F77*(Forecast!$E$8/$F$2) -> 68.5330646 | K77: =F77*(Forecast!$F$8/$F$2) -> 68.77929118 | L77: =F77*(Forecast!$G$8/$F$2) -> 68.94344223 | M77: =F77*(Forecast!$H$8/$F$2) -> 69.18966881 | N77: =F77*(Forecast!$I$8/$F$2) -> 69.68212197 | O77: =F77*(Forecast!$J$8/$F$2) -> 70.0924996 | P77: =F77*(Forecast!$K$8/$F$2) -> 70.50287724 | Q77: =F77*(Forecast!$L$8/$F$2) -> 70.91325487 | R77: =F77*(Forecast!$M$8/$F$2) -> 71.3236325 | S77: =F77*(Forecast!$N$8/$F$2) -> 71.81608566 | T77: =F77*(Forecast!$O$8/$F$2) -> 72.22646329 | U77: =F77*(Forecast!$P$8/$F$2) -> 72.63684092 | V77: =F77*(Forecast!$Q$8/$F$2) -> 73.04721856 | W77: =F77*(Forecast!$R$8/$F$2) -> 73.53967172 | X77: =F77*(Forecast!$S$8/$F$2) -> 73.95004935 | Y77: =F77*(Forecast!$T$8/$F$2) -> 74.36042698 | Z77: =F77*(Forecast!$U$8/$F$2) -> 74.77080461 | AA77: =F77*(Forecast!$V$8/$F$2) -> 75.26325777 | AB77: =F77*(Forecast!$W$8/$F$2) -> 75.6736354 | AC77: =F77*(Forecast!$X$8/$F$2) -> 76.08401304 | AD77: =F77*(Forecast!$Y$8/$F$2) -> 76.5764662 | AE77: =F77*(Forecast!$Z$8/$F$2) -> 76.98684383 | AF77: =F77*(Forecast!$AA$8/$F$2) -> 77.39722146 | AG77: =F77*(Forecast!$AB$8/$F$2) -> 77.80759909
A78: 2017-01-04T02:00:00 | B78: 26.01774406 | C78: 14.79237366 | D78: 14.45150375 | E78: 0 | F78: 55.26162148 | H78: =F78*(Forecast!$C$8/$F$2) -> 67.03689764 | I78: =F78*(Forecast!$D$8/$F$2) -> 68.34973774 | J78: =F78*(Forecast!$E$8/$F$2) -> 68.51384275 | K78: =F78*(Forecast!$F$8/$F$2) -> 68.76000027 | L78: =F78*(Forecast!$G$8/$F$2) -> 68.92410528 | M78: =F78*(Forecast!$H$8/$F$2) -> 69.1702628 | N78: =F78*(Forecast!$I$8/$F$2) -> 69.66257784 | O78: =F78*(Forecast!$J$8/$F$2) -> 70.07284037 | P78: =F78*(Forecast!$K$8/$F$2) -> 70.4831029 | Q78: =F78*(Forecast!$L$8/$F$2) -> 70.89336543 | R78: =F78*(Forecast!$M$8/$F$2) -> 71.30362796 | S78: =F78*(Forecast!$N$8/$F$2) -> 71.795943 | T78: =F78*(Forecast!$O$8/$F$2) -> 72.20620553 | U78: =F78*(Forecast!$P$8/$F$2) -> 72.61646807 | V78: =F78*(Forecast!$Q$8/$F$2) -> 73.0267306 | W78: =F78*(Forecast!$R$8/$F$2) -> 73.51904563 | X78: =F78*(Forecast!$S$8/$F$2) -> 73.92930817 | Y78: =F78*(Forecast!$T$8/$F$2) -> 74.3395707 | Z78: =F78*(Forecast!$U$8/$F$2) -> 74.74983323 | AA78: =F78*(Forecast!$V$8/$F$2) -> 75.24214827 | AB78: =F78*(Forecast!$W$8/$F$2) -> 75.6524108 | AC78: =F78*(Forecast!$X$8/$F$2) -> 76.06267333 | AD78: =F78*(Forecast!$Y$8/$F$2) -> 76.55498837 | AE78: =F78*(Forecast!$Z$8/$F$2) -> 76.9652509 | AF78: =F78*(Forecast!$AA$8/$F$2) -> 77.37551343 | AG78: =F78*(Forecast!$AB$8/$F$2) -> 77.78577596
A79: 2017-01-04T03:00:00 | B79: 25.8344593 | C79: 14.77580929 | D79: 14.31445217 | E79: 0 | F79: 54.92472076 | H79: =F79*(Forecast!$C$8/$F$2) -> 66.62820933 | I79: =F79*(Forecast!$D$8/$F$2) -> 67.93304574 | J79: =F79*(Forecast!$E$8/$F$2) -> 68.0961503 | K79: =F79*(Forecast!$F$8/$F$2) -> 68.34080712 | L79: =F79*(Forecast!$G$8/$F$2) -> 68.50391167 | M79: =F79*(Forecast!$H$8/$F$2) -> 68.7485685 | N79: =F79*(Forecast!$I$8/$F$2) -> 69.23788216 | O79: =F79*(Forecast!$J$8/$F$2) -> 69.64564354 | P79: =F79*(Forecast!$K$8/$F$2) -> 70.05340492 | Q79: =F79*(Forecast!$L$8/$F$2) -> 70.46116629 | R79: =F79*(Forecast!$M$8/$F$2) -> 70.86892767 | S79: =F79*(Forecast!$N$8/$F$2) -> 71.35824133 | T79: =F79*(Forecast!$O$8/$F$2) -> 71.76600271 | U79: =F79*(Forecast!$P$8/$F$2) -> 72.17376409 | V79: =F79*(Forecast!$Q$8/$F$2) -> 72.58152546 | W79: =F79*(Forecast!$R$8/$F$2) -> 73.07083912 | X79: =F79*(Forecast!$S$8/$F$2) -> 73.4786005 | Y79: =F79*(Forecast!$T$8/$F$2) -> 73.88636188 | Z79: =F79*(Forecast!$U$8/$F$2) -> 74.29412326 | AA79: =F79*(Forecast!$V$8/$F$2) -> 74.78343691 | AB79: =F79*(Forecast!$W$8/$F$2) -> 75.19119829 | AC79: =F79*(Forecast!$X$8/$F$2) -> 75.59895967 | AD79: =F79*(Forecast!$Y$8/$F$2) -> 76.08827332 | AE79: =F79*(Forecast!$Z$8/$F$2) -> 76.4960347 | AF79: =F79*(Forecast!$AA$8/$F$2) -> 76.90379608 | AG79: =F79*(Forecast!$AB$8/$F$2) -> 77.31155746
A80: 2017-01-04T04:00:00 | B80: 26.28953552 | C80: 14.80102921 | D80: 14.55595493 | E80: 0 | F80: 55.64651966 | H80: =F80*(Forecast!$C$8/$F$2) -> 67.50381083 | I80: =F80*(Forecast!$D$8/$F$2) -> 68.82579489 | J80: =F80*(Forecast!$E$8/$F$2) -> 68.9910429 | K80: =F80*(Forecast!$F$8/$F$2) -> 69.23891491 | L80: =F80*(Forecast!$G$8/$F$2) -> 69.40416291 | M80: =F80*(Forecast!$H$8/$F$2) -> 69.65203492 | N80: =F80*(Forecast!$I$8/$F$2) -> 70.14777894 | O80: =F80*(Forecast!$J$8/$F$2) -> 70.56089896 | P80: =F80*(Forecast!$K$8/$F$2) -> 70.97401898 | Q80: =F80*(Forecast!$L$8/$F$2) -> 71.387139 | R80: =F80*(Forecast!$M$8/$F$2) -> 71.80025901 | S80: =F80*(Forecast!$N$8/$F$2) -> 72.29600303 | T80: =F80*(Forecast!$O$8/$F$2) -> 72.70912305 | U80: =F80*(Forecast!$P$8/$F$2) -> 73.12224307 | V80: =F80*(Forecast!$Q$8/$F$2) -> 73.53536309 | W80: =F80*(Forecast!$R$8/$F$2) -> 74.03110711 | X80: =F80*(Forecast!$S$8/$F$2) -> 74.44422712 | Y80: =F80*(Forecast!$T$8/$F$2) -> 74.85734714 | Z80: =F80*(Forecast!$U$8/$F$2) -> 75.27046716 | AA80: =F80*(Forecast!$V$8/$F$2) -> 75.76621118 | AB80: =F80*(Forecast!$W$8/$F$2) -> 76.1793312 | AC80: =F80*(Forecast!$X$8/$F$2) -> 76.59245121 | AD80: =F80*(Forecast!$Y$8/$F$2) -> 77.08819524 | AE80: =F80*(Forecast!$Z$8/$F$2) -> 77.50131525 | AF80: =F80*(Forecast!$AA$8/$F$2) -> 77.91443527 | AG80: =F80*(Forecast!$AB$8/$F$2) -> 78.32755529
A81: 2017-01-04T05:00:00 | B81: 26.53868294 | C81: 14.97831154 | D81: 14.7974577 | E81: 0 | F81: 56.31445217 | H81: =F81*(Forecast!$C$8/$F$2) -> 68.31406797 | I81: =F81*(Forecast!$D$8/$F$2) -> 69.65191998 | J81: =F81*(Forecast!$E$8/$F$2) -> 69.81915148 | K81: =F81*(Forecast!$F$8/$F$2) -> 70.06999873 | L81: =F81*(Forecast!$G$8/$F$2) -> 70.23723023 | M81: =F81*(Forecast!$H$8/$F$2) -> 70.48807748 | N81: =F81*(Forecast!$I$8/$F$2) -> 70.98977198 | O81: =F81*(Forecast!$J$8/$F$2) -> 71.40785073 | P81: =F81*(Forecast!$K$8/$F$2) -> 71.82592948 | Q81: =F81*(Forecast!$L$8/$F$2) -> 72.24400824 | R81: =F81*(Forecast!$M$8/$F$2) -> 72.66208699 | S81: =F81*(Forecast!$N$8/$F$2) -> 73.16378149 | T81: =F81*(Forecast!$O$8/$F$2) -> 73.58186024 | U81: =F81*(Forecast!$P$8/$F$2) -> 73.99993899 | V81: =F81*(Forecast!$Q$8/$F$2) -> 74.41801774 | W81: =F81*(Forecast!$R$8/$F$2) -> 74.91971224 | X81: =F81*(Forecast!$S$8/$F$2) -> 75.337791 | Y81: =F81*(Forecast!$T$8/$F$2) -> 75.75586975 | Z81: =F81*(Forecast!$U$8/$F$2) -> 76.1739485 | AA81: =F81*(Forecast!$V$8/$F$2) -> 76.675643 | AB81: =F81*(Forecast!$W$8/$F$2) -> 77.09372175 | AC81: =F81*(Forecast!$X$8/$F$2) -> 77.5118005 | AD81: =F81*(Forecast!$Y$8/$F$2) -> 78.013495 | AE81: =F81*(Forecast!$Z$8/$F$2) -> 78.43157376 | AF81: =F81*(Forecast!$AA$8/$F$2) -> 78.84965251 | AG81: =F81*(Forecast!$AB$8/$F$2) -> 79.26773126
A82: 2017-01-04T06:00:00 | B82: 26.82563019 | C82: 15.15559292 | D82: 15.03896046 | E82: 0.000237445216 | F82: 57.02042101 | H82: =F82*(Forecast!$C$8/$F$2) -> 69.17046631 | I82: =F82*(Forecast!$D$8/$F$2) -> 70.52508988 | J82: =F82*(Forecast!$E$8/$F$2) -> 70.69441783 | K82: =F82*(Forecast!$F$8/$F$2) -> 70.94840975 | L82: =F82*(Forecast!$G$8/$F$2) -> 71.1177377 | M82: =F82*(Forecast!$H$8/$F$2) -> 71.37172962 | N82: =F82*(Forecast!$I$8/$F$2) -> 71.87971346 | O82: =F82*(Forecast!$J$8/$F$2) -> 72.30303333 | P82: =F82*(Forecast!$K$8/$F$2) -> 72.72635319 | Q82: =F82*(Forecast!$L$8/$F$2) -> 73.14967306 | R82: =F82*(Forecast!$M$8/$F$2) -> 73.57299293 | S82: =F82*(Forecast!$N$8/$F$2) -> 74.08097677 | T82: =F82*(Forecast!$O$8/$F$2) -> 74.50429664 | U82: =F82*(Forecast!$P$8/$F$2) -> 74.9276165 | V82: =F82*(Forecast!$Q$8/$F$2) -> 75.35093637 | W82: =F82*(Forecast!$R$8/$F$2) -> 75.85892021 | X82: =F82*(Forecast!$S$8/$F$2) -> 76.28224008 | Y82: =F82*(Forecast!$T$8/$F$2) -> 76.70555995 | Z82: =F82*(Forecast!$U$8/$F$2) -> 77.12887981 | AA82: =F82*(Forecast!$V$8/$F$2) -> 77.63686365 | AB82: =F82*(Forecast!$W$8/$F$2) -> 78.06018352 | AC82: =F82*(Forecast!$X$8/$F$2) -> 78.48350339 | AD82: =F82*(Forecast!$Y$8/$F$2) -> 78.99148723 | AE82: =F82*(Forecast!$Z$8/$F$2) -> 79.4148071 | AF82: =F82*(Forecast!$AA$8/$F$2) -> 79.83812696 | AG82: =F82*(Forecast!$AB$8/$F$2) -> 80.26144683
A83: 2017-01-04T07:00:00 | B83: 28.1176548 | C83: 15.64131546 | D83: 15.70950794 | E83: 0.0005687641096 | F83: 59.46904697 | H83: =F83*(Forecast!$C$8/$F$2) -> 72.14085124 | I83: =F83*(Forecast!$D$8/$F$2) -> 73.55364637 | J83: =F83*(Forecast!$E$8/$F$2) -> 73.73024576 | K83: =F83*(Forecast!$F$8/$F$2) -> 73.99514485 | L83: =F83*(Forecast!$G$8/$F$2) -> 74.17174424 | M83: =F83*(Forecast!$H$8/$F$2) -> 74.43664332 | N83: =F83*(Forecast!$I$8/$F$2) -> 74.9664415 | O83: =F83*(Forecast!$J$8/$F$2) -> 75.40793997 | P83: =F83*(Forecast!$K$8/$F$2) -> 75.84943845 | Q83: =F83*(Forecast!$L$8/$F$2) -> 76.29093693 | R83: =F83*(Forecast!$M$8/$F$2) -> 76.73243541 | S83: =F83*(Forecast!$N$8/$F$2) -> 77.26223358 | T83: =F83*(Forecast!$O$8/$F$2) -> 77.70373206 | U83: =F83*(Forecast!$P$8/$F$2) -> 78.14523054 | V83: =F83*(Forecast!$Q$8/$F$2) -> 78.58672901 | W83: =F83*(Forecast!$R$8/$F$2) -> 79.11652719 | X83: =F83*(Forecast!$S$8/$F$2) -> 79.55802566 | Y83: =F83*(Forecast!$T$8/$F$2) -> 79.99952414 | Z83: =F83*(Forecast!$U$8/$F$2) -> 80.44102262 | AA83: =F83*(Forecast!$V$8/$F$2) -> 80.97082079 | AB83: =F83*(Forecast!$W$8/$F$2) -> 81.41231927 | AC83: =F83*(Forecast!$X$8/$F$2) -> 81.85381775 | AD83: =F83*(Forecast!$Y$8/$F$2) -> 82.38361592 | AE83: =F83*(Forecast!$Z$8/$F$2) -> 82.8251144 | AF83: =F83*(Forecast!$AA$8/$F$2) -> 83.26661288 | AG83: =F83*(Forecast!$AB$8/$F$2) -> 83.70811135
A84: 2017-01-04T08:00:00 | B84: 29.98998642 | C84: 16.81089401 | D84: 16.54601669 | E84: 0.0009000830469 | F84: 63.34779721 | H84: =F84*(Forecast!$C$8/$F$2) -> 76.8460947 | I84: =F84*(Forecast!$D$8/$F$2) -> 78.35103658 | J84: =F84*(Forecast!$E$8/$F$2) -> 78.53915431 | K84: =F84*(Forecast!$F$8/$F$2) -> 78.82133091 | L84: =F84*(Forecast!$G$8/$F$2) -> 79.00944865 | M84: =F84*(Forecast!$H$8/$F$2) -> 79.29162525 | N84: =F84*(Forecast!$I$8/$F$2) -> 79.85597846 | O84: =F84*(Forecast!$J$8/$F$2) -> 80.32627279 | P84: =F84*(Forecast!$K$8/$F$2) -> 80.79656713 | Q84: =F84*(Forecast!$L$8/$F$2) -> 81.26686147 | R84: =F84*(Forecast!$M$8/$F$2) -> 81.7371558 | S84: =F84*(Forecast!$N$8/$F$2) -> 82.30150901 | T84: =F84*(Forecast!$O$8/$F$2) -> 82.77180335 | U84: =F84*(Forecast!$P$8/$F$2) -> 83.24209768 | V84: =F84*(Forecast!$Q$8/$F$2) -> 83.71239202 | W84: =F84*(Forecast!$R$8/$F$2) -> 84.27674523 | X84: =F84*(Forecast!$S$8/$F$2) -> 84.74703956 | Y84: =F84*(Forecast!$T$8/$F$2) -> 85.2173339 | Z84: =F84*(Forecast!$U$8/$F$2) -> 85.68762824 | AA84: =F84*(Forecast!$V$8/$F$2) -> 86.25198144 | AB84: =F84*(Forecast!$W$8/$F$2) -> 86.72227578 | AC84: =F84*(Forecast!$X$8/$F$2) -> 87.19257012 | AD84: =F84*(Forecast!$Y$8/$F$2) -> 87.75692332 | AE84: =F84*(Forecast!$Z$8/$F$2) -> 88.22721766 | AF84: =F84*(Forecast!$AA$8/$F$2) -> 88.69751199 | AG84: =F84*(Forecast!$AB$8/$F$2) -> 89.16780633
A85: 2017-01-04T09:00:00 | B85: 30.21087265 | C85: 16.79135704 | D85: 16.43444633 | E85: 0.001231401926 | F85: 63.43790743 | H85: =F85*(Forecast!$C$8/$F$2) -> 76.95540581 | I85: =F85*(Forecast!$D$8/$F$2) -> 78.46248842 | J85: =F85*(Forecast!$E$8/$F$2) -> 78.65087375 | K85: =F85*(Forecast!$F$8/$F$2) -> 78.93345174 | L85: =F85*(Forecast!$G$8/$F$2) -> 79.12183707 | M85: =F85*(Forecast!$H$8/$F$2) -> 79.40441506 | N85: =F85*(Forecast!$I$8/$F$2) -> 79.96957104 | O85: =F85*(Forecast!$J$8/$F$2) -> 80.44053435 | P85: =F85*(Forecast!$K$8/$F$2) -> 80.91149767 | Q85: =F85*(Forecast!$L$8/$F$2) -> 81.38246098 | R85: =F85*(Forecast!$M$8/$F$2) -> 81.8534243 | S85: =F85*(Forecast!$N$8/$F$2) -> 82.41858028 | T85: =F85*(Forecast!$O$8/$F$2) -> 82.88954359 | U85: =F85*(Forecast!$P$8/$F$2) -> 83.36050691 | V85: =F85*(Forecast!$Q$8/$F$2) -> 83.83147023 | W85: =F85*(Forecast!$R$8/$F$2) -> 84.3966262 | X85: =F85*(Forecast!$S$8/$F$2) -> 84.86758952 | Y85: =F85*(Forecast!$T$8/$F$2) -> 85.33855284 | Z85: =F85*(Forecast!$U$8/$F$2) -> 85.80951615 | AA85: =F85*(Forecast!$V$8/$F$2) -> 86.37467213 | AB85: =F85*(Forecast!$W$8/$F$2) -> 86.84563545 | AC85: =F85*(Forecast!$X$8/$F$2) -> 87.31659876 | AD85: =F85*(Forecast!$Y$8/$F$2) -> 87.88175474 | AE85: =F85*(Forecast!$Z$8/$F$2) -> 88.35271806 | AF85: =F85*(Forecast!$AA$8/$F$2) -> 88.82368137 | AG85: =F85*(Forecast!$AB$8/$F$2) -> 89.29464469
A86: 2017-01-04T10:00:00 | B86: 29.80814552 | C86: 16.56281471 | D86: 16.38281441 | E86: 0.001562720863 | F86: 62.75533736 | H86: =F86*(Forecast!$C$8/$F$2) -> 76.12739212 | I86: =F86*(Forecast!$D$8/$F$2) -> 77.61825904 | J86: =F86*(Forecast!$E$8/$F$2) -> 77.8046174 | K86: =F86*(Forecast!$F$8/$F$2) -> 78.08415495 | L86: =F86*(Forecast!$G$8/$F$2) -> 78.27051331 | M86: =F86*(Forecast!$H$8/$F$2) -> 78.55005086 | N86: =F86*(Forecast!$I$8/$F$2) -> 79.10912596 | O86: =F86*(Forecast!$J$8/$F$2) -> 79.57502187 | P86: =F86*(Forecast!$K$8/$F$2) -> 80.04091778 | Q86: =F86*(Forecast!$L$8/$F$2) -> 80.5068137 | R86: =F86*(Forecast!$M$8/$F$2) -> 80.97270961 | S86: =F86*(Forecast!$N$8/$F$2) -> 81.5317847 | T86: =F86*(Forecast!$O$8/$F$2) -> 81.99768062 | U86: =F86*(Forecast!$P$8/$F$2) -> 82.46357653 | V86: =F86*(Forecast!$Q$8/$F$2) -> 82.92947244 | W86: =F86*(Forecast!$R$8/$F$2) -> 83.48854754 | X86: =F86*(Forecast!$S$8/$F$2) -> 83.95444345 | Y86: =F86*(Forecast!$T$8/$F$2) -> 84.42033936 | Z86: =F86*(Forecast!$U$8/$F$2) -> 84.88623527 | AA86: =F86*(Forecast!$V$8/$F$2) -> 85.44531037 | AB86: =F86*(Forecast!$W$8/$F$2) -> 85.91120628 | AC86: =F86*(Forecast!$X$8/$F$2) -> 86.37710219 | AD86: =F86*(Forecast!$Y$8/$F$2) -> 86.93617729 | AE86: =F86*(Forecast!$Z$8/$F$2) -> 87.4020732 | AF86: =F86*(Forecast!$AA$8/$F$2) -> 87.86796911 | AG86: =F86*(Forecast!$AB$8/$F$2) -> 88.33386503
A87: 2017-01-04T11:00:00 | B87: 29.26884651 | C87: 16.37334061 | D87: 16.32461548 | E87: 0.0018940398 | F87: 61.96869664 | H87: =F87*(Forecast!$C$8/$F$2) -> 75.17313214 | I87: =F87*(Forecast!$D$8/$F$2) -> 76.64531098 | J87: =F87*(Forecast!$E$8/$F$2) -> 76.82933333 | K87: =F87*(Forecast!$F$8/$F$2) -> 77.10536687 | L87: =F87*(Forecast!$G$8/$F$2) -> 77.28938922 | M87: =F87*(Forecast!$H$8/$F$2) -> 77.56542275 | N87: =F87*(Forecast!$I$8/$F$2) -> 78.11748982 | O87: =F87*(Forecast!$J$8/$F$2) -> 78.57754571 | P87: =F87*(Forecast!$K$8/$F$2) -> 79.0376016 | Q87: =F87*(Forecast!$L$8/$F$2) -> 79.49765748 | R87: =F87*(Forecast!$M$8/$F$2) -> 79.95771337 | S87: =F87*(Forecast!$N$8/$F$2) -> 80.50978044 | T87: =F87*(Forecast!$O$8/$F$2) -> 80.96983633 | U87: =F87*(Forecast!$P$8/$F$2) -> 81.42989222 | V87: =F87*(Forecast!$Q$8/$F$2) -> 81.8899481 | W87: =F87*(Forecast!$R$8/$F$2) -> 82.44201517 | X87: =F87*(Forecast!$S$8/$F$2) -> 82.90207106 | Y87: =F87*(Forecast!$T$8/$F$2) -> 83.36212695 | Z87: =F87*(Forecast!$U$8/$F$2) -> 83.82218283 | AA87: =F87*(Forecast!$V$8/$F$2) -> 84.3742499 | AB87: =F87*(Forecast!$W$8/$F$2) -> 84.83430579 | AC87: =F87*(Forecast!$X$8/$F$2) -> 85.29436168 | AD87: =F87*(Forecast!$Y$8/$F$2) -> 85.84642874 | AE87: =F87*(Forecast!$Z$8/$F$2) -> 86.30648463 | AF87: =F87*(Forecast!$AA$8/$F$2) -> 86.76654052 | AG87: =F87*(Forecast!$AB$8/$F$2) -> 87.22659641
A88: 2017-01-04T12:00:00 | B88: 28.96483231 | C88: 16.14237785 | D88: 16.04658127 | E88: 0.001597165596 | F88: 61.15538859 | H88: =F88*(Forecast!$C$8/$F$2) -> 74.1865225 | I88: =F88*(Forecast!$D$8/$F$2) -> 75.63937974 | J88: =F88*(Forecast!$E$8/$F$2) -> 75.82098689 | K88: =F88*(Forecast!$F$8/$F$2) -> 76.09339762 | L88: =F88*(Forecast!$G$8/$F$2) -> 76.27500478 | M88: =F88*(Forecast!$H$8/$F$2) -> 76.54741551 | N88: =F88*(Forecast!$I$8/$F$2) -> 77.09223697 | O88: =F88*(Forecast!$J$8/$F$2) -> 77.54625486 | P88: =F88*(Forecast!$K$8/$F$2) -> 78.00027274 | Q88: =F88*(Forecast!$L$8/$F$2) -> 78.45429063 | R88: =F88*(Forecast!$M$8/$F$2) -> 78.90830851 | S88: =F88*(Forecast!$N$8/$F$2) -> 79.45312998 | T88: =F88*(Forecast!$O$8/$F$2) -> 79.90714786 | U88: =F88*(Forecast!$P$8/$F$2) -> 80.36116575 | V88: =F88*(Forecast!$Q$8/$F$2) -> 80.81518363 | W88: =F88*(Forecast!$R$8/$F$2) -> 81.36000509 | X88: =F88*(Forecast!$S$8/$F$2) -> 81.81402298 | Y88: =F88*(Forecast!$T$8/$F$2) -> 82.26804087 | Z88: =F88*(Forecast!$U$8/$F$2) -> 82.72205875 | AA88: =F88*(Forecast!$V$8/$F$2) -> 83.26688021 | AB88: =F88*(Forecast!$W$8/$F$2) -> 83.7208981 | AC88: =F88*(Forecast!$X$8/$F$2) -> 84.17491599 | AD88: =F88*(Forecast!$Y$8/$F$2) -> 84.71973745 | AE88: =F88*(Forecast!$Z$8/$F$2) -> 85.17375533 | AF88: =F88*(Forecast!$AA$8/$F$2) -> 85.62777322 | AG88: =F88*(Forecast!$AB$8/$F$2) -> 86.0817911
A89: 2017-01-04T13:00:00 | B89: 28.85440254 | C89: 16.06095123 | D89: 15.90430832 | E89: 0.001156500657 | F89: 60.82081859 | H89: =F89*(Forecast!$C$8/$F$2) -> 73.78066154 | I89: =F89*(Forecast!$D$8/$F$2) -> 75.22557046 | J89: =F89*(Forecast!$E$8/$F$2) -> 75.40618407 | K89: =F89*(Forecast!$F$8/$F$2) -> 75.6771045 | L89: =F89*(Forecast!$G$8/$F$2) -> 75.85771811 | M89: =F89*(Forecast!$H$8/$F$2) -> 76.12863853 | N89: =F89*(Forecast!$I$8/$F$2) -> 76.67047938 | O89: =F89*(Forecast!$J$8/$F$2) -> 77.12201341 | P89: =F89*(Forecast!$K$8/$F$2) -> 77.57354745 | Q89: =F89*(Forecast!$L$8/$F$2) -> 78.02508148 | R89: =F89*(Forecast!$M$8/$F$2) -> 78.47661552 | S89: =F89*(Forecast!$N$8/$F$2) -> 79.01845636 | T89: =F89*(Forecast!$O$8/$F$2) -> 79.4699904 | U89: =F89*(Forecast!$P$8/$F$2) -> 79.92152444 | V89: =F89*(Forecast!$Q$8/$F$2) -> 80.37305847 | W89: =F89*(Forecast!$R$8/$F$2) -> 80.91489932 | X89: =F89*(Forecast!$S$8/$F$2) -> 81.36643335 | Y89: =F89*(Forecast!$T$8/$F$2) -> 81.81796739 | Z89: =F89*(Forecast!$U$8/$F$2) -> 82.26950143 | AA89: =F89*(Forecast!$V$8/$F$2) -> 82.81134227 | AB89: =F89*(Forecast!$W$8/$F$2) -> 83.26287631 | AC89: =F89*(Forecast!$X$8/$F$2) -> 83.71441034 | AD89: =F89*(Forecast!$Y$8/$F$2) -> 84.25625119 | AE89: =F89*(Forecast!$Z$8/$F$2) -> 84.70778522 | AF89: =F89*(Forecast!$AA$8/$F$2) -> 85.15931926 | AG89: =F89*(Forecast!$AB$8/$F$2) -> 85.6108533
A90: 2017-01-04T14:00:00 | B90: 28.56192017 | C90: 16.0142746 | D90: 15.77655792 | E90: 0.0007158357184 | F90: 60.35346852 | H90: =F90*(Forecast!$C$8/$F$2) -> 73.21372742 | I90: =F90*(Forecast!$D$8/$F$2) -> 74.64753358 | J90: =F90*(Forecast!$E$8/$F$2) -> 74.82675936 | K90: =F90*(Forecast!$F$8/$F$2) -> 75.09559801 | L90: =F90*(Forecast!$G$8/$F$2) -> 75.27482378 | M90: =F90*(Forecast!$H$8/$F$2) -> 75.54366244 | N90: =F90*(Forecast!$I$8/$F$2) -> 76.08133975 | O90: =F90*(Forecast!$J$8/$F$2) -> 76.52940418 | P90: =F90*(Forecast!$K$8/$F$2) -> 76.97746861 | Q90: =F90*(Forecast!$L$8/$F$2) -> 77.42553303 | R90: =F90*(Forecast!$M$8/$F$2) -> 77.87359746 | S90: =F90*(Forecast!$N$8/$F$2) -> 78.41127477 | T90: =F90*(Forecast!$O$8/$F$2) -> 78.8593392 | U90: =F90*(Forecast!$P$8/$F$2) -> 79.30740363 | V90: =F90*(Forecast!$Q$8/$F$2) -> 79.75546806 | W90: =F90*(Forecast!$R$8/$F$2) -> 80.29314537 | X90: =F90*(Forecast!$S$8/$F$2) -> 80.7412098 | Y90: =F90*(Forecast!$T$8/$F$2) -> 81.18927422 | Z90: =F90*(Forecast!$U$8/$F$2) -> 81.63733865 | AA90: =F90*(Forecast!$V$8/$F$2) -> 82.17501596 | AB90: =F90*(Forecast!$W$8/$F$2) -> 82.62308039 | AC90: =F90*(Forecast!$X$8/$F$2) -> 83.07114482 | AD90: =F90*(Forecast!$Y$8/$F$2) -> 83.60882213 | AE90: =F90*(Forecast!$Z$8/$F$2) -> 84.05688656 | AF90: =F90*(Forecast!$AA$8/$F$2) -> 84.50495098 | AG90: =F90*(Forecast!$AB$8/$F$2) -> 84.95301541
A91: 2017-01-04T15:00:00 | B91: 28.55669594 | C91: 16.02021408 | D91: 15.62342644 | E91: 0.0002751707798 | F91: 60.20061163 | H91: =F91*(Forecast!$C$8/$F$2) -> 73.02829942 | I91: =F91*(Forecast!$D$8/$F$2) -> 74.45847419 | J91: =F91*(Forecast!$E$8/$F$2) -> 74.63724604 | K91: =F91*(Forecast!$F$8/$F$2) -> 74.90540381 | L91: =F91*(Forecast!$G$8/$F$2) -> 75.08417566 | M91: =F91*(Forecast!$H$8/$F$2) -> 75.35233343 | N91: =F91*(Forecast!$I$8/$F$2) -> 75.88864897 | O91: =F91*(Forecast!$J$8/$F$2) -> 76.33557858 | P91: =F91*(Forecast!$K$8/$F$2) -> 76.7825082 | Q91: =F91*(Forecast!$L$8/$F$2) -> 77.22943782 | R91: =F91*(Forecast!$M$8/$F$2) -> 77.67636743 | S91: =F91*(Forecast!$N$8/$F$2) -> 78.21268297 | T91: =F91*(Forecast!$O$8/$F$2) -> 78.65961259 | U91: =F91*(Forecast!$P$8/$F$2) -> 79.10654221 | V91: =F91*(Forecast!$Q$8/$F$2) -> 79.55347183 | W91: =F91*(Forecast!$R$8/$F$2) -> 80.08978737 | X91: =F91*(Forecast!$S$8/$F$2) -> 80.53671698 | Y91: =F91*(Forecast!$T$8/$F$2) -> 80.9836466 | Z91: =F91*(Forecast!$U$8/$F$2) -> 81.43057622 | AA91: =F91*(Forecast!$V$8/$F$2) -> 81.96689176 | AB91: =F91*(Forecast!$W$8/$F$2) -> 82.41382137 | AC91: =F91*(Forecast!$X$8/$F$2) -> 82.86075099 | AD91: =F91*(Forecast!$Y$8/$F$2) -> 83.39706653 | AE91: =F91*(Forecast!$Z$8/$F$2) -> 83.84399615 | AF91: =F91*(Forecast!$AA$8/$F$2) -> 84.29092577 | AG91: =F91*(Forecast!$AB$8/$F$2) -> 84.73785538
A92: 2017-01-04T16:00:00 | B92: 28.35785294 | C92: 15.98641109 | D92: 15.91540909 | E92: 0.001953125 | F92: 60.26162624 | H92: =F92*(Forecast!$C$8/$F$2) -> 73.10231517 | I92: =F92*(Forecast!$D$8/$F$2) -> 74.53393946 | J92: =F92*(Forecast!$E$8/$F$2) -> 74.71289249 | K92: =F92*(Forecast!$F$8/$F$2) -> 74.98132205 | L92: =F92*(Forecast!$G$8/$F$2) -> 75.16027508 | M92: =F92*(Forecast!$H$8/$F$2) -> 75.42870464 | N92: =F92*(Forecast!$I$8/$F$2) -> 75.96556375 | O92: =F92*(Forecast!$J$8/$F$2) -> 76.41294634 | P92: =F92*(Forecast!$K$8/$F$2) -> 76.86032893 | Q92: =F92*(Forecast!$L$8/$F$2) -> 77.30771152 | R92: =F92*(Forecast!$M$8/$F$2) -> 77.75509411 | S92: =F92*(Forecast!$N$8/$F$2) -> 78.29195321 | T92: =F92*(Forecast!$O$8/$F$2) -> 78.7393358 | U92: =F92*(Forecast!$P$8/$F$2) -> 79.18671839 | V92: =F92*(Forecast!$Q$8/$F$2) -> 79.63410098 | W92: =F92*(Forecast!$R$8/$F$2) -> 80.17096009 | X92: =F92*(Forecast!$S$8/$F$2) -> 80.61834268 | Y92: =F92*(Forecast!$T$8/$F$2) -> 81.06572527 | Z92: =F92*(Forecast!$U$8/$F$2) -> 81.51310786 | AA92: =F92*(Forecast!$V$8/$F$2) -> 82.04996697 | AB92: =F92*(Forecast!$W$8/$F$2) -> 82.49734956 | AC92: =F92*(Forecast!$X$8/$F$2) -> 82.94473215 | AD92: =F92*(Forecast!$Y$8/$F$2) -> 83.48159125 | AE92: =F92*(Forecast!$Z$8/$F$2) -> 83.92897384 | AF92: =F92*(Forecast!$AA$8/$F$2) -> 84.37635643 | AG92: =F92*(Forecast!$AB$8/$F$2) -> 84.82373902
A93: 2017-01-04T17:00:00 | B93: 29.16563034 | C93: 16.23090553 | D93: 16.08617592 | E93: 0.001953125 | F93: 61.48466492 | H93: =F93*(Forecast!$C$8/$F$2) -> 74.5859618 | I93: =F93*(Forecast!$D$8/$F$2) -> 76.04664159 | J93: =F93*(Forecast!$E$8/$F$2) -> 76.22922656 | K93: =F93*(Forecast!$F$8/$F$2) -> 76.50310402 | L93: =F93*(Forecast!$G$8/$F$2) -> 76.685689 | M93: =F93*(Forecast!$H$8/$F$2) -> 76.95956646 | N93: =F93*(Forecast!$I$8/$F$2) -> 77.50732138 | O93: =F93*(Forecast!$J$8/$F$2) -> 77.96378381 | P93: =F93*(Forecast!$K$8/$F$2) -> 78.42024625 | Q93: =F93*(Forecast!$L$8/$F$2) -> 78.87670868 | R93: =F93*(Forecast!$M$8/$F$2) -> 79.33317112 | S93: =F93*(Forecast!$N$8/$F$2) -> 79.88092604 | T93: =F93*(Forecast!$O$8/$F$2) -> 80.33738847 | U93: =F93*(Forecast!$P$8/$F$2) -> 80.79385091 | V93: =F93*(Forecast!$Q$8/$F$2) -> 81.25031334 | W93: =F93*(Forecast!$R$8/$F$2) -> 81.79806826 | X93: =F93*(Forecast!$S$8/$F$2) -> 82.2545307 | Y93: =F93*(Forecast!$T$8/$F$2) -> 82.71099313 | Z93: =F93*(Forecast!$U$8/$F$2) -> 83.16745557 | AA93: =F93*(Forecast!$V$8/$F$2) -> 83.71521049 | AB93: =F93*(Forecast!$W$8/$F$2) -> 84.17167292 | AC93: =F93*(Forecast!$X$8/$F$2) -> 84.62813536 | AD93: =F93*(Forecast!$Y$8/$F$2) -> 85.17589028 | AE93: =F93*(Forecast!$Z$8/$F$2) -> 85.63235271 | AF93: =F93*(Forecast!$AA$8/$F$2) -> 86.08881515 | AG93: =F93*(Forecast!$AB$8/$F$2) -> 86.54527758
A94: 2017-01-04T18:00:00 | B94: 28.81616783 | C94: 16.0915451 | D94: 15.95945168 | E94: 0.001953125 | F94: 60.86911774 | H94: =F94*(Forecast!$C$8/$F$2) -> 73.83925238 | I94: =F94*(Forecast!$D$8/$F$2) -> 75.28530873 | J94: =F94*(Forecast!$E$8/$F$2) -> 75.46606577 | K94: =F94*(Forecast!$F$8/$F$2) -> 75.73720134 | L94: =F94*(Forecast!$G$8/$F$2) -> 75.91795838 | M94: =F94*(Forecast!$H$8/$F$2) -> 76.18909395 | N94: =F94*(Forecast!$I$8/$F$2) -> 76.73136508 | O94: =F94*(Forecast!$J$8/$F$2) -> 77.18325769 | P94: =F94*(Forecast!$K$8/$F$2) -> 77.6351503 | Q94: =F94*(Forecast!$L$8/$F$2) -> 78.08704291 | R94: =F94*(Forecast!$M$8/$F$2) -> 78.53893552 | S94: =F94*(Forecast!$N$8/$F$2) -> 79.08120665 | T94: =F94*(Forecast!$O$8/$F$2) -> 79.53309926 | U94: =F94*(Forecast!$P$8/$F$2) -> 79.98499187 | V94: =F94*(Forecast!$Q$8/$F$2) -> 80.43688448 | W94: =F94*(Forecast!$R$8/$F$2) -> 80.97915561 | X94: =F94*(Forecast!$S$8/$F$2) -> 81.43104822 | Y94: =F94*(Forecast!$T$8/$F$2) -> 81.88294083 | Z94: =F94*(Forecast!$U$8/$F$2) -> 82.33483344 | AA94: =F94*(Forecast!$V$8/$F$2) -> 82.87710457 | AB94: =F94*(Forecast!$W$8/$F$2) -> 83.32899718 | AC94: =F94*(Forecast!$X$8/$F$2) -> 83.78088979 | AD94: =F94*(Forecast!$Y$8/$F$2) -> 84.32316092 | AE94: =F94*(Forecast!$Z$8/$F$2) -> 84.77505353 | AF94: =F94*(Forecast!$AA$8/$F$2) -> 85.22694614 | AG94: =F94*(Forecast!$AB$8/$F$2) -> 85.67883875
A95: 2017-01-04T19:00:00 | B95: 28.62563133 | C95: 15.80042648 | D95: 15.72605801 | E95: 0.001953125 | F95: 60.15406895 | H95: =F95*(Forecast!$C$8/$F$2) -> 72.97183931 | I95: =F95*(Forecast!$D$8/$F$2) -> 74.40090838 | J95: =F95*(Forecast!$E$8/$F$2) -> 74.57954202 | K95: =F95*(Forecast!$F$8/$F$2) -> 74.84749247 | L95: =F95*(Forecast!$G$8/$F$2) -> 75.0261261 | M95: =F95*(Forecast!$H$8/$F$2) -> 75.29407655 | N95: =F95*(Forecast!$I$8/$F$2) -> 75.82997745 | O95: =F95*(Forecast!$J$8/$F$2) -> 76.27656153 | P95: =F95*(Forecast!$K$8/$F$2) -> 76.72314562 | Q95: =F95*(Forecast!$L$8/$F$2) -> 77.1697297 | R95: =F95*(Forecast!$M$8/$F$2) -> 77.61631379 | S95: =F95*(Forecast!$N$8/$F$2) -> 78.15221469 | T95: =F95*(Forecast!$O$8/$F$2) -> 78.59879877 | U95: =F95*(Forecast!$P$8/$F$2) -> 79.04538285 | V95: =F95*(Forecast!$Q$8/$F$2) -> 79.49196694 | W95: =F95*(Forecast!$R$8/$F$2) -> 80.02786784 | X95: =F95*(Forecast!$S$8/$F$2) -> 80.47445192 | Y95: =F95*(Forecast!$T$8/$F$2) -> 80.92103601 | Z95: =F95*(Forecast!$U$8/$F$2) -> 81.36762009 | AA95: =F95*(Forecast!$V$8/$F$2) -> 81.90352099 | AB95: =F95*(Forecast!$W$8/$F$2) -> 82.35010508 | AC95: =F95*(Forecast!$X$8/$F$2) -> 82.79668916 | AD95: =F95*(Forecast!$Y$8/$F$2) -> 83.33259006 | AE95: =F95*(Forecast!$Z$8/$F$2) -> 83.77917414 | AF95: =F95*(Forecast!$AA$8/$F$2) -> 84.22575823 | AG95: =F95*(Forecast!$AB$8/$F$2) -> 84.67234231
A96: 2017-01-04T20:00:00 | B96: 27.80686569 | C96: 15.57281494 | D96: 15.39957809 | E96: 0.001953125 | F96: 58.78121185 | H96: =F96*(Forecast!$C$8/$F$2) -> 71.3064506 | I96: =F96*(Forecast!$D$8/$F$2) -> 72.70290496 | J96: =F96*(Forecast!$E$8/$F$2) -> 72.87746176 | K96: =F96*(Forecast!$F$8/$F$2) -> 73.13929695 | L96: =F96*(Forecast!$G$8/$F$2) -> 73.31385374 | M96: =F96*(Forecast!$H$8/$F$2) -> 73.57568893 | N96: =F96*(Forecast!$I$8/$F$2) -> 74.09935932 | O96: =F96*(Forecast!$J$8/$F$2) -> 74.5357513 | P96: =F96*(Forecast!$K$8/$F$2) -> 74.97214329 | Q96: =F96*(Forecast!$L$8/$F$2) -> 75.40853528 | R96: =F96*(Forecast!$M$8/$F$2) -> 75.84492726 | S96: =F96*(Forecast!$N$8/$F$2) -> 76.36859765 | T96: =F96*(Forecast!$O$8/$F$2) -> 76.80498963 | U96: =F96*(Forecast!$P$8/$F$2) -> 77.24138162 | V96: =F96*(Forecast!$Q$8/$F$2) -> 77.67777361 | W96: =F96*(Forecast!$R$8/$F$2) -> 78.20144399 | X96: =F96*(Forecast!$S$8/$F$2) -> 78.63783598 | Y96: =F96*(Forecast!$T$8/$F$2) -> 79.07422796 | Z96: =F96*(Forecast!$U$8/$F$2) -> 79.51061995 | AA96: =F96*(Forecast!$V$8/$F$2) -> 80.03429033 | AB96: =F96*(Forecast!$W$8/$F$2) -> 80.47068232 | AC96: =F96*(Forecast!$X$8/$F$2) -> 80.90707431 | AD96: =F96*(Forecast!$Y$8/$F$2) -> 81.43074469 | AE96: =F96*(Forecast!$Z$8/$F$2) -> 81.86713668 | AF96: =F96*(Forecast!$AA$8/$F$2) -> 82.30352866 | AG96: =F96*(Forecast!$AB$8/$F$2) -> 82.73992065
A97: 2017-01-04T21:00:00 | B97: 27.35422134 | C97: 15.30281544 | D97: 14.91831303 | E97: 0.001953125 | F97: 57.57730293 | H97: =F97*(Forecast!$C$8/$F$2) -> 69.84600994 | I97: =F97*(Forecast!$D$8/$F$2) -> 71.21386326 | J97: =F97*(Forecast!$E$8/$F$2) -> 71.38484492 | K97: =F97*(Forecast!$F$8/$F$2) -> 71.64131742 | L97: =F97*(Forecast!$G$8/$F$2) -> 71.81229908 | M97: =F97*(Forecast!$H$8/$F$2) -> 72.06877158 | N97: =F97*(Forecast!$I$8/$F$2) -> 72.58171657 | O97: =F97*(Forecast!$J$8/$F$2) -> 73.00917073 | P97: =F97*(Forecast!$K$8/$F$2) -> 73.4366249 | Q97: =F97*(Forecast!$L$8/$F$2) -> 73.86407906 | R97: =F97*(Forecast!$M$8/$F$2) -> 74.29153322 | S97: =F97*(Forecast!$N$8/$F$2) -> 74.80447821 | T97: =F97*(Forecast!$O$8/$F$2) -> 75.23193237 | U97: =F97*(Forecast!$P$8/$F$2) -> 75.65938653 | V97: =F97*(Forecast!$Q$8/$F$2) -> 76.0868407 | W97: =F97*(Forecast!$R$8/$F$2) -> 76.59978569 | X97: =F97*(Forecast!$S$8/$F$2) -> 77.02723985 | Y97: =F97*(Forecast!$T$8/$F$2) -> 77.45469401 | Z97: =F97*(Forecast!$U$8/$F$2) -> 77.88214817 | AA97: =F97*(Forecast!$V$8/$F$2) -> 78.39509317 | AB97: =F97*(Forecast!$W$8/$F$2) -> 78.82254733 | AC97: =F97*(Forecast!$X$8/$F$2) -> 79.25000149 | AD97: =F97*(Forecast!$Y$8/$F$2) -> 79.76294648 | AE97: =F97*(Forecast!$Z$8/$F$2) -> 80.19040064 | AF97: =F97*(Forecast!$AA$8/$F$2) -> 80.6178548 | AG97: =F97*(Forecast!$AB$8/$F$2) -> 81.04530897
A98: 2017-01-04T22:00:00 | B98: 26.47492218 | C98: 14.79080963 | D98: 14.67324448 | E98: 0.001953125 | F98: 55.94092941 | H98: =F98*(Forecast!$C$8/$F$2) -> 67.86095411 | I98: =F98*(Forecast!$D$8/$F$2) -> 69.1899324 | J98: =F98*(Forecast!$E$8/$F$2) -> 69.35605469 | K98: =F98*(Forecast!$F$8/$F$2) -> 69.60523812 | L98: =F98*(Forecast!$G$8/$F$2) -> 69.7713604 | M98: =F98*(Forecast!$H$8/$F$2) -> 70.02054383 | N98: =F98*(Forecast!$I$8/$F$2) -> 70.51891069 | O98: =F98*(Forecast!$J$8/$F$2) -> 70.93421641 | P98: =F98*(Forecast!$K$8/$F$2) -> 71.34952213 | Q98: =F98*(Forecast!$L$8/$F$2) -> 71.76482784 | R98: =F98*(Forecast!$M$8/$F$2) -> 72.18013356 | S98: =F98*(Forecast!$N$8/$F$2) -> 72.67850042 | T98: =F98*(Forecast!$O$8/$F$2) -> 73.09380614 | U98: =F98*(Forecast!$P$8/$F$2) -> 73.50911185 | V98: =F98*(Forecast!$Q$8/$F$2) -> 73.92441757 | W98: =F98*(Forecast!$R$8/$F$2) -> 74.42278443 | X98: =F98*(Forecast!$S$8/$F$2) -> 74.83809015 | Y98: =F98*(Forecast!$T$8/$F$2) -> 75.25339586 | Z98: =F98*(Forecast!$U$8/$F$2) -> 75.66870158 | AA98: =F98*(Forecast!$V$8/$F$2) -> 76.16706844 | AB98: =F98*(Forecast!$W$8/$F$2) -> 76.58237416 | AC98: =F98*(Forecast!$X$8/$F$2) -> 76.99767987 | AD98: =F98*(Forecast!$Y$8/$F$2) -> 77.49604673 | AE98: =F98*(Forecast!$Z$8/$F$2) -> 77.91135245 | AF98: =F98*(Forecast!$AA$8/$F$2) -> 78.32665817 | AG98: =F98*(Forecast!$AB$8/$F$2) -> 78.74196388
A99: 2017-01-04T23:00:00 | B99: 24.88360023 | C99: 13.95767975 | D99: 13.56471252 | E99: 0.001953125 | F99: 52.40794563 | H99: =F99*(Forecast!$C$8/$F$2) -> 63.57515384 | I99: =F99*(Forecast!$D$8/$F$2) -> 64.82019969 | J99: =F99*(Forecast!$E$8/$F$2) -> 64.97583043 | K99: =F99*(Forecast!$F$8/$F$2) -> 65.20927652 | L99: =F99*(Forecast!$G$8/$F$2) -> 65.36490725 | M99: =F99*(Forecast!$H$8/$F$2) -> 65.59835335 | N99: =F99*(Forecast!$I$8/$F$2) -> 66.06524555 | O99: =F99*(Forecast!$J$8/$F$2) -> 66.45432237 | P99: =F99*(Forecast!$K$8/$F$2) -> 66.8433992 | Q99: =F99*(Forecast!$L$8/$F$2) -> 67.23247603 | R99: =F99*(Forecast!$M$8/$F$2) -> 67.62155286 | S99: =F99*(Forecast!$N$8/$F$2) -> 68.08844506 | T99: =F99*(Forecast!$O$8/$F$2) -> 68.47752189 | U99: =F99*(Forecast!$P$8/$F$2) -> 68.86659871 | V99: =F99*(Forecast!$Q$8/$F$2) -> 69.25567554 | W99: =F99*(Forecast!$R$8/$F$2) -> 69.72256774 | X99: =F99*(Forecast!$S$8/$F$2) -> 70.11164457 | Y99: =F99*(Forecast!$T$8/$F$2) -> 70.5007214 | Z99: =F99*(Forecast!$U$8/$F$2) -> 70.88979822 | AA99: =F99*(Forecast!$V$8/$F$2) -> 71.35669042 | AB99: =F99*(Forecast!$W$8/$F$2) -> 71.74576725 | AC99: =F99*(Forecast!$X$8/$F$2) -> 72.13484408 | AD99: =F99*(Forecast!$Y$8/$F$2) -> 72.60173627 | AE99: =F99*(Forecast!$Z$8/$F$2) -> 72.9908131 | AF99: =F99*(Forecast!$AA$8/$F$2) -> 73.37988993 | AG99: =F99*(Forecast!$AB$8/$F$2) -> 73.76896676
A100: 2017-01-05 | B100: 23.56689644 | C100: 13.19293118 | D100: 12.90306091 | E100: 0.001953125 | F100: 49.66484165 | H100: =F100*(Forecast!$C$8/$F$2) -> 60.24754282 | I100: =F100*(Forecast!$D$8/$F$2) -> 61.42742126 | J100: =F100*(Forecast!$E$8/$F$2) -> 61.57490606 | K100: =F100*(Forecast!$F$8/$F$2) -> 61.79613327 | L100: =F100*(Forecast!$G$8/$F$2) -> 61.94361807 | M100: =F100*(Forecast!$H$8/$F$2) -> 62.16484528 | N100: =F100*(Forecast!$I$8/$F$2) -> 62.6072997 | O100: =F100*(Forecast!$J$8/$F$2) -> 62.97601171 | P100: =F100*(Forecast!$K$8/$F$2) -> 63.34472372 | Q100: =F100*(Forecast!$L$8/$F$2) -> 63.71343573 | R100: =F100*(Forecast!$M$8/$F$2) -> 64.08214775 | S100: =F100*(Forecast!$N$8/$F$2) -> 64.52460216 | T100: =F100*(Forecast!$O$8/$F$2) -> 64.89331417 | U100: =F100*(Forecast!$P$8/$F$2) -> 65.26202619 | V100: =F100*(Forecast!$Q$8/$F$2) -> 65.6307382 | W100: =F100*(Forecast!$R$8/$F$2) -> 66.07319261 | X100: =F100*(Forecast!$S$8/$F$2) -> 66.44190463 | Y100: =F100*(Forecast!$T$8/$F$2) -> 66.81061664 | Z100: =F100*(Forecast!$U$8/$F$2) -> 67.17932865 | AA100: =F100*(Forecast!$V$8/$F$2) -> 67.62178306 | AB100: =F100*(Forecast!$W$8/$F$2) -> 67.99049508 | AC100: =F100*(Forecast!$X$8/$F$2) -> 68.35920709 | AD100: =F100*(Forecast!$Y$8/$F$2) -> 68.8016615 | AE100: =F100*(Forecast!$Z$8/$F$2) -> 69.17037352 | AF100: =F100*(Forecast!$AA$8/$F$2) -> 69.53908553 | AG100: =F100*(Forecast!$AB$8/$F$2) -> 69.90779754
A101: 2017-01-05T01:00:00 | B101: 22.58086777 | C101: 12.56159687 | D101: 12.39305115 | E101: 0.001953125 | F101: 47.53746891 | H101: =F101*(Forecast!$C$8/$F$2) -> 57.66686449 | I101: =F101*(Forecast!$D$8/$F$2) -> 58.79620333 | J101: =F101*(Forecast!$E$8/$F$2) -> 58.93737069 | K101: =F101*(Forecast!$F$8/$F$2) -> 59.14912172 | L101: =F101*(Forecast!$G$8/$F$2) -> 59.29028907 | M101: =F101*(Forecast!$H$8/$F$2) -> 59.50204011 | N101: =F101*(Forecast!$I$8/$F$2) -> 59.92554217 | O101: =F101*(Forecast!$J$8/$F$2) -> 60.27846056 | P101: =F101*(Forecast!$K$8/$F$2) -> 60.63137895 | Q101: =F101*(Forecast!$L$8/$F$2) -> 60.98429733 | R101: =F101*(Forecast!$M$8/$F$2) -> 61.33721572 | S101: =F101*(Forecast!$N$8/$F$2) -> 61.76071779 | T101: =F101*(Forecast!$O$8/$F$2) -> 62.11363617 | U101: =F101*(Forecast!$P$8/$F$2) -> 62.46655456 | V101: =F101*(Forecast!$Q$8/$F$2) -> 62.81947295 | W101: =F101*(Forecast!$R$8/$F$2) -> 63.24297501 | X101: =F101*(Forecast!$S$8/$F$2) -> 63.5958934 | Y101: =F101*(Forecast!$T$8/$F$2) -> 63.94881179 | Z101: =F101*(Forecast!$U$8/$F$2) -> 64.30173018 | AA101: =F101*(Forecast!$V$8/$F$2) -> 64.72523224 | AB101: =F101*(Forecast!$W$8/$F$2) -> 65.07815063 | AC101: =F101*(Forecast!$X$8/$F$2) -> 65.43106901 | AD101: =F101*(Forecast!$Y$8/$F$2) -> 65.85457108 | AE101: =F101*(Forecast!$Z$8/$F$2) -> 66.20748947 | AF101: =F101*(Forecast!$AA$8/$F$2) -> 66.56040785 | AG101: =F101*(Forecast!$AB$8/$F$2) -> 66.91332624
A102: 2017-01-05T02:00:00 | B102: 21.9043026 | C102: 12.1856432 | D102: 12.01984215 | E102: 0.001953125 | F102: 46.11174107 | H102: =F102*(Forecast!$C$8/$F$2) -> 55.93733921 | I102: =F102*(Forecast!$D$8/$F$2) -> 57.0328073 | J102: =F102*(Forecast!$E$8/$F$2) -> 57.16974081 | K102: =F102*(Forecast!$F$8/$F$2) -> 57.37514107 | L102: =F102*(Forecast!$G$8/$F$2) -> 57.51207459 | M102: =F102*(Forecast!$H$8/$F$2) -> 57.71747485 | N102: =F102*(Forecast!$I$8/$F$2) -> 58.12827538 | O102: =F102*(Forecast!$J$8/$F$2) -> 58.47060916 | P102: =F102*(Forecast!$K$8/$F$2) -> 58.81294294 | Q102: =F102*(Forecast!$L$8/$F$2) -> 59.15527672 | R102: =F102*(Forecast!$M$8/$F$2) -> 59.49761049 | S102: =F102*(Forecast!$N$8/$F$2) -> 59.90841103 | T102: =F102*(Forecast!$O$8/$F$2) -> 60.2507448 | U102: =F102*(Forecast!$P$8/$F$2) -> 60.59307858 | V102: =F102*(Forecast!$Q$8/$F$2) -> 60.93541236 | W102: =F102*(Forecast!$R$8/$F$2) -> 61.34621289 | X102: =F102*(Forecast!$S$8/$F$2) -> 61.68854667 | Y102: =F102*(Forecast!$T$8/$F$2) -> 62.03088045 | Z102: =F102*(Forecast!$U$8/$F$2) -> 62.37321422 | AA102: =F102*(Forecast!$V$8/$F$2) -> 62.78401476 | AB102: =F102*(Forecast!$W$8/$F$2) -> 63.12634853 | AC102: =F102*(Forecast!$X$8/$F$2) -> 63.46868231 | AD102: =F102*(Forecast!$Y$8/$F$2) -> 63.87948284 | AE102: =F102*(Forecast!$Z$8/$F$2) -> 64.22181662 | AF102: =F102*(Forecast!$AA$8/$F$2) -> 64.5641504 | AG102: =F102*(Forecast!$AB$8/$F$2) -> 64.90648417
A103: 2017-01-05T03:00:00 | B103: 21.14371872 | C103: 11.82363224 | D103: 11.70105267 | E103: 0.001953125 | F103: 44.67035675 | H103: =F103*(Forecast!$C$8/$F$2) -> 54.18882134 | I103: =F103*(Forecast!$D$8/$F$2) -> 55.25004672 | J103: =F103*(Forecast!$E$8/$F$2) -> 55.3826999 | K103: =F103*(Forecast!$F$8/$F$2) -> 55.58167966 | L103: =F103*(Forecast!$G$8/$F$2) -> 55.71433283 | M103: =F103*(Forecast!$H$8/$F$2) -> 55.91331259 | N103: =F103*(Forecast!$I$8/$F$2) -> 56.31127211 | O103: =F103*(Forecast!$J$8/$F$2) -> 56.64290505 | P103: =F103*(Forecast!$K$8/$F$2) -> 56.97453798 | Q103: =F103*(Forecast!$L$8/$F$2) -> 57.30617091 | R103: =F103*(Forecast!$M$8/$F$2) -> 57.63780385 | S103: =F103*(Forecast!$N$8/$F$2) -> 58.03576337 | T103: =F103*(Forecast!$O$8/$F$2) -> 58.3673963 | U103: =F103*(Forecast!$P$8/$F$2) -> 58.69902923 | V103: =F103*(Forecast!$Q$8/$F$2) -> 59.03066217 | W103: =F103*(Forecast!$R$8/$F$2) -> 59.42862169 | X103: =F103*(Forecast!$S$8/$F$2) -> 59.76025462 | Y103: =F103*(Forecast!$T$8/$F$2) -> 60.09188755 | Z103: =F103*(Forecast!$U$8/$F$2) -> 60.42352049 | AA103: =F103*(Forecast!$V$8/$F$2) -> 60.82148001 | AB103: =F103*(Forecast!$W$8/$F$2) -> 61.15311294 | AC103: =F103*(Forecast!$X$8/$F$2) -> 61.48474587 | AD103: =F103*(Forecast!$Y$8/$F$2) -> 61.88270539 | AE103: =F103*(Forecast!$Z$8/$F$2) -> 62.21433833 | AF103: =F103*(Forecast!$AA$8/$F$2) -> 62.54597126 | AG103: =F103*(Forecast!$AB$8/$F$2) -> 62.8776042
A104: 2017-01-05T04:00:00 | B104: 21.06156731 | C104: 11.74617481 | D104: 11.67917538 | E104: 0.001953125 | F104: 44.48887062 | H104: =F104*(Forecast!$C$8/$F$2) -> 53.96866372 | I104: =F104*(Forecast!$D$8/$F$2) -> 55.02557757 | J104: =F104*(Forecast!$E$8/$F$2) -> 55.1576918 | K104: =F104*(Forecast!$F$8/$F$2) -> 55.35586315 | L104: =F104*(Forecast!$G$8/$F$2) -> 55.48797738 | M104: =F104*(Forecast!$H$8/$F$2) -> 55.68614873 | N104: =F104*(Forecast!$I$8/$F$2) -> 56.08249143 | O104: =F104*(Forecast!$J$8/$F$2) -> 56.41277701 | P104: =F104*(Forecast!$K$8/$F$2) -> 56.74306259 | Q104: =F104*(Forecast!$L$8/$F$2) -> 57.07334817 | R104: =F104*(Forecast!$M$8/$F$2) -> 57.40363374 | S104: =F104*(Forecast!$N$8/$F$2) -> 57.79997644 | T104: =F104*(Forecast!$O$8/$F$2) -> 58.13026202 | U104: =F104*(Forecast!$P$8/$F$2) -> 58.4605476 | V104: =F104*(Forecast!$Q$8/$F$2) -> 58.79083318 | W104: =F104*(Forecast!$R$8/$F$2) -> 59.18717587 | X104: =F104*(Forecast!$S$8/$F$2) -> 59.51746145 | Y104: =F104*(Forecast!$T$8/$F$2) -> 59.84774703 | Z104: =F104*(Forecast!$U$8/$F$2) -> 60.17803261 | AA104: =F104*(Forecast!$V$8/$F$2) -> 60.57437531 | AB104: =F104*(Forecast!$W$8/$F$2) -> 60.90466089 | AC104: =F104*(Forecast!$X$8/$F$2) -> 61.23494647 | AD104: =F104*(Forecast!$Y$8/$F$2) -> 61.63128916 | AE104: =F104*(Forecast!$Z$8/$F$2) -> 61.96157474 | AF104: =F104*(Forecast!$AA$8/$F$2) -> 62.29186032 | AG104: =F104*(Forecast!$AB$8/$F$2) -> 62.6221459
A105: 2017-01-05T05:00:00 | B105: 20.70562935 | C105: 11.53822899 | D105: 11.65729809 | E105: 0.001953125 | F105: 43.90310955 | H105: =F105*(Forecast!$C$8/$F$2) -> 53.2580873 | I105: =F105*(Forecast!$D$8/$F$2) -> 54.30108534 | J105: =F105*(Forecast!$E$8/$F$2) -> 54.43146009 | K105: =F105*(Forecast!$F$8/$F$2) -> 54.62702223 | L105: =F105*(Forecast!$G$8/$F$2) -> 54.75739698 | M105: =F105*(Forecast!$H$8/$F$2) -> 54.95295911 | N105: =F105*(Forecast!$I$8/$F$2) -> 55.34408338 | O105: =F105*(Forecast!$J$8/$F$2) -> 55.67002026 | P105: =F105*(Forecast!$K$8/$F$2) -> 55.99595715 | Q105: =F105*(Forecast!$L$8/$F$2) -> 56.32189404 | R105: =F105*(Forecast!$M$8/$F$2) -> 56.64783092 | S105: =F105*(Forecast!$N$8/$F$2) -> 57.03895519 | T105: =F105*(Forecast!$O$8/$F$2) -> 57.36489207 | U105: =F105*(Forecast!$P$8/$F$2) -> 57.69082896 | V105: =F105*(Forecast!$Q$8/$F$2) -> 58.01676585 | W105: =F105*(Forecast!$R$8/$F$2) -> 58.40789011 | X105: =F105*(Forecast!$S$8/$F$2) -> 58.733827 | Y105: =F105*(Forecast!$T$8/$F$2) -> 59.05976389 | Z105: =F105*(Forecast!$U$8/$F$2) -> 59.38570077 | AA105: =F105*(Forecast!$V$8/$F$2) -> 59.77682504 | AB105: =F105*(Forecast!$W$8/$F$2) -> 60.10276192 | AC105: =F105*(Forecast!$X$8/$F$2) -> 60.42869881 | AD105: =F105*(Forecast!$Y$8/$F$2) -> 60.81982307 | AE105: =F105*(Forecast!$Z$8/$F$2) -> 61.14575996 | AF105: =F105*(Forecast!$AA$8/$F$2) -> 61.47169685 | AG105: =F105*(Forecast!$AB$8/$F$2) -> 61.79763373
A106: 2017-01-05T06:00:00 | B106: 20.70562935 | C106: 11.705369 | D106: 11.63542175 | E106: 0.001953125 | F106: 44.04837322 | H106: =F106*(Forecast!$C$8/$F$2) -> 53.4343041 | I106: =F106*(Forecast!$D$8/$F$2) -> 54.48075314 | J106: =F106*(Forecast!$E$8/$F$2) -> 54.61155927 | K106: =F106*(Forecast!$F$8/$F$2) -> 54.80776846 | L106: =F106*(Forecast!$G$8/$F$2) -> 54.93857459 | M106: =F106*(Forecast!$H$8/$F$2) -> 55.13478379 | N106: =F106*(Forecast!$I$8/$F$2) -> 55.52720218 | O106: =F106*(Forecast!$J$8/$F$2) -> 55.8542175 | P106: =F106*(Forecast!$K$8/$F$2) -> 56.18123283 | Q106: =F106*(Forecast!$L$8/$F$2) -> 56.50824815 | R106: =F106*(Forecast!$M$8/$F$2) -> 56.83526348 | S106: =F106*(Forecast!$N$8/$F$2) -> 57.22768187 | T106: =F106*(Forecast!$O$8/$F$2) -> 57.55469719 | U106: =F106*(Forecast!$P$8/$F$2) -> 57.88171252 | V106: =F106*(Forecast!$Q$8/$F$2) -> 58.20872784 | W106: =F106*(Forecast!$R$8/$F$2) -> 58.60114623 | X106: =F106*(Forecast!$S$8/$F$2) -> 58.92816156 | Y106: =F106*(Forecast!$T$8/$F$2) -> 59.25517688 | Z106: =F106*(Forecast!$U$8/$F$2) -> 59.58219221 | AA106: =F106*(Forecast!$V$8/$F$2) -> 59.9746106 | AB106: =F106*(Forecast!$W$8/$F$2) -> 60.30162592 | AC106: =F106*(Forecast!$X$8/$F$2) -> 60.62864125 | AD106: =F106*(Forecast!$Y$8/$F$2) -> 61.02105964 | AE106: =F106*(Forecast!$Z$8/$F$2) -> 61.34807496 | AF106: =F106*(Forecast!$AA$8/$F$2) -> 61.67509029 | AG106: =F106*(Forecast!$AB$8/$F$2) -> 62.00210561
A107: 2017-01-05T07:00:00 | B107: 21.17535591 | C107: 11.87250805 | D107: 11.61354446 | E107: 0.001953125 | F107: 44.66336155 | H107: =F107*(Forecast!$C$8/$F$2) -> 54.18033558 | I107: =F107*(Forecast!$D$8/$F$2) -> 55.24139479 | J107: =F107*(Forecast!$E$8/$F$2) -> 55.37402719 | K107: =F107*(Forecast!$F$8/$F$2) -> 55.57297579 | L107: =F107*(Forecast!$G$8/$F$2) -> 55.70560819 | M107: =F107*(Forecast!$H$8/$F$2) -> 55.90455679 | N107: =F107*(Forecast!$I$8/$F$2) -> 56.30245399 | O107: =F107*(Forecast!$J$8/$F$2) -> 56.63403499 | P107: =F107*(Forecast!$K$8/$F$2) -> 56.96561599 | Q107: =F107*(Forecast!$L$8/$F$2) -> 57.29719699 | R107: =F107*(Forecast!$M$8/$F$2) -> 57.62877799 | S107: =F107*(Forecast!$N$8/$F$2) -> 58.02667519 | T107: =F107*(Forecast!$O$8/$F$2) -> 58.3582562 | U107: =F107*(Forecast!$P$8/$F$2) -> 58.6898372 | V107: =F107*(Forecast!$Q$8/$F$2) -> 59.0214182 | W107: =F107*(Forecast!$R$8/$F$2) -> 59.4193154 | X107: =F107*(Forecast!$S$8/$F$2) -> 59.7508964 | Y107: =F107*(Forecast!$T$8/$F$2) -> 60.0824774 | Z107: =F107*(Forecast!$U$8/$F$2) -> 60.4140584 | AA107: =F107*(Forecast!$V$8/$F$2) -> 60.8119556 | AB107: =F107*(Forecast!$W$8/$F$2) -> 61.14353661 | AC107: =F107*(Forecast!$X$8/$F$2) -> 61.47511761 | AD107: =F107*(Forecast!$Y$8/$F$2) -> 61.87301481 | AE107: =F107*(Forecast!$Z$8/$F$2) -> 62.20459581 | AF107: =F107*(Forecast!$AA$8/$F$2) -> 62.53617681 | AG107: =F107*(Forecast!$AB$8/$F$2) -> 62.86775781
A108: 2017-01-05T08:00:00 | B108: 21.90478325 | C108: 12.14037228 | D108: 12.00581455 | E108: 0.001712483121 | F108: 46.05268256 | H108: =F108*(Forecast!$C$8/$F$2) -> 55.86569638 | I108: =F108*(Forecast!$D$8/$F$2) -> 56.95976142 | J108: =F108*(Forecast!$E$8/$F$2) -> 57.09651956 | K108: =F108*(Forecast!$F$8/$F$2) -> 57.30165675 | L108: =F108*(Forecast!$G$8/$F$2) -> 57.43841488 | M108: =F108*(Forecast!$H$8/$F$2) -> 57.64355208 | N108: =F108*(Forecast!$I$8/$F$2) -> 58.05382647 | O108: =F108*(Forecast!$J$8/$F$2) -> 58.3957218 | P108: =F108*(Forecast!$K$8/$F$2) -> 58.73761712 | Q108: =F108*(Forecast!$L$8/$F$2) -> 59.07951245 | R108: =F108*(Forecast!$M$8/$F$2) -> 59.42140778 | S108: =F108*(Forecast!$N$8/$F$2) -> 59.83168217 | T108: =F108*(Forecast!$O$8/$F$2) -> 60.1735775 | U108: =F108*(Forecast!$P$8/$F$2) -> 60.51547282 | V108: =F108*(Forecast!$Q$8/$F$2) -> 60.85736815 | W108: =F108*(Forecast!$R$8/$F$2) -> 61.26764254 | X108: =F108*(Forecast!$S$8/$F$2) -> 61.60953787 | Y108: =F108*(Forecast!$T$8/$F$2) -> 61.95143319 | Z108: =F108*(Forecast!$U$8/$F$2) -> 62.29332852 | AA108: =F108*(Forecast!$V$8/$F$2) -> 62.70360291 | AB108: =F108*(Forecast!$W$8/$F$2) -> 63.04549824 | AC108: =F108*(Forecast!$X$8/$F$2) -> 63.38739357 | AD108: =F108*(Forecast!$Y$8/$F$2) -> 63.79766796 | AE108: =F108*(Forecast!$Z$8/$F$2) -> 64.13956328 | AF108: =F108*(Forecast!$AA$8/$F$2) -> 64.48145861 | AG108: =F108*(Forecast!$AB$8/$F$2) -> 64.82335394
A109: 2017-01-05T09:00:00 | B109: 21.64746475 | C109: 12.17195129 | D109: 11.88308811 | E109: 0.001058169873 | F109: 45.70356233 | H109: =F109*(Forecast!$C$8/$F$2) -> 55.44218479 | I109: =F109*(Forecast!$D$8/$F$2) -> 56.52795585 | J109: =F109*(Forecast!$E$8/$F$2) -> 56.66367723 | K109: =F109*(Forecast!$F$8/$F$2) -> 56.8672593 | L109: =F109*(Forecast!$G$8/$F$2) -> 57.00298069 | M109: =F109*(Forecast!$H$8/$F$2) -> 57.20656276 | N109: =F109*(Forecast!$I$8/$F$2) -> 57.61372691 | O109: =F109*(Forecast!$J$8/$F$2) -> 57.95303036 | P109: =F109*(Forecast!$K$8/$F$2) -> 58.29233382 | Q109: =F109*(Forecast!$L$8/$F$2) -> 58.63163728 | R109: =F109*(Forecast!$M$8/$F$2) -> 58.97094073 | S109: =F109*(Forecast!$N$8/$F$2) -> 59.37810488 | T109: =F109*(Forecast!$O$8/$F$2) -> 59.71740834 | U109: =F109*(Forecast!$P$8/$F$2) -> 60.05671179 | V109: =F109*(Forecast!$Q$8/$F$2) -> 60.39601525 | W109: =F109*(Forecast!$R$8/$F$2) -> 60.8031794 | X109: =F109*(Forecast!$S$8/$F$2) -> 61.14248286 | Y109: =F109*(Forecast!$T$8/$F$2) -> 61.48178631 | Z109: =F109*(Forecast!$U$8/$F$2) -> 61.82108977 | AA109: =F109*(Forecast!$V$8/$F$2) -> 62.22825392 | AB109: =F109*(Forecast!$W$8/$F$2) -> 62.56755737 | AC109: =F109*(Forecast!$X$8/$F$2) -> 62.90686083 | AD109: =F109*(Forecast!$Y$8/$F$2) -> 63.31402498 | AE109: =F109*(Forecast!$Z$8/$F$2) -> 63.65332843 | AF109: =F109*(Forecast!$AA$8/$F$2) -> 63.99263189 | AG109: =F109*(Forecast!$AB$8/$F$2) -> 64.33193535
A110: 2017-01-05T10:00:00 | B110: 20.9218235 | C110: 11.53944111 | D110: 11.33076572 | E110: 0.0004038566549 | F110: 43.79243419 | H110: =F110*(Forecast!$C$8/$F$2) -> 53.12382898 | I110: =F110*(Forecast!$D$8/$F$2) -> 54.16419772 | J110: =F110*(Forecast!$E$8/$F$2) -> 54.29424381 | K110: =F110*(Forecast!$F$8/$F$2) -> 54.48931295 | L110: =F110*(Forecast!$G$8/$F$2) -> 54.61935904 | M110: =F110*(Forecast!$H$8/$F$2) -> 54.81442818 | N110: =F110*(Forecast!$I$8/$F$2) -> 55.20456646 | O110: =F110*(Forecast!$J$8/$F$2) -> 55.5296817 | P110: =F110*(Forecast!$K$8/$F$2) -> 55.85479693 | Q110: =F110*(Forecast!$L$8/$F$2) -> 56.17991216 | R110: =F110*(Forecast!$M$8/$F$2) -> 56.50502739 | S110: =F110*(Forecast!$N$8/$F$2) -> 56.89516567 | T110: =F110*(Forecast!$O$8/$F$2) -> 57.2202809 | U110: =F110*(Forecast!$P$8/$F$2) -> 57.54539614 | V110: =F110*(Forecast!$Q$8/$F$2) -> 57.87051137 | W110: =F110*(Forecast!$R$8/$F$2) -> 58.26064965 | X110: =F110*(Forecast!$S$8/$F$2) -> 58.58576488 | Y110: =F110*(Forecast!$T$8/$F$2) -> 58.91088011 | Z110: =F110*(Forecast!$U$8/$F$2) -> 59.23599535 | AA110: =F110*(Forecast!$V$8/$F$2) -> 59.62613362 | AB110: =F110*(Forecast!$W$8/$F$2) -> 59.95124886 | AC110: =F110*(Forecast!$X$8/$F$2) -> 60.27636409 | AD110: =F110*(Forecast!$Y$8/$F$2) -> 60.66650237 | AE110: =F110*(Forecast!$Z$8/$F$2) -> 60.9916176 | AF110: =F110*(Forecast!$AA$8/$F$2) -> 61.31673283 | AG110: =F110*(Forecast!$AB$8/$F$2) -> 61.64184806
A111: 2017-01-05T11:00:00 | B111: 20.21434784 | C111: 11.45455265 | D111: 11.02653599 | E111: 0.001704020309 | F111: 42.6971405 | H111: =F111*(Forecast!$C$8/$F$2) -> 51.79514753 | I111: =F111*(Forecast!$D$8/$F$2) -> 52.80949558 | J111: =F111*(Forecast!$E$8/$F$2) -> 52.93628909 | K111: =F111*(Forecast!$F$8/$F$2) -> 53.12647935 | L111: =F111*(Forecast!$G$8/$F$2) -> 53.25327286 | M111: =F111*(Forecast!$H$8/$F$2) -> 53.44346312 | N111: =F111*(Forecast!$I$8/$F$2) -> 53.82384364 | O111: =F111*(Forecast!$J$8/$F$2) -> 54.1408274 | P111: =F111*(Forecast!$K$8/$F$2) -> 54.45781117 | Q111: =F111*(Forecast!$L$8/$F$2) -> 54.77479494 | R111: =F111*(Forecast!$M$8/$F$2) -> 55.09177871 | S111: =F111*(Forecast!$N$8/$F$2) -> 55.47215923 | T111: =F111*(Forecast!$O$8/$F$2) -> 55.78914299 | U111: =F111*(Forecast!$P$8/$F$2) -> 56.10612676 | V111: =F111*(Forecast!$Q$8/$F$2) -> 56.42311053 | W111: =F111*(Forecast!$R$8/$F$2) -> 56.80349105 | X111: =F111*(Forecast!$S$8/$F$2) -> 57.12047481 | Y111: =F111*(Forecast!$T$8/$F$2) -> 57.43745858 | Z111: =F111*(Forecast!$U$8/$F$2) -> 57.75444235 | AA111: =F111*(Forecast!$V$8/$F$2) -> 58.13482287 | AB111: =F111*(Forecast!$W$8/$F$2) -> 58.45180664 | AC111: =F111*(Forecast!$X$8/$F$2) -> 58.7687904 | AD111: =F111*(Forecast!$Y$8/$F$2) -> 59.14917092 | AE111: =F111*(Forecast!$Z$8/$F$2) -> 59.46615469 | AF111: =F111*(Forecast!$AA$8/$F$2) -> 59.78313846 | AG111: =F111*(Forecast!$AB$8/$F$2) -> 60.10012222
A112: 2017-01-05T12:00:00 | B112: 19.88504219 | C112: 11.08235359 | D112: 11.11698818 | E112: 0.0009819777915 | F112: 42.08536594 | H112: =F112*(Forecast!$C$8/$F$2) -> 51.05301461 | I112: =F112*(Forecast!$D$8/$F$2) -> 52.05282885 | J112: =F112*(Forecast!$E$8/$F$2) -> 52.17780563 | K112: =F112*(Forecast!$F$8/$F$2) -> 52.3652708 | L112: =F112*(Forecast!$G$8/$F$2) -> 52.49024758 | M112: =F112*(Forecast!$H$8/$F$2) -> 52.67771275 | N112: =F112*(Forecast!$I$8/$F$2) -> 53.05264309 | O112: =F112*(Forecast!$J$8/$F$2) -> 53.36508504 | P112: =F112*(Forecast!$K$8/$F$2) -> 53.67752699 | Q112: =F112*(Forecast!$L$8/$F$2) -> 53.98996894 | R112: =F112*(Forecast!$M$8/$F$2) -> 54.30241089 | S112: =F112*(Forecast!$N$8/$F$2) -> 54.67734123 | T112: =F112*(Forecast!$O$8/$F$2) -> 54.98978318 | U112: =F112*(Forecast!$P$8/$F$2) -> 55.30222513 | V112: =F112*(Forecast!$Q$8/$F$2) -> 55.61466708 | W112: =F112*(Forecast!$R$8/$F$2) -> 55.98959742 | X112: =F112*(Forecast!$S$8/$F$2) -> 56.30203937 | Y112: =F112*(Forecast!$T$8/$F$2) -> 56.61448132 | Z112: =F112*(Forecast!$U$8/$F$2) -> 56.92692327 | AA112: =F112*(Forecast!$V$8/$F$2) -> 57.30185361 | AB112: =F112*(Forecast!$W$8/$F$2) -> 57.61429556 | AC112: =F112*(Forecast!$X$8/$F$2) -> 57.92673751 | AD112: =F112*(Forecast!$Y$8/$F$2) -> 58.30166785 | AE112: =F112*(Forecast!$Z$8/$F$2) -> 58.6141098 | AF112: =F112*(Forecast!$AA$8/$F$2) -> 58.92655175 | AG112: =F112*(Forecast!$AB$8/$F$2) -> 59.2389937
A113: 2017-01-05T13:00:00 | B113: 19.45188522 | C113: 10.61515808 | D113: 10.81327629 | E113: 0.0002599353029 | F113: 40.88057953 | H113: =F113*(Forecast!$C$8/$F$2) -> 49.59150948 | I113: =F113*(Forecast!$D$8/$F$2) -> 50.56270183 | J113: =F113*(Forecast!$E$8/$F$2) -> 50.68410088 | K113: =F113*(Forecast!$F$8/$F$2) -> 50.86619944 | L113: =F113*(Forecast!$G$8/$F$2) -> 50.98759849 | M113: =F113*(Forecast!$H$8/$F$2) -> 51.16969705 | N113: =F113*(Forecast!$I$8/$F$2) -> 51.53389419 | O113: =F113*(Forecast!$J$8/$F$2) -> 51.8373918 | P113: =F113*(Forecast!$K$8/$F$2) -> 52.14088941 | Q113: =F113*(Forecast!$L$8/$F$2) -> 52.44438702 | R113: =F113*(Forecast!$M$8/$F$2) -> 52.74788463 | S113: =F113*(Forecast!$N$8/$F$2) -> 53.11208176 | T113: =F113*(Forecast!$O$8/$F$2) -> 53.41557937 | U113: =F113*(Forecast!$P$8/$F$2) -> 53.71907698 | V113: =F113*(Forecast!$Q$8/$F$2) -> 54.02257459 | W113: =F113*(Forecast!$R$8/$F$2) -> 54.38677172 | X113: =F113*(Forecast!$S$8/$F$2) -> 54.69026933 | Y113: =F113*(Forecast!$T$8/$F$2) -> 54.99376694 | Z113: =F113*(Forecast!$U$8/$F$2) -> 55.29726455 | AA113: =F113*(Forecast!$V$8/$F$2) -> 55.66146168 | AB113: =F113*(Forecast!$W$8/$F$2) -> 55.96495929 | AC113: =F113*(Forecast!$X$8/$F$2) -> 56.2684569 | AD113: =F113*(Forecast!$Y$8/$F$2) -> 56.63265403 | AE113: =F113*(Forecast!$Z$8/$F$2) -> 56.93615164 | AF113: =F113*(Forecast!$AA$8/$F$2) -> 57.23964925 | AG113: =F113*(Forecast!$AB$8/$F$2) -> 57.54314686
A114: 2017-01-05T14:00:00 | B114: 19.51973343 | C114: 10.74366474 | D114: 10.59810829 | E114: 0.001076557324 | F114: 40.86258302 | H114: =F114*(Forecast!$C$8/$F$2) -> 49.56967823 | I114: =F114*(Forecast!$D$8/$F$2) -> 50.54044304 | J114: =F114*(Forecast!$E$8/$F$2) -> 50.66178865 | K114: =F114*(Forecast!$F$8/$F$2) -> 50.84380705 | L114: =F114*(Forecast!$G$8/$F$2) -> 50.96515265 | M114: =F114*(Forecast!$H$8/$F$2) -> 51.14717105 | N114: =F114*(Forecast!$I$8/$F$2) -> 51.51120786 | O114: =F114*(Forecast!$J$8/$F$2) -> 51.81457186 | P114: =F114*(Forecast!$K$8/$F$2) -> 52.11793586 | Q114: =F114*(Forecast!$L$8/$F$2) -> 52.42129987 | R114: =F114*(Forecast!$M$8/$F$2) -> 52.72466387 | S114: =F114*(Forecast!$N$8/$F$2) -> 53.08870068 | T114: =F114*(Forecast!$O$8/$F$2) -> 53.39206468 | U114: =F114*(Forecast!$P$8/$F$2) -> 53.69542868 | V114: =F114*(Forecast!$Q$8/$F$2) -> 53.99879269 | W114: =F114*(Forecast!$R$8/$F$2) -> 54.36282949 | X114: =F114*(Forecast!$S$8/$F$2) -> 54.6661935 | Y114: =F114*(Forecast!$T$8/$F$2) -> 54.9695575 | Z114: =F114*(Forecast!$U$8/$F$2) -> 55.2729215 | AA114: =F114*(Forecast!$V$8/$F$2) -> 55.63695831 | AB114: =F114*(Forecast!$W$8/$F$2) -> 55.94032231 | AC114: =F114*(Forecast!$X$8/$F$2) -> 56.24368632 | AD114: =F114*(Forecast!$Y$8/$F$2) -> 56.60772312 | AE114: =F114*(Forecast!$Z$8/$F$2) -> 56.91108713 | AF114: =F114*(Forecast!$AA$8/$F$2) -> 57.21445113 | AG114: =F114*(Forecast!$AB$8/$F$2) -> 57.51781513
A115: 2017-01-05T15:00:00 | B115: 19.37002945 | C115: 10.99981022 | D115: 10.7927494 | E115: 0.001953125 | F115: 41.1645422 | H115: =F115*(Forecast!$C$8/$F$2) -> 49.93597958 | I115: =F115*(Forecast!$D$8/$F$2) -> 50.91391798 | J115: =F115*(Forecast!$E$8/$F$2) -> 51.03616028 | K115: =F115*(Forecast!$F$8/$F$2) -> 51.21952373 | L115: =F115*(Forecast!$G$8/$F$2) -> 51.34176603 | M115: =F115*(Forecast!$H$8/$F$2) -> 51.52512948 | N115: =F115*(Forecast!$I$8/$F$2) -> 51.89185638 | O115: =F115*(Forecast!$J$8/$F$2) -> 52.19746213 | P115: =F115*(Forecast!$K$8/$F$2) -> 52.50306788 | Q115: =F115*(Forecast!$L$8/$F$2) -> 52.80867363 | R115: =F115*(Forecast!$M$8/$F$2) -> 53.11427938 | S115: =F115*(Forecast!$N$8/$F$2) -> 53.48100628 | T115: =F115*(Forecast!$O$8/$F$2) -> 53.78661203 | U115: =F115*(Forecast!$P$8/$F$2) -> 54.09221778 | V115: =F115*(Forecast!$Q$8/$F$2) -> 54.39782353 | W115: =F115*(Forecast!$R$8/$F$2) -> 54.76455043 | X115: =F115*(Forecast!$S$8/$F$2) -> 55.07015618 | Y115: =F115*(Forecast!$T$8/$F$2) -> 55.37576194 | Z115: =F115*(Forecast!$U$8/$F$2) -> 55.68136769 | AA115: =F115*(Forecast!$V$8/$F$2) -> 56.04809459 | AB115: =F115*(Forecast!$W$8/$F$2) -> 56.35370034 | AC115: =F115*(Forecast!$X$8/$F$2) -> 56.65930609 | AD115: =F115*(Forecast!$Y$8/$F$2) -> 57.02603299 | AE115: =F115*(Forecast!$Z$8/$F$2) -> 57.33163874 | AF115: =F115*(Forecast!$AA$8/$F$2) -> 57.63724449 | AG115: =F115*(Forecast!$AB$8/$F$2) -> 57.94285024
A116: 2017-01-05T16:00:00 | B116: 19.6363945 | C116: 11.30295944 | D116: 11.06987286 | E116: 0.001953125 | F116: 42.01117992 | H116: =F116*(Forecast!$C$8/$F$2) -> 50.96302086 | I116: =F116*(Forecast!$D$8/$F$2) -> 51.96107268 | J116: =F116*(Forecast!$E$8/$F$2) -> 52.08582916 | K116: =F116*(Forecast!$F$8/$F$2) -> 52.27296387 | L116: =F116*(Forecast!$G$8/$F$2) -> 52.39772035 | M116: =F116*(Forecast!$H$8/$F$2) -> 52.58485506 | N116: =F116*(Forecast!$I$8/$F$2) -> 52.9591245 | O116: =F116*(Forecast!$J$8/$F$2) -> 53.27101569 | P116: =F116*(Forecast!$K$8/$F$2) -> 53.58290688 | Q116: =F116*(Forecast!$L$8/$F$2) -> 53.89479807 | R116: =F116*(Forecast!$M$8/$F$2) -> 54.20668927 | S116: =F116*(Forecast!$N$8/$F$2) -> 54.5809587 | T116: =F116*(Forecast!$O$8/$F$2) -> 54.89284989 | U116: =F116*(Forecast!$P$8/$F$2) -> 55.20474108 | V116: =F116*(Forecast!$Q$8/$F$2) -> 55.51663227 | W116: =F116*(Forecast!$R$8/$F$2) -> 55.89090171 | X116: =F116*(Forecast!$S$8/$F$2) -> 56.2027929 | Y116: =F116*(Forecast!$T$8/$F$2) -> 56.51468409 | Z116: =F116*(Forecast!$U$8/$F$2) -> 56.82657528 | AA116: =F116*(Forecast!$V$8/$F$2) -> 57.20084471 | AB116: =F116*(Forecast!$W$8/$F$2) -> 57.51273591 | AC116: =F116*(Forecast!$X$8/$F$2) -> 57.8246271 | AD116: =F116*(Forecast!$Y$8/$F$2) -> 58.19889653 | AE116: =F116*(Forecast!$Z$8/$F$2) -> 58.51078772 | AF116: =F116*(Forecast!$AA$8/$F$2) -> 58.82267892 | AG116: =F116*(Forecast!$AB$8/$F$2) -> 59.13457011
A117: 2017-01-05T17:00:00 | B117: 21.10999298 | C117: 11.70063782 | D117: 11.44315147 | E117: 0.001953125 | F117: 44.2557354 | H117: =F117*(Forecast!$C$8/$F$2) -> 53.68585149 | I117: =F117*(Forecast!$D$8/$F$2) -> 54.7372268 | J117: =F117*(Forecast!$E$8/$F$2) -> 54.86864871 | K117: =F117*(Forecast!$F$8/$F$2) -> 55.06578158 | L117: =F117*(Forecast!$G$8/$F$2) -> 55.19720349 | M117: =F117*(Forecast!$H$8/$F$2) -> 55.39433636 | N117: =F117*(Forecast!$I$8/$F$2) -> 55.7886021 | O117: =F117*(Forecast!$J$8/$F$2) -> 56.11715688 | P117: =F117*(Forecast!$K$8/$F$2) -> 56.44571167 | Q117: =F117*(Forecast!$L$8/$F$2) -> 56.77426645 | R117: =F117*(Forecast!$M$8/$F$2) -> 57.10282123 | S117: =F117*(Forecast!$N$8/$F$2) -> 57.49708697 | T117: =F117*(Forecast!$O$8/$F$2) -> 57.82564175 | U117: =F117*(Forecast!$P$8/$F$2) -> 58.15419654 | V117: =F117*(Forecast!$Q$8/$F$2) -> 58.48275132 | W117: =F117*(Forecast!$R$8/$F$2) -> 58.87701706 | X117: =F117*(Forecast!$S$8/$F$2) -> 59.20557184 | Y117: =F117*(Forecast!$T$8/$F$2) -> 59.53412662 | Z117: =F117*(Forecast!$U$8/$F$2) -> 59.86268141 | AA117: =F117*(Forecast!$V$8/$F$2) -> 60.25694715 | AB117: =F117*(Forecast!$W$8/$F$2) -> 60.58550193 | AC117: =F117*(Forecast!$X$8/$F$2) -> 60.91405671 | AD117: =F117*(Forecast!$Y$8/$F$2) -> 61.30832245 | AE117: =F117*(Forecast!$Z$8/$F$2) -> 61.63687723 | AF117: =F117*(Forecast!$AA$8/$F$2) -> 61.96543202 | AG117: =F117*(Forecast!$AB$8/$F$2) -> 62.2939868
A118: 2017-01-05T18:00:00 | B118: 21.07365608 | C118: 11.69883728 | D118: 11.89328289 | E118: 0.001953125 | F118: 44.66772938 | H118: =F118*(Forecast!$C$8/$F$2) -> 54.18563412 | I118: =F118*(Forecast!$D$8/$F$2) -> 55.24679709 | J118: =F118*(Forecast!$E$8/$F$2) -> 55.37944246 | K118: =F118*(Forecast!$F$8/$F$2) -> 55.57841051 | L118: =F118*(Forecast!$G$8/$F$2) -> 55.71105589 | M118: =F118*(Forecast!$H$8/$F$2) -> 55.91002394 | N118: =F118*(Forecast!$I$8/$F$2) -> 56.30796006 | O118: =F118*(Forecast!$J$8/$F$2) -> 56.63957348 | P118: =F118*(Forecast!$K$8/$F$2) -> 56.97118691 | Q118: =F118*(Forecast!$L$8/$F$2) -> 57.30280034 | R118: =F118*(Forecast!$M$8/$F$2) -> 57.63441377 | S118: =F118*(Forecast!$N$8/$F$2) -> 58.03234988 | T118: =F118*(Forecast!$O$8/$F$2) -> 58.36396331 | U118: =F118*(Forecast!$P$8/$F$2) -> 58.69557674 | V118: =F118*(Forecast!$Q$8/$F$2) -> 59.02719016 | W118: =F118*(Forecast!$R$8/$F$2) -> 59.42512628 | X118: =F118*(Forecast!$S$8/$F$2) -> 59.75673971 | Y118: =F118*(Forecast!$T$8/$F$2) -> 60.08835313 | Z118: =F118*(Forecast!$U$8/$F$2) -> 60.41996656 | AA118: =F118*(Forecast!$V$8/$F$2) -> 60.81790268 | AB118: =F118*(Forecast!$W$8/$F$2) -> 61.1495161 | AC118: =F118*(Forecast!$X$8/$F$2) -> 61.48112953 | AD118: =F118*(Forecast!$Y$8/$F$2) -> 61.87906564 | AE118: =F118*(Forecast!$Z$8/$F$2) -> 62.21067907 | AF118: =F118*(Forecast!$AA$8/$F$2) -> 62.5422925 | AG118: =F118*(Forecast!$AB$8/$F$2) -> 62.87390593
A119: 2017-01-05T19:00:00 | B119: 21.17683983 | C119: 11.77492142 | D119: 11.91941643 | E119: 0.001953125 | F119: 44.8731308 | H119: =F119*(Forecast!$C$8/$F$2) -> 54.43480296 | I119: =F119*(Forecast!$D$8/$F$2) -> 55.50084561 | J119: =F119*(Forecast!$E$8/$F$2) -> 55.63410094 | K119: =F119*(Forecast!$F$8/$F$2) -> 55.83398394 | L119: =F119*(Forecast!$G$8/$F$2) -> 55.96723927 | M119: =F119*(Forecast!$H$8/$F$2) -> 56.16712227 | N119: =F119*(Forecast!$I$8/$F$2) -> 56.56688826 | O119: =F119*(Forecast!$J$8/$F$2) -> 56.90002659 | P119: =F119*(Forecast!$K$8/$F$2) -> 57.23316492 | Q119: =F119*(Forecast!$L$8/$F$2) -> 57.56630325 | R119: =F119*(Forecast!$M$8/$F$2) -> 57.89944158 | S119: =F119*(Forecast!$N$8/$F$2) -> 58.29920757 | T119: =F119*(Forecast!$O$8/$F$2) -> 58.6323459 | U119: =F119*(Forecast!$P$8/$F$2) -> 58.96548423 | V119: =F119*(Forecast!$Q$8/$F$2) -> 59.29862256 | W119: =F119*(Forecast!$R$8/$F$2) -> 59.69838855 | X119: =F119*(Forecast!$S$8/$F$2) -> 60.03152688 | Y119: =F119*(Forecast!$T$8/$F$2) -> 60.36466521 | Z119: =F119*(Forecast!$U$8/$F$2) -> 60.69780354 | AA119: =F119*(Forecast!$V$8/$F$2) -> 61.09756954 | AB119: =F119*(Forecast!$W$8/$F$2) -> 61.43070786 | AC119: =F119*(Forecast!$X$8/$F$2) -> 61.76384619 | AD119: =F119*(Forecast!$Y$8/$F$2) -> 62.16361219 | AE119: =F119*(Forecast!$Z$8/$F$2) -> 62.49675052 | AF119: =F119*(Forecast!$AA$8/$F$2) -> 62.82988885 | AG119: =F119*(Forecast!$AB$8/$F$2) -> 63.16302717
A120: 2017-01-05T20:00:00 | B120: 21.36138535 | C120: 11.97520065 | D120: 11.94554996 | E120: 0.001953125 | F120: 45.28408909 | H120: =F120*(Forecast!$C$8/$F$2) -> 54.9333292 | I120: =F120*(Forecast!$D$8/$F$2) -> 56.00913492 | J120: =F120*(Forecast!$E$8/$F$2) -> 56.14361063 | K120: =F120*(Forecast!$F$8/$F$2) -> 56.3453242 | L120: =F120*(Forecast!$G$8/$F$2) -> 56.47979992 | M120: =F120*(Forecast!$H$8/$F$2) -> 56.68151349 | N120: =F120*(Forecast!$I$8/$F$2) -> 57.08494063 | O120: =F120*(Forecast!$J$8/$F$2) -> 57.42112991 | P120: =F120*(Forecast!$K$8/$F$2) -> 57.7573192 | Q120: =F120*(Forecast!$L$8/$F$2) -> 58.09350848 | R120: =F120*(Forecast!$M$8/$F$2) -> 58.42969777 | S120: =F120*(Forecast!$N$8/$F$2) -> 58.83312491 | T120: =F120*(Forecast!$O$8/$F$2) -> 59.1693142 | U120: =F120*(Forecast!$P$8/$F$2) -> 59.50550348 | V120: =F120*(Forecast!$Q$8/$F$2) -> 59.84169277 | W120: =F120*(Forecast!$R$8/$F$2) -> 60.24511991 | X120: =F120*(Forecast!$S$8/$F$2) -> 60.5813092 | Y120: =F120*(Forecast!$T$8/$F$2) -> 60.91749848 | Z120: =F120*(Forecast!$U$8/$F$2) -> 61.25368777 | AA120: =F120*(Forecast!$V$8/$F$2) -> 61.65711491 | AB120: =F120*(Forecast!$W$8/$F$2) -> 61.99330419 | AC120: =F120*(Forecast!$X$8/$F$2) -> 62.32949348 | AD120: =F120*(Forecast!$Y$8/$F$2) -> 62.73292062 | AE120: =F120*(Forecast!$Z$8/$F$2) -> 63.06910991 | AF120: =F120*(Forecast!$AA$8/$F$2) -> 63.40529919 | AG120: =F120*(Forecast!$AB$8/$F$2) -> 63.74148848
A121: 2017-01-05T21:00:00 | B121: 21.60563087 | C121: 12.14690113 | D121: 11.9716835 | E121: 0.001953125 | F121: 45.72616863 | H121: =F121*(Forecast!$C$8/$F$2) -> 55.4696081 | I121: =F121*(Forecast!$D$8/$F$2) -> 56.55591621 | J121: =F121*(Forecast!$E$8/$F$2) -> 56.69170472 | K121: =F121*(Forecast!$F$8/$F$2) -> 56.8953875 | L121: =F121*(Forecast!$G$8/$F$2) -> 57.03117601 | M121: =F121*(Forecast!$H$8/$F$2) -> 57.23485878 | N121: =F121*(Forecast!$I$8/$F$2) -> 57.64222432 | O121: =F121*(Forecast!$J$8/$F$2) -> 57.98169561 | P121: =F121*(Forecast!$K$8/$F$2) -> 58.3211669 | Q121: =F121*(Forecast!$L$8/$F$2) -> 58.66063818 | R121: =F121*(Forecast!$M$8/$F$2) -> 59.00010947 | S121: =F121*(Forecast!$N$8/$F$2) -> 59.40747501 | T121: =F121*(Forecast!$O$8/$F$2) -> 59.7469463 | U121: =F121*(Forecast!$P$8/$F$2) -> 60.08641758 | V121: =F121*(Forecast!$Q$8/$F$2) -> 60.42588887 | W121: =F121*(Forecast!$R$8/$F$2) -> 60.83325441 | X121: =F121*(Forecast!$S$8/$F$2) -> 61.1727257 | Y121: =F121*(Forecast!$T$8/$F$2) -> 61.51219698 | Z121: =F121*(Forecast!$U$8/$F$2) -> 61.85166827 | AA121: =F121*(Forecast!$V$8/$F$2) -> 62.25903381 | AB121: =F121*(Forecast!$W$8/$F$2) -> 62.5985051 | AC121: =F121*(Forecast!$X$8/$F$2) -> 62.93797638 | AD121: =F121*(Forecast!$Y$8/$F$2) -> 63.34534193 | AE121: =F121*(Forecast!$Z$8/$F$2) -> 63.68481321 | AF121: =F121*(Forecast!$AA$8/$F$2) -> 64.0242845 | AG121: =F121*(Forecast!$AB$8/$F$2) -> 64.36375578
A122: 2017-01-05T22:00:00 | B122: 21.39341927 | C122: 11.97397041 | D122: 11.78393841 | E122: 0.001953125 | F122: 45.15328121 | H122: =F122*(Forecast!$C$8/$F$2) -> 54.77464848 | I122: =F122*(Forecast!$D$8/$F$2) -> 55.84734661 | J122: =F122*(Forecast!$E$8/$F$2) -> 55.98143388 | K122: =F122*(Forecast!$F$8/$F$2) -> 56.18256478 | L122: =F122*(Forecast!$G$8/$F$2) -> 56.31665205 | M122: =F122*(Forecast!$H$8/$F$2) -> 56.51778295 | N122: =F122*(Forecast!$I$8/$F$2) -> 56.92004475 | O122: =F122*(Forecast!$J$8/$F$2) -> 57.25526291 | P122: =F122*(Forecast!$K$8/$F$2) -> 57.59048108 | Q122: =F122*(Forecast!$L$8/$F$2) -> 57.92569925 | R122: =F122*(Forecast!$M$8/$F$2) -> 58.26091741 | S122: =F122*(Forecast!$N$8/$F$2) -> 58.66317921 | T122: =F122*(Forecast!$O$8/$F$2) -> 58.99839738 | U122: =F122*(Forecast!$P$8/$F$2) -> 59.33361555 | V122: =F122*(Forecast!$Q$8/$F$2) -> 59.66883371 | W122: =F122*(Forecast!$R$8/$F$2) -> 60.07109552 | X122: =F122*(Forecast!$S$8/$F$2) -> 60.40631368 | Y122: =F122*(Forecast!$T$8/$F$2) -> 60.74153185 | Z122: =F122*(Forecast!$U$8/$F$2) -> 61.07675002 | AA122: =F122*(Forecast!$V$8/$F$2) -> 61.47901182 | AB122: =F122*(Forecast!$W$8/$F$2) -> 61.81422998 | AC122: =F122*(Forecast!$X$8/$F$2) -> 62.14944815 | AD122: =F122*(Forecast!$Y$8/$F$2) -> 62.55170995 | AE122: =F122*(Forecast!$Z$8/$F$2) -> 62.88692812 | AF122: =F122*(Forecast!$AA$8/$F$2) -> 63.22214628 | AG122: =F122*(Forecast!$AB$8/$F$2) -> 63.55736445
A123: 2017-01-05T23:00:00 | B123: 20.89365578 | C123: 11.51996899 | D123: 11.56202126 | E123: 0.001953125 | F123: 43.97759914 | H123: =F123*(Forecast!$C$8/$F$2) -> 53.34844931 | I123: =F123*(Forecast!$D$8/$F$2) -> 54.39321699 | J123: =F123*(Forecast!$E$8/$F$2) -> 54.52381294 | K123: =F123*(Forecast!$F$8/$F$2) -> 54.71970688 | L123: =F123*(Forecast!$G$8/$F$2) -> 54.85030284 | M123: =F123*(Forecast!$H$8/$F$2) -> 55.04619678 | N123: =F123*(Forecast!$I$8/$F$2) -> 55.43798466 | O123: =F123*(Forecast!$J$8/$F$2) -> 55.76447456 | P123: =F123*(Forecast!$K$8/$F$2) -> 56.09096445 | Q123: =F123*(Forecast!$L$8/$F$2) -> 56.41745435 | R123: =F123*(Forecast!$M$8/$F$2) -> 56.74394425 | S123: =F123*(Forecast!$N$8/$F$2) -> 57.13573213 | T123: =F123*(Forecast!$O$8/$F$2) -> 57.46222202 | U123: =F123*(Forecast!$P$8/$F$2) -> 57.78871192 | V123: =F123*(Forecast!$Q$8/$F$2) -> 58.11520182 | W123: =F123*(Forecast!$R$8/$F$2) -> 58.5069897 | X123: =F123*(Forecast!$S$8/$F$2) -> 58.8334796 | Y123: =F123*(Forecast!$T$8/$F$2) -> 59.15996949 | Z123: =F123*(Forecast!$U$8/$F$2) -> 59.48645939 | AA123: =F123*(Forecast!$V$8/$F$2) -> 59.87824727 | AB123: =F123*(Forecast!$W$8/$F$2) -> 60.20473717 | AC123: =F123*(Forecast!$X$8/$F$2) -> 60.53122706 | AD123: =F123*(Forecast!$Y$8/$F$2) -> 60.92301494 | AE123: =F123*(Forecast!$Z$8/$F$2) -> 61.24950484 | AF123: =F123*(Forecast!$AA$8/$F$2) -> 61.57599474 | AG123: =F123*(Forecast!$AB$8/$F$2) -> 61.90248464
A124: 2017-01-06 | B124: 20.52563095 | C124: 11.35903549 | D124: 11.34010315 | E124: 0.001953125 | F124: 43.22672272 | H124: =F124*(Forecast!$C$8/$F$2) -> 52.43757437 | I124: =F124*(Forecast!$D$8/$F$2) -> 53.46450361 | J124: =F124*(Forecast!$E$8/$F$2) -> 53.59286977 | K124: =F124*(Forecast!$F$8/$F$2) -> 53.785419 | L124: =F124*(Forecast!$G$8/$F$2) -> 53.91378516 | M124: =F124*(Forecast!$H$8/$F$2) -> 54.10633439 | N124: =F124*(Forecast!$I$8/$F$2) -> 54.49143285 | O124: =F124*(Forecast!$J$8/$F$2) -> 54.81234824 | P124: =F124*(Forecast!$K$8/$F$2) -> 55.13326363 | Q124: =F124*(Forecast!$L$8/$F$2) -> 55.45417902 | R124: =F124*(Forecast!$M$8/$F$2) -> 55.77509441 | S124: =F124*(Forecast!$N$8/$F$2) -> 56.16019287 | T124: =F124*(Forecast!$O$8/$F$2) -> 56.48110826 | U124: =F124*(Forecast!$P$8/$F$2) -> 56.80202365 | V124: =F124*(Forecast!$Q$8/$F$2) -> 57.12293903 | W124: =F124*(Forecast!$R$8/$F$2) -> 57.5080375 | X124: =F124*(Forecast!$S$8/$F$2) -> 57.82895289 | Y124: =F124*(Forecast!$T$8/$F$2) -> 58.14986828 | Z124: =F124*(Forecast!$U$8/$F$2) -> 58.47078366 | AA124: =F124*(Forecast!$V$8/$F$2) -> 58.85588213 | AB124: =F124*(Forecast!$W$8/$F$2) -> 59.17679752 | AC124: =F124*(Forecast!$X$8/$F$2) -> 59.4977129 | AD124: =F124*(Forecast!$Y$8/$F$2) -> 59.88281137 | AE124: =F124*(Forecast!$Z$8/$F$2) -> 60.20372676 | AF124: =F124*(Forecast!$AA$8/$F$2) -> 60.52464215 | AG124: =F124*(Forecast!$AB$8/$F$2) -> 60.84555753
A125: 2017-01-06T01:00:00 | B125: 20.56171608 | C125: 11.42203045 | D125: 11.43930435 | E125: 0.001953125 | F125: 43.42500401 | H125: =F125*(Forecast!$C$8/$F$2) -> 52.6781059 | I125: =F125*(Forecast!$D$8/$F$2) -> 53.70974568 | J125: =F125*(Forecast!$E$8/$F$2) -> 53.83870065 | K125: =F125*(Forecast!$F$8/$F$2) -> 54.0321331 | L125: =F125*(Forecast!$G$8/$F$2) -> 54.16108808 | M125: =F125*(Forecast!$H$8/$F$2) -> 54.35452053 | N125: =F125*(Forecast!$I$8/$F$2) -> 54.74138545 | O125: =F125*(Forecast!$J$8/$F$2) -> 55.06377288 | P125: =F125*(Forecast!$K$8/$F$2) -> 55.38616031 | Q125: =F125*(Forecast!$L$8/$F$2) -> 55.70854774 | R125: =F125*(Forecast!$M$8/$F$2) -> 56.03093516 | S125: =F125*(Forecast!$N$8/$F$2) -> 56.41780008 | T125: =F125*(Forecast!$O$8/$F$2) -> 56.74018751 | U125: =F125*(Forecast!$P$8/$F$2) -> 57.06257494 | V125: =F125*(Forecast!$Q$8/$F$2) -> 57.38496237 | W125: =F125*(Forecast!$R$8/$F$2) -> 57.77182728 | X125: =F125*(Forecast!$S$8/$F$2) -> 58.09421471 | Y125: =F125*(Forecast!$T$8/$F$2) -> 58.41660214 | Z125: =F125*(Forecast!$U$8/$F$2) -> 58.73898957 | AA125: =F125*(Forecast!$V$8/$F$2) -> 59.12585448 | AB125: =F125*(Forecast!$W$8/$F$2) -> 59.44824191 | AC125: =F125*(Forecast!$X$8/$F$2) -> 59.77062934 | AD125: =F125*(Forecast!$Y$8/$F$2) -> 60.15749426 | AE125: =F125*(Forecast!$Z$8/$F$2) -> 60.47988169 | AF125: =F125*(Forecast!$AA$8/$F$2) -> 60.80226911 | AG125: =F125*(Forecast!$AB$8/$F$2) -> 61.12465654
A126: 2017-01-06T02:00:00 | B126: 21.22678566 | C126: 11.70937824 | D126: 11.74670506 | E126: 0.001953125 | F126: 44.68482208 | H126: =F126*(Forecast!$C$8/$F$2) -> 54.20636898 | I126: =F126*(Forecast!$D$8/$F$2) -> 55.26793801 | J126: =F126*(Forecast!$E$8/$F$2) -> 55.40063414 | K126: =F126*(Forecast!$F$8/$F$2) -> 55.59967834 | L126: =F126*(Forecast!$G$8/$F$2) -> 55.73237447 | M126: =F126*(Forecast!$H$8/$F$2) -> 55.93141866 | N126: =F126*(Forecast!$I$8/$F$2) -> 56.32950705 | O126: =F126*(Forecast!$J$8/$F$2) -> 56.66124738 | P126: =F126*(Forecast!$K$8/$F$2) -> 56.9929877 | Q126: =F126*(Forecast!$L$8/$F$2) -> 57.32472802 | R126: =F126*(Forecast!$M$8/$F$2) -> 57.65646835 | S126: =F126*(Forecast!$N$8/$F$2) -> 58.05455674 | T126: =F126*(Forecast!$O$8/$F$2) -> 58.38629706 | U126: =F126*(Forecast!$P$8/$F$2) -> 58.71803739 | V126: =F126*(Forecast!$Q$8/$F$2) -> 59.04977771 | W126: =F126*(Forecast!$R$8/$F$2) -> 59.4478661 | X126: =F126*(Forecast!$S$8/$F$2) -> 59.77960642 | Y126: =F126*(Forecast!$T$8/$F$2) -> 60.11134675 | Z126: =F126*(Forecast!$U$8/$F$2) -> 60.44308707 | AA126: =F126*(Forecast!$V$8/$F$2) -> 60.84117546 | AB126: =F126*(Forecast!$W$8/$F$2) -> 61.17291578 | AC126: =F126*(Forecast!$X$8/$F$2) -> 61.50465611 | AD126: =F126*(Forecast!$Y$8/$F$2) -> 61.9027445 | AE126: =F126*(Forecast!$Z$8/$F$2) -> 62.23448482 | AF126: =F126*(Forecast!$AA$8/$F$2) -> 62.56622515 | AG126: =F126*(Forecast!$AB$8/$F$2) -> 62.89796547
A127: 2017-01-06T03:00:00 | B127: 21.53467178 | C127: 11.99672508 | D127: 11.94186497 | E127: 0.001953125 | F127: 45.47521496 | H127: =F127*(Forecast!$C$8/$F$2) -> 55.16518062 | I127: =F127*(Forecast!$D$8/$F$2) -> 56.24552688 | J127: =F127*(Forecast!$E$8/$F$2) -> 56.38057016 | K127: =F127*(Forecast!$F$8/$F$2) -> 56.58313508 | L127: =F127*(Forecast!$G$8/$F$2) -> 56.71817836 | M127: =F127*(Forecast!$H$8/$F$2) -> 56.92074329 | N127: =F127*(Forecast!$I$8/$F$2) -> 57.32587313 | O127: =F127*(Forecast!$J$8/$F$2) -> 57.66348134 | P127: =F127*(Forecast!$K$8/$F$2) -> 58.00108954 | Q127: =F127*(Forecast!$L$8/$F$2) -> 58.33869775 | R127: =F127*(Forecast!$M$8/$F$2) -> 58.67630595 | S127: =F127*(Forecast!$N$8/$F$2) -> 59.0814358 | T127: =F127*(Forecast!$O$8/$F$2) -> 59.419044 | U127: =F127*(Forecast!$P$8/$F$2) -> 59.7566522 | V127: =F127*(Forecast!$Q$8/$F$2) -> 60.09426041 | W127: =F127*(Forecast!$R$8/$F$2) -> 60.49939025 | X127: =F127*(Forecast!$S$8/$F$2) -> 60.83699846 | Y127: =F127*(Forecast!$T$8/$F$2) -> 61.17460666 | Z127: =F127*(Forecast!$U$8/$F$2) -> 61.51221487 | AA127: =F127*(Forecast!$V$8/$F$2) -> 61.91734471 | AB127: =F127*(Forecast!$W$8/$F$2) -> 62.25495292 | AC127: =F127*(Forecast!$X$8/$F$2) -> 62.59256112 | AD127: =F127*(Forecast!$Y$8/$F$2) -> 62.99769097 | AE127: =F127*(Forecast!$Z$8/$F$2) -> 63.33529917 | AF127: =F127*(Forecast!$AA$8/$F$2) -> 63.67290738 | AG127: =F127*(Forecast!$AB$8/$F$2) -> 64.01051558
A128: 2017-01-06T04:00:00 | B128: 21.81685448 | C128: 12.34119034 | D128: 12.13269711 | E128: 0.001953125 | F128: 46.29269505 | H128: =F128*(Forecast!$C$8/$F$2) -> 56.15685129 | I128: =F128*(Forecast!$D$8/$F$2) -> 57.25661827 | J128: =F128*(Forecast!$E$8/$F$2) -> 57.39408914 | K128: =F128*(Forecast!$F$8/$F$2) -> 57.60029545 | L128: =F128*(Forecast!$G$8/$F$2) -> 57.73776632 | M128: =F128*(Forecast!$H$8/$F$2) -> 57.94397263 | N128: =F128*(Forecast!$I$8/$F$2) -> 58.35638524 | O128: =F128*(Forecast!$J$8/$F$2) -> 58.70006242 | P128: =F128*(Forecast!$K$8/$F$2) -> 59.0437396 | Q128: =F128*(Forecast!$L$8/$F$2) -> 59.38741678 | R128: =F128*(Forecast!$M$8/$F$2) -> 59.73109397 | S128: =F128*(Forecast!$N$8/$F$2) -> 60.14350658 | T128: =F128*(Forecast!$O$8/$F$2) -> 60.48718376 | U128: =F128*(Forecast!$P$8/$F$2) -> 60.83086094 | V128: =F128*(Forecast!$Q$8/$F$2) -> 61.17453812 | W128: =F128*(Forecast!$R$8/$F$2) -> 61.58695074 | X128: =F128*(Forecast!$S$8/$F$2) -> 61.93062792 | Y128: =F128*(Forecast!$T$8/$F$2) -> 62.2743051 | Z128: =F128*(Forecast!$U$8/$F$2) -> 62.61798228 | AA128: =F128*(Forecast!$V$8/$F$2) -> 63.0303949 | AB128: =F128*(Forecast!$W$8/$F$2) -> 63.37407208 | AC128: =F128*(Forecast!$X$8/$F$2) -> 63.71774926 | AD128: =F128*(Forecast!$Y$8/$F$2) -> 64.13016188 | AE128: =F128*(Forecast!$Z$8/$F$2) -> 64.47383906 | AF128: =F128*(Forecast!$AA$8/$F$2) -> 64.81751624 | AG128: =F128*(Forecast!$AB$8/$F$2) -> 65.16119342
A129: 2017-01-06T05:00:00 | B129: 22.28915787 | C129: 12.70271683 | D129: 12.3537674 | E129: 0.001953125 | F129: 47.34759521 | H129: =F129*(Forecast!$C$8/$F$2) -> 57.43653206 | I129: =F129*(Forecast!$D$8/$F$2) -> 58.56136011 | J129: =F129*(Forecast!$E$8/$F$2) -> 58.70196362 | K129: =F129*(Forecast!$F$8/$F$2) -> 58.91286887 | L129: =F129*(Forecast!$G$8/$F$2) -> 59.05347238 | M129: =F129*(Forecast!$H$8/$F$2) -> 59.26437764 | N129: =F129*(Forecast!$I$8/$F$2) -> 59.68618816 | O129: =F129*(Forecast!$J$8/$F$2) -> 60.03769692 | P129: =F129*(Forecast!$K$8/$F$2) -> 60.38920568 | Q129: =F129*(Forecast!$L$8/$F$2) -> 60.74071445 | R129: =F129*(Forecast!$M$8/$F$2) -> 61.09222321 | S129: =F129*(Forecast!$N$8/$F$2) -> 61.51403373 | T129: =F129*(Forecast!$O$8/$F$2) -> 61.86554249 | U129: =F129*(Forecast!$P$8/$F$2) -> 62.21705126 | V129: =F129*(Forecast!$Q$8/$F$2) -> 62.56856002 | W129: =F129*(Forecast!$R$8/$F$2) -> 62.99037054 | X129: =F129*(Forecast!$S$8/$F$2) -> 63.3418793 | Y129: =F129*(Forecast!$T$8/$F$2) -> 63.69338807 | Z129: =F129*(Forecast!$U$8/$F$2) -> 64.04489683 | AA129: =F129*(Forecast!$V$8/$F$2) -> 64.46670735 | AB129: =F129*(Forecast!$W$8/$F$2) -> 64.81821611 | AC129: =F129*(Forecast!$X$8/$F$2) -> 65.16972488 | AD129: =F129*(Forecast!$Y$8/$F$2) -> 65.59153539 | AE129: =F129*(Forecast!$Z$8/$F$2) -> 65.94304416 | AF129: =F129*(Forecast!$AA$8/$F$2) -> 66.29455292 | AG129: =F129*(Forecast!$AB$8/$F$2) -> 66.64606169
A130: 2017-01-06T06:00:00 | B130: 23.32355881 | C130: 13.50129223 | D130: 12.75933933 | E130: 0.001953125 | F130: 49.58614349 | H130: =F130*(Forecast!$C$8/$F$2) -> 60.15207547 | I130: =F130*(Forecast!$D$8/$F$2) -> 61.33008429 | J130: =F130*(Forecast!$E$8/$F$2) -> 61.4773354 | K130: =F130*(Forecast!$F$8/$F$2) -> 61.69821205 | L130: =F130*(Forecast!$G$8/$F$2) -> 61.84546315 | M130: =F130*(Forecast!$H$8/$F$2) -> 62.06633981 | N130: =F130*(Forecast!$I$8/$F$2) -> 62.50809311 | O130: =F130*(Forecast!$J$8/$F$2) -> 62.87622087 | P130: =F130*(Forecast!$K$8/$F$2) -> 63.24434863 | Q130: =F130*(Forecast!$L$8/$F$2) -> 63.61247639 | R130: =F130*(Forecast!$M$8/$F$2) -> 63.98060414 | S130: =F130*(Forecast!$N$8/$F$2) -> 64.42235745 | T130: =F130*(Forecast!$O$8/$F$2) -> 64.79048521 | U130: =F130*(Forecast!$P$8/$F$2) -> 65.15861296 | V130: =F130*(Forecast!$Q$8/$F$2) -> 65.52674072 | W130: =F130*(Forecast!$R$8/$F$2) -> 65.96849403 | X130: =F130*(Forecast!$S$8/$F$2) -> 66.33662179 | Y130: =F130*(Forecast!$T$8/$F$2) -> 66.70474954 | Z130: =F130*(Forecast!$U$8/$F$2) -> 67.0728773 | AA130: =F130*(Forecast!$V$8/$F$2) -> 67.51463061 | AB130: =F130*(Forecast!$W$8/$F$2) -> 67.88275837 | AC130: =F130*(Forecast!$X$8/$F$2) -> 68.25088612 | AD130: =F130*(Forecast!$Y$8/$F$2) -> 68.69263943 | AE130: =F130*(Forecast!$Z$8/$F$2) -> 69.06076719 | AF130: =F130*(Forecast!$AA$8/$F$2) -> 69.42889494 | AG130: =F130*(Forecast!$AB$8/$F$2) -> 69.7970227
A131: 2017-01-06T07:00:00 | B131: 24.65325928 | C131: 13.95762253 | D131: 13.73153019 | E131: 0.001953125 | F131: 52.34436512 | H131: =F131*(Forecast!$C$8/$F$2) -> 63.49802544 | I131: =F131*(Forecast!$D$8/$F$2) -> 64.74156082 | J131: =F131*(Forecast!$E$8/$F$2) -> 64.89700275 | K131: =F131*(Forecast!$F$8/$F$2) -> 65.13016563 | L131: =F131*(Forecast!$G$8/$F$2) -> 65.28560755 | M131: =F131*(Forecast!$H$8/$F$2) -> 65.51877044 | N131: =F131*(Forecast!$I$8/$F$2) -> 65.98509621 | O131: =F131*(Forecast!$J$8/$F$2) -> 66.37370101 | P131: =F131*(Forecast!$K$8/$F$2) -> 66.76230582 | Q131: =F131*(Forecast!$L$8/$F$2) -> 67.15091063 | R131: =F131*(Forecast!$M$8/$F$2) -> 67.53951543 | S131: =F131*(Forecast!$N$8/$F$2) -> 68.0058412 | T131: =F131*(Forecast!$O$8/$F$2) -> 68.39444601 | U131: =F131*(Forecast!$P$8/$F$2) -> 68.78305082 | V131: =F131*(Forecast!$Q$8/$F$2) -> 69.17165562 | W131: =F131*(Forecast!$R$8/$F$2) -> 69.63798139 | X131: =F131*(Forecast!$S$8/$F$2) -> 70.0265862 | Y131: =F131*(Forecast!$T$8/$F$2) -> 70.41519101 | Z131: =F131*(Forecast!$U$8/$F$2) -> 70.80379581 | AA131: =F131*(Forecast!$V$8/$F$2) -> 71.27012158 | AB131: =F131*(Forecast!$W$8/$F$2) -> 71.65872639 | AC131: =F131*(Forecast!$X$8/$F$2) -> 72.04733119 | AD131: =F131*(Forecast!$Y$8/$F$2) -> 72.51365696 | AE131: =F131*(Forecast!$Z$8/$F$2) -> 72.90226177 | AF131: =F131*(Forecast!$AA$8/$F$2) -> 73.29086658 | AG131: =F131*(Forecast!$AB$8/$F$2) -> 73.67947138
A132: 2017-01-06T08:00:00 | B132: 26.44435692 | C132: 14.77540779 | D132: 14.72209167 | E132: 0.001953125 | F132: 55.94380951 | H132: =F132*(Forecast!$C$8/$F$2) -> 67.8644479 | I132: =F132*(Forecast!$D$8/$F$2) -> 69.19349462 | J132: =F132*(Forecast!$E$8/$F$2) -> 69.35962546 | K132: =F132*(Forecast!$F$8/$F$2) -> 69.60882171 | L132: =F132*(Forecast!$G$8/$F$2) -> 69.77495255 | M132: =F132*(Forecast!$H$8/$F$2) -> 70.02414881 | N132: =F132*(Forecast!$I$8/$F$2) -> 70.52254133 | O132: =F132*(Forecast!$J$8/$F$2) -> 70.93786843 | P132: =F132*(Forecast!$K$8/$F$2) -> 71.35319553 | Q132: =F132*(Forecast!$L$8/$F$2) -> 71.76852263 | R132: =F132*(Forecast!$M$8/$F$2) -> 72.18384973 | S132: =F132*(Forecast!$N$8/$F$2) -> 72.68224224 | T132: =F132*(Forecast!$O$8/$F$2) -> 73.09756934 | U132: =F132*(Forecast!$P$8/$F$2) -> 73.51289644 | V132: =F132*(Forecast!$Q$8/$F$2) -> 73.92822354 | W132: =F132*(Forecast!$R$8/$F$2) -> 74.42661606 | X132: =F132*(Forecast!$S$8/$F$2) -> 74.84194316 | Y132: =F132*(Forecast!$T$8/$F$2) -> 75.25727025 | Z132: =F132*(Forecast!$U$8/$F$2) -> 75.67259735 | AA132: =F132*(Forecast!$V$8/$F$2) -> 76.17098987 | AB132: =F132*(Forecast!$W$8/$F$2) -> 76.58631697 | AC132: =F132*(Forecast!$X$8/$F$2) -> 77.00164407 | AD132: =F132*(Forecast!$Y$8/$F$2) -> 77.50003659 | AE132: =F132*(Forecast!$Z$8/$F$2) -> 77.91536369 | AF132: =F132*(Forecast!$AA$8/$F$2) -> 78.33069078 | AG132: =F132*(Forecast!$AB$8/$F$2) -> 78.74601788
A133: 2017-01-06T09:00:00 | B133: 26.82563019 | C133: 14.69885635 | D133: 14.85281563 | E133: 0.001953125 | F133: 56.37925529 | H133: =F133*(Forecast!$C$8/$F$2) -> 68.3926795 | I133: =F133*(Forecast!$D$8/$F$2) -> 69.73207102 | J133: =F133*(Forecast!$E$8/$F$2) -> 69.89949496 | K133: =F133*(Forecast!$F$8/$F$2) -> 70.15063087 | L133: =F133*(Forecast!$G$8/$F$2) -> 70.31805481 | M133: =F133*(Forecast!$H$8/$F$2) -> 70.56919072 | N133: =F133*(Forecast!$I$8/$F$2) -> 71.07146254 | O133: =F133*(Forecast!$J$8/$F$2) -> 71.49002239 | P133: =F133*(Forecast!$K$8/$F$2) -> 71.90858224 | Q133: =F133*(Forecast!$L$8/$F$2) -> 72.32714209 | R133: =F133*(Forecast!$M$8/$F$2) -> 72.74570194 | S133: =F133*(Forecast!$N$8/$F$2) -> 73.24797376 | T133: =F133*(Forecast!$O$8/$F$2) -> 73.66653361 | U133: =F133*(Forecast!$P$8/$F$2) -> 74.08509346 | V133: =F133*(Forecast!$Q$8/$F$2) -> 74.50365331 | W133: =F133*(Forecast!$R$8/$F$2) -> 75.00592513 | X133: =F133*(Forecast!$S$8/$F$2) -> 75.42448498 | Y133: =F133*(Forecast!$T$8/$F$2) -> 75.84304483 | Z133: =F133*(Forecast!$U$8/$F$2) -> 76.26160468 | AA133: =F133*(Forecast!$V$8/$F$2) -> 76.7638765 | AB133: =F133*(Forecast!$W$8/$F$2) -> 77.18243635 | AC133: =F133*(Forecast!$X$8/$F$2) -> 77.6009962 | AD133: =F133*(Forecast!$Y$8/$F$2) -> 78.10326802 | AE133: =F133*(Forecast!$Z$8/$F$2) -> 78.52182787 | AF133: =F133*(Forecast!$AA$8/$F$2) -> 78.94038772 | AG133: =F133*(Forecast!$AB$8/$F$2) -> 79.35894757
A134: 2017-01-06T10:00:00 | B134: 26.46186447 | C134: 14.7020874 | D134: 14.6700058 | E134: 0.001953125 | F134: =SUM(B134:E134) -> 55.8359108 | H134: =F134*(Forecast!$C$8/$F$2) -> 67.73355788 | I134: =F134*(Forecast!$D$8/$F$2) -> 69.06004126 | J134: =F134*(Forecast!$E$8/$F$2) -> 69.22585169 | K134: =F134*(Forecast!$F$8/$F$2) -> 69.47456732 | L134: =F134*(Forecast!$G$8/$F$2) -> 69.64037774 | M134: =F134*(Forecast!$H$8/$F$2) -> 69.88909338 | N134: =F134*(Forecast!$I$8/$F$2) -> 70.38652465 | O134: =F134*(Forecast!$J$8/$F$2) -> 70.80105071 | P134: =F134*(Forecast!$K$8/$F$2) -> 71.21557676 | Q134: =F134*(Forecast!$L$8/$F$2) -> 71.63010282 | R134: =F134*(Forecast!$M$8/$F$2) -> 72.04462888 | S134: =F134*(Forecast!$N$8/$F$2) -> 72.54206015 | T134: =F134*(Forecast!$O$8/$F$2) -> 72.95658621 | U134: =F134*(Forecast!$P$8/$F$2) -> 73.37111227 | V134: =F134*(Forecast!$Q$8/$F$2) -> 73.78563832 | W134: =F134*(Forecast!$R$8/$F$2) -> 74.28306959 | X134: =F134*(Forecast!$S$8/$F$2) -> 74.69759565 | Y134: =F134*(Forecast!$T$8/$F$2) -> 75.11212171 | Z134: =F134*(Forecast!$U$8/$F$2) -> 75.52664777 | AA134: =F134*(Forecast!$V$8/$F$2) -> 76.02407904 | AB134: =F134*(Forecast!$W$8/$F$2) -> 76.4386051 | AC134: =F134*(Forecast!$X$8/$F$2) -> 76.85313115 | AD134: =F134*(Forecast!$Y$8/$F$2) -> 77.35056242 | AE134: =F134*(Forecast!$Z$8/$F$2) -> 77.76508848 | AF134: =F134*(Forecast!$AA$8/$F$2) -> 78.17961454 | AG134: =F134*(Forecast!$AB$8/$F$2) -> 78.5941406
A135: 2017-01-06T11:00:00 | B135: 26.12295341 | C135: 14.58482265 | D135: 14.50143147 | E135: 0.001953125 | F135: 55.21116066 | H135: =F135*(Forecast!$C$8/$F$2) -> 66.97568451 | I135: =F135*(Forecast!$D$8/$F$2) -> 68.28732583 | J135: =F135*(Forecast!$E$8/$F$2) -> 68.45128099 | K135: =F135*(Forecast!$F$8/$F$2) -> 68.69721374 | L135: =F135*(Forecast!$G$8/$F$2) -> 68.8611689 | M135: =F135*(Forecast!$H$8/$F$2) -> 69.10710165 | N135: =F135*(Forecast!$I$8/$F$2) -> 69.59896714 | O135: =F135*(Forecast!$J$8/$F$2) -> 70.00885505 | P135: =F135*(Forecast!$K$8/$F$2) -> 70.41874296 | Q135: =F135*(Forecast!$L$8/$F$2) -> 70.82863087 | R135: =F135*(Forecast!$M$8/$F$2) -> 71.23851878 | S135: =F135*(Forecast!$N$8/$F$2) -> 71.73038427 | T135: =F135*(Forecast!$O$8/$F$2) -> 72.14027218 | U135: =F135*(Forecast!$P$8/$F$2) -> 72.55016009 | V135: =F135*(Forecast!$Q$8/$F$2) -> 72.960048 | W135: =F135*(Forecast!$R$8/$F$2) -> 73.45191349 | X135: =F135*(Forecast!$S$8/$F$2) -> 73.8618014 | Y135: =F135*(Forecast!$T$8/$F$2) -> 74.27168931 | Z135: =F135*(Forecast!$U$8/$F$2) -> 74.68157722 | AA135: =F135*(Forecast!$V$8/$F$2) -> 75.17344272 | AB135: =F135*(Forecast!$W$8/$F$2) -> 75.58333063 | AC135: =F135*(Forecast!$X$8/$F$2) -> 75.99321854 | AD135: =F135*(Forecast!$Y$8/$F$2) -> 76.48508403 | AE135: =F135*(Forecast!$Z$8/$F$2) -> 76.89497194 | AF135: =F135*(Forecast!$AA$8/$F$2) -> 77.30485985 | AG135: =F135*(Forecast!$AB$8/$F$2) -> 77.71474776
A136: 2017-01-06T12:00:00 | B136: 25.60406685 | C136: 14.28158283 | D136: 14.33118248 | E136: 0.001953125 | F136: 54.21878529 | H136: =F136*(Forecast!$C$8/$F$2) -> 65.77185146 | I136: =F136*(Forecast!$D$8/$F$2) -> 67.0599171 | J136: =F136*(Forecast!$E$8/$F$2) -> 67.2209253 | K136: =F136*(Forecast!$F$8/$F$2) -> 67.46243761 | L136: =F136*(Forecast!$G$8/$F$2) -> 67.62344581 | M136: =F136*(Forecast!$H$8/$F$2) -> 67.86495812 | N136: =F136*(Forecast!$I$8/$F$2) -> 68.34798273 | O136: =F136*(Forecast!$J$8/$F$2) -> 68.75050324 | P136: =F136*(Forecast!$K$8/$F$2) -> 69.15302375 | Q136: =F136*(Forecast!$L$8/$F$2) -> 69.55554426 | R136: =F136*(Forecast!$M$8/$F$2) -> 69.95806477 | S136: =F136*(Forecast!$N$8/$F$2) -> 70.44108939 | T136: =F136*(Forecast!$O$8/$F$2) -> 70.8436099 | U136: =F136*(Forecast!$P$8/$F$2) -> 71.24613041 | V136: =F136*(Forecast!$Q$8/$F$2) -> 71.64865092 | W136: =F136*(Forecast!$R$8/$F$2) -> 72.13167553 | X136: =F136*(Forecast!$S$8/$F$2) -> 72.53419604 | Y136: =F136*(Forecast!$T$8/$F$2) -> 72.93671655 | Z136: =F136*(Forecast!$U$8/$F$2) -> 73.33923707 | AA136: =F136*(Forecast!$V$8/$F$2) -> 73.82226168 | AB136: =F136*(Forecast!$W$8/$F$2) -> 74.22478219 | AC136: =F136*(Forecast!$X$8/$F$2) -> 74.6273027 | AD136: =F136*(Forecast!$Y$8/$F$2) -> 75.11032731 | AE136: =F136*(Forecast!$Z$8/$F$2) -> 75.51284782 | AF136: =F136*(Forecast!$AA$8/$F$2) -> 75.91536833 | AG136: =F136*(Forecast!$AB$8/$F$2) -> 76.31788885
A137: 2017-01-06T13:00:00 | B137: 25.39312935 | C137: 14.13997459 | D137: 14.24493599 | E137: 0.001953125 | F137: 53.77999306 | H137: =F137*(Forecast!$C$8/$F$2) -> 65.23956035 | I137: =F137*(Forecast!$D$8/$F$2) -> 66.51720168 | J137: =F137*(Forecast!$E$8/$F$2) -> 66.67690685 | K137: =F137*(Forecast!$F$8/$F$2) -> 66.9164646 | L137: =F137*(Forecast!$G$8/$F$2) -> 67.07616976 | M137: =F137*(Forecast!$H$8/$F$2) -> 67.31572751 | N137: =F137*(Forecast!$I$8/$F$2) -> 67.79484301 | O137: =F137*(Forecast!$J$8/$F$2) -> 68.19410593 | P137: =F137*(Forecast!$K$8/$F$2) -> 68.59336884 | Q137: =F137*(Forecast!$L$8/$F$2) -> 68.99263176 | R137: =F137*(Forecast!$M$8/$F$2) -> 69.39189467 | S137: =F137*(Forecast!$N$8/$F$2) -> 69.87101017 | T137: =F137*(Forecast!$O$8/$F$2) -> 70.27027309 | U137: =F137*(Forecast!$P$8/$F$2) -> 70.669536 | V137: =F137*(Forecast!$Q$8/$F$2) -> 71.06879892 | W137: =F137*(Forecast!$R$8/$F$2) -> 71.54791442 | X137: =F137*(Forecast!$S$8/$F$2) -> 71.94717733 | Y137: =F137*(Forecast!$T$8/$F$2) -> 72.34644025 | Z137: =F137*(Forecast!$U$8/$F$2) -> 72.74570316 | AA137: =F137*(Forecast!$V$8/$F$2) -> 73.22481866 | AB137: =F137*(Forecast!$W$8/$F$2) -> 73.62408158 | AC137: =F137*(Forecast!$X$8/$F$2) -> 74.02334449 | AD137: =F137*(Forecast!$Y$8/$F$2) -> 74.50245999 | AE137: =F137*(Forecast!$Z$8/$F$2) -> 74.9017229 | AF137: =F137*(Forecast!$AA$8/$F$2) -> 75.30098582 | AG137: =F137*(Forecast!$AB$8/$F$2) -> 75.70024873
A138: 2017-01-06T14:00:00 | B138: 25.2251358 | C138: 14.20343494 | D138: 14.1586895 | E138: 0.001953125 | F138: 53.58921337 | H138: =F138*(Forecast!$C$8/$F$2) -> 65.00812888 | I138: =F138*(Forecast!$D$8/$F$2) -> 66.2812379 | J138: =F138*(Forecast!$E$8/$F$2) -> 66.44037652 | K138: =F138*(Forecast!$F$8/$F$2) -> 66.67908446 | L138: =F138*(Forecast!$G$8/$F$2) -> 66.83822309 | M138: =F138*(Forecast!$H$8/$F$2) -> 67.07693103 | N138: =F138*(Forecast!$I$8/$F$2) -> 67.55434691 | O138: =F138*(Forecast!$J$8/$F$2) -> 67.95219347 | P138: =F138*(Forecast!$K$8/$F$2) -> 68.35004004 | Q138: =F138*(Forecast!$L$8/$F$2) -> 68.74788661 | R138: =F138*(Forecast!$M$8/$F$2) -> 69.14573317 | S138: =F138*(Forecast!$N$8/$F$2) -> 69.62314905 | T138: =F138*(Forecast!$O$8/$F$2) -> 70.02099562 | U138: =F138*(Forecast!$P$8/$F$2) -> 70.41884218 | V138: =F138*(Forecast!$Q$8/$F$2) -> 70.81668875 | W138: =F138*(Forecast!$R$8/$F$2) -> 71.29410463 | X138: =F138*(Forecast!$S$8/$F$2) -> 71.69195119 | Y138: =F138*(Forecast!$T$8/$F$2) -> 72.08979776 | Z138: =F138*(Forecast!$U$8/$F$2) -> 72.48764433 | AA138: =F138*(Forecast!$V$8/$F$2) -> 72.9650602 | AB138: =F138*(Forecast!$W$8/$F$2) -> 73.36290677 | AC138: =F138*(Forecast!$X$8/$F$2) -> 73.76075334 | AD138: =F138*(Forecast!$Y$8/$F$2) -> 74.23816922 | AE138: =F138*(Forecast!$Z$8/$F$2) -> 74.63601578 | AF138: =F138*(Forecast!$AA$8/$F$2) -> 75.03386235 | AG138: =F138*(Forecast!$AB$8/$F$2) -> 75.43170891
A139: 2017-01-06T15:00:00 | B139: 25.47336578 | C139: 14.23269844 | D139: 14.31281567 | E139: 0.001953125 | F139: 54.02083302 | H139: =F139*(Forecast!$C$8/$F$2) -> 65.53171906 | I139: =F139*(Forecast!$D$8/$F$2) -> 66.81508198 | J139: =F139*(Forecast!$E$8/$F$2) -> 66.97550234 | K139: =F139*(Forecast!$F$8/$F$2) -> 67.21613289 | L139: =F139*(Forecast!$G$8/$F$2) -> 67.37655325 | M139: =F139*(Forecast!$H$8/$F$2) -> 67.6171838 | N139: =F139*(Forecast!$I$8/$F$2) -> 68.0984449 | O139: =F139*(Forecast!$J$8/$F$2) -> 68.49949581 | P139: =F139*(Forecast!$K$8/$F$2) -> 68.90054672 | Q139: =F139*(Forecast!$L$8/$F$2) -> 69.30159763 | R139: =F139*(Forecast!$M$8/$F$2) -> 69.70264854 | S139: =F139*(Forecast!$N$8/$F$2) -> 70.18390964 | T139: =F139*(Forecast!$O$8/$F$2) -> 70.58496055 | U139: =F139*(Forecast!$P$8/$F$2) -> 70.98601146 | V139: =F139*(Forecast!$Q$8/$F$2) -> 71.38706238 | W139: =F139*(Forecast!$R$8/$F$2) -> 71.86832347 | X139: =F139*(Forecast!$S$8/$F$2) -> 72.26937438 | Y139: =F139*(Forecast!$T$8/$F$2) -> 72.67042529 | Z139: =F139*(Forecast!$U$8/$F$2) -> 73.07147621 | AA139: =F139*(Forecast!$V$8/$F$2) -> 73.5527373 | AB139: =F139*(Forecast!$W$8/$F$2) -> 73.95378821 | AC139: =F139*(Forecast!$X$8/$F$2) -> 74.35483913 | AD139: =F139*(Forecast!$Y$8/$F$2) -> 74.83610022 | AE139: =F139*(Forecast!$Z$8/$F$2) -> 75.23715113 | AF139: =F139*(Forecast!$AA$8/$F$2) -> 75.63820205 | AG139: =F139*(Forecast!$AB$8/$F$2) -> 76.03925296
A140: 2017-01-06T16:00:00 | B140: 25.65945435 | C140: 14.42045498 | D140: 14.31281567 | E140: 0.001953125 | F140: 54.39467812 | H140: =F140*(Forecast!$C$8/$F$2) -> 65.98522395 | I140: =F140*(Forecast!$D$8/$F$2) -> 67.27746824 | J140: =F140*(Forecast!$E$8/$F$2) -> 67.43899877 | K140: =F140*(Forecast!$F$8/$F$2) -> 67.68129458 | L140: =F140*(Forecast!$G$8/$F$2) -> 67.84282511 | M140: =F140*(Forecast!$H$8/$F$2) -> 68.08512092 | N140: =F140*(Forecast!$I$8/$F$2) -> 68.56971253 | O140: =F140*(Forecast!$J$8/$F$2) -> 68.97353887 | P140: =F140*(Forecast!$K$8/$F$2) -> 69.37736521 | Q140: =F140*(Forecast!$L$8/$F$2) -> 69.78119155 | R140: =F140*(Forecast!$M$8/$F$2) -> 70.18501789 | S140: =F140*(Forecast!$N$8/$F$2) -> 70.66960949 | T140: =F140*(Forecast!$O$8/$F$2) -> 71.07343583 | U140: =F140*(Forecast!$P$8/$F$2) -> 71.47726217 | V140: =F140*(Forecast!$Q$8/$F$2) -> 71.88108851 | W140: =F140*(Forecast!$R$8/$F$2) -> 72.36568012 | X140: =F140*(Forecast!$S$8/$F$2) -> 72.76950646 | Y140: =F140*(Forecast!$T$8/$F$2) -> 73.1733328 | Z140: =F140*(Forecast!$U$8/$F$2) -> 73.57715914 | AA140: =F140*(Forecast!$V$8/$F$2) -> 74.06175075 | AB140: =F140*(Forecast!$W$8/$F$2) -> 74.46557709 | AC140: =F140*(Forecast!$X$8/$F$2) -> 74.86940343 | AD140: =F140*(Forecast!$Y$8/$F$2) -> 75.35399504 | AE140: =F140*(Forecast!$Z$8/$F$2) -> 75.75782138 | AF140: =F140*(Forecast!$AA$8/$F$2) -> 76.16164772 | AG140: =F140*(Forecast!$AB$8/$F$2) -> 76.56547406
A141: 2017-01-06T17:00:00 | B141: 26.97822571 | C141: 15.0693264 | D141: 15.0142498 | E141: 0.001953125 | F141: 57.06375504 | H141: =F141*(Forecast!$C$8/$F$2) -> 69.22303405 | I141: =F141*(Forecast!$D$8/$F$2) -> 70.57868711 | J141: =F141*(Forecast!$E$8/$F$2) -> 70.74814374 | K141: =F141*(Forecast!$F$8/$F$2) -> 71.00232868 | L141: =F141*(Forecast!$G$8/$F$2) -> 71.17178532 | M141: =F141*(Forecast!$H$8/$F$2) -> 71.42597026 | N141: =F141*(Forecast!$I$8/$F$2) -> 71.93434016 | O141: =F141*(Forecast!$J$8/$F$2) -> 72.35798174 | P141: =F141*(Forecast!$K$8/$F$2) -> 72.78162332 | Q141: =F141*(Forecast!$L$8/$F$2) -> 73.2052649 | R141: =F141*(Forecast!$M$8/$F$2) -> 73.62890648 | S141: =F141*(Forecast!$N$8/$F$2) -> 74.13727637 | T141: =F141*(Forecast!$O$8/$F$2) -> 74.56091795 | U141: =F141*(Forecast!$P$8/$F$2) -> 74.98455953 | V141: =F141*(Forecast!$Q$8/$F$2) -> 75.40820111 | W141: =F141*(Forecast!$R$8/$F$2) -> 75.916571 | X141: =F141*(Forecast!$S$8/$F$2) -> 76.34021258 | Y141: =F141*(Forecast!$T$8/$F$2) -> 76.76385416 | Z141: =F141*(Forecast!$U$8/$F$2) -> 77.18749574 | AA141: =F141*(Forecast!$V$8/$F$2) -> 77.69586564 | AB141: =F141*(Forecast!$W$8/$F$2) -> 78.11950722 | AC141: =F141*(Forecast!$X$8/$F$2) -> 78.5431488 | AD141: =F141*(Forecast!$Y$8/$F$2) -> 79.05151869 | AE141: =F141*(Forecast!$Z$8/$F$2) -> 79.47516027 | AF141: =F141*(Forecast!$AA$8/$F$2) -> 79.89880185 | AG141: =F141*(Forecast!$AB$8/$F$2) -> 80.32244343
A142: 2017-01-06T18:00:00 | B142: 27.33787918 | C142: 15.37893963 | D142: 15.15496063 | E142: 0.001953125 | F142: 57.87373257 | H142: =F142*(Forecast!$C$8/$F$2) -> 70.2056035 | I142: =F142*(Forecast!$D$8/$F$2) -> 71.58049904 | J142: =F142*(Forecast!$E$8/$F$2) -> 71.75236098 | K142: =F142*(Forecast!$F$8/$F$2) -> 72.01015389 | L142: =F142*(Forecast!$G$8/$F$2) -> 72.18201584 | M142: =F142*(Forecast!$H$8/$F$2) -> 72.43980875 | N142: =F142*(Forecast!$I$8/$F$2) -> 72.95539458 | O142: =F142*(Forecast!$J$8/$F$2) -> 73.38504943 | P142: =F142*(Forecast!$K$8/$F$2) -> 73.81470429 | Q142: =F142*(Forecast!$L$8/$F$2) -> 74.24435915 | R142: =F142*(Forecast!$M$8/$F$2) -> 74.674014 | S142: =F142*(Forecast!$N$8/$F$2) -> 75.18959983 | T142: =F142*(Forecast!$O$8/$F$2) -> 75.61925469 | U142: =F142*(Forecast!$P$8/$F$2) -> 76.04890954 | V142: =F142*(Forecast!$Q$8/$F$2) -> 76.4785644 | W142: =F142*(Forecast!$R$8/$F$2) -> 76.99415023 | X142: =F142*(Forecast!$S$8/$F$2) -> 77.42380508 | Y142: =F142*(Forecast!$T$8/$F$2) -> 77.85345994 | Z142: =F142*(Forecast!$U$8/$F$2) -> 78.28311479 | AA142: =F142*(Forecast!$V$8/$F$2) -> 78.79870062 | AB142: =F142*(Forecast!$W$8/$F$2) -> 79.22835548 | AC142: =F142*(Forecast!$X$8/$F$2) -> 79.65801033 | AD142: =F142*(Forecast!$Y$8/$F$2) -> 80.17359616 | AE142: =F142*(Forecast!$Z$8/$F$2) -> 80.60325102 | AF142: =F142*(Forecast!$AA$8/$F$2) -> 81.03290587 | AG142: =F142*(Forecast!$AB$8/$F$2) -> 81.46256073
A143: 2017-01-06T19:00:00 | B143: 27.47636032 | C143: 15.44331837 | D143: 15.2681303 | E143: 0.001953125 | F143: 58.18976212 | H143: =F143*(Forecast!$C$8/$F$2) -> 70.58897337 | I143: =F143*(Forecast!$D$8/$F$2) -> 71.97137676 | J143: =F143*(Forecast!$E$8/$F$2) -> 72.14417719 | K143: =F143*(Forecast!$F$8/$F$2) -> 72.40337782 | L143: =F143*(Forecast!$G$8/$F$2) -> 72.57617825 | M143: =F143*(Forecast!$H$8/$F$2) -> 72.83537888 | N143: =F143*(Forecast!$I$8/$F$2) -> 73.35378016 | O143: =F143*(Forecast!$J$8/$F$2) -> 73.78578122 | P143: =F143*(Forecast!$K$8/$F$2) -> 74.21778228 | Q143: =F143*(Forecast!$L$8/$F$2) -> 74.64978334 | R143: =F143*(Forecast!$M$8/$F$2) -> 75.0817844 | S143: =F143*(Forecast!$N$8/$F$2) -> 75.60018567 | T143: =F143*(Forecast!$O$8/$F$2) -> 76.03218673 | U143: =F143*(Forecast!$P$8/$F$2) -> 76.4641878 | V143: =F143*(Forecast!$Q$8/$F$2) -> 76.89618886 | W143: =F143*(Forecast!$R$8/$F$2) -> 77.41459013 | X143: =F143*(Forecast!$S$8/$F$2) -> 77.84659119 | Y143: =F143*(Forecast!$T$8/$F$2) -> 78.27859225 | Z143: =F143*(Forecast!$U$8/$F$2) -> 78.71059331 | AA143: =F143*(Forecast!$V$8/$F$2) -> 79.22899459 | AB143: =F143*(Forecast!$W$8/$F$2) -> 79.66099565 | AC143: =F143*(Forecast!$X$8/$F$2) -> 80.09299671 | AD143: =F143*(Forecast!$Y$8/$F$2) -> 80.61139798 | AE143: =F143*(Forecast!$Z$8/$F$2) -> 81.04339904 | AF143: =F143*(Forecast!$AA$8/$F$2) -> 81.4754001 | AG143: =F143*(Forecast!$AB$8/$F$2) -> 81.90740116
A144: 2017-01-06T20:00:00 | B144: 27.3656311 | C144: 15.35606575 | D144: 15.10744858 | E144: 0.001953125 | F144: 57.83109856 | H144: =F144*(Forecast!$C$8/$F$2) -> 70.15388493 | I144: =F144*(Forecast!$D$8/$F$2) -> 71.52776762 | J144: =F144*(Forecast!$E$8/$F$2) -> 71.69950296 | K144: =F144*(Forecast!$F$8/$F$2) -> 71.95710597 | L144: =F144*(Forecast!$G$8/$F$2) -> 72.1288413 | M144: =F144*(Forecast!$H$8/$F$2) -> 72.38644431 | N144: =F144*(Forecast!$I$8/$F$2) -> 72.90165032 | O144: =F144*(Forecast!$J$8/$F$2) -> 73.33098866 | P144: =F144*(Forecast!$K$8/$F$2) -> 73.760327 | Q144: =F144*(Forecast!$L$8/$F$2) -> 74.18966534 | R144: =F144*(Forecast!$M$8/$F$2) -> 74.61900368 | S144: =F144*(Forecast!$N$8/$F$2) -> 75.13420969 | T144: =F144*(Forecast!$O$8/$F$2) -> 75.56354803 | U144: =F144*(Forecast!$P$8/$F$2) -> 75.99288637 | V144: =F144*(Forecast!$Q$8/$F$2) -> 76.42222471 | W144: =F144*(Forecast!$R$8/$F$2) -> 76.93743072 | X144: =F144*(Forecast!$S$8/$F$2) -> 77.36676906 | Y144: =F144*(Forecast!$T$8/$F$2) -> 77.7961074 | Z144: =F144*(Forecast!$U$8/$F$2) -> 78.22544575 | AA144: =F144*(Forecast!$V$8/$F$2) -> 78.74065176 | AB144: =F144*(Forecast!$W$8/$F$2) -> 79.1699901 | AC144: =F144*(Forecast!$X$8/$F$2) -> 79.59932844 | AD144: =F144*(Forecast!$Y$8/$F$2) -> 80.11453445 | AE144: =F144*(Forecast!$Z$8/$F$2) -> 80.54387279 | AF144: =F144*(Forecast!$AA$8/$F$2) -> 80.97321113 | AG144: =F144*(Forecast!$AB$8/$F$2) -> 81.40254947
A145: 2017-01-06T21:00:00 | B145: 27.3150444 | C145: 15.22477341 | D145: 15.05983162 | E145: 0.001953125 | F145: 57.60160255 | H145: =F145*(Forecast!$C$8/$F$2) -> 69.87548738 | I145: =F145*(Forecast!$D$8/$F$2) -> 71.24391798 | J145: =F145*(Forecast!$E$8/$F$2) -> 71.41497181 | K145: =F145*(Forecast!$F$8/$F$2) -> 71.67155254 | L145: =F145*(Forecast!$G$8/$F$2) -> 71.84260637 | M145: =F145*(Forecast!$H$8/$F$2) -> 72.0991871 | N145: =F145*(Forecast!$I$8/$F$2) -> 72.61234858 | O145: =F145*(Forecast!$J$8/$F$2) -> 73.03998314 | P145: =F145*(Forecast!$K$8/$F$2) -> 73.4676177 | Q145: =F145*(Forecast!$L$8/$F$2) -> 73.89525226 | R145: =F145*(Forecast!$M$8/$F$2) -> 74.32288683 | S145: =F145*(Forecast!$N$8/$F$2) -> 74.8360483 | T145: =F145*(Forecast!$O$8/$F$2) -> 75.26368286 | U145: =F145*(Forecast!$P$8/$F$2) -> 75.69131742 | V145: =F145*(Forecast!$Q$8/$F$2) -> 76.11895198 | W145: =F145*(Forecast!$R$8/$F$2) -> 76.63211346 | X145: =F145*(Forecast!$S$8/$F$2) -> 77.05974802 | Y145: =F145*(Forecast!$T$8/$F$2) -> 77.48738258 | Z145: =F145*(Forecast!$U$8/$F$2) -> 77.91501714 | AA145: =F145*(Forecast!$V$8/$F$2) -> 78.42817862 | AB145: =F145*(Forecast!$W$8/$F$2) -> 78.85581318 | AC145: =F145*(Forecast!$X$8/$F$2) -> 79.28344774 | AD145: =F145*(Forecast!$Y$8/$F$2) -> 79.79660922 | AE145: =F145*(Forecast!$Z$8/$F$2) -> 80.22424378 | AF145: =F145*(Forecast!$AA$8/$F$2) -> 80.65187834 | AG145: =F145*(Forecast!$AB$8/$F$2) -> 81.0795129
A146: 2017-01-06T22:00:00 | B146: 26.44477844 | C146: 14.74272919 | D146: 14.57365227 | E146: 0.001953125 | F146: 55.76311302 | H146: =F146*(Forecast!$C$8/$F$2) -> 67.64524818 | I146: =F146*(Forecast!$D$8/$F$2) -> 68.97000212 | J146: =F146*(Forecast!$E$8/$F$2) -> 69.13559637 | K146: =F146*(Forecast!$F$8/$F$2) -> 69.38398773 | L146: =F146*(Forecast!$G$8/$F$2) -> 69.54958197 | M146: =F146*(Forecast!$H$8/$F$2) -> 69.79797334 | N146: =F146*(Forecast!$I$8/$F$2) -> 70.29475607 | O146: =F146*(Forecast!$J$8/$F$2) -> 70.70874167 | P146: =F146*(Forecast!$K$8/$F$2) -> 71.12272728 | Q146: =F146*(Forecast!$L$8/$F$2) -> 71.53671289 | R146: =F146*(Forecast!$M$8/$F$2) -> 71.95069849 | S146: =F146*(Forecast!$N$8/$F$2) -> 72.44748122 | T146: =F146*(Forecast!$O$8/$F$2) -> 72.86146683 | U146: =F146*(Forecast!$P$8/$F$2) -> 73.27545244 | V146: =F146*(Forecast!$Q$8/$F$2) -> 73.68943804 | W146: =F146*(Forecast!$R$8/$F$2) -> 74.18622077 | X146: =F146*(Forecast!$S$8/$F$2) -> 74.60020638 | Y146: =F146*(Forecast!$T$8/$F$2) -> 75.01419199 | Z146: =F146*(Forecast!$U$8/$F$2) -> 75.42817759 | AA146: =F146*(Forecast!$V$8/$F$2) -> 75.92496032 | AB146: =F146*(Forecast!$W$8/$F$2) -> 76.33894593 | AC146: =F146*(Forecast!$X$8/$F$2) -> 76.75293154 | AD146: =F146*(Forecast!$Y$8/$F$2) -> 77.24971426 | AE146: =F146*(Forecast!$Z$8/$F$2) -> 77.66369987 | AF146: =F146*(Forecast!$AA$8/$F$2) -> 78.07768548 | AG146: =F146*(Forecast!$AB$8/$F$2) -> 78.49167108
A147: 2017-01-06T23:00:00 | B147: 25.74563026 | C147: 14.27921009 | D147: 14.20961857 | E147: 0.001953125 | F147: 54.23641205 | H147: =F147*(Forecast!$C$8/$F$2) -> 65.79323418 | I147: =F147*(Forecast!$D$8/$F$2) -> 67.08171857 | J147: =F147*(Forecast!$E$8/$F$2) -> 67.24277912 | K147: =F147*(Forecast!$F$8/$F$2) -> 67.48436994 | L147: =F147*(Forecast!$G$8/$F$2) -> 67.64543049 | M147: =F147*(Forecast!$H$8/$F$2) -> 67.88702131 | N147: =F147*(Forecast!$I$8/$F$2) -> 68.37020296 | O147: =F147*(Forecast!$J$8/$F$2) -> 68.77285433 | P147: =F147*(Forecast!$K$8/$F$2) -> 69.1755057 | Q147: =F147*(Forecast!$L$8/$F$2) -> 69.57815707 | R147: =F147*(Forecast!$M$8/$F$2) -> 69.98080845 | S147: =F147*(Forecast!$N$8/$F$2) -> 70.46399009 | T147: =F147*(Forecast!$O$8/$F$2) -> 70.86664146 | U147: =F147*(Forecast!$P$8/$F$2) -> 71.26929284 | V147: =F147*(Forecast!$Q$8/$F$2) -> 71.67194421 | W147: =F147*(Forecast!$R$8/$F$2) -> 72.15512585 | X147: =F147*(Forecast!$S$8/$F$2) -> 72.55777723 | Y147: =F147*(Forecast!$T$8/$F$2) -> 72.9604286 | Z147: =F147*(Forecast!$U$8/$F$2) -> 73.36307997 | AA147: =F147*(Forecast!$V$8/$F$2) -> 73.84626162 | AB147: =F147*(Forecast!$W$8/$F$2) -> 74.24891299 | AC147: =F147*(Forecast!$X$8/$F$2) -> 74.65156436 | AD147: =F147*(Forecast!$Y$8/$F$2) -> 75.13474601 | AE147: =F147*(Forecast!$Z$8/$F$2) -> 75.53739738 | AF147: =F147*(Forecast!$AA$8/$F$2) -> 75.94004875 | AG147: =F147*(Forecast!$AB$8/$F$2) -> 76.34270012
A148: 2017-01-07 | B148: 25.05375099 | C148: 14.01879692 | D148: 13.96690464 | E148: 0.001953125 | F148: 53.04140568 | H148: =F148*(Forecast!$C$8/$F$2) -> 64.34359304 | I148: =F148*(Forecast!$D$8/$F$2) -> 65.60368789 | J148: =F148*(Forecast!$E$8/$F$2) -> 65.76119974 | K148: =F148*(Forecast!$F$8/$F$2) -> 65.99746753 | L148: =F148*(Forecast!$G$8/$F$2) -> 66.15497938 | M148: =F148*(Forecast!$H$8/$F$2) -> 66.39124716 | N148: =F148*(Forecast!$I$8/$F$2) -> 66.86378273 | O148: =F148*(Forecast!$J$8/$F$2) -> 67.25756237 | P148: =F148*(Forecast!$K$8/$F$2) -> 67.65134201 | Q148: =F148*(Forecast!$L$8/$F$2) -> 68.04512165 | R148: =F148*(Forecast!$M$8/$F$2) -> 68.43890129 | S148: =F148*(Forecast!$N$8/$F$2) -> 68.91143686 | T148: =F148*(Forecast!$O$8/$F$2) -> 69.30521649 | U148: =F148*(Forecast!$P$8/$F$2) -> 69.69899613 | V148: =F148*(Forecast!$Q$8/$F$2) -> 70.09277577 | W148: =F148*(Forecast!$R$8/$F$2) -> 70.56531134 | X148: =F148*(Forecast!$S$8/$F$2) -> 70.95909098 | Y148: =F148*(Forecast!$T$8/$F$2) -> 71.35287062 | Z148: =F148*(Forecast!$U$8/$F$2) -> 71.74665026 | AA148: =F148*(Forecast!$V$8/$F$2) -> 72.21918582 | AB148: =F148*(Forecast!$W$8/$F$2) -> 72.61296546 | AC148: =F148*(Forecast!$X$8/$F$2) -> 73.0067451 | AD148: =F148*(Forecast!$Y$8/$F$2) -> 73.47928067 | AE148: =F148*(Forecast!$Z$8/$F$2) -> 73.87306031 | AF148: =F148*(Forecast!$AA$8/$F$2) -> 74.26683995 | AG148: =F148*(Forecast!$AB$8/$F$2) -> 74.66061959
A149: 2017-01-07T01:00:00 | B149: 24.30659485 | C149: 13.8628149 | D149: 13.25295639 | E149: 0.001953125 | F149: 51.42431927 | H149: =F149*(Forecast!$C$8/$F$2) -> 62.38193406 | I149: =F149*(Forecast!$D$8/$F$2) -> 63.60361208 | J149: =F149*(Forecast!$E$8/$F$2) -> 63.75632183 | K149: =F149*(Forecast!$F$8/$F$2) -> 63.98538646 | L149: =F149*(Forecast!$G$8/$F$2) -> 64.13809622 | M149: =F149*(Forecast!$H$8/$F$2) -> 64.36716085 | N149: =F149*(Forecast!$I$8/$F$2) -> 64.8252901 | O149: =F149*(Forecast!$J$8/$F$2) -> 65.20706449 | P149: =F149*(Forecast!$K$8/$F$2) -> 65.58883887 | Q149: =F149*(Forecast!$L$8/$F$2) -> 65.97061325 | R149: =F149*(Forecast!$M$8/$F$2) -> 66.35238763 | S149: =F149*(Forecast!$N$8/$F$2) -> 66.81051689 | T149: =F149*(Forecast!$O$8/$F$2) -> 67.19229127 | U149: =F149*(Forecast!$P$8/$F$2) -> 67.57406566 | V149: =F149*(Forecast!$Q$8/$F$2) -> 67.95584004 | W149: =F149*(Forecast!$R$8/$F$2) -> 68.4139693 | X149: =F149*(Forecast!$S$8/$F$2) -> 68.79574368 | Y149: =F149*(Forecast!$T$8/$F$2) -> 69.17751806 | Z149: =F149*(Forecast!$U$8/$F$2) -> 69.55929244 | AA149: =F149*(Forecast!$V$8/$F$2) -> 70.0174217 | AB149: =F149*(Forecast!$W$8/$F$2) -> 70.39919608 | AC149: =F149*(Forecast!$X$8/$F$2) -> 70.78097047 | AD149: =F149*(Forecast!$Y$8/$F$2) -> 71.23909973 | AE149: =F149*(Forecast!$Z$8/$F$2) -> 71.62087411 | AF149: =F149*(Forecast!$AA$8/$F$2) -> 72.00264849 | AG149: =F149*(Forecast!$AB$8/$F$2) -> 72.38442287
A150: 2017-01-07T02:00:00 | B150: 24.41513824 | C150: 13.8628149 | D150: 13.372612 | E150: 0.001953125 | F150: 51.65251827 | H150: =F150*(Forecast!$C$8/$F$2) -> 62.65875824 | I150: =F150*(Forecast!$D$8/$F$2) -> 63.88585755 | J150: =F150*(Forecast!$E$8/$F$2) -> 64.03924496 | K150: =F150*(Forecast!$F$8/$F$2) -> 64.26932608 | L150: =F150*(Forecast!$G$8/$F$2) -> 64.42271349 | M150: =F150*(Forecast!$H$8/$F$2) -> 64.65279461 | N150: =F150*(Forecast!$I$8/$F$2) -> 65.11295685 | O150: =F150*(Forecast!$J$8/$F$2) -> 65.49642539 | P150: =F150*(Forecast!$K$8/$F$2) -> 65.87989392 | Q150: =F150*(Forecast!$L$8/$F$2) -> 66.26336245 | R150: =F150*(Forecast!$M$8/$F$2) -> 66.64683098 | S150: =F150*(Forecast!$N$8/$F$2) -> 67.10699322 | T150: =F150*(Forecast!$O$8/$F$2) -> 67.49046176 | U150: =F150*(Forecast!$P$8/$F$2) -> 67.87393029 | V150: =F150*(Forecast!$Q$8/$F$2) -> 68.25739882 | W150: =F150*(Forecast!$R$8/$F$2) -> 68.71756106 | X150: =F150*(Forecast!$S$8/$F$2) -> 69.10102959 | Y150: =F150*(Forecast!$T$8/$F$2) -> 69.48449813 | Z150: =F150*(Forecast!$U$8/$F$2) -> 69.86796666 | AA150: =F150*(Forecast!$V$8/$F$2) -> 70.3281289 | AB150: =F150*(Forecast!$W$8/$F$2) -> 70.71159743 | AC150: =F150*(Forecast!$X$8/$F$2) -> 71.09506596 | AD150: =F150*(Forecast!$Y$8/$F$2) -> 71.5552282 | AE150: =F150*(Forecast!$Z$8/$F$2) -> 71.93869673 | AF150: =F150*(Forecast!$AA$8/$F$2) -> 72.32216527 | AG150: =F150*(Forecast!$AB$8/$F$2) -> 72.7056338
A151: 2017-01-07T03:00:00 | B151: 24.41206741 | C151: 13.8628149 | D151: 13.49226761 | E151: 0.001953125 | F151: 51.76910305 | H151: =F151*(Forecast!$C$8/$F$2) -> 62.80018518 | I151: =F151*(Forecast!$D$8/$F$2) -> 64.03005417 | J151: =F151*(Forecast!$E$8/$F$2) -> 64.18378779 | K151: =F151*(Forecast!$F$8/$F$2) -> 64.41438823 | L151: =F151*(Forecast!$G$8/$F$2) -> 64.56812185 | M151: =F151*(Forecast!$H$8/$F$2) -> 64.79872228 | N151: =F151*(Forecast!$I$8/$F$2) -> 65.25992315 | O151: =F151*(Forecast!$J$8/$F$2) -> 65.64425721 | P151: =F151*(Forecast!$K$8/$F$2) -> 66.02859127 | Q151: =F151*(Forecast!$L$8/$F$2) -> 66.41292533 | R151: =F151*(Forecast!$M$8/$F$2) -> 66.79725939 | S151: =F151*(Forecast!$N$8/$F$2) -> 67.25846026 | T151: =F151*(Forecast!$O$8/$F$2) -> 67.64279432 | U151: =F151*(Forecast!$P$8/$F$2) -> 68.02712838 | V151: =F151*(Forecast!$Q$8/$F$2) -> 68.41146244 | W151: =F151*(Forecast!$R$8/$F$2) -> 68.87266331 | X151: =F151*(Forecast!$S$8/$F$2) -> 69.25699736 | Y151: =F151*(Forecast!$T$8/$F$2) -> 69.64133142 | Z151: =F151*(Forecast!$U$8/$F$2) -> 70.02566548 | AA151: =F151*(Forecast!$V$8/$F$2) -> 70.48686635 | AB151: =F151*(Forecast!$W$8/$F$2) -> 70.87120041 | AC151: =F151*(Forecast!$X$8/$F$2) -> 71.25553447 | AD151: =F151*(Forecast!$Y$8/$F$2) -> 71.71673534 | AE151: =F151*(Forecast!$Z$8/$F$2) -> 72.1010694 | AF151: =F151*(Forecast!$AA$8/$F$2) -> 72.48540346 | AG151: =F151*(Forecast!$AB$8/$F$2) -> 72.86973752
A152: 2017-01-07T04:00:00 | B152: 24.20222282 | C152: 13.8628149 | D152: 13.61192322 | E152: 0.001953125 | F152: 51.67891407 | H152: =F152*(Forecast!$C$8/$F$2) -> 62.69077852 | I152: =F152*(Forecast!$D$8/$F$2) -> 63.9185049 | J152: =F152*(Forecast!$E$8/$F$2) -> 64.0719707 | K152: =F152*(Forecast!$F$8/$F$2) -> 64.3021694 | L152: =F152*(Forecast!$G$8/$F$2) -> 64.4556352 | M152: =F152*(Forecast!$H$8/$F$2) -> 64.68583389 | N152: =F152*(Forecast!$I$8/$F$2) -> 65.14623129 | O152: =F152*(Forecast!$J$8/$F$2) -> 65.52989578 | P152: =F152*(Forecast!$K$8/$F$2) -> 65.91356028 | Q152: =F152*(Forecast!$L$8/$F$2) -> 66.29722477 | R152: =F152*(Forecast!$M$8/$F$2) -> 66.68088927 | S152: =F152*(Forecast!$N$8/$F$2) -> 67.14128666 | T152: =F152*(Forecast!$O$8/$F$2) -> 67.52495116 | U152: =F152*(Forecast!$P$8/$F$2) -> 67.90861565 | V152: =F152*(Forecast!$Q$8/$F$2) -> 68.29228015 | W152: =F152*(Forecast!$R$8/$F$2) -> 68.75267754 | X152: =F152*(Forecast!$S$8/$F$2) -> 69.13634204 | Y152: =F152*(Forecast!$T$8/$F$2) -> 69.52000653 | Z152: =F152*(Forecast!$U$8/$F$2) -> 69.90367103 | AA152: =F152*(Forecast!$V$8/$F$2) -> 70.36406842 | AB152: =F152*(Forecast!$W$8/$F$2) -> 70.74773292 | AC152: =F152*(Forecast!$X$8/$F$2) -> 71.13139741 | AD152: =F152*(Forecast!$Y$8/$F$2) -> 71.59179481 | AE152: =F152*(Forecast!$Z$8/$F$2) -> 71.9754593 | AF152: =F152*(Forecast!$AA$8/$F$2) -> 72.3591238 | AG152: =F152*(Forecast!$AB$8/$F$2) -> 72.74278829
A153: 2017-01-07T05:00:00 | B153: 24.22304344 | C153: 13.8628149 | D153: 13.73157787 | E153: 0.001953125 | F153: 51.81938934 | H153: =F153*(Forecast!$C$8/$F$2) -> 62.86118659 | I153: =F153*(Forecast!$D$8/$F$2) -> 64.09225022 | J153: =F153*(Forecast!$E$8/$F$2) -> 64.24613318 | K153: =F153*(Forecast!$F$8/$F$2) -> 64.47695761 | L153: =F153*(Forecast!$G$8/$F$2) -> 64.63084056 | M153: =F153*(Forecast!$H$8/$F$2) -> 64.86166499 | N153: =F153*(Forecast!$I$8/$F$2) -> 65.32331385 | O153: =F153*(Forecast!$J$8/$F$2) -> 65.70802124 | P153: =F153*(Forecast!$K$8/$F$2) -> 66.09272862 | Q153: =F153*(Forecast!$L$8/$F$2) -> 66.47743601 | R153: =F153*(Forecast!$M$8/$F$2) -> 66.86214339 | S153: =F153*(Forecast!$N$8/$F$2) -> 67.32379225 | T153: =F153*(Forecast!$O$8/$F$2) -> 67.70849964 | U153: =F153*(Forecast!$P$8/$F$2) -> 68.09320702 | V153: =F153*(Forecast!$Q$8/$F$2) -> 68.4779144 | W153: =F153*(Forecast!$R$8/$F$2) -> 68.93956327 | X153: =F153*(Forecast!$S$8/$F$2) -> 69.32427065 | Y153: =F153*(Forecast!$T$8/$F$2) -> 69.70897803 | Z153: =F153*(Forecast!$U$8/$F$2) -> 70.09368542 | AA153: =F153*(Forecast!$V$8/$F$2) -> 70.55533428 | AB153: =F153*(Forecast!$W$8/$F$2) -> 70.94004166 | AC153: =F153*(Forecast!$X$8/$F$2) -> 71.32474905 | AD153: =F153*(Forecast!$Y$8/$F$2) -> 71.78639791 | AE153: =F153*(Forecast!$Z$8/$F$2) -> 72.17110529 | AF153: =F153*(Forecast!$AA$8/$F$2) -> 72.55581268 | AG153: =F153*(Forecast!$AB$8/$F$2) -> 72.94052006
A154: 2017-01-07T06:00:00 | B154: 24.48978424 | C154: 13.8628149 | D154: 13.85123348 | E154: 0.001953125 | F154: 52.20578575 | H154: =F154*(Forecast!$C$8/$F$2) -> 63.32991726 | I154: =F154*(Forecast!$D$8/$F$2) -> 64.57016043 | J154: =F154*(Forecast!$E$8/$F$2) -> 64.72519083 | K154: =F154*(Forecast!$F$8/$F$2) -> 64.95773643 | L154: =F154*(Forecast!$G$8/$F$2) -> 65.11276682 | M154: =F154*(Forecast!$H$8/$F$2) -> 65.34531242 | N154: =F154*(Forecast!$I$8/$F$2) -> 65.81040361 | O154: =F154*(Forecast!$J$8/$F$2) -> 66.19797961 | P154: =F154*(Forecast!$K$8/$F$2) -> 66.5855556 | Q154: =F154*(Forecast!$L$8/$F$2) -> 66.97313159 | R154: =F154*(Forecast!$M$8/$F$2) -> 67.36070758 | S154: =F154*(Forecast!$N$8/$F$2) -> 67.82579878 | T154: =F154*(Forecast!$O$8/$F$2) -> 68.21337477 | U154: =F154*(Forecast!$P$8/$F$2) -> 68.60095076 | V154: =F154*(Forecast!$Q$8/$F$2) -> 68.98852675 | W154: =F154*(Forecast!$R$8/$F$2) -> 69.45361795 | X154: =F154*(Forecast!$S$8/$F$2) -> 69.84119394 | Y154: =F154*(Forecast!$T$8/$F$2) -> 70.22876993 | Z154: =F154*(Forecast!$U$8/$F$2) -> 70.61634593 | AA154: =F154*(Forecast!$V$8/$F$2) -> 71.08143712 | AB154: =F154*(Forecast!$W$8/$F$2) -> 71.46901311 | AC154: =F154*(Forecast!$X$8/$F$2) -> 71.8565891 | AD154: =F154*(Forecast!$Y$8/$F$2) -> 72.32168029 | AE154: =F154*(Forecast!$Z$8/$F$2) -> 72.70925629 | AF154: =F154*(Forecast!$AA$8/$F$2) -> 73.09683228 | AG154: =F154*(Forecast!$AB$8/$F$2) -> 73.48440827
A155: 2017-01-07T07:00:00 | B155: 24.8886776 | C155: 13.91439724 | D155: 13.97088909 | E155: 0.001953125 | F155: 52.77591705 | H155: =F155*(Forecast!$C$8/$F$2) -> 64.02153348 | I155: =F155*(Forecast!$D$8/$F$2) -> 65.27532116 | J155: =F155*(Forecast!$E$8/$F$2) -> 65.43204462 | K155: =F155*(Forecast!$F$8/$F$2) -> 65.66712981 | L155: =F155*(Forecast!$G$8/$F$2) -> 65.82385327 | M155: =F155*(Forecast!$H$8/$F$2) -> 66.05893846 | N155: =F155*(Forecast!$I$8/$F$2) -> 66.52910884 | O155: =F155*(Forecast!$J$8/$F$2) -> 66.92091749 | P155: =F155*(Forecast!$K$8/$F$2) -> 67.31272614 | Q155: =F155*(Forecast!$L$8/$F$2) -> 67.70453479 | R155: =F155*(Forecast!$M$8/$F$2) -> 68.09634344 | S155: =F155*(Forecast!$N$8/$F$2) -> 68.56651382 | T155: =F155*(Forecast!$O$8/$F$2) -> 68.95832247 | U155: =F155*(Forecast!$P$8/$F$2) -> 69.35013112 | V155: =F155*(Forecast!$Q$8/$F$2) -> 69.74193977 | W155: =F155*(Forecast!$R$8/$F$2) -> 70.21211015 | X155: =F155*(Forecast!$S$8/$F$2) -> 70.6039188 | Y155: =F155*(Forecast!$T$8/$F$2) -> 70.99572745 | Z155: =F155*(Forecast!$U$8/$F$2) -> 71.3875361 | AA155: =F155*(Forecast!$V$8/$F$2) -> 71.85770648 | AB155: =F155*(Forecast!$W$8/$F$2) -> 72.24951513 | AC155: =F155*(Forecast!$X$8/$F$2) -> 72.64132379 | AD155: =F155*(Forecast!$Y$8/$F$2) -> 73.11149417 | AE155: =F155*(Forecast!$Z$8/$F$2) -> 73.50330282 | AF155: =F155*(Forecast!$AA$8/$F$2) -> 73.89511147 | AG155: =F155*(Forecast!$AB$8/$F$2) -> 74.28692012
A156: 2017-01-07T08:00:00 | B156: 25.43140221 | C156: 14.03529263 | D156: 14.18908024 | E156: 0.001953125 | F156: 53.6577282 | H156: =F156*(Forecast!$C$8/$F$2) -> 65.09124301 | I156: =F156*(Forecast!$D$8/$F$2) -> 66.36597971 | J156: =F156*(Forecast!$E$8/$F$2) -> 66.5253218 | K156: =F156*(Forecast!$F$8/$F$2) -> 66.76433493 | L156: =F156*(Forecast!$G$8/$F$2) -> 66.92367702 | M156: =F156*(Forecast!$H$8/$F$2) -> 67.16269015 | N156: =F156*(Forecast!$I$8/$F$2) -> 67.64071642 | O156: =F156*(Forecast!$J$8/$F$2) -> 68.03907164 | P156: =F156*(Forecast!$K$8/$F$2) -> 68.43742686 | Q156: =F156*(Forecast!$L$8/$F$2) -> 68.83578208 | R156: =F156*(Forecast!$M$8/$F$2) -> 69.2341373 | S156: =F156*(Forecast!$N$8/$F$2) -> 69.71216356 | T156: =F156*(Forecast!$O$8/$F$2) -> 70.11051879 | U156: =F156*(Forecast!$P$8/$F$2) -> 70.50887401 | V156: =F156*(Forecast!$Q$8/$F$2) -> 70.90722923 | W156: =F156*(Forecast!$R$8/$F$2) -> 71.38525549 | X156: =F156*(Forecast!$S$8/$F$2) -> 71.78361071 | Y156: =F156*(Forecast!$T$8/$F$2) -> 72.18196593 | Z156: =F156*(Forecast!$U$8/$F$2) -> 72.58032115 | AA156: =F156*(Forecast!$V$8/$F$2) -> 73.05834742 | AB156: =F156*(Forecast!$W$8/$F$2) -> 73.45670264 | AC156: =F156*(Forecast!$X$8/$F$2) -> 73.85505786 | AD156: =F156*(Forecast!$Y$8/$F$2) -> 74.33308412 | AE156: =F156*(Forecast!$Z$8/$F$2) -> 74.73143934 | AF156: =F156*(Forecast!$AA$8/$F$2) -> 75.12979456 | AG156: =F156*(Forecast!$AB$8/$F$2) -> 75.52814978
A157: 2017-01-07T09:00:00 | B157: 26.5456295 | C157: 15.05004883 | D157: 15.00161266 | E157: 0.001953125 | F157: 56.59924412 | H157: =F157*(Forecast!$C$8/$F$2) -> 68.65954406 | I157: =F157*(Forecast!$D$8/$F$2) -> 70.00416181 | J157: =F157*(Forecast!$E$8/$F$2) -> 70.17223903 | K157: =F157*(Forecast!$F$8/$F$2) -> 70.42435486 | L157: =F157*(Forecast!$G$8/$F$2) -> 70.59243208 | M157: =F157*(Forecast!$H$8/$F$2) -> 70.84454791 | N157: =F157*(Forecast!$I$8/$F$2) -> 71.34877956 | O157: =F157*(Forecast!$J$8/$F$2) -> 71.76897261 | P157: =F157*(Forecast!$K$8/$F$2) -> 72.18916566 | Q157: =F157*(Forecast!$L$8/$F$2) -> 72.60935871 | R157: =F157*(Forecast!$M$8/$F$2) -> 73.02955176 | S157: =F157*(Forecast!$N$8/$F$2) -> 73.53378341 | T157: =F157*(Forecast!$O$8/$F$2) -> 73.95397646 | U157: =F157*(Forecast!$P$8/$F$2) -> 74.37416951 | V157: =F157*(Forecast!$Q$8/$F$2) -> 74.79436256 | W157: =F157*(Forecast!$R$8/$F$2) -> 75.29859422 | X157: =F157*(Forecast!$S$8/$F$2) -> 75.71878726 | Y157: =F157*(Forecast!$T$8/$F$2) -> 76.13898031 | Z157: =F157*(Forecast!$U$8/$F$2) -> 76.55917336 | AA157: =F157*(Forecast!$V$8/$F$2) -> 77.06340502 | AB157: =F157*(Forecast!$W$8/$F$2) -> 77.48359807 | AC157: =F157*(Forecast!$X$8/$F$2) -> 77.90379111 | AD157: =F157*(Forecast!$Y$8/$F$2) -> 78.40802277 | AE157: =F157*(Forecast!$Z$8/$F$2) -> 78.82821582 | AF157: =F157*(Forecast!$AA$8/$F$2) -> 79.24840887 | AG157: =F157*(Forecast!$AB$8/$F$2) -> 79.66860192
A158: 2017-01-07T10:00:00 | B158: 26.19721413 | C158: 14.44088745 | D158: 14.53955555 | E158: 0.001953125 | F158: 55.17961025 | H158: =F158*(Forecast!$C$8/$F$2) -> 66.93741127 | I158: =F158*(Forecast!$D$8/$F$2) -> 68.24830305 | J158: =F158*(Forecast!$E$8/$F$2) -> 68.41216452 | K158: =F158*(Forecast!$F$8/$F$2) -> 68.65795673 | L158: =F158*(Forecast!$G$8/$F$2) -> 68.8218182 | M158: =F158*(Forecast!$H$8/$F$2) -> 69.06761041 | N158: =F158*(Forecast!$I$8/$F$2) -> 69.55919482 | O158: =F158*(Forecast!$J$8/$F$2) -> 69.9688485 | P158: =F158*(Forecast!$K$8/$F$2) -> 70.37850218 | Q158: =F158*(Forecast!$L$8/$F$2) -> 70.78815586 | R158: =F158*(Forecast!$M$8/$F$2) -> 71.19780954 | S158: =F158*(Forecast!$N$8/$F$2) -> 71.68939396 | T158: =F158*(Forecast!$O$8/$F$2) -> 72.09904764 | U158: =F158*(Forecast!$P$8/$F$2) -> 72.50870132 | V158: =F158*(Forecast!$Q$8/$F$2) -> 72.91835499 | W158: =F158*(Forecast!$R$8/$F$2) -> 73.40993941 | X158: =F158*(Forecast!$S$8/$F$2) -> 73.81959309 | Y158: =F158*(Forecast!$T$8/$F$2) -> 74.22924677 | Z158: =F158*(Forecast!$U$8/$F$2) -> 74.63890045 | AA158: =F158*(Forecast!$V$8/$F$2) -> 75.13048487 | AB158: =F158*(Forecast!$W$8/$F$2) -> 75.54013855 | AC158: =F158*(Forecast!$X$8/$F$2) -> 75.94979223 | AD158: =F158*(Forecast!$Y$8/$F$2) -> 76.44137664 | AE158: =F158*(Forecast!$Z$8/$F$2) -> 76.85103032 | AF158: =F158*(Forecast!$AA$8/$F$2) -> 77.260684 | AG158: =F158*(Forecast!$AB$8/$F$2) -> 77.67033768
A159: 2017-01-07T11:00:00 | B159: 25.82257652 | C159: 14.53774548 | D159: 14.28530216 | E159: 0.001953125 | F159: 54.64757729 | H159: =F159*(Forecast!$C$8/$F$2) -> 66.29201147 | I159: =F159*(Forecast!$D$8/$F$2) -> 67.59026384 | J159: =F159*(Forecast!$E$8/$F$2) -> 67.75254538 | K159: =F159*(Forecast!$F$8/$F$2) -> 67.9959677 | L159: =F159*(Forecast!$G$8/$F$2) -> 68.15824925 | M159: =F159*(Forecast!$H$8/$F$2) -> 68.40167156 | N159: =F159*(Forecast!$I$8/$F$2) -> 68.8885162 | O159: =F159*(Forecast!$J$8/$F$2) -> 69.29422007 | P159: =F159*(Forecast!$K$8/$F$2) -> 69.69992393 | Q159: =F159*(Forecast!$L$8/$F$2) -> 70.1056278 | R159: =F159*(Forecast!$M$8/$F$2) -> 70.51133166 | S159: =F159*(Forecast!$N$8/$F$2) -> 70.9981763 | T159: =F159*(Forecast!$O$8/$F$2) -> 71.40388016 | U159: =F159*(Forecast!$P$8/$F$2) -> 71.80958403 | V159: =F159*(Forecast!$Q$8/$F$2) -> 72.21528789 | W159: =F159*(Forecast!$R$8/$F$2) -> 72.70213253 | X159: =F159*(Forecast!$S$8/$F$2) -> 73.10783639 | Y159: =F159*(Forecast!$T$8/$F$2) -> 73.51354026 | Z159: =F159*(Forecast!$U$8/$F$2) -> 73.91924412 | AA159: =F159*(Forecast!$V$8/$F$2) -> 74.40608876 | AB159: =F159*(Forecast!$W$8/$F$2) -> 74.81179263 | AC159: =F159*(Forecast!$X$8/$F$2) -> 75.21749649 | AD159: =F159*(Forecast!$Y$8/$F$2) -> 75.70434113 | AE159: =F159*(Forecast!$Z$8/$F$2) -> 76.11004499 | AF159: =F159*(Forecast!$AA$8/$F$2) -> 76.51574886 | AG159: =F159*(Forecast!$AB$8/$F$2) -> 76.92145272
A160: 2017-01-07T12:00:00 | B160: 25.38562965 | C160: 13.91837597 | D160: 14.10305023 | E160: 0.001953125 | F160: 53.40900898 | H160: =F160*(Forecast!$C$8/$F$2) -> 64.78952612 | I160: =F160*(Forecast!$D$8/$F$2) -> 66.05835405 | J160: =F160*(Forecast!$E$8/$F$2) -> 66.21695754 | K160: =F160*(Forecast!$F$8/$F$2) -> 66.45486277 | L160: =F160*(Forecast!$G$8/$F$2) -> 66.61346627 | M160: =F160*(Forecast!$H$8/$F$2) -> 66.8513715 | N160: =F160*(Forecast!$I$8/$F$2) -> 67.32718198 | O160: =F160*(Forecast!$J$8/$F$2) -> 67.7236907 | P160: =F160*(Forecast!$K$8/$F$2) -> 68.12019943 | Q160: =F160*(Forecast!$L$8/$F$2) -> 68.51670816 | R160: =F160*(Forecast!$M$8/$F$2) -> 68.91321689 | S160: =F160*(Forecast!$N$8/$F$2) -> 69.38902736 | T160: =F160*(Forecast!$O$8/$F$2) -> 69.78553609 | U160: =F160*(Forecast!$P$8/$F$2) -> 70.18204482 | V160: =F160*(Forecast!$Q$8/$F$2) -> 70.57855354 | W160: =F160*(Forecast!$R$8/$F$2) -> 71.05436402 | X160: =F160*(Forecast!$S$8/$F$2) -> 71.45087274 | Y160: =F160*(Forecast!$T$8/$F$2) -> 71.84738147 | Z160: =F160*(Forecast!$U$8/$F$2) -> 72.2438902 | AA160: =F160*(Forecast!$V$8/$F$2) -> 72.71970067 | AB160: =F160*(Forecast!$W$8/$F$2) -> 73.1162094 | AC160: =F160*(Forecast!$X$8/$F$2) -> 73.51271813 | AD160: =F160*(Forecast!$Y$8/$F$2) -> 73.9885286 | AE160: =F160*(Forecast!$Z$8/$F$2) -> 74.38503733 | AF160: =F160*(Forecast!$AA$8/$F$2) -> 74.78154606 | AG160: =F160*(Forecast!$AB$8/$F$2) -> 75.17805479
A161: 2017-01-07T13:00:00 | B161: 24.99763298 | C161: 13.78949833 | D161: 13.89335251 | E161: 0.001953125 | F161: 52.68243694 | H161: =F161*(Forecast!$C$8/$F$2) -> 63.9081344 | I161: =F161*(Forecast!$D$8/$F$2) -> 65.1597013 | J161: =F161*(Forecast!$E$8/$F$2) -> 65.31614716 | K161: =F161*(Forecast!$F$8/$F$2) -> 65.55081595 | L161: =F161*(Forecast!$G$8/$F$2) -> 65.70726181 | M161: =F161*(Forecast!$H$8/$F$2) -> 65.9419306 | N161: =F161*(Forecast!$I$8/$F$2) -> 66.41126819 | O161: =F161*(Forecast!$J$8/$F$2) -> 66.80238284 | P161: =F161*(Forecast!$K$8/$F$2) -> 67.1934975 | Q161: =F161*(Forecast!$L$8/$F$2) -> 67.58461215 | R161: =F161*(Forecast!$M$8/$F$2) -> 67.9757268 | S161: =F161*(Forecast!$N$8/$F$2) -> 68.44506439 | T161: =F161*(Forecast!$O$8/$F$2) -> 68.83617904 | U161: =F161*(Forecast!$P$8/$F$2) -> 69.22729369 | V161: =F161*(Forecast!$Q$8/$F$2) -> 69.61840835 | W161: =F161*(Forecast!$R$8/$F$2) -> 70.08774593 | X161: =F161*(Forecast!$S$8/$F$2) -> 70.47886059 | Y161: =F161*(Forecast!$T$8/$F$2) -> 70.86997524 | Z161: =F161*(Forecast!$U$8/$F$2) -> 71.26108989 | AA161: =F161*(Forecast!$V$8/$F$2) -> 71.73042748 | AB161: =F161*(Forecast!$W$8/$F$2) -> 72.12154213 | AC161: =F161*(Forecast!$X$8/$F$2) -> 72.51265678 | AD161: =F161*(Forecast!$Y$8/$F$2) -> 72.98199437 | AE161: =F161*(Forecast!$Z$8/$F$2) -> 73.37310902 | AF161: =F161*(Forecast!$AA$8/$F$2) -> 73.76422368 | AG161: =F161*(Forecast!$AB$8/$F$2) -> 74.15533833
A162: 2017-01-07T14:00:00 | B162: 24.86333466 | C162: 13.90685749 | D162: 13.81699657 | E162: 0.001953125 | F162: 52.58914185 | H162: =F162*(Forecast!$C$8/$F$2) -> 63.79495977 | I162: =F162*(Forecast!$D$8/$F$2) -> 65.04431027 | J162: =F162*(Forecast!$E$8/$F$2) -> 65.20047908 | K162: =F162*(Forecast!$F$8/$F$2) -> 65.4347323 | L162: =F162*(Forecast!$G$8/$F$2) -> 65.59090111 | M162: =F162*(Forecast!$H$8/$F$2) -> 65.82515433 | N162: =F162*(Forecast!$I$8/$F$2) -> 66.29366076 | O162: =F162*(Forecast!$J$8/$F$2) -> 66.68408279 | P162: =F162*(Forecast!$K$8/$F$2) -> 67.07450482 | Q162: =F162*(Forecast!$L$8/$F$2) -> 67.46492685 | R162: =F162*(Forecast!$M$8/$F$2) -> 67.85534888 | S162: =F162*(Forecast!$N$8/$F$2) -> 68.32385532 | T162: =F162*(Forecast!$O$8/$F$2) -> 68.71427735 | U162: =F162*(Forecast!$P$8/$F$2) -> 69.10469938 | V162: =F162*(Forecast!$Q$8/$F$2) -> 69.49512141 | W162: =F162*(Forecast!$R$8/$F$2) -> 69.96362785 | X162: =F162*(Forecast!$S$8/$F$2) -> 70.35404988 | Y162: =F162*(Forecast!$T$8/$F$2) -> 70.74447191 | Z162: =F162*(Forecast!$U$8/$F$2) -> 71.13489394 | AA162: =F162*(Forecast!$V$8/$F$2) -> 71.60340038 | AB162: =F162*(Forecast!$W$8/$F$2) -> 71.99382241 | AC162: =F162*(Forecast!$X$8/$F$2) -> 72.38424444 | AD162: =F162*(Forecast!$Y$8/$F$2) -> 72.85275087 | AE162: =F162*(Forecast!$Z$8/$F$2) -> 73.2431729 | AF162: =F162*(Forecast!$AA$8/$F$2) -> 73.63359493 | AG162: =F162*(Forecast!$AB$8/$F$2) -> 74.02401697
A163: 2017-01-07T15:00:00 | B163: 25.09286499 | C163: 14.13756657 | D163: 14.10177994 | E163: 0.004422245082 | F163: 53.33663374 | H163: =F163*(Forecast!$C$8/$F$2) -> 64.70172899 | I163: =F163*(Forecast!$D$8/$F$2) -> 65.96883752 | J163: =F163*(Forecast!$E$8/$F$2) -> 66.12722608 | K163: =F163*(Forecast!$F$8/$F$2) -> 66.36480893 | L163: =F163*(Forecast!$G$8/$F$2) -> 66.52319749 | M163: =F163*(Forecast!$H$8/$F$2) -> 66.76078034 | N163: =F163*(Forecast!$I$8/$F$2) -> 67.23594604 | O163: =F163*(Forecast!$J$8/$F$2) -> 67.63191745 | P163: =F163*(Forecast!$K$8/$F$2) -> 68.02788887 | Q163: =F163*(Forecast!$L$8/$F$2) -> 68.42386028 | R163: =F163*(Forecast!$M$8/$F$2) -> 68.81983169 | S163: =F163*(Forecast!$N$8/$F$2) -> 69.29499739 | T163: =F163*(Forecast!$O$8/$F$2) -> 69.6909688 | U163: =F163*(Forecast!$P$8/$F$2) -> 70.08694022 | V163: =F163*(Forecast!$Q$8/$F$2) -> 70.48291163 | W163: =F163*(Forecast!$R$8/$F$2) -> 70.95807733 | X163: =F163*(Forecast!$S$8/$F$2) -> 71.35404874 | Y163: =F163*(Forecast!$T$8/$F$2) -> 71.75002015 | Z163: =F163*(Forecast!$U$8/$F$2) -> 72.14599157 | AA163: =F163*(Forecast!$V$8/$F$2) -> 72.62115726 | AB163: =F163*(Forecast!$W$8/$F$2) -> 73.01712868 | AC163: =F163*(Forecast!$X$8/$F$2) -> 73.41310009 | AD163: =F163*(Forecast!$Y$8/$F$2) -> 73.88826579 | AE163: =F163*(Forecast!$Z$8/$F$2) -> 74.2842372 | AF163: =F163*(Forecast!$AA$8/$F$2) -> 74.68020862 | AG163: =F163*(Forecast!$AB$8/$F$2) -> 75.07618003
A164: 2017-01-07T16:00:00 | B164: 25.39757919 | C164: 14.27670193 | D164: 14.34841728 | E164: 0.01590652391 | F164: 54.03860493 | H164: =F164*(Forecast!$C$8/$F$2) -> 65.55327785 | I164: =F164*(Forecast!$D$8/$F$2) -> 66.83706297 | J164: =F164*(Forecast!$E$8/$F$2) -> 66.99753611 | K164: =F164*(Forecast!$F$8/$F$2) -> 67.23824582 | L164: =F164*(Forecast!$G$8/$F$2) -> 67.39871896 | M164: =F164*(Forecast!$H$8/$F$2) -> 67.63942867 | N164: =F164*(Forecast!$I$8/$F$2) -> 68.12084809 | O164: =F164*(Forecast!$J$8/$F$2) -> 68.52203095 | P164: =F164*(Forecast!$K$8/$F$2) -> 68.9232138 | Q164: =F164*(Forecast!$L$8/$F$2) -> 69.32439665 | R164: =F164*(Forecast!$M$8/$F$2) -> 69.7255795 | S164: =F164*(Forecast!$N$8/$F$2) -> 70.20699892 | T164: =F164*(Forecast!$O$8/$F$2) -> 70.60818177 | U164: =F164*(Forecast!$P$8/$F$2) -> 71.00936462 | V164: =F164*(Forecast!$Q$8/$F$2) -> 71.41054747 | W164: =F164*(Forecast!$R$8/$F$2) -> 71.89196689 | X164: =F164*(Forecast!$S$8/$F$2) -> 72.29314974 | Y164: =F164*(Forecast!$T$8/$F$2) -> 72.6943326 | Z164: =F164*(Forecast!$U$8/$F$2) -> 73.09551545 | AA164: =F164*(Forecast!$V$8/$F$2) -> 73.57693487 | AB164: =F164*(Forecast!$W$8/$F$2) -> 73.97811772 | AC164: =F164*(Forecast!$X$8/$F$2) -> 74.37930057 | AD164: =F164*(Forecast!$Y$8/$F$2) -> 74.86071999 | AE164: =F164*(Forecast!$Z$8/$F$2) -> 75.26190284 | AF164: =F164*(Forecast!$AA$8/$F$2) -> 75.66308569 | AG164: =F164*(Forecast!$AB$8/$F$2) -> 76.06426854
A165: 2017-01-07T17:00:00 | B165: 26.60949135 | C165: 14.86991978 | D165: 14.86130619 | E165: 0.02739080414 | F165: 56.36810812 | H165: =F165*(Forecast!$C$8/$F$2) -> 68.37915706 | I165: =F165*(Forecast!$D$8/$F$2) -> 69.71828376 | J165: =F165*(Forecast!$E$8/$F$2) -> 69.88567459 | K165: =F165*(Forecast!$F$8/$F$2) -> 70.13676085 | L165: =F165*(Forecast!$G$8/$F$2) -> 70.30415169 | M165: =F165*(Forecast!$H$8/$F$2) -> 70.55523794 | N165: =F165*(Forecast!$I$8/$F$2) -> 71.05741045 | O165: =F165*(Forecast!$J$8/$F$2) -> 71.47588755 | P165: =F165*(Forecast!$K$8/$F$2) -> 71.89436464 | Q165: =F165*(Forecast!$L$8/$F$2) -> 72.31284173 | R165: =F165*(Forecast!$M$8/$F$2) -> 72.73131883 | S165: =F165*(Forecast!$N$8/$F$2) -> 73.23349134 | T165: =F165*(Forecast!$O$8/$F$2) -> 73.65196843 | U165: =F165*(Forecast!$P$8/$F$2) -> 74.07044553 | V165: =F165*(Forecast!$Q$8/$F$2) -> 74.48892262 | W165: =F165*(Forecast!$R$8/$F$2) -> 74.99109513 | X165: =F165*(Forecast!$S$8/$F$2) -> 75.40957223 | Y165: =F165*(Forecast!$T$8/$F$2) -> 75.82804932 | Z165: =F165*(Forecast!$U$8/$F$2) -> 76.24652641 | AA165: =F165*(Forecast!$V$8/$F$2) -> 76.74869892 | AB165: =F165*(Forecast!$W$8/$F$2) -> 77.16717602 | AC165: =F165*(Forecast!$X$8/$F$2) -> 77.58565311 | AD165: =F165*(Forecast!$Y$8/$F$2) -> 78.08782562 | AE165: =F165*(Forecast!$Z$8/$F$2) -> 78.50630272 | AF165: =F165*(Forecast!$AA$8/$F$2) -> 78.92477981 | AG165: =F165*(Forecast!$AB$8/$F$2) -> 79.3432569
A166: 2017-01-07T18:00:00 | B166: 26.78501701 | C166: 15.20427418 | D166: 15.00579643 | E166: 0.03887508437 | F166: 57.03396271 | H166: =F166*(Forecast!$C$8/$F$2) -> 69.1868935 | I166: =F166*(Forecast!$D$8/$F$2) -> 70.54183879 | J166: =F166*(Forecast!$E$8/$F$2) -> 70.71120695 | K166: =F166*(Forecast!$F$8/$F$2) -> 70.96525919 | L166: =F166*(Forecast!$G$8/$F$2) -> 71.13462735 | M166: =F166*(Forecast!$H$8/$F$2) -> 71.38867959 | N166: =F166*(Forecast!$I$8/$F$2) -> 71.89678407 | O166: =F166*(Forecast!$J$8/$F$2) -> 72.32020447 | P166: =F166*(Forecast!$K$8/$F$2) -> 72.74362487 | Q166: =F166*(Forecast!$L$8/$F$2) -> 73.16704527 | R166: =F166*(Forecast!$M$8/$F$2) -> 73.59046567 | S166: =F166*(Forecast!$N$8/$F$2) -> 74.09857016 | T166: =F166*(Forecast!$O$8/$F$2) -> 74.52199056 | U166: =F166*(Forecast!$P$8/$F$2) -> 74.94541096 | V166: =F166*(Forecast!$Q$8/$F$2) -> 75.36883136 | W166: =F166*(Forecast!$R$8/$F$2) -> 75.87693584 | X166: =F166*(Forecast!$S$8/$F$2) -> 76.30035624 | Y166: =F166*(Forecast!$T$8/$F$2) -> 76.72377664 | Z166: =F166*(Forecast!$U$8/$F$2) -> 77.14719704 | AA166: =F166*(Forecast!$V$8/$F$2) -> 77.65530152 | AB166: =F166*(Forecast!$W$8/$F$2) -> 78.07872192 | AC166: =F166*(Forecast!$X$8/$F$2) -> 78.50214232 | AD166: =F166*(Forecast!$Y$8/$F$2) -> 79.01024681 | AE166: =F166*(Forecast!$Z$8/$F$2) -> 79.43366721 | AF166: =F166*(Forecast!$AA$8/$F$2) -> 79.85708761 | AG166: =F166*(Forecast!$AB$8/$F$2) -> 80.28050801
A167: 2017-01-07T19:00:00 | B167: 26.70213127 | C167: 15.15838146 | D167: 15.07232666 | E167: 0.05035936087 | F167: 56.98319875 | H167: =F167*(Forecast!$C$8/$F$2) -> 69.12531265 | I167: =F167*(Forecast!$D$8/$F$2) -> 70.47905194 | J167: =F167*(Forecast!$E$8/$F$2) -> 70.64826935 | K167: =F167*(Forecast!$F$8/$F$2) -> 70.90209547 | L167: =F167*(Forecast!$G$8/$F$2) -> 71.07131288 | M167: =F167*(Forecast!$H$8/$F$2) -> 71.325139 | N167: =F167*(Forecast!$I$8/$F$2) -> 71.83279124 | O167: =F167*(Forecast!$J$8/$F$2) -> 72.25583476 | P167: =F167*(Forecast!$K$8/$F$2) -> 72.67887829 | Q167: =F167*(Forecast!$L$8/$F$2) -> 73.10192182 | R167: =F167*(Forecast!$M$8/$F$2) -> 73.52496535 | S167: =F167*(Forecast!$N$8/$F$2) -> 74.03261759 | T167: =F167*(Forecast!$O$8/$F$2) -> 74.45566112 | U167: =F167*(Forecast!$P$8/$F$2) -> 74.87870464 | V167: =F167*(Forecast!$Q$8/$F$2) -> 75.30174817 | W167: =F167*(Forecast!$R$8/$F$2) -> 75.80940041 | X167: =F167*(Forecast!$S$8/$F$2) -> 76.23244394 | Y167: =F167*(Forecast!$T$8/$F$2) -> 76.65548747 | Z167: =F167*(Forecast!$U$8/$F$2) -> 77.078531 | AA167: =F167*(Forecast!$V$8/$F$2) -> 77.58618323 | AB167: =F167*(Forecast!$W$8/$F$2) -> 78.00922676 | AC167: =F167*(Forecast!$X$8/$F$2) -> 78.43227029 | AD167: =F167*(Forecast!$Y$8/$F$2) -> 78.93992252 | AE167: =F167*(Forecast!$Z$8/$F$2) -> 79.36296605 | AF167: =F167*(Forecast!$AA$8/$F$2) -> 79.78600958 | AG167: =F167*(Forecast!$AB$8/$F$2) -> 80.20905311
A168: 2017-01-07T20:00:00 | B168: 26.64562988 | C168: 15.24996662 | D168: 15.11599064 | E168: 0.0618436411 | F168: 57.07343078 | H168: =F168*(Forecast!$C$8/$F$2) -> 69.23477153 | I168: =F168*(Forecast!$D$8/$F$2) -> 70.59065445 | J168: =F168*(Forecast!$E$8/$F$2) -> 70.76013981 | K168: =F168*(Forecast!$F$8/$F$2) -> 71.01436786 | L168: =F168*(Forecast!$G$8/$F$2) -> 71.18385323 | M168: =F168*(Forecast!$H$8/$F$2) -> 71.43808127 | N168: =F168*(Forecast!$I$8/$F$2) -> 71.94653737 | O168: =F168*(Forecast!$J$8/$F$2) -> 72.37025078 | P168: =F168*(Forecast!$K$8/$F$2) -> 72.79396419 | Q168: =F168*(Forecast!$L$8/$F$2) -> 73.2176776 | R168: =F168*(Forecast!$M$8/$F$2) -> 73.64139102 | S168: =F168*(Forecast!$N$8/$F$2) -> 74.14984711 | T168: =F168*(Forecast!$O$8/$F$2) -> 74.57356052 | U168: =F168*(Forecast!$P$8/$F$2) -> 74.99727394 | V168: =F168*(Forecast!$Q$8/$F$2) -> 75.42098735 | W168: =F168*(Forecast!$R$8/$F$2) -> 75.92944344 | X168: =F168*(Forecast!$S$8/$F$2) -> 76.35315685 | Y168: =F168*(Forecast!$T$8/$F$2) -> 76.77687027 | Z168: =F168*(Forecast!$U$8/$F$2) -> 77.20058368 | AA168: =F168*(Forecast!$V$8/$F$2) -> 77.70903977 | AB168: =F168*(Forecast!$W$8/$F$2) -> 78.13275318 | AC168: =F168*(Forecast!$X$8/$F$2) -> 78.5564666 | AD168: =F168*(Forecast!$Y$8/$F$2) -> 79.06492269 | AE168: =F168*(Forecast!$Z$8/$F$2) -> 79.4886361 | AF168: =F168*(Forecast!$AA$8/$F$2) -> 79.91234952 | AG168: =F168*(Forecast!$AB$8/$F$2) -> 80.33606293
A169: 2017-01-07T21:00:00 | B169: 26.99361229 | C169: 15.22086906 | D169: 15.03876305 | E169: 0 | F169: 57.2532444 | H169: =F169*(Forecast!$C$8/$F$2) -> 69.45290026 | I169: =F169*(Forecast!$D$8/$F$2) -> 70.81305497 | J169: =F169*(Forecast!$E$8/$F$2) -> 70.98307431 | K169: =F169*(Forecast!$F$8/$F$2) -> 71.23810332 | L169: =F169*(Forecast!$G$8/$F$2) -> 71.40812266 | M169: =F169*(Forecast!$H$8/$F$2) -> 71.66315167 | N169: =F169*(Forecast!$I$8/$F$2) -> 72.17320969 | O169: =F169*(Forecast!$J$8/$F$2) -> 72.59825804 | P169: =F169*(Forecast!$K$8/$F$2) -> 73.02330639 | Q169: =F169*(Forecast!$L$8/$F$2) -> 73.44835474 | R169: =F169*(Forecast!$M$8/$F$2) -> 73.87340309 | S169: =F169*(Forecast!$N$8/$F$2) -> 74.38346111 | T169: =F169*(Forecast!$O$8/$F$2) -> 74.80850945 | U169: =F169*(Forecast!$P$8/$F$2) -> 75.2335578 | V169: =F169*(Forecast!$Q$8/$F$2) -> 75.65860615 | W169: =F169*(Forecast!$R$8/$F$2) -> 76.16866417 | X169: =F169*(Forecast!$S$8/$F$2) -> 76.59371252 | Y169: =F169*(Forecast!$T$8/$F$2) -> 77.01876087 | Z169: =F169*(Forecast!$U$8/$F$2) -> 77.44380922 | AA169: =F169*(Forecast!$V$8/$F$2) -> 77.95386724 | AB169: =F169*(Forecast!$W$8/$F$2) -> 78.37891559 | AC169: =F169*(Forecast!$X$8/$F$2) -> 78.80396394 | AD169: =F169*(Forecast!$Y$8/$F$2) -> 79.31402196 | AE169: =F169*(Forecast!$Z$8/$F$2) -> 79.73907031 | AF169: =F169*(Forecast!$AA$8/$F$2) -> 80.16411865 | AG169: =F169*(Forecast!$AB$8/$F$2) -> 80.589167
A170: 2017-01-07T22:00:00 | B170: 26.64562988 | C170: 14.93105412 | D170: 14.76283741 | E170: 0 | F170: 56.33952141 | H170: =F170*(Forecast!$C$8/$F$2) -> 68.34447902 | I170: =F170*(Forecast!$D$8/$F$2) -> 69.68292659 | J170: =F170*(Forecast!$E$8/$F$2) -> 69.85023254 | K170: =F170*(Forecast!$F$8/$F$2) -> 70.10119146 | L170: =F170*(Forecast!$G$8/$F$2) -> 70.2684974 | M170: =F170*(Forecast!$H$8/$F$2) -> 70.51945632 | N170: =F170*(Forecast!$I$8/$F$2) -> 71.02137416 | O170: =F170*(Forecast!$J$8/$F$2) -> 71.43963903 | P170: =F170*(Forecast!$K$8/$F$2) -> 71.85790389 | Q170: =F170*(Forecast!$L$8/$F$2) -> 72.27616876 | R170: =F170*(Forecast!$M$8/$F$2) -> 72.69443362 | S170: =F170*(Forecast!$N$8/$F$2) -> 73.19635146 | T170: =F170*(Forecast!$O$8/$F$2) -> 73.61461633 | U170: =F170*(Forecast!$P$8/$F$2) -> 74.03288119 | V170: =F170*(Forecast!$Q$8/$F$2) -> 74.45114606 | W170: =F170*(Forecast!$R$8/$F$2) -> 74.9530639 | X170: =F170*(Forecast!$S$8/$F$2) -> 75.37132876 | Y170: =F170*(Forecast!$T$8/$F$2) -> 75.78959363 | Z170: =F170*(Forecast!$U$8/$F$2) -> 76.20785849 | AA170: =F170*(Forecast!$V$8/$F$2) -> 76.70977633 | AB170: =F170*(Forecast!$W$8/$F$2) -> 77.1280412 | AC170: =F170*(Forecast!$X$8/$F$2) -> 77.54630606 | AD170: =F170*(Forecast!$Y$8/$F$2) -> 78.0482239 | AE170: =F170*(Forecast!$Z$8/$F$2) -> 78.46648877 | AF170: =F170*(Forecast!$AA$8/$F$2) -> 78.88475363 | AG170: =F170*(Forecast!$AB$8/$F$2) -> 79.3030185
A171: 2017-01-07T23:00:00 | B171: 26.64562988 | C171: 14.73095512 | D171: 14.48530388 | E171: 0 | F171: 55.86188889 | H171: =F171*(Forecast!$C$8/$F$2) -> 67.76507144 | I171: =F171*(Forecast!$D$8/$F$2) -> 69.09217198 | J171: =F171*(Forecast!$E$8/$F$2) -> 69.25805955 | K171: =F171*(Forecast!$F$8/$F$2) -> 69.5068909 | L171: =F171*(Forecast!$G$8/$F$2) -> 69.67277847 | M171: =F171*(Forecast!$H$8/$F$2) -> 69.92160982 | N171: =F171*(Forecast!$I$8/$F$2) -> 70.41927252 | O171: =F171*(Forecast!$J$8/$F$2) -> 70.83399144 | P171: =F171*(Forecast!$K$8/$F$2) -> 71.24871036 | Q171: =F171*(Forecast!$L$8/$F$2) -> 71.66342928 | R171: =F171*(Forecast!$M$8/$F$2) -> 72.0781482 | S171: =F171*(Forecast!$N$8/$F$2) -> 72.5758109 | T171: =F171*(Forecast!$O$8/$F$2) -> 72.99052982 | U171: =F171*(Forecast!$P$8/$F$2) -> 73.40524874 | V171: =F171*(Forecast!$Q$8/$F$2) -> 73.81996766 | W171: =F171*(Forecast!$R$8/$F$2) -> 74.31763037 | X171: =F171*(Forecast!$S$8/$F$2) -> 74.73234928 | Y171: =F171*(Forecast!$T$8/$F$2) -> 75.1470682 | Z171: =F171*(Forecast!$U$8/$F$2) -> 75.56178712 | AA171: =F171*(Forecast!$V$8/$F$2) -> 76.05944983 | AB171: =F171*(Forecast!$W$8/$F$2) -> 76.47416875 | AC171: =F171*(Forecast!$X$8/$F$2) -> 76.88888767 | AD171: =F171*(Forecast!$Y$8/$F$2) -> 77.38655037 | AE171: =F171*(Forecast!$Z$8/$F$2) -> 77.80126929 | AF171: =F171*(Forecast!$AA$8/$F$2) -> 78.21598821 | AG171: =F171*(Forecast!$AB$8/$F$2) -> 78.63070713
A172: 2017-01-08 | B172: 25.71572685 | C172: 14.64590931 | D172: 14.40281487 | E172: 0 | F172: 54.76445103 | H172: =F172*(Forecast!$C$8/$F$2) -> 66.43378894 | I172: =F172*(Forecast!$D$8/$F$2) -> 67.73481786 | J172: =F172*(Forecast!$E$8/$F$2) -> 67.89744647 | K172: =F172*(Forecast!$F$8/$F$2) -> 68.14138939 | L172: =F172*(Forecast!$G$8/$F$2) -> 68.30401801 | M172: =F172*(Forecast!$H$8/$F$2) -> 68.54796093 | N172: =F172*(Forecast!$I$8/$F$2) -> 69.03584677 | O172: =F172*(Forecast!$J$8/$F$2) -> 69.44241831 | P172: =F172*(Forecast!$K$8/$F$2) -> 69.84898984 | Q172: =F172*(Forecast!$L$8/$F$2) -> 70.25556138 | R172: =F172*(Forecast!$M$8/$F$2) -> 70.66213291 | S172: =F172*(Forecast!$N$8/$F$2) -> 71.15001876 | T172: =F172*(Forecast!$O$8/$F$2) -> 71.55659029 | U172: =F172*(Forecast!$P$8/$F$2) -> 71.96316183 | V172: =F172*(Forecast!$Q$8/$F$2) -> 72.36973336 | W172: =F172*(Forecast!$R$8/$F$2) -> 72.85761921 | X172: =F172*(Forecast!$S$8/$F$2) -> 73.26419074 | Y172: =F172*(Forecast!$T$8/$F$2) -> 73.67076228 | Z172: =F172*(Forecast!$U$8/$F$2) -> 74.07733381 | AA172: =F172*(Forecast!$V$8/$F$2) -> 74.56521966 | AB172: =F172*(Forecast!$W$8/$F$2) -> 74.97179119 | AC172: =F172*(Forecast!$X$8/$F$2) -> 75.37836273 | AD172: =F172*(Forecast!$Y$8/$F$2) -> 75.86624857 | AE172: =F172*(Forecast!$Z$8/$F$2) -> 76.27282011 | AF172: =F172*(Forecast!$AA$8/$F$2) -> 76.67939164 | AG172: =F172*(Forecast!$AB$8/$F$2) -> 77.08596318
A173: 2017-01-08T01:00:00 | B173: 25.56562996 | C173: 14.60798359 | D173: 14.40281487 | E173: 0 | F173: 54.57642841 | H173: =F173*(Forecast!$C$8/$F$2) -> 66.20570203 | I173: =F173*(Forecast!$D$8/$F$2) -> 67.50226412 | J173: =F173*(Forecast!$E$8/$F$2) -> 67.66433439 | K173: =F173*(Forecast!$F$8/$F$2) -> 67.90743978 | L173: =F173*(Forecast!$G$8/$F$2) -> 68.06951004 | M173: =F173*(Forecast!$H$8/$F$2) -> 68.31261543 | N173: =F173*(Forecast!$I$8/$F$2) -> 68.79882622 | O173: =F173*(Forecast!$J$8/$F$2) -> 69.20400188 | P173: =F173*(Forecast!$K$8/$F$2) -> 69.60917753 | Q173: =F173*(Forecast!$L$8/$F$2) -> 70.01435319 | R173: =F173*(Forecast!$M$8/$F$2) -> 70.41952884 | S173: =F173*(Forecast!$N$8/$F$2) -> 70.90573963 | T173: =F173*(Forecast!$O$8/$F$2) -> 71.31091528 | U173: =F173*(Forecast!$P$8/$F$2) -> 71.71609094 | V173: =F173*(Forecast!$Q$8/$F$2) -> 72.12126659 | W173: =F173*(Forecast!$R$8/$F$2) -> 72.60747738 | X173: =F173*(Forecast!$S$8/$F$2) -> 73.01265303 | Y173: =F173*(Forecast!$T$8/$F$2) -> 73.41782869 | Z173: =F173*(Forecast!$U$8/$F$2) -> 73.82300434 | AA173: =F173*(Forecast!$V$8/$F$2) -> 74.30921513 | AB173: =F173*(Forecast!$W$8/$F$2) -> 74.71439078 | AC173: =F173*(Forecast!$X$8/$F$2) -> 75.11956644 | AD173: =F173*(Forecast!$Y$8/$F$2) -> 75.60577722 | AE173: =F173*(Forecast!$Z$8/$F$2) -> 76.01095288 | AF173: =F173*(Forecast!$AA$8/$F$2) -> 76.41612853 | AG173: =F173*(Forecast!$AB$8/$F$2) -> 76.82130419
A174: 2017-01-08T02:00:00 | B174: 25.38562965 | C174: 14.57005692 | D174: 14.40281487 | E174: 0 | F174: 54.35850143 | H174: =F174*(Forecast!$C$8/$F$2) -> 65.94133866 | I174: =F174*(Forecast!$D$8/$F$2) -> 67.2327235 | J174: =F174*(Forecast!$E$8/$F$2) -> 67.39414661 | K174: =F174*(Forecast!$F$8/$F$2) -> 67.63628127 | L174: =F174*(Forecast!$G$8/$F$2) -> 67.79770437 | M174: =F174*(Forecast!$H$8/$F$2) -> 68.03983903 | N174: =F174*(Forecast!$I$8/$F$2) -> 68.52410835 | O174: =F174*(Forecast!$J$8/$F$2) -> 68.92766611 | P174: =F174*(Forecast!$K$8/$F$2) -> 69.33122387 | Q174: =F174*(Forecast!$L$8/$F$2) -> 69.73478164 | R174: =F174*(Forecast!$M$8/$F$2) -> 70.1383394 | S174: =F174*(Forecast!$N$8/$F$2) -> 70.62260872 | T174: =F174*(Forecast!$O$8/$F$2) -> 71.02616648 | U174: =F174*(Forecast!$P$8/$F$2) -> 71.42972425 | V174: =F174*(Forecast!$Q$8/$F$2) -> 71.83328201 | W174: =F174*(Forecast!$R$8/$F$2) -> 72.31755133 | X174: =F174*(Forecast!$S$8/$F$2) -> 72.72110909 | Y174: =F174*(Forecast!$T$8/$F$2) -> 73.12466686 | Z174: =F174*(Forecast!$U$8/$F$2) -> 73.52822462 | AA174: =F174*(Forecast!$V$8/$F$2) -> 74.01249394 | AB174: =F174*(Forecast!$W$8/$F$2) -> 74.4160517 | AC174: =F174*(Forecast!$X$8/$F$2) -> 74.81960947 | AD174: =F174*(Forecast!$Y$8/$F$2) -> 75.30387878 | AE174: =F174*(Forecast!$Z$8/$F$2) -> 75.70743655 | AF174: =F174*(Forecast!$AA$8/$F$2) -> 76.11099431 | AG174: =F174*(Forecast!$AB$8/$F$2) -> 76.51455208
A175: 2017-01-08T03:00:00 | B175: 25.51207352 | C175: 14.5321312 | D175: 14.40281487 | E175: 0 | F175: 54.44701958 | H175: =F175*(Forecast!$C$8/$F$2) -> 66.04871845 | I175: =F175*(Forecast!$D$8/$F$2) -> 67.34220621 | J175: =F175*(Forecast!$E$8/$F$2) -> 67.50389218 | K175: =F175*(Forecast!$F$8/$F$2) -> 67.74642113 | L175: =F175*(Forecast!$G$8/$F$2) -> 67.9081071 | M175: =F175*(Forecast!$H$8/$F$2) -> 68.15063605 | N175: =F175*(Forecast!$I$8/$F$2) -> 68.63569396 | O175: =F175*(Forecast!$J$8/$F$2) -> 69.03990888 | P175: =F175*(Forecast!$K$8/$F$2) -> 69.44412381 | Q175: =F175*(Forecast!$L$8/$F$2) -> 69.84833873 | R175: =F175*(Forecast!$M$8/$F$2) -> 70.25255365 | S175: =F175*(Forecast!$N$8/$F$2) -> 70.73761156 | T175: =F175*(Forecast!$O$8/$F$2) -> 71.14182649 | U175: =F175*(Forecast!$P$8/$F$2) -> 71.54604141 | V175: =F175*(Forecast!$Q$8/$F$2) -> 71.95025633 | W175: =F175*(Forecast!$R$8/$F$2) -> 72.43531424 | X175: =F175*(Forecast!$S$8/$F$2) -> 72.83952916 | Y175: =F175*(Forecast!$T$8/$F$2) -> 73.24374409 | Z175: =F175*(Forecast!$U$8/$F$2) -> 73.64795901 | AA175: =F175*(Forecast!$V$8/$F$2) -> 74.13301692 | AB175: =F175*(Forecast!$W$8/$F$2) -> 74.53723184 | AC175: =F175*(Forecast!$X$8/$F$2) -> 74.94144676 | AD175: =F175*(Forecast!$Y$8/$F$2) -> 75.42650467 | AE175: =F175*(Forecast!$Z$8/$F$2) -> 75.83071959 | AF175: =F175*(Forecast!$AA$8/$F$2) -> 76.23493452 | AG175: =F175*(Forecast!$AB$8/$F$2) -> 76.63914944
A176: 2017-01-08T04:00:00 | B176: 25.56562996 | C176: 14.49420547 | D176: 14.40281487 | E176: 0 | F176: 54.4626503 | H176: =F176*(Forecast!$C$8/$F$2) -> 66.06767981 | I176: =F176*(Forecast!$D$8/$F$2) -> 67.3615389 | J176: =F176*(Forecast!$E$8/$F$2) -> 67.52327128 | K176: =F176*(Forecast!$F$8/$F$2) -> 67.76586986 | L176: =F176*(Forecast!$G$8/$F$2) -> 67.92760225 | M176: =F176*(Forecast!$H$8/$F$2) -> 68.17020083 | N176: =F176*(Forecast!$I$8/$F$2) -> 68.65539799 | O176: =F176*(Forecast!$J$8/$F$2) -> 69.05972895 | P176: =F176*(Forecast!$K$8/$F$2) -> 69.46405992 | Q176: =F176*(Forecast!$L$8/$F$2) -> 69.86839088 | R176: =F176*(Forecast!$M$8/$F$2) -> 70.27272185 | S176: =F176*(Forecast!$N$8/$F$2) -> 70.75791901 | T176: =F176*(Forecast!$O$8/$F$2) -> 71.16224997 | U176: =F176*(Forecast!$P$8/$F$2) -> 71.56658094 | V176: =F176*(Forecast!$Q$8/$F$2) -> 71.97091191 | W176: =F176*(Forecast!$R$8/$F$2) -> 72.45610906 | X176: =F176*(Forecast!$S$8/$F$2) -> 72.86044003 | Y176: =F176*(Forecast!$T$8/$F$2) -> 73.264771 | Z176: =F176*(Forecast!$U$8/$F$2) -> 73.66910196 | AA176: =F176*(Forecast!$V$8/$F$2) -> 74.15429912 | AB176: =F176*(Forecast!$W$8/$F$2) -> 74.55863009 | AC176: =F176*(Forecast!$X$8/$F$2) -> 74.96296105 | AD176: =F176*(Forecast!$Y$8/$F$2) -> 75.44815821 | AE176: =F176*(Forecast!$Z$8/$F$2) -> 75.85248918 | AF176: =F176*(Forecast!$AA$8/$F$2) -> 76.25682014 | AG176: =F176*(Forecast!$AB$8/$F$2) -> 76.66115111
A177: 2017-01-08T05:00:00 | B177: 25.96411324 | C177: 14.66847038 | D177: 14.48352337 | E177: 0 | F177: 55.11610699 | H177: =F177*(Forecast!$C$8/$F$2) -> 66.86037658 | I177: =F177*(Forecast!$D$8/$F$2) -> 68.16975972 | J177: =F177*(Forecast!$E$8/$F$2) -> 68.33343261 | K177: =F177*(Forecast!$F$8/$F$2) -> 68.57894195 | L177: =F177*(Forecast!$G$8/$F$2) -> 68.74261484 | M177: =F177*(Forecast!$H$8/$F$2) -> 68.98812418 | N177: =F177*(Forecast!$I$8/$F$2) -> 69.47914286 | O177: =F177*(Forecast!$J$8/$F$2) -> 69.88832509 | P177: =F177*(Forecast!$K$8/$F$2) -> 70.29750732 | Q177: =F177*(Forecast!$L$8/$F$2) -> 70.70668955 | R177: =F177*(Forecast!$M$8/$F$2) -> 71.11587178 | S177: =F177*(Forecast!$N$8/$F$2) -> 71.60689046 | T177: =F177*(Forecast!$O$8/$F$2) -> 72.01607269 | U177: =F177*(Forecast!$P$8/$F$2) -> 72.42525492 | V177: =F177*(Forecast!$Q$8/$F$2) -> 72.83443716 | W177: =F177*(Forecast!$R$8/$F$2) -> 73.32545583 | X177: =F177*(Forecast!$S$8/$F$2) -> 73.73463806 | Y177: =F177*(Forecast!$T$8/$F$2) -> 74.1438203 | Z177: =F177*(Forecast!$U$8/$F$2) -> 74.55300253 | AA177: =F177*(Forecast!$V$8/$F$2) -> 75.0440212 | AB177: =F177*(Forecast!$W$8/$F$2) -> 75.45320344 | AC177: =F177*(Forecast!$X$8/$F$2) -> 75.86238567 | AD177: =F177*(Forecast!$Y$8/$F$2) -> 76.35340434 | AE177: =F177*(Forecast!$Z$8/$F$2) -> 76.76258658 | AF177: =F177*(Forecast!$AA$8/$F$2) -> 77.17176881 | AG177: =F177*(Forecast!$AB$8/$F$2) -> 77.58095104
A178: 2017-01-08T06:00:00 | B178: 26.30273056 | C178: 14.85081196 | D178: 14.6931572 | E178: 0 | F178: 55.84669971 | H178: =F178*(Forecast!$C$8/$F$2) -> 67.74664572 | I178: =F178*(Forecast!$D$8/$F$2) -> 69.07338542 | J178: =F178*(Forecast!$E$8/$F$2) -> 69.23922788 | K178: =F178*(Forecast!$F$8/$F$2) -> 69.48799157 | L178: =F178*(Forecast!$G$8/$F$2) -> 69.65383404 | M178: =F178*(Forecast!$H$8/$F$2) -> 69.90259773 | N178: =F178*(Forecast!$I$8/$F$2) -> 70.40012511 | O178: =F178*(Forecast!$J$8/$F$2) -> 70.81473127 | P178: =F178*(Forecast!$K$8/$F$2) -> 71.22933742 | Q178: =F178*(Forecast!$L$8/$F$2) -> 71.64394358 | R178: =F178*(Forecast!$M$8/$F$2) -> 72.05854973 | S178: =F178*(Forecast!$N$8/$F$2) -> 72.55607712 | T178: =F178*(Forecast!$O$8/$F$2) -> 72.97068328 | U178: =F178*(Forecast!$P$8/$F$2) -> 73.38528943 | V178: =F178*(Forecast!$Q$8/$F$2) -> 73.79989559 | W178: =F178*(Forecast!$R$8/$F$2) -> 74.29742297 | X178: =F178*(Forecast!$S$8/$F$2) -> 74.71202913 | Y178: =F178*(Forecast!$T$8/$F$2) -> 75.12663528 | Z178: =F178*(Forecast!$U$8/$F$2) -> 75.54124144 | AA178: =F178*(Forecast!$V$8/$F$2) -> 76.03876882 | AB178: =F178*(Forecast!$W$8/$F$2) -> 76.45337498 | AC178: =F178*(Forecast!$X$8/$F$2) -> 76.86798113 | AD178: =F178*(Forecast!$Y$8/$F$2) -> 77.36550852 | AE178: =F178*(Forecast!$Z$8/$F$2) -> 77.78011467 | AF178: =F178*(Forecast!$AA$8/$F$2) -> 78.19472083 | AG178: =F178*(Forecast!$AB$8/$F$2) -> 78.60932698
A179: 2017-01-08T07:00:00 | B179: 26.59950447 | C179: 15.03315258 | D179: 14.90279102 | E179: 0 | F179: 56.53544807 | H179: =F179*(Forecast!$C$8/$F$2) -> 68.5821542 | I179: =F179*(Forecast!$D$8/$F$2) -> 69.92525636 | J179: =F179*(Forecast!$E$8/$F$2) -> 70.09314414 | K179: =F179*(Forecast!$F$8/$F$2) -> 70.34497579 | L179: =F179*(Forecast!$G$8/$F$2) -> 70.51286356 | M179: =F179*(Forecast!$H$8/$F$2) -> 70.76469522 | N179: =F179*(Forecast!$I$8/$F$2) -> 71.26835853 | O179: =F179*(Forecast!$J$8/$F$2) -> 71.68807795 | P179: =F179*(Forecast!$K$8/$F$2) -> 72.10779738 | Q179: =F179*(Forecast!$L$8/$F$2) -> 72.52751681 | R179: =F179*(Forecast!$M$8/$F$2) -> 72.94723623 | S179: =F179*(Forecast!$N$8/$F$2) -> 73.45089954 | T179: =F179*(Forecast!$O$8/$F$2) -> 73.87061897 | U179: =F179*(Forecast!$P$8/$F$2) -> 74.29033839 | V179: =F179*(Forecast!$Q$8/$F$2) -> 74.71005782 | W179: =F179*(Forecast!$R$8/$F$2) -> 75.21372113 | X179: =F179*(Forecast!$S$8/$F$2) -> 75.63344056 | Y179: =F179*(Forecast!$T$8/$F$2) -> 76.05315998 | Z179: =F179*(Forecast!$U$8/$F$2) -> 76.47287941 | AA179: =F179*(Forecast!$V$8/$F$2) -> 76.97654272 | AB179: =F179*(Forecast!$W$8/$F$2) -> 77.39626215 | AC179: =F179*(Forecast!$X$8/$F$2) -> 77.81598157 | AD179: =F179*(Forecast!$Y$8/$F$2) -> 78.31964488 | AE179: =F179*(Forecast!$Z$8/$F$2) -> 78.73936431 | AF179: =F179*(Forecast!$AA$8/$F$2) -> 79.15908374 | AG179: =F179*(Forecast!$AB$8/$F$2) -> 79.57880316
A180: 2017-01-08T08:00:00 | B180: 26.97315598 | C180: 15.21549416 | D180: 15.1124239 | E180: 0 | F180: 57.30107403 | H180: =F180*(Forecast!$C$8/$F$2) -> 69.51092153 | I180: =F180*(Forecast!$D$8/$F$2) -> 70.87221253 | J180: =F180*(Forecast!$E$8/$F$2) -> 71.0423739 | K180: =F180*(Forecast!$F$8/$F$2) -> 71.29761597 | L180: =F180*(Forecast!$G$8/$F$2) -> 71.46777734 | M180: =F180*(Forecast!$H$8/$F$2) -> 71.7230194 | N180: =F180*(Forecast!$I$8/$F$2) -> 72.23350353 | O180: =F180*(Forecast!$J$8/$F$2) -> 72.65890696 | P180: =F180*(Forecast!$K$8/$F$2) -> 73.0843104 | Q180: =F180*(Forecast!$L$8/$F$2) -> 73.50971384 | R180: =F180*(Forecast!$M$8/$F$2) -> 73.93511727 | S180: =F180*(Forecast!$N$8/$F$2) -> 74.4456014 | T180: =F180*(Forecast!$O$8/$F$2) -> 74.87100483 | U180: =F180*(Forecast!$P$8/$F$2) -> 75.29640827 | V180: =F180*(Forecast!$Q$8/$F$2) -> 75.72181171 | W180: =F180*(Forecast!$R$8/$F$2) -> 76.23229583 | X180: =F180*(Forecast!$S$8/$F$2) -> 76.65769927 | Y180: =F180*(Forecast!$T$8/$F$2) -> 77.0831027 | Z180: =F180*(Forecast!$U$8/$F$2) -> 77.50850614 | AA180: =F180*(Forecast!$V$8/$F$2) -> 78.01899026 | AB180: =F180*(Forecast!$W$8/$F$2) -> 78.4443937 | AC180: =F180*(Forecast!$X$8/$F$2) -> 78.86979714 | AD180: =F180*(Forecast!$Y$8/$F$2) -> 79.38028126 | AE180: =F180*(Forecast!$Z$8/$F$2) -> 79.8056847 | AF180: =F180*(Forecast!$AA$8/$F$2) -> 80.23108813 | AG180: =F180*(Forecast!$AB$8/$F$2) -> 80.65649157
A181: 2017-01-08T09:00:00 | B181: 27.24921227 | C181: 15.42375755 | D181: 15.18325233 | E181: 0 | F181: 57.85622215 | H181: =F181*(Forecast!$C$8/$F$2) -> 70.18436192 | I181: =F181*(Forecast!$D$8/$F$2) -> 71.55884147 | J181: =F181*(Forecast!$E$8/$F$2) -> 71.73065142 | K181: =F181*(Forecast!$F$8/$F$2) -> 71.98836633 | L181: =F181*(Forecast!$G$8/$F$2) -> 72.16017627 | M181: =F181*(Forecast!$H$8/$F$2) -> 72.41789119 | N181: =F181*(Forecast!$I$8/$F$2) -> 72.93332102 | O181: =F181*(Forecast!$J$8/$F$2) -> 73.36284588 | P181: =F181*(Forecast!$K$8/$F$2) -> 73.79237074 | Q181: =F181*(Forecast!$L$8/$F$2) -> 74.2218956 | R181: =F181*(Forecast!$M$8/$F$2) -> 74.65142046 | S181: =F181*(Forecast!$N$8/$F$2) -> 75.16685029 | T181: =F181*(Forecast!$O$8/$F$2) -> 75.59637515 | U181: =F181*(Forecast!$P$8/$F$2) -> 76.0259 | V181: =F181*(Forecast!$Q$8/$F$2) -> 76.45542486 | W181: =F181*(Forecast!$R$8/$F$2) -> 76.97085469 | X181: =F181*(Forecast!$S$8/$F$2) -> 77.40037955 | Y181: =F181*(Forecast!$T$8/$F$2) -> 77.82990441 | Z181: =F181*(Forecast!$U$8/$F$2) -> 78.25942927 | AA181: =F181*(Forecast!$V$8/$F$2) -> 78.7748591 | AB181: =F181*(Forecast!$W$8/$F$2) -> 79.20438396 | AC181: =F181*(Forecast!$X$8/$F$2) -> 79.63390882 | AD181: =F181*(Forecast!$Y$8/$F$2) -> 80.14933865 | AE181: =F181*(Forecast!$Z$8/$F$2) -> 80.57886351 | AF181: =F181*(Forecast!$AA$8/$F$2) -> 81.00838837 | AG181: =F181*(Forecast!$AB$8/$F$2) -> 81.43791322
A182: 2017-01-08T10:00:00 | B182: 27.59494019 | C182: 15.53559685 | D182: 15.40801811 | E182: 0 | F182: 58.53855515 | H182: =F182*(Forecast!$C$8/$F$2) -> 71.01208803 | I182: =F182*(Forecast!$D$8/$F$2) -> 72.40277764 | J182: =F182*(Forecast!$E$8/$F$2) -> 72.57661384 | K182: =F182*(Forecast!$F$8/$F$2) -> 72.83736814 | L182: =F182*(Forecast!$G$8/$F$2) -> 73.01120434 | M182: =F182*(Forecast!$H$8/$F$2) -> 73.27195865 | N182: =F182*(Forecast!$I$8/$F$2) -> 73.79346725 | O182: =F182*(Forecast!$J$8/$F$2) -> 74.22805775 | P182: =F182*(Forecast!$K$8/$F$2) -> 74.66264825 | Q182: =F182*(Forecast!$L$8/$F$2) -> 75.09723875 | R182: =F182*(Forecast!$M$8/$F$2) -> 75.53182926 | S182: =F182*(Forecast!$N$8/$F$2) -> 76.05333786 | T182: =F182*(Forecast!$O$8/$F$2) -> 76.48792836 | U182: =F182*(Forecast!$P$8/$F$2) -> 76.92251886 | V182: =F182*(Forecast!$Q$8/$F$2) -> 77.35710936 | W182: =F182*(Forecast!$R$8/$F$2) -> 77.87861797 | X182: =F182*(Forecast!$S$8/$F$2) -> 78.31320847 | Y182: =F182*(Forecast!$T$8/$F$2) -> 78.74779897 | Z182: =F182*(Forecast!$U$8/$F$2) -> 79.18238947 | AA182: =F182*(Forecast!$V$8/$F$2) -> 79.70389808 | AB182: =F182*(Forecast!$W$8/$F$2) -> 80.13848858 | AC182: =F182*(Forecast!$X$8/$F$2) -> 80.57307908 | AD182: =F182*(Forecast!$Y$8/$F$2) -> 81.09458768 | AE182: =F182*(Forecast!$Z$8/$F$2) -> 81.52917818 | AF182: =F182*(Forecast!$AA$8/$F$2) -> 81.96376869 | AG182: =F182*(Forecast!$AB$8/$F$2) -> 82.39835919
A183: 2017-01-08T11:00:00 | B183: 28.99710464 | C183: 16.27942467 | D183: 16.33252335 | E183: 0 | F183: 61.60905266 | H183: =F183*(Forecast!$C$8/$F$2) -> 74.73685437 | I183: =F183*(Forecast!$D$8/$F$2) -> 76.20048922 | J183: =F183*(Forecast!$E$8/$F$2) -> 76.38344358 | K183: =F183*(Forecast!$F$8/$F$2) -> 76.65787511 | L183: =F183*(Forecast!$G$8/$F$2) -> 76.84082947 | M183: =F183*(Forecast!$H$8/$F$2) -> 77.115261 | N183: =F183*(Forecast!$I$8/$F$2) -> 77.66412407 | O183: =F183*(Forecast!$J$8/$F$2) -> 78.12150996 | P183: =F183*(Forecast!$K$8/$F$2) -> 78.57889585 | Q183: =F183*(Forecast!$L$8/$F$2) -> 79.03628174 | R183: =F183*(Forecast!$M$8/$F$2) -> 79.49366763 | S183: =F183*(Forecast!$N$8/$F$2) -> 80.04253069 | T183: =F183*(Forecast!$O$8/$F$2) -> 80.49991658 | U183: =F183*(Forecast!$P$8/$F$2) -> 80.95730247 | V183: =F183*(Forecast!$Q$8/$F$2) -> 81.41468836 | W183: =F183*(Forecast!$R$8/$F$2) -> 81.96355143 | X183: =F183*(Forecast!$S$8/$F$2) -> 82.42093732 | Y183: =F183*(Forecast!$T$8/$F$2) -> 82.87832321 | Z183: =F183*(Forecast!$U$8/$F$2) -> 83.3357091 | AA183: =F183*(Forecast!$V$8/$F$2) -> 83.88457217 | AB183: =F183*(Forecast!$W$8/$F$2) -> 84.34195806 | AC183: =F183*(Forecast!$X$8/$F$2) -> 84.79934395 | AD183: =F183*(Forecast!$Y$8/$F$2) -> 85.34820701 | AE183: =F183*(Forecast!$Z$8/$F$2) -> 85.8055929 | AF183: =F183*(Forecast!$AA$8/$F$2) -> 86.26297879 | AG183: =F183*(Forecast!$AB$8/$F$2) -> 86.72036468
A184: 2017-01-08T12:00:00 | B184: 28.72855186 | C184: 16.22549629 | D184: 16.17857361 | E184: 0 | F184: 61.13262177 | H184: =F184*(Forecast!$C$8/$F$2) -> 74.15890447 | I184: =F184*(Forecast!$D$8/$F$2) -> 75.61122083 | J184: =F184*(Forecast!$E$8/$F$2) -> 75.79276038 | K184: =F184*(Forecast!$F$8/$F$2) -> 76.0650697 | L184: =F184*(Forecast!$G$8/$F$2) -> 76.24660924 | M184: =F184*(Forecast!$H$8/$F$2) -> 76.51891856 | N184: =F184*(Forecast!$I$8/$F$2) -> 77.0635372 | O184: =F184*(Forecast!$J$8/$F$2) -> 77.51738606 | P184: =F184*(Forecast!$K$8/$F$2) -> 77.97123493 | Q184: =F184*(Forecast!$L$8/$F$2) -> 78.42508379 | R184: =F184*(Forecast!$M$8/$F$2) -> 78.87893266 | S184: =F184*(Forecast!$N$8/$F$2) -> 79.42355129 | T184: =F184*(Forecast!$O$8/$F$2) -> 79.87740016 | U184: =F184*(Forecast!$P$8/$F$2) -> 80.33124902 | V184: =F184*(Forecast!$Q$8/$F$2) -> 80.78509789 | W184: =F184*(Forecast!$R$8/$F$2) -> 81.32971653 | X184: =F184*(Forecast!$S$8/$F$2) -> 81.78356539 | Y184: =F184*(Forecast!$T$8/$F$2) -> 82.23741425 | Z184: =F184*(Forecast!$U$8/$F$2) -> 82.69126312 | AA184: =F184*(Forecast!$V$8/$F$2) -> 83.23588176 | AB184: =F184*(Forecast!$W$8/$F$2) -> 83.68973062 | AC184: =F184*(Forecast!$X$8/$F$2) -> 84.14357949 | AD184: =F184*(Forecast!$Y$8/$F$2) -> 84.68819812 | AE184: =F184*(Forecast!$Z$8/$F$2) -> 85.14204699 | AF184: =F184*(Forecast!$AA$8/$F$2) -> 85.59589585 | AG184: =F184*(Forecast!$AB$8/$F$2) -> 86.04974472
A185: 2017-01-08T13:00:00 | B185: 28.26563072 | C185: 16.17156792 | D185: 16.02462387 | E185: 0 | F185: 60.46182251 | H185: =F185*(Forecast!$C$8/$F$2) -> 73.34516973 | I185: =F185*(Forecast!$D$8/$F$2) -> 74.78155004 | J185: =F185*(Forecast!$E$8/$F$2) -> 74.96109758 | K185: =F185*(Forecast!$F$8/$F$2) -> 75.23041889 | L185: =F185*(Forecast!$G$8/$F$2) -> 75.40996643 | M185: =F185*(Forecast!$H$8/$F$2) -> 75.67928774 | N185: =F185*(Forecast!$I$8/$F$2) -> 76.21793035 | O185: =F185*(Forecast!$J$8/$F$2) -> 76.6667992 | P185: =F185*(Forecast!$K$8/$F$2) -> 77.11566805 | Q185: =F185*(Forecast!$L$8/$F$2) -> 77.5645369 | R185: =F185*(Forecast!$M$8/$F$2) -> 78.01340575 | S185: =F185*(Forecast!$N$8/$F$2) -> 78.55204836 | T185: =F185*(Forecast!$O$8/$F$2) -> 79.00091721 | U185: =F185*(Forecast!$P$8/$F$2) -> 79.44978606 | V185: =F185*(Forecast!$Q$8/$F$2) -> 79.89865491 | W185: =F185*(Forecast!$R$8/$F$2) -> 80.43729752 | X185: =F185*(Forecast!$S$8/$F$2) -> 80.88616637 | Y185: =F185*(Forecast!$T$8/$F$2) -> 81.33503522 | Z185: =F185*(Forecast!$U$8/$F$2) -> 81.78390407 | AA185: =F185*(Forecast!$V$8/$F$2) -> 82.32254668 | AB185: =F185*(Forecast!$W$8/$F$2) -> 82.77141553 | AC185: =F185*(Forecast!$X$8/$F$2) -> 83.22028438 | AD185: =F185*(Forecast!$Y$8/$F$2) -> 83.758927 | AE185: =F185*(Forecast!$Z$8/$F$2) -> 84.20779584 | AF185: =F185*(Forecast!$AA$8/$F$2) -> 84.65666469 | AG185: =F185*(Forecast!$AB$8/$F$2) -> 85.10553354
A186: 2017-01-08T14:00:00 | B186: 28.28385353 | C186: 16.11763954 | D186: 15.87067318 | E186: 0 | F186: 60.27216625 | H186: =F186*(Forecast!$C$8/$F$2) -> 73.11510107 | I186: =F186*(Forecast!$D$8/$F$2) -> 74.54697575 | J186: =F186*(Forecast!$E$8/$F$2) -> 74.72596009 | K186: =F186*(Forecast!$F$8/$F$2) -> 74.99443659 | L186: =F186*(Forecast!$G$8/$F$2) -> 75.17342093 | M186: =F186*(Forecast!$H$8/$F$2) -> 75.44189743 | N186: =F186*(Forecast!$I$8/$F$2) -> 75.97885044 | O186: =F186*(Forecast!$J$8/$F$2) -> 76.42631128 | P186: =F186*(Forecast!$K$8/$F$2) -> 76.87377212 | Q186: =F186*(Forecast!$L$8/$F$2) -> 77.32123296 | R186: =F186*(Forecast!$M$8/$F$2) -> 77.76869379 | S186: =F186*(Forecast!$N$8/$F$2) -> 78.3056468 | T186: =F186*(Forecast!$O$8/$F$2) -> 78.75310764 | U186: =F186*(Forecast!$P$8/$F$2) -> 79.20056848 | V186: =F186*(Forecast!$Q$8/$F$2) -> 79.64802932 | W186: =F186*(Forecast!$R$8/$F$2) -> 80.18498232 | X186: =F186*(Forecast!$S$8/$F$2) -> 80.63244316 | Y186: =F186*(Forecast!$T$8/$F$2) -> 81.079904 | Z186: =F186*(Forecast!$U$8/$F$2) -> 81.52736484 | AA186: =F186*(Forecast!$V$8/$F$2) -> 82.06431785 | AB186: =F186*(Forecast!$W$8/$F$2) -> 82.51177869 | AC186: =F186*(Forecast!$X$8/$F$2) -> 82.95923952 | AD186: =F186*(Forecast!$Y$8/$F$2) -> 83.49619253 | AE186: =F186*(Forecast!$Z$8/$F$2) -> 83.94365337 | AF186: =F186*(Forecast!$AA$8/$F$2) -> 84.39111421 | AG186: =F186*(Forecast!$AB$8/$F$2) -> 84.83857505
A187: 2017-01-08T15:00:00 | B187: 28.26563072 | C187: 16.06371117 | D187: 15.75281525 | E187: 0 | F187: 60.08215714 | H187: =F187*(Forecast!$C$8/$F$2) -> 72.88460436 | I187: =F187*(Forecast!$D$8/$F$2) -> 74.31196504 | J187: =F187*(Forecast!$E$8/$F$2) -> 74.49038512 | K187: =F187*(Forecast!$F$8/$F$2) -> 74.75801525 | L187: =F187*(Forecast!$G$8/$F$2) -> 74.93643533 | M187: =F187*(Forecast!$H$8/$F$2) -> 75.20406546 | N187: =F187*(Forecast!$I$8/$F$2) -> 75.73932571 | O187: =F187*(Forecast!$J$8/$F$2) -> 76.18537592 | P187: =F187*(Forecast!$K$8/$F$2) -> 76.63142613 | Q187: =F187*(Forecast!$L$8/$F$2) -> 77.07747634 | R187: =F187*(Forecast!$M$8/$F$2) -> 77.52352655 | S187: =F187*(Forecast!$N$8/$F$2) -> 78.0587868 | T187: =F187*(Forecast!$O$8/$F$2) -> 78.50483701 | U187: =F187*(Forecast!$P$8/$F$2) -> 78.95088722 | V187: =F187*(Forecast!$Q$8/$F$2) -> 79.39693743 | W187: =F187*(Forecast!$R$8/$F$2) -> 79.93219769 | X187: =F187*(Forecast!$S$8/$F$2) -> 80.3782479 | Y187: =F187*(Forecast!$T$8/$F$2) -> 80.82429811 | Z187: =F187*(Forecast!$U$8/$F$2) -> 81.27034832 | AA187: =F187*(Forecast!$V$8/$F$2) -> 81.80560857 | AB187: =F187*(Forecast!$W$8/$F$2) -> 82.25165878 | AC187: =F187*(Forecast!$X$8/$F$2) -> 82.69770899 | AD187: =F187*(Forecast!$Y$8/$F$2) -> 83.23296924 | AE187: =F187*(Forecast!$Z$8/$F$2) -> 83.67901945 | AF187: =F187*(Forecast!$AA$8/$F$2) -> 84.12506966 | AG187: =F187*(Forecast!$AB$8/$F$2) -> 84.57111987
A188: 2017-01-08T16:00:00 | B188: 28.46295738 | C188: 15.99659061 | D188: 15.75281525 | E188: 0 | F188: 60.21236324 | H188: =F188*(Forecast!$C$8/$F$2) -> 73.0425551 | I188: =F188*(Forecast!$D$8/$F$2) -> 74.47300905 | J188: =F188*(Forecast!$E$8/$F$2) -> 74.65181579 | K188: =F188*(Forecast!$F$8/$F$2) -> 74.92002591 | L188: =F188*(Forecast!$G$8/$F$2) -> 75.09883266 | M188: =F188*(Forecast!$H$8/$F$2) -> 75.36704277 | N188: =F188*(Forecast!$I$8/$F$2) -> 75.90346301 | O188: =F188*(Forecast!$J$8/$F$2) -> 76.35047987 | P188: =F188*(Forecast!$K$8/$F$2) -> 76.79749673 | Q188: =F188*(Forecast!$L$8/$F$2) -> 77.24451359 | R188: =F188*(Forecast!$M$8/$F$2) -> 77.69153045 | S188: =F188*(Forecast!$N$8/$F$2) -> 78.22795068 | T188: =F188*(Forecast!$O$8/$F$2) -> 78.67496754 | U188: =F188*(Forecast!$P$8/$F$2) -> 79.12198441 | V188: =F188*(Forecast!$Q$8/$F$2) -> 79.56900127 | W188: =F188*(Forecast!$R$8/$F$2) -> 80.1054215 | X188: =F188*(Forecast!$S$8/$F$2) -> 80.55243836 | Y188: =F188*(Forecast!$T$8/$F$2) -> 80.99945522 | Z188: =F188*(Forecast!$U$8/$F$2) -> 81.44647208 | AA188: =F188*(Forecast!$V$8/$F$2) -> 81.98289232 | AB188: =F188*(Forecast!$W$8/$F$2) -> 82.42990918 | AC188: =F188*(Forecast!$X$8/$F$2) -> 82.87692604 | AD188: =F188*(Forecast!$Y$8/$F$2) -> 83.41334627 | AE188: =F188*(Forecast!$Z$8/$F$2) -> 83.86036313 | AF188: =F188*(Forecast!$AA$8/$F$2) -> 84.30737999 | AG188: =F188*(Forecast!$AB$8/$F$2) -> 84.75439685
A189: 2017-01-08T17:00:00 | B189: 28.80296898 | C189: 15.88807392 | D189: 15.75281525 | E189: 0 | F189: 60.44385815 | H189: =F189*(Forecast!$C$8/$F$2) -> 73.32337748 | I189: =F189*(Forecast!$D$8/$F$2) -> 74.75933101 | J189: =F189*(Forecast!$E$8/$F$2) -> 74.93882521 | K189: =F189*(Forecast!$F$8/$F$2) -> 75.20806649 | L189: =F189*(Forecast!$G$8/$F$2) -> 75.38756069 | M189: =F189*(Forecast!$H$8/$F$2) -> 75.65680197 | N189: =F189*(Forecast!$I$8/$F$2) -> 76.19528455 | O189: =F189*(Forecast!$J$8/$F$2) -> 76.64402003 | P189: =F189*(Forecast!$K$8/$F$2) -> 77.09275551 | Q189: =F189*(Forecast!$L$8/$F$2) -> 77.54149099 | R189: =F189*(Forecast!$M$8/$F$2) -> 77.99022647 | S189: =F189*(Forecast!$N$8/$F$2) -> 78.52870905 | T189: =F189*(Forecast!$O$8/$F$2) -> 78.97744453 | U189: =F189*(Forecast!$P$8/$F$2) -> 79.42618001 | V189: =F189*(Forecast!$Q$8/$F$2) -> 79.87491549 | W189: =F189*(Forecast!$R$8/$F$2) -> 80.41339806 | X189: =F189*(Forecast!$S$8/$F$2) -> 80.86213355 | Y189: =F189*(Forecast!$T$8/$F$2) -> 81.31086903 | Z189: =F189*(Forecast!$U$8/$F$2) -> 81.75960451 | AA189: =F189*(Forecast!$V$8/$F$2) -> 82.29808708 | AB189: =F189*(Forecast!$W$8/$F$2) -> 82.74682256 | AC189: =F189*(Forecast!$X$8/$F$2) -> 83.19555804 | AD189: =F189*(Forecast!$Y$8/$F$2) -> 83.73404062 | AE189: =F189*(Forecast!$Z$8/$F$2) -> 84.1827761 | AF189: =F189*(Forecast!$AA$8/$F$2) -> 84.63151158 | AG189: =F189*(Forecast!$AB$8/$F$2) -> 85.08024706
A190: 2017-01-08T18:00:00 | B190: 28.42307663 | C190: 15.77955723 | D190: 15.74908638 | E190: 0 | F190: 59.95172024 | H190: =F190*(Forecast!$C$8/$F$2) -> 72.72637367 | I190: =F190*(Forecast!$D$8/$F$2) -> 74.15063557 | J190: =F190*(Forecast!$E$8/$F$2) -> 74.32866831 | K190: =F190*(Forecast!$F$8/$F$2) -> 74.59571742 | L190: =F190*(Forecast!$G$8/$F$2) -> 74.77375016 | M190: =F190*(Forecast!$H$8/$F$2) -> 75.04079927 | N190: =F190*(Forecast!$I$8/$F$2) -> 75.57489748 | O190: =F190*(Forecast!$J$8/$F$2) -> 76.01997933 | P190: =F190*(Forecast!$K$8/$F$2) -> 76.46506117 | Q190: =F190*(Forecast!$L$8/$F$2) -> 76.91014302 | R190: =F190*(Forecast!$M$8/$F$2) -> 77.35522487 | S190: =F190*(Forecast!$N$8/$F$2) -> 77.88932308 | T190: =F190*(Forecast!$O$8/$F$2) -> 78.33440493 | U190: =F190*(Forecast!$P$8/$F$2) -> 78.77948677 | V190: =F190*(Forecast!$Q$8/$F$2) -> 79.22456862 | W190: =F190*(Forecast!$R$8/$F$2) -> 79.75866684 | X190: =F190*(Forecast!$S$8/$F$2) -> 80.20374868 | Y190: =F190*(Forecast!$T$8/$F$2) -> 80.64883053 | Z190: =F190*(Forecast!$U$8/$F$2) -> 81.09391237 | AA190: =F190*(Forecast!$V$8/$F$2) -> 81.62801059 | AB190: =F190*(Forecast!$W$8/$F$2) -> 82.07309244 | AC190: =F190*(Forecast!$X$8/$F$2) -> 82.51817428 | AD190: =F190*(Forecast!$Y$8/$F$2) -> 83.0522725 | AE190: =F190*(Forecast!$Z$8/$F$2) -> 83.49735434 | AF190: =F190*(Forecast!$AA$8/$F$2) -> 83.94243619 | AG190: =F190*(Forecast!$AB$8/$F$2) -> 84.38751804
A191: 2017-01-08T19:00:00 | B191: 28.21504593 | C191: 15.67104053 | D191: 15.55167389 | E191: 0 | F191: 59.43776035 | H191: =F191*(Forecast!$C$8/$F$2) -> 72.102898 | I191: =F191*(Forecast!$D$8/$F$2) -> 73.51494986 | J191: =F191*(Forecast!$E$8/$F$2) -> 73.69145634 | K191: =F191*(Forecast!$F$8/$F$2) -> 73.95621606 | L191: =F191*(Forecast!$G$8/$F$2) -> 74.13272255 | M191: =F191*(Forecast!$H$8/$F$2) -> 74.39748227 | N191: =F191*(Forecast!$I$8/$F$2) -> 74.92700172 | O191: =F191*(Forecast!$J$8/$F$2) -> 75.36826792 | P191: =F191*(Forecast!$K$8/$F$2) -> 75.80953413 | Q191: =F191*(Forecast!$L$8/$F$2) -> 76.25080033 | R191: =F191*(Forecast!$M$8/$F$2) -> 76.69206654 | S191: =F191*(Forecast!$N$8/$F$2) -> 77.22158599 | T191: =F191*(Forecast!$O$8/$F$2) -> 77.66285219 | U191: =F191*(Forecast!$P$8/$F$2) -> 78.1041184 | V191: =F191*(Forecast!$Q$8/$F$2) -> 78.5453846 | W191: =F191*(Forecast!$R$8/$F$2) -> 79.07490405 | X191: =F191*(Forecast!$S$8/$F$2) -> 79.51617026 | Y191: =F191*(Forecast!$T$8/$F$2) -> 79.95743646 | Z191: =F191*(Forecast!$U$8/$F$2) -> 80.39870267 | AA191: =F191*(Forecast!$V$8/$F$2) -> 80.92822211 | AB191: =F191*(Forecast!$W$8/$F$2) -> 81.36948832 | AC191: =F191*(Forecast!$X$8/$F$2) -> 81.81075452 | AD191: =F191*(Forecast!$Y$8/$F$2) -> 82.34027397 | AE191: =F191*(Forecast!$Z$8/$F$2) -> 82.78154018 | AF191: =F191*(Forecast!$AA$8/$F$2) -> 83.22280638 | AG191: =F191*(Forecast!$AB$8/$F$2) -> 83.66407259
A192: 2017-01-08T20:00:00 | B192: 28.06565857 | C192: 15.56252384 | D192: 15.35426044 | E192: 0 | F192: 58.98244286 | H192: =F192*(Forecast!$C$8/$F$2) -> 71.55056038 | I192: =F192*(Forecast!$D$8/$F$2) -> 72.95179535 | J192: =F192*(Forecast!$E$8/$F$2) -> 73.12694972 | K192: =F192*(Forecast!$F$8/$F$2) -> 73.38968127 | L192: =F192*(Forecast!$G$8/$F$2) -> 73.56483564 | M192: =F192*(Forecast!$H$8/$F$2) -> 73.8275672 | N192: =F192*(Forecast!$I$8/$F$2) -> 74.35303031 | O192: =F192*(Forecast!$J$8/$F$2) -> 74.79091624 | P192: =F192*(Forecast!$K$8/$F$2) -> 75.22880216 | Q192: =F192*(Forecast!$L$8/$F$2) -> 75.66668809 | R192: =F192*(Forecast!$M$8/$F$2) -> 76.10457402 | S192: =F192*(Forecast!$N$8/$F$2) -> 76.63003713 | T192: =F192*(Forecast!$O$8/$F$2) -> 77.06792305 | U192: =F192*(Forecast!$P$8/$F$2) -> 77.50580898 | V192: =F192*(Forecast!$Q$8/$F$2) -> 77.94369491 | W192: =F192*(Forecast!$R$8/$F$2) -> 78.46915802 | X192: =F192*(Forecast!$S$8/$F$2) -> 78.90704395 | Y192: =F192*(Forecast!$T$8/$F$2) -> 79.34492987 | Z192: =F192*(Forecast!$U$8/$F$2) -> 79.7828158 | AA192: =F192*(Forecast!$V$8/$F$2) -> 80.30827891 | AB192: =F192*(Forecast!$W$8/$F$2) -> 80.74616484 | AC192: =F192*(Forecast!$X$8/$F$2) -> 81.18405076 | AD192: =F192*(Forecast!$Y$8/$F$2) -> 81.70951388 | AE192: =F192*(Forecast!$Z$8/$F$2) -> 82.1473998 | AF192: =F192*(Forecast!$AA$8/$F$2) -> 82.58528573 | AG192: =F192*(Forecast!$AB$8/$F$2) -> 83.02317165
A193: 2017-01-08T21:00:00 | B193: 27.93550301 | C193: 15.45400715 | D193: 15.15684795 | E193: 0 | F193: 58.54635811 | H193: =F193*(Forecast!$C$8/$F$2) -> 71.02155367 | I193: =F193*(Forecast!$D$8/$F$2) -> 72.41242865 | J193: =F193*(Forecast!$E$8/$F$2) -> 72.58628802 | K193: =F193*(Forecast!$F$8/$F$2) -> 72.84707708 | L193: =F193*(Forecast!$G$8/$F$2) -> 73.02093646 | M193: =F193*(Forecast!$H$8/$F$2) -> 73.28172551 | N193: =F193*(Forecast!$I$8/$F$2) -> 73.80330363 | O193: =F193*(Forecast!$J$8/$F$2) -> 74.23795206 | P193: =F193*(Forecast!$K$8/$F$2) -> 74.67260049 | Q193: =F193*(Forecast!$L$8/$F$2) -> 75.10724893 | R193: =F193*(Forecast!$M$8/$F$2) -> 75.54189736 | S193: =F193*(Forecast!$N$8/$F$2) -> 76.06347547 | T193: =F193*(Forecast!$O$8/$F$2) -> 76.49812391 | U193: =F193*(Forecast!$P$8/$F$2) -> 76.93277234 | V193: =F193*(Forecast!$Q$8/$F$2) -> 77.36742077 | W193: =F193*(Forecast!$R$8/$F$2) -> 77.88899889 | X193: =F193*(Forecast!$S$8/$F$2) -> 78.32364732 | Y193: =F193*(Forecast!$T$8/$F$2) -> 78.75829575 | Z193: =F193*(Forecast!$U$8/$F$2) -> 79.19294418 | AA193: =F193*(Forecast!$V$8/$F$2) -> 79.7145223 | AB193: =F193*(Forecast!$W$8/$F$2) -> 80.14917073 | AC193: =F193*(Forecast!$X$8/$F$2) -> 80.58381916 | AD193: =F193*(Forecast!$Y$8/$F$2) -> 81.10539728 | AE193: =F193*(Forecast!$Z$8/$F$2) -> 81.54004571 | AF193: =F193*(Forecast!$AA$8/$F$2) -> 81.97469414 | AG193: =F193*(Forecast!$AB$8/$F$2) -> 82.40934257
A194: 2017-01-08T22:00:00 | B194: 27.3656311 | C194: 15.31908226 | D194: 14.95943546 | E194: 0 | F194: 57.64414883 | H194: =F194*(Forecast!$C$8/$F$2) -> 69.92709952 | I194: =F194*(Forecast!$D$8/$F$2) -> 71.29654088 | J194: =F194*(Forecast!$E$8/$F$2) -> 71.46772105 | K194: =F194*(Forecast!$F$8/$F$2) -> 71.7244913 | L194: =F194*(Forecast!$G$8/$F$2) -> 71.89567147 | M194: =F194*(Forecast!$H$8/$F$2) -> 72.15244173 | N194: =F194*(Forecast!$I$8/$F$2) -> 72.66598224 | O194: =F194*(Forecast!$J$8/$F$2) -> 73.09393266 | P194: =F194*(Forecast!$K$8/$F$2) -> 73.52188309 | Q194: =F194*(Forecast!$L$8/$F$2) -> 73.94983351 | R194: =F194*(Forecast!$M$8/$F$2) -> 74.37778394 | S194: =F194*(Forecast!$N$8/$F$2) -> 74.89132445 | T194: =F194*(Forecast!$O$8/$F$2) -> 75.31927488 | U194: =F194*(Forecast!$P$8/$F$2) -> 75.7472253 | V194: =F194*(Forecast!$Q$8/$F$2) -> 76.17517573 | W194: =F194*(Forecast!$R$8/$F$2) -> 76.68871624 | X194: =F194*(Forecast!$S$8/$F$2) -> 77.11666666 | Y194: =F194*(Forecast!$T$8/$F$2) -> 77.54461709 | Z194: =F194*(Forecast!$U$8/$F$2) -> 77.97256751 | AA194: =F194*(Forecast!$V$8/$F$2) -> 78.48610802 | AB194: =F194*(Forecast!$W$8/$F$2) -> 78.91405845 | AC194: =F194*(Forecast!$X$8/$F$2) -> 79.34200888 | AD194: =F194*(Forecast!$Y$8/$F$2) -> 79.85554939 | AE194: =F194*(Forecast!$Z$8/$F$2) -> 80.28349981 | AF194: =F194*(Forecast!$AA$8/$F$2) -> 80.71145024 | AG194: =F194*(Forecast!$AB$8/$F$2) -> 81.13940066
A195: 2017-01-08T23:00:00 | B195: 27.03102875 | C195: 15.15001202 | D195: 14.76202202 | E195: 0 | F195: 56.94306278 | H195: =F195*(Forecast!$C$8/$F$2) -> 69.07662441 | I195: =F195*(Forecast!$D$8/$F$2) -> 70.4294102 | J195: =F195*(Forecast!$E$8/$F$2) -> 70.59850842 | K195: =F195*(Forecast!$F$8/$F$2) -> 70.85215576 | L195: =F195*(Forecast!$G$8/$F$2) -> 71.02125398 | M195: =F195*(Forecast!$H$8/$F$2) -> 71.27490132 | N195: =F195*(Forecast!$I$8/$F$2) -> 71.78219599 | O195: =F195*(Forecast!$J$8/$F$2) -> 72.20494155 | P195: =F195*(Forecast!$K$8/$F$2) -> 72.62768711 | Q195: =F195*(Forecast!$L$8/$F$2) -> 73.05043267 | R195: =F195*(Forecast!$M$8/$F$2) -> 73.47317823 | S195: =F195*(Forecast!$N$8/$F$2) -> 73.9804729 | T195: =F195*(Forecast!$O$8/$F$2) -> 74.40321846 | U195: =F195*(Forecast!$P$8/$F$2) -> 74.82596402 | V195: =F195*(Forecast!$Q$8/$F$2) -> 75.24870958 | W195: =F195*(Forecast!$R$8/$F$2) -> 75.75600425 | X195: =F195*(Forecast!$S$8/$F$2) -> 76.17874981 | Y195: =F195*(Forecast!$T$8/$F$2) -> 76.60149537 | Z195: =F195*(Forecast!$U$8/$F$2) -> 77.02424093 | AA195: =F195*(Forecast!$V$8/$F$2) -> 77.5315356 | AB195: =F195*(Forecast!$W$8/$F$2) -> 77.95428116 | AC195: =F195*(Forecast!$X$8/$F$2) -> 78.37702672 | AD195: =F195*(Forecast!$Y$8/$F$2) -> 78.88432139 | AE195: =F195*(Forecast!$Z$8/$F$2) -> 79.30706695 | AF195: =F195*(Forecast!$AA$8/$F$2) -> 79.72981251 | AG195: =F195*(Forecast!$AB$8/$F$2) -> 80.15255807
A196: 2017-01-09 | B196: 26.49606133 | C196: 14.98094177 | D196: 14.57988644 | E196: 0 | F196: 56.05688953 | H196: =F196*(Forecast!$C$8/$F$2) -> 68.00162328 | I196: =F196*(Forecast!$D$8/$F$2) -> 69.33335642 | J196: =F196*(Forecast!$E$8/$F$2) -> 69.49982306 | K196: =F196*(Forecast!$F$8/$F$2) -> 69.74952302 | L196: =F196*(Forecast!$G$8/$F$2) -> 69.91598967 | M196: =F196*(Forecast!$H$8/$F$2) -> 70.16568963 | N196: =F196*(Forecast!$I$8/$F$2) -> 70.66508956 | O196: =F196*(Forecast!$J$8/$F$2) -> 71.08125616 | P196: =F196*(Forecast!$K$8/$F$2) -> 71.49742277 | Q196: =F196*(Forecast!$L$8/$F$2) -> 71.91358937 | R196: =F196*(Forecast!$M$8/$F$2) -> 72.32975598 | S196: =F196*(Forecast!$N$8/$F$2) -> 72.8291559 | T196: =F196*(Forecast!$O$8/$F$2) -> 73.24532251 | U196: =F196*(Forecast!$P$8/$F$2) -> 73.66148911 | V196: =F196*(Forecast!$Q$8/$F$2) -> 74.07765572 | W196: =F196*(Forecast!$R$8/$F$2) -> 74.57705564 | X196: =F196*(Forecast!$S$8/$F$2) -> 74.99322225 | Y196: =F196*(Forecast!$T$8/$F$2) -> 75.40938885 | Z196: =F196*(Forecast!$U$8/$F$2) -> 75.82555546 | AA196: =F196*(Forecast!$V$8/$F$2) -> 76.32495539 | AB196: =F196*(Forecast!$W$8/$F$2) -> 76.74112199 | AC196: =F196*(Forecast!$X$8/$F$2) -> 77.1572886 | AD196: =F196*(Forecast!$Y$8/$F$2) -> 77.65668852 | AE196: =F196*(Forecast!$Z$8/$F$2) -> 78.07285513 | AF196: =F196*(Forecast!$AA$8/$F$2) -> 78.48902173 | AG196: =F196*(Forecast!$AB$8/$F$2) -> 78.90518834
A197: 2017-01-09T01:00:00 | B197: 25.88880157 | C197: 14.81187153 | D197: 14.54812813 | E197: 0 | F197: 55.24880123 | H197: =F197*(Forecast!$C$8/$F$2) -> 67.02134563 | I197: =F197*(Forecast!$D$8/$F$2) -> 68.33388116 | J197: =F197*(Forecast!$E$8/$F$2) -> 68.4979481 | K197: =F197*(Forecast!$F$8/$F$2) -> 68.74404851 | L197: =F197*(Forecast!$G$8/$F$2) -> 68.90811545 | M197: =F197*(Forecast!$H$8/$F$2) -> 69.15421587 | N197: =F197*(Forecast!$I$8/$F$2) -> 69.64641669 | O197: =F197*(Forecast!$J$8/$F$2) -> 70.05658404 | P197: =F197*(Forecast!$K$8/$F$2) -> 70.4667514 | Q197: =F197*(Forecast!$L$8/$F$2) -> 70.87691875 | R197: =F197*(Forecast!$M$8/$F$2) -> 71.28708611 | S197: =F197*(Forecast!$N$8/$F$2) -> 71.77928693 | T197: =F197*(Forecast!$O$8/$F$2) -> 72.18945429 | U197: =F197*(Forecast!$P$8/$F$2) -> 72.59962164 | V197: =F197*(Forecast!$Q$8/$F$2) -> 73.00978899 | W197: =F197*(Forecast!$R$8/$F$2) -> 73.50198982 | X197: =F197*(Forecast!$S$8/$F$2) -> 73.91215717 | Y197: =F197*(Forecast!$T$8/$F$2) -> 74.32232453 | Z197: =F197*(Forecast!$U$8/$F$2) -> 74.73249188 | AA197: =F197*(Forecast!$V$8/$F$2) -> 75.2246927 | AB197: =F197*(Forecast!$W$8/$F$2) -> 75.63486006 | AC197: =F197*(Forecast!$X$8/$F$2) -> 76.04502741 | AD197: =F197*(Forecast!$Y$8/$F$2) -> 76.53722824 | AE197: =F197*(Forecast!$Z$8/$F$2) -> 76.94739559 | AF197: =F197*(Forecast!$AA$8/$F$2) -> 77.35756294 | AG197: =F197*(Forecast!$AB$8/$F$2) -> 77.7677303
A198: 2017-01-09T02:00:00 | B198: 25.74563026 | C198: 14.64280128 | D198: 14.51636887 | E198: 0 | F198: =SUM(B198:E198) -> 54.90480042 | H198: =F198*(Forecast!$C$8/$F$2) -> 66.60404431 | I198: =F198*(Forecast!$D$8/$F$2) -> 67.90840748 | J198: =F198*(Forecast!$E$8/$F$2) -> 68.07145287 | K198: =F198*(Forecast!$F$8/$F$2) -> 68.31602097 | L198: =F198*(Forecast!$G$8/$F$2) -> 68.47906636 | M198: =F198*(Forecast!$H$8/$F$2) -> 68.72363446 | N198: =F198*(Forecast!$I$8/$F$2) -> 69.21277065 | O198: =F198*(Forecast!$J$8/$F$2) -> 69.62038414 | P198: =F198*(Forecast!$K$8/$F$2) -> 70.02799763 | Q198: =F198*(Forecast!$L$8/$F$2) -> 70.43561112 | R198: =F198*(Forecast!$M$8/$F$2) -> 70.84322461 | S198: =F198*(Forecast!$N$8/$F$2) -> 71.33236079 | T198: =F198*(Forecast!$O$8/$F$2) -> 71.73997428 | U198: =F198*(Forecast!$P$8/$F$2) -> 72.14758777 | V198: =F198*(Forecast!$Q$8/$F$2) -> 72.55520127 | W198: =F198*(Forecast!$R$8/$F$2) -> 73.04433745 | X198: =F198*(Forecast!$S$8/$F$2) -> 73.45195094 | Y198: =F198*(Forecast!$T$8/$F$2) -> 73.85956443 | Z198: =F198*(Forecast!$U$8/$F$2) -> 74.26717792 | AA198: =F198*(Forecast!$V$8/$F$2) -> 74.75631411 | AB198: =F198*(Forecast!$W$8/$F$2) -> 75.1639276 | AC198: =F198*(Forecast!$X$8/$F$2) -> 75.57154109 | AD198: =F198*(Forecast!$Y$8/$F$2) -> 76.06067728 | AE198: =F198*(Forecast!$Z$8/$F$2) -> 76.46829077 | AF198: =F198*(Forecast!$AA$8/$F$2) -> 76.87590426 | AG198: =F198*(Forecast!$AB$8/$F$2) -> 77.28351775
A199: 2017-01-09T03:00:00 | B199: 25.46049881 | C199: 14.47373009 | D199: 14.48461056 | E199: 0 | F199: 54.41883945 | H199: =F199*(Forecast!$C$8/$F$2) -> 66.01453364 | I199: =F199*(Forecast!$D$8/$F$2) -> 67.30735193 | J199: =F199*(Forecast!$E$8/$F$2) -> 67.46895421 | K199: =F199*(Forecast!$F$8/$F$2) -> 67.71135764 | L199: =F199*(Forecast!$G$8/$F$2) -> 67.87295993 | M199: =F199*(Forecast!$H$8/$F$2) -> 68.11536336 | N199: =F199*(Forecast!$I$8/$F$2) -> 68.60017021 | O199: =F199*(Forecast!$J$8/$F$2) -> 69.00417593 | P199: =F199*(Forecast!$K$8/$F$2) -> 69.40818164 | Q199: =F199*(Forecast!$L$8/$F$2) -> 69.81218735 | R199: =F199*(Forecast!$M$8/$F$2) -> 70.21619307 | S199: =F199*(Forecast!$N$8/$F$2) -> 70.70099992 | T199: =F199*(Forecast!$O$8/$F$2) -> 71.10500564 | U199: =F199*(Forecast!$P$8/$F$2) -> 71.50901135 | V199: =F199*(Forecast!$Q$8/$F$2) -> 71.91301707 | W199: =F199*(Forecast!$R$8/$F$2) -> 72.39782392 | X199: =F199*(Forecast!$S$8/$F$2) -> 72.80182964 | Y199: =F199*(Forecast!$T$8/$F$2) -> 73.20583535 | Z199: =F199*(Forecast!$U$8/$F$2) -> 73.60984106 | AA199: =F199*(Forecast!$V$8/$F$2) -> 74.09464792 | AB199: =F199*(Forecast!$W$8/$F$2) -> 74.49865363 | AC199: =F199*(Forecast!$X$8/$F$2) -> 74.90265935 | AD199: =F199*(Forecast!$Y$8/$F$2) -> 75.3874662 | AE199: =F199*(Forecast!$Z$8/$F$2) -> 75.79147192 | AF199: =F199*(Forecast!$AA$8/$F$2) -> 76.19547763 | AG199: =F199*(Forecast!$AB$8/$F$2) -> 76.59948335
A200: 2017-01-09T04:00:00 | B200: 25.56562996 | C200: 14.50225067 | D200: 14.45285225 | E200: 0 | F200: 54.52073288 | H200: =F200*(Forecast!$C$8/$F$2) -> 66.13813876 | I200: =F200*(Forecast!$D$8/$F$2) -> 67.43337771 | J200: =F200*(Forecast!$E$8/$F$2) -> 67.59528258 | K200: =F200*(Forecast!$F$8/$F$2) -> 67.83813988 | L200: =F200*(Forecast!$G$8/$F$2) -> 68.00004475 | M200: =F200*(Forecast!$H$8/$F$2) -> 68.24290205 | N200: =F200*(Forecast!$I$8/$F$2) -> 68.72861665 | O200: =F200*(Forecast!$J$8/$F$2) -> 69.13337883 | P200: =F200*(Forecast!$K$8/$F$2) -> 69.538141 | Q200: =F200*(Forecast!$L$8/$F$2) -> 69.94290317 | R200: =F200*(Forecast!$M$8/$F$2) -> 70.34766534 | S200: =F200*(Forecast!$N$8/$F$2) -> 70.83337994 | T200: =F200*(Forecast!$O$8/$F$2) -> 71.23814211 | U200: =F200*(Forecast!$P$8/$F$2) -> 71.64290429 | V200: =F200*(Forecast!$Q$8/$F$2) -> 72.04766646 | W200: =F200*(Forecast!$R$8/$F$2) -> 72.53338106 | X200: =F200*(Forecast!$S$8/$F$2) -> 72.93814323 | Y200: =F200*(Forecast!$T$8/$F$2) -> 73.3429054 | Z200: =F200*(Forecast!$U$8/$F$2) -> 73.74766758 | AA200: =F200*(Forecast!$V$8/$F$2) -> 74.23338218 | AB200: =F200*(Forecast!$W$8/$F$2) -> 74.63814435 | AC200: =F200*(Forecast!$X$8/$F$2) -> 75.04290652 | AD200: =F200*(Forecast!$Y$8/$F$2) -> 75.52862113 | AE200: =F200*(Forecast!$Z$8/$F$2) -> 75.9333833 | AF200: =F200*(Forecast!$AA$8/$F$2) -> 76.33814547 | AG200: =F200*(Forecast!$AB$8/$F$2) -> 76.74290764
... 2050 more rows

Sheet Forecast
B3: Long Term Labrador Interconnected Base Case Load Forecast Summary
C5: 2019 | D5: 2020 | E5: 2021 | F5: 2022 | G5: 2023 | H5: 2024 | I5: 2025 | J5: 2026 | K5: 2027 | L5: 2028 | M5: 2029 | N5: 2030 | O5: 2031 | P5: 2032 | Q5: 2033 | R5: 2034 | S5: 2035 | T5: 2036 | U5: 2037 | V5: 2038 | W5: 2039 | X5: 2040 | Y5: 2041 | Z5: 2042 | AA5: 2043 | AB5: 2044
B7: HV-GB (BASELINE)
B8: Peak (kW) - P90 | C8: 81.7 | D8: 83.3 | E8: 83.5 | F8: 83.8 | G8: 84 | H8: 84.3 | I8: 84.9 | J8: 85.4 | K8: 85.9 | L8: 86.4 | M8: 86.9 | N8: 87.5 | O8: 88 | P8: 88.5 | Q8: 89 | R8: 89.6 | S8: 90.1 | T8: 90.6 | U8: 91.1 | V8: 91.7 | W8: 92.2 | X8: 92.7 | Y8: 93.3 | Z8: 93.8 | AA8: 94.3 | AB8: 94.8

Sheet System Capacity_Reliablity Info
B1: Year | C1: BASELINE CAPACITY (Per Year) (MW)
C2: N-0 | D2: Loss of 1302 (Portion #1) | E2: Loss of 1302 (Portion #2)
B3: 2018 | C3: 102 | D3: N/A | E3: 25
B4: 2019 | C4: 102 | D4: N/A | E4: 25
B5: 2020 | C5: 129 | D5: 102 | E5: 25 | G5: Post MF-HVY Interconnection
B6: 2021 | C6: 129 | D6: 102 | E6: 25
B7: 2022 | C7: 129 | D7: 102 | E7: 25
B8: 2023 | C8: 129 | D8: 102 | E8: 25
B9: 2024 | C9: 129 | D9: 102 | E9: 25
B10: 2025 | C10: 129 | D10: 102 | E10: 25
B11: 2026 | C11: 129 | D11: 102 | E11: 25
B12: 2027 | C12: 129 | D12: 102 | E12: 25
B13: 2028 | C13: 129 | D13: 102 | E13: 25
B14: 2029 | C14: 129 | D14: 102 | E14: 25
B15: 2030 | C15: 129 | D15: 102 | E15: 25
B16: 2031 | C16: 129 | D16: 102 | E16: 25
B17: 2032 | C17: 129 | D17: 102 | E17: 25
B18: 2033 | C18: 129 | D18: 102 | E18: 25
B19: 2034 | C19: 129 | D19: 102 | E19: 25
B20: 2035 | C20: 129 | D20: 102 | E20: 25
B21: 2036 | C21: 129 | D21: 102 | E21: 25
B22: 2037 | C22: 129 | D22: 102 | E22: 25
B23: 2038 | C23: 129 | D23: 102 | E23: 25
B24: 2039 | C24: 129 | D24: 102 | E24: 25
B25: 2040 | C25: 129 | D25: 102 | E25: 25
B26: 2041 | C26: 129 | D26: 102 | E26: 25
B27: 2042 | C27: 129 | D27: 102 | E27: 25
B28: 2043 | C28: 129 | D28: 102 | E28: 25
B29: Note: Capacity values include HVY GT
B31: Reliability Statistics (As Per CEA)
B32: Component | C32: Length (km) | D32: Unavailablity
B33: L1302 (Portion #1) | C33: 6 | D33: 0.000102
B34: L1302 (Portion #2) | C34: 30 | D34: 0.00051
B35: L1301 | C35: 270 | D35: =C35/100*0.00107 -> 0.002889

Sheet EUE Calculations - Baseline
B1: 2019 | F1: 2020 | L1: 2021 | R1: 2022 | X1: 2023 | AD1: 2024 | AJ1: 2025 | AP1: 2026 | AV1: 2027 | BB1: 2028 | BH1: 2029 | BN1: 2030 | BT1: 2031 | BZ1: 2032 | CF1: 2033 | CL1: 2034 | CR1: 2035 | CX1: 2036 | DD1: 2037 | DJ1: 2038 | DP1: 2039 | DV1: 2040 | EB1: 2041 | EH1: 2042 | EN1: 2043 | ET1: 2044
B2: Load (MW) | C2: Loss of 1301 | F2: Load (MW) | G2: Loss of 1302a | I2: Loss of 1302b | L2: Load (MW) | M2: Loss of 1302a | O2: Loss of 1302b | R2: Load (MW) | S2: Loss of 1302a | U2: Loss of 1302b | X2: Load (MW) | Y2: Loss of 1302a | AA2: Loss of 1302b | AD2: Load (MW) | AE2: Loss of 1302a | AG2: Loss of 1302b | AJ2: Load (MW) | AK2: Loss of 1302a | AM2: Loss of 1302b | AP2: Load (MW) | AQ2: Loss of 1302a | AS2: Loss of 1302b | AV2: Load (MW) | AW2: Loss of 1302a | AY2: Loss of 1302b | BB2: Load (MW) | BC2: Loss of 1302a | BE2: Loss of 1302b | BH2: Load (MW) | BI2: Loss of 1302a | BK2: Loss of 1302b | BN2: Load (MW) | BO2: Loss of 1302a | BQ2: Loss of 1302b | BT2: Load (MW) | BU2: Loss of 1302a | BW2: Loss of 1302b | BZ2: Load (MW) | CA2: Loss of 1302a | CC2: Loss of 1302b | CF2: Load (MW) | CG2: Loss of 1302a | CI2: Loss of 1302b | CL2: Load (MW) | CM2: Loss of 1302a | CO2: Loss of 1302b | CR2: Load (MW) | CS2: Loss of 1302a | CU2: Loss of 1302b | CX2: Load (MW) | CY2: Loss of 1302a | DA2: Loss of 1302b | DD2: Load (MW) | DE2: Loss of 1302a | DG2: Loss of 1302b | DJ2: Load (MW) | DK2: Loss of 1302a | DM2: Loss of 1302b | DP2: Load (MW) | DQ2: Loss of 1302a | DS2: Loss of 1302b | DV2: Load (MW) | DW2: Loss of 1302a | DY2: Loss of 1302b | EB2: Load (MW) | EC2: Loss of 1302a | EE2: Loss of 1302b | EH2: Load (MW) | EI2: Loss of 1302a | EK2: Loss of 1302b | EN2: Load (MW) | EO2: Loss of 1302a | EQ2: Loss of 1302b | ET2: Load (MW) | EU2: Loss of 1302a | EW2: Loss of 1302b
C3: Capacity Deficit (MW) | D3: EUE (MWh) | G3: Capacity Deficit (MW) | H3: EUE (MWh) | I3: Capacity Deficit (MW) | J3: EUE (MWh) | M3: Capacity Deficit (MW) | N3: EUE (MWh) | O3: Capacity Deficit (MW) | P3: EUE (MWh) | S3: Capacity Deficit (MW) | T3: EUE (MWh) | U3: Capacity Deficit (MW) | V3: EUE (MWh) | Y3: Capacity Deficit (MW) | Z3: EUE (MWh) | AA3: Capacity Deficit (MW) | AB3: EUE (MWh) | AE3: Capacity Deficit (MW) | AF3: EUE (MWh) | AG3: Capacity Deficit (MW) | AH3: EUE (MWh) | AK3: Capacity Deficit (MW) | AL3: EUE (MWh) | AM3: Capacity Deficit (MW) | AN3: EUE (MWh) | AQ3: Capacity Deficit (MW) | AR3: EUE (MWh) | AS3: Capacity Deficit (MW) | AT3: EUE (MWh) | AW3: Capacity Deficit (MW) | AX3: EUE (MWh) | AY3: Capacity Deficit (MW) | AZ3: EUE (MWh) | BC3: Capacity Deficit (MW) | BD3: EUE (MWh) | BE3: Capacity Deficit (MW) | BF3: EUE (MWh) | BI3: Capacity Deficit (MW) | BJ3: EUE (MWh) | BK3: Capacity Deficit (MW) | BL3: EUE (MWh) | BO3: Capacity Deficit (MW) | BP3: EUE (MWh) | BQ3: Capacity Deficit (MW) | BR3: EUE (MWh) | BU3: Capacity Deficit (MW) | BV3: EUE (MWh) | BW3: Capacity Deficit (MW) | BX3: EUE (MWh) | CA3: Capacity Deficit (MW) | CB3: EUE (MWh) | CC3: Capacity Deficit (MW) | CD3: EUE (MWh) | CG3: Capacity Deficit (MW) | CH3: EUE (MWh) | CI3: Capacity Deficit (MW) | CJ3: EUE (MWh) | CM3: Capacity Deficit (MW) | CN3: EUE (MWh) | CO3: Capacity Deficit (MW) | CP3: EUE (MWh) | CS3: Capacity Deficit (MW) | CT3: EUE (MWh) | CU3: Capacity Deficit (MW) | CV3: EUE (MWh) | CY3: Capacity Deficit (MW) | CZ3: EUE (MWh) | DA3: Capacity Deficit (MW) | DB3: EUE (MWh) | DE3: Capacity Deficit (MW) | DF3: EUE (MWh) | DG3: Capacity Deficit (MW) | DH3: EUE (MWh) | DK3: Capacity Deficit (MW) | DL3: EUE (MWh) | DM3: Capacity Deficit (MW) | DN3: EUE (MWh) | DQ3: Capacity Deficit (MW) | DR3: EUE (MWh) | DS3: Capacity Deficit (MW) | DT3: EUE (MWh) | DW3: Capacity Deficit (MW) | DX3: EUE (MWh) | DY3: Capacity Deficit (MW) | DZ3: EUE (MWh) | EC3: Capacity Deficit (MW) | ED3: EUE (MWh) | EE3: Capacity Deficit (MW) | EF3: EUE (MWh) | EI3: Capacity Deficit (MW) | EJ3: EUE (MWh) | EK3: Capacity Deficit (MW) | EL3: EUE (MWh) | EO3: Capacity Deficit (MW) | EP3: EUE (MWh) | EQ3: Capacity Deficit (MW) | ER3: EUE (MWh) | EU3: Capacity Deficit (MW) | EV3: EUE (MWh) | EW3: Capacity Deficit (MW) | EX3: EUE (MWh)
A4: Max: | B4: =MAX(B6:B8766) -> 81.7 | C4: =MAX(C6:C8766) -> 56.7 | E4: Max: | F4: =MAX(F6:F8766) -> 83.3 | G4: =MAX(G6:G8766) -> 0 | I4: =MAX(I6:I8766) -> 58.3 | K4: Max: | L4: =MAX(L6:L8766) -> 83.5 | M4: =MAX(M6:M8766) -> 0 | O4: =MAX(O6:O8766) -> 58.5 | Q4: Max: | R4: =MAX(R6:R8766) -> 83.8 | S4: =MAX(S6:S8766) -> 0 | U4: =MAX(U6:U8766) -> 58.8 | W4: Max: | X4: =MAX(X6:X8766) -> 84 | Y4: =MAX(Y6:Y8766) -> 0 | AA4: =MAX(AA6:AA8766) -> 59 | AC4: Max: | AD4: =MAX(AD6:AD8766) -> 84.3 | AE4: =MAX(AE6:AE8766) -> 0 | AG4: =MAX(AG6:AG8766) -> 59.3 | AI4: Max: | AJ4: =MAX(AJ6:AJ8766) -> 84.9 | AK4: =MAX(AK6:AK8766) -> 0 | AM4: =MAX(AM6:AM8766) -> 59.9 | AO4: Max: | AP4: =MAX(AP6:AP8766) -> 85.4 | AQ4: =MAX(AQ6:AQ8766) -> 0 | AS4: =MAX(AS6:AS8766) -> 60.4 | AU4: Max: | AV4: =MAX(AV6:AV8766) -> 85.9 | AW4: =MAX(AW6:AW8766) -> 0 | AY4: =MAX(AY6:AY8766) -> 60.9 | BA4: Max: | BB4: =MAX(BB6:BB8766) -> 86.4 | BC4: =MAX(BC6:BC8766) -> 0 | BE4: =MAX(BE6:BE8766) -> 61.4 | BG4: Max: | BH4: =MAX(BH6:BH8766) -> 86.9 | BI4: =MAX(BI6:BI8766) -> 0 | BK4: =MAX(BK6:BK8766) -> 61.9 | BM4: Max: | BN4: =MAX(BN6:BN8766) -> 87.5 | BO4: =MAX(BO6:BO8766) -> 0 | BQ4: =MAX(BQ6:BQ8766) -> 62.5 | BS4: Max: | BT4: =MAX(BT6:BT8766) -> 88 | BU4: =MAX(BU6:BU8766) -> 0 | BW4: =MAX(BW6:BW8766) -> 63 | BY4: Max: | BZ4: =MAX(BZ6:BZ8766) -> 88.5 | CA4: =MAX(CA6:CA8766) -> 0 | CC4: =MAX(CC6:CC8766) -> 63.5 | CE4: Max: | CF4: =MAX(CF6:CF8766) -> 89 | CG4: =MAX(CG6:CG8766) -> 0 | CI4: =MAX(CI6:CI8766) -> 64 | CK4: Max: | CL4: =MAX(CL6:CL8766) -> 89.6 | CM4: =MAX(CM6:CM8766) -> 0 | CO4: =MAX(CO6:CO8766) -> 64.6 | CQ4: Max: | CR4: =MAX(CR6:CR8766) -> 90.1 | CS4: =MAX(CS6:CS8766) -> 0 | CU4: =MAX(CU6:CU8766) -> 65.1 | CW4: Max: | CX4: =MAX(CX6:CX8766) -> 90.6 | CY4: =MAX(CY6:CY8766) -> 0 | DA4: =MAX(DA6:DA8766) -> 65.6 | DC4: Max: | DD4: =MAX(DD6:DD8766) -> 91.1 | DE4: =MAX(DE6:DE8766) -> 0 | DG4: =MAX(DG6:DG8766) -> 66.1 | DI4: Max: | DJ4: =MAX(DJ6:DJ8766) -> 91.7 | DK4: =MAX(DK6:DK8766) -> 0 | DM4: =MAX(DM6:DM8766) -> 66.7 | DO4: Max: | DP4: =MAX(DP6:DP8766) -> 92.2 | DQ4: =MAX(DQ6:DQ8766) -> 0 | DS4: =MAX(DS6:DS8766) -> 67.2 | DU4: Max: | DV4: =MAX(DV6:DV8766) -> 92.7 | DW4: =MAX(DW6:DW8766) -> 0 | DY4: =MAX(DY6:DY8766) -> 67.7 | EA4: Max: | EB4: =MAX(EB6:EB8766) -> 93.3 | EC4: =MAX(EC6:EC8766) -> 0 | EE4: =MAX(EE6:EE8766) -> 68.3 | EG4: Max: | EH4: =MAX(EH6:EH8766) -> 93.8 | EI4: =MAX(EI6:EI8766) -> 0 | EK4: =MAX(EK6:EK8766) -> 68.8 | EM4: Max: | EN4: =MAX(EN6:EN8766) -> 94.3 | EO4: =MAX(EO6:EO8766) -> 0 | EQ4: =MAX(EQ6:EQ8766) -> 69.3 | ES4: Max: | ET4: =MAX(ET6:ET8766) -> 94.8 | EU4: =MAX(EU6:EU8766) -> 0 | EW4: =MAX(EW6:EW8766) -> 69.8
A5: Sum: | D5: =SUM(D6:D8766) -> 386.3149216 | E5: Sum: | H5: =SUM(H6:H8766) -> 0 | J5: =SUM(J6:J8766) -> 71.06913568 | K5: Sum: | N5: =SUM(N6:N8766) -> 0 | P5: =SUM(P6:P8766) -> 71.42956669 | Q5: Sum: | T5: =SUM(T6:T8766) -> 0 | V5: =SUM(V6:V8766) -> 71.97111775 | W5: Sum: | Z5: =SUM(Z6:Z8766) -> 0 | AB5: =SUM(AB6:AB8766) -> 72.33256307 | AC5: Sum: | AF5: =SUM(AF6:AF8766) -> 0 | AH5: =SUM(AH6:AH8766) -> 72.87522436 | AI5: Sum: | AL5: =SUM(AL6:AL8766) -> 0 | AN5: =SUM(AN6:AN8766) -> 73.96310965 | AO5: Sum: | AR5: =SUM(AR6:AR8766) -> 0 | AT5: =SUM(AT6:AT8766) -> 74.87260756 | AU5: Sum: | AX5: =SUM(AX6:AX8766) -> 0 | AZ5: =SUM(AZ6:AZ8766) -> 75.78536572 | BA5: Sum: | BD5: =SUM(BD6:BD8766) -> 0 | BF5: =SUM(BF6:BF8766) -> 76.70073463 | BG5: Sum: | BJ5: =SUM(BJ6:BJ8766) -> 0 | BL5: =SUM(BL6:BL8766) -> 77.61829777 | BM5: Sum: | BP5: =SUM(BP6:BP8766) -> 0 | BR5: =SUM(BR6:BR8766) -> 78.72323635 | BS5: Sum: | BV5: =SUM(BV6:BV8766) -> 0 | BX5: =SUM(BX6:BX8766) -> 79.64709228 | BY5: Sum: | CB5: =SUM(CB6:CB8766) -> 0 | CD5: =SUM(CD6:CD8766) -> 80.57296406 | CE5: Sum: | CH5: =SUM(CH6:CH8766) -> 0 | CJ5: =SUM(CJ6:CJ8766) -> 81.50163453 | CK5: Sum: | CN5: =SUM(CN6:CN8766) -> 0 | CP5: =SUM(CP6:CP8766) -> 82.61977917 | CQ5: Sum: | CT5: =SUM(CT6:CT8766) -> 0 | CV5: =SUM(CV6:CV8766) -> 83.55436243 | CW5: Sum: | CZ5: =SUM(CZ6:CZ8766) -> 0 | DB5: =SUM(DB6:DB8766) -> 84.49183051 | DC5: Sum: | DF5: =SUM(DF6:DF8766) -> 0 | DH5: =SUM(DH6:DH8766) -> 85.43265455 | DI5: Sum: | DL5: =SUM(DL6:DL8766) -> 0 | DN5: =SUM(DN6:DN8766) -> 86.56576417 | DO5: Sum: | DR5: =SUM(DR6:DR8766) -> 0 | DT5: =SUM(DT6:DT8766) -> 87.51346681 | DU5: Sum: | DX5: =SUM(DX6:DX8766) -> 0 | DZ5: =SUM(DZ6:DZ8766) -> 88.46385205 | EA5: Sum: | ED5: =SUM(ED6:ED8766) -> 0 | EF5: =SUM(EF6:EF8766) -> 89.60834964 | EG5: Sum: | EJ5: =SUM(EJ6:EJ8766) -> 0 | EL5: =SUM(EL6:EL8766) -> 90.56610545 | EM5: Sum: | EP5: =SUM(EP6:EP8766) -> 0 | ER5: =SUM(ER6:ER8766) -> 91.52684684 | ES5: Sum: | EV5: =SUM(EV6:EV8766) -> 0 | EX5: =SUM(EX6:EX8766) -> 92.49100917
